Workbook

Sheet Instructions
C1: Instructions
B3: ;g ,Dly izksxzke esjs ije~ iwT; xq:nso Jh Jh 1008 oklqnso th egkjkt o esjs bZ"V izHkq t; ctjaxcyh o ikcwth egkjkt dks lefiZr gSaA esjs ekrk & firk o xq:tuksa ds vk'khokZn ls ;g izksxzke f'k{kd cU/kqvksa ds lkFk lHkh foHkkx ds dkfeZdksa dh lsok esa lknj izLrqr gSaA
C4: How to use this Programme
C5: If you have Hindi font problem, then first you should install Hindi font KRUTI DEV 010 in your computer.
C6: lcls igys vki jktLFkku lHkh 'kSf{kd osclkbZV ij ,Dly xq: ghjkyky tkV }kjk fufeZr vk;dj x.kuk ,Dly ,Iyhds'ku 2021&22 ds viMsV otZu+ dks MkmuyksM djsasaA blds vykok vki Google ij Heeralal Jat fy[kdj lpZ djsaxs rks Hkh vkidks ist fey tk;sxkA tgka ls vki ;g izksxzke MkmuyksM dj ldrs gSaA mlds ckn ftrusa dkfeZdksa dh vk;dj x.kuk djuh gS] mruh gh ,Dly izksxzke 'khV dks muds uke ls vyx vyx Qkby esa Save dj ysosaA izR;sad dkfeZd ds fy, ds fy, ,d QkbZy dks mi;ksx esa ysosaA
B7: t; xq:nso | C7: vki bl ,Dly izksxzke ij dk;Z djus ls igys bUde VSDl foHkkx ds u;s :Yl o fu;e bUde VSDl foHkkx dh website vFkok ys[kk foK vDVqcj 2020 dkss t:j i<+sA oSls bl ,Dly izksxzke esa iq.kZ lko/kkuh cjrh xbZ gSa] fQj Hkh foHkkx ds fu;e gh loksZijh o fljks/kk;Z gSaA
B8: Most Doable Work | D8: ije~ iwT; xq:nso
B9: vki bl ,Dly izksxzke esa nksa 'khVksa ekLVj MkVk 'khV o ,DLV~zk fMMsD'ku 'khV dks lko/kkuhiwoZd vuykWd lsy tks lQsn dyj esa gSa] dks Hkjuk ¼MkVk fQfyax½ gSaA vkxs dh 'khVs vkWVksa tujsV gSaA os lHkh ykWd gSaA ogk ij vkidks dqN ugh djuk gSaA flQZ A4 lkbZt esa fizUV fudkyuk gSa vkSj ist Hkh lsV fd;k gqvk gSaA
B11: PLEASE ENABLE MACROS FIRST
B13: ;g ,Dly izksaxzke lHkh dkfeZdksa ds fy, leku :i ls rS;kj fd;k x;k gSA ladyu ,oa x.kuk esa iw.kZ lko/kkuh j[kh xbZ gSA fQj Hkh =qfV ;k fdlh Hkh izdkj dh fofHkUurk dh fLFkfr esa vk;dj foHkkx ds fu;e gh ekU; gSA rS;kjdrkZ dk dksbZ mÙkjnkf;Ro ugha gksxkA | D13: https://youtu.be/MGhyFQKgC3Q
B15: This Programme Developed by: HEERALAL JAT
B16: Senior Teacher
B17: Mahatma Gandhi Government School (English Medium) BAR , PALI
B18: heeralaljatchandawal@gmail.com | D18: You tube video Link for Macro Excel Software
B19: V./P. - Chandawal Nagar, Teh.- sojat city, Dist.- Pali (Raj) 306306
C20: https://www.youtube.com/watch?v=JIltzwkB8Ko
B21: UPDATE ON | C21: Watch the You Tube Video For More Information. | D21: https://youtu.be/JIltzwkB8Ko
B24: 2021-11-20 | C24: https://youtu.be/MGhyFQKgC3Q | D24: https://www.youtube.com/watch?v=FwBqjLiBd28
C26: You Tube Channel
C28: https://www.youtube.com/c/Heeralaljat/

Sheet Master Data
AC1: 1 | AD1: 2020-04-01
B2: https://youtu.be/MGhyFQKgC3Q | E2: EMPLOYEE PERSONAL DETAIL | T2: JUN | U2: 20 | AA2: 2019-08-01 | AC2: 2 | AD2: 2020-05-01
AC3: 3 | AD3: 2020-06-01
B4: Office Name :- | D4: Mahatma Gandhi Govt. School (English Medium) Bar, PALI | T4: JUL | X4: 1000 | AA4: 2019-09-01 | AC4: 4 | AD4: 2020-07-01
AC5: 5 | AD5: 2020-08-01
B6: Employee Name :- | D6: Heeralal jat | F6: Designation :- | H6: Sr Teacher | T6: AUG | X6: 620 | AA6: 2019-10-01 | AC6: 6 | AD6: 2020-09-01
AC7: 7 | AD7: 2020-10-01
B8: School Name :- | C8: Posting Place :- | D8: M.G.G.S. Bar | F8: DDO Name :- | H8: Usha Paliya | T8: SEP | AA8: 2019-11-01 | AC8: 8 | AD8: 2020-11-01
AC9: 9 | AD9: 2020-12-01
B10: Personal Employee ID :- | D10: RJPAxxxxxxxx4272 | F10: UID AADHAR No. :- | H10: 123465471475 | T10: OCT | AA10: 2019-12-01 | AC10: 10 | AD10: 2021-01-01
AC11: 11 | AD11: 2021-02-01
B12: PAN No. :- | D12: abcde1234h | F12: TAN NO. :- | T12: NOV | AA12: 2020-01-01 | AC12: 12
B14: GPF No. :- | D14: 11 | F14: SI No. :- | H14: 123456 | T14: DEC | AA14: 2020-02-01
B16: PRAN No. :- | D16: 12134545454541 | F16: Bank A/C No. :- | H16: 121212121212121
B18: Gazetted / Non-Gazetted | D18: Non-Gazetted | F18: PD Head Select Yes/No :- | H18: No | K18: ije~ iwT; xw:nso Jh Jh 1008 oklwnso th egkjkt
E20: EMPLOYEE PAY DETAIL
B22: D;k vkius lefiZr osru fy;k gS \ | E22: No | F22: ;fn gk¡ rks ekg dks lysDV djsaA | I22: SEP | K22: यदि कार्मिक के डीए 28 % हो गया हो तो नीचे ऑप्शन में यह सेलेक्ट करें | S22: YES | T22: JAN | U22: 8 | V22: GPF | W22: Jaipur (U.A.) | Y22: Regular Pay | AA22: 2019-03-01
B24: vki fdl vk;q oxZ dh Js.kh esa vkrs gS \ | E24: Under 60 | F24: D;k vkidks cksul feyk gS \ %& | I24: Yes | S24: NO | U24: 9 | V24: NPS | W24: Ajmer | Y24: Fix Pay | AA24: 2019-04-01
C26: vkidksa ftrusa ekg dk cksul feyk gSa ] mu ekg dh la[;kW dksa lysDV djsa F | I26: 12 | K26: Increase DA from July 2021 | N26: Yes
B28: foadykax HkÙkk %& | C28: foadykax HkÙkk %& | E28: 0 | F28: vkidks osru fey jgk gS %& | I28: Regular Pay | K28: पिछले सेशन 2020-21 में यदि जनवरी 2021 या फरवरी 2021 का वेतन उस वित्तिय वर्ष नहीं मिलकर यदि वर्तमान वित्तीय वर्ष में मिला हो तो माह सलेक्ट करें। | T28: MAR | U28: 10 | W28: Bikaner | AA28: 2019-05-01
B30: 7th PAY HRA izfr'kr esa %& | E30: 8 | F30: % GPF / NPS :- | I30: NPS | T30: APR | U30: 12 | W30: Jodhpur | AA30: 2019-06-01
B32: CCA yxrk gSa rks select Yes / No %& | E32: No | F32: CCA ykxw gks rks CITY lysDV djsa %& | I32: Jodhpur | K32: 2021-01-01 | N32: No | T32: MAY | U32: 16 | W32: Kota | AA32: 2019-07-01
B34: 7th PAY New HRA @ izfr- ekg ¼1 tqykbZ 21 ls½ %& | E34: 9 | F34: is esfVªDl ds vuqlkj is ysoy lysDV djsa %& | I34: 11 | K34: 2021-02-01 | N34: No
B36: BASIC On 01 March 2020 F | E36: 50800 | F36: ;fn fofr; o"kZ 2020&21 esa ewy osru ifjofrZr gqvk gSa rksa fy[ksa | K36: NPS कार्मिक ने यदि RGHS का ऑप्शन दिया हो तो Yes सेलेक्ट करें :- | N36: No
B38: ;fn ewy osru esa dksbZ ifjorZu gqvk gSa tSlsa%& ,lhih@fQVesaUV ;k vU; dkj.k ls ¼badzhes.V ds vykok½ ¼ekg lysDV djsa½ | K38: Group Insurance Rate @ :- | N38: 220
C40: Tax Calculate From Month :- | F40: 2021-03-01 | G40: To Month :- | H40: 2022-02-01 | K40: किसी कारणवश March-20 का Freeze वेतन इस वितीय वर्ष में मिला है | N40: No
B42: Wash All. | C42: Handi. All. | D42: CCA | E42: other-1 | F42: other-2 | G42: SI | H42: GPF / NPS | I42: L.I.C. | J42: RPMF / RGHS | K42: SI Loan | L42: GPF Loan | M42: GPF 2004 (NPS) | N42: GPF-2004 Dedc. Show in US 80c | O42: SI Int.
C43: 600 | G43: 7000 | H43: 3575 | I43: 1880 | J43: 330 | N43: No
L44: https://youtu.be/MGhyFQKgC3Q
E45: Income Tax Deduction By Salary
B46: March | C46: April | D46: May | E46: June | F46: July | G46: August | H46: September | I46: October | J46: November | K46: December | L46: January | M46: February
B47: 0 | C47: 1500 | D47: 1500 | E47: 1500 | F47: 1500 | G47: 1500 | H47: 1500 | I47: 1500 | J47: 1500 | K47: 1500 | L47: 1500 | M47: 0
C49: First Unlock Cell Entry Fill Up Then Click On Go to Next Sheet Button
F50: Use Button For going to Next Sheet H

Sheet GA55 Check & Edit (hidden)
T1: GA 55 Check & Edit sheet पर कार्य करने में मदद हेतु नीचे Youtube Video का लिंक दिया गया है। H | AW1: Gazetted | AZ1: =IF('Master Data'!I34>9,ROUND(AZ3/31*15,0),IF('Master Data'!D18='GA55 Check & Edit'!AW1,ROUND(AZ3/31*15,0),IF('Master Data'!I34>=5,ROUND(AZ3/31*22,0),AZ3))) -> 23855
D3: Employee Name :- | F3: =IF('Master Data'!D6="","",CONCATENATE('Master Data'!D6," , ",'Master Data'!H6)) -> Heeralal jat , Sr Teacher | S3: https://www.youtube.com/watch?v=y7-DiFIbdG0 | AZ3: =AZ15-ROUNDUP(ROUND((AZ15*3%)-(AZ15*3%)*2.9%,-2),0) -> 49300
C5: 1 | D5: 2 | E5: 3 | F5: 4 | G5: 5 | H5: 6 | I5: 7 | J5: 8 | K5: 9 | L5: 10 | M5: 11 | N5: 12 | O5: 13 | P5: 14 | Q5: 15 | R5: 16 | S5: 17 | T5: 18 | U5: 19 | V5: 20 | W5: 21 | X5: 22 | Y5: 23 | Z5: 24 | AA5: 25 | AB5: 26 | AC5: 27 | AD5: 28 | AE5: 29 | AM5: ='Master Data'!N26 -> Yes | AN5: GPF | AO5: Yes | AP5: Regular Pay | AQ5: Under 60 | AS5: 1000
C6: S.N. | D6: Month | E6: Basic with Grade Pay | F6: DA | G6: HRA | H6: =IF('Master Data'!B42="","",'Master Data'!B42) -> Wash All. | I6: =IF('Master Data'!C42="","",'Master Data'!C42) -> Handi. All. | J6: =IF('Master Data'!D42="","",'Master Data'!D42) -> CCA | K6: =IF('Master Data'!E42="","",'Master Data'!E42) -> other-1 | L6: =IF('Master Data'!F42="","",'Master Data'!F42) -> other-2 | M6: Bonus | N6: N.P.S. By Govt. | O6: TOTAL | P6: =IF('Master Data'!G42="","",'Master Data'!G42) -> SI | Q6: =IF('Master Data'!H42="","",'Master Data'!H42) -> GPF / NPS | R6: =IF('Master Data'!I42="","",'Master Data'!I42) -> L.I.C. | S6: =IF('Master Data'!J42="","",'Master Data'!J42) -> RPMF / RGHS | T6: =IF('Master Data'!K42="","",'Master Data'!K42) -> SI Loan | U6: =IF('Master Data'!L42="","",'Master Data'!L42) -> GPF Loan | V6: =IF('Master Data'!M42="","",'Master Data'!M42) -> GPF 2004 (NPS) | W6: =IF('Master Data'!N42="","",'Master Data'!O42) -> SI Int. | X6: HITKARI NIDHI | Y6: Other | Z6: Income Tax | AA6: G.I. + S. Tax | AB6: Total Ded. | AC6: NET PAY | AD6: TV.NO. | AE6: Enc. DATE | AN6: NPS | AO6: No | AP6: Fix Pay | AQ6: Above 60 | AS6: 620
AQ7: Above 80 | BD7: =IF(D6="State Service",ROUND(B10*15/31,0),IF(AND(D6="Subordinate",OR(B6=G5,B6=G6,B6=G7,B6=G8,B6=G9)),ROUND(B10*22/31,0),IF(AND(D6="Subordinate",OR(B6=G10,B6=G11,B6=G12,B6=G13,B6=G14,B6=G15)),ROUND(B10*15/31,0),IF(D6="Ministerial",ROUND(B10*22/31,0),B10)))) -> 3
A8: =MOD(B8,2) -> 1 | B8: =IF(LEN(D8)>=3,1,0) -> 1 | C8: 1 | D8: =IFERROR(IF(BO12="","",BO12),"") -> 2021-03-01 | E8: =IFERROR(IF(D8="","",IF(AND(BQ12=""),"",IF(AND('Master Data'!$I$28='GA55 Check & Edit'!$AP$6),VLOOKUP(D8,ram,13,0),VLOOKUP(D8,ram,4,0)))),"") -> 50800 | F8: =IFERROR(IF(D8="","",IF(D8=$AX$24,"",IF(AND(D8=$AX$25),$BC$25,IF(AND(D8=$AX$27),"",IF(AND(D8=$AX$28),"",IF(AND('Master Data'!$I$28='GA55 Check & Edit'!$AP$5),VLOOKUP(D8,ram,7,0),"")))))),"") -> 8636 | G8: =IFERROR(IF(D8="","",IF(D8=$AX$24,"",IF(AND(D8=$AX$25),"",IF(AND(D8=$AX$26),"",IF(AND(D8=$AX$27),"",IF(AND(D8=$AX$29),"",IF(AND('Master Data'!$I$28='GA55 Check & Edit'!$AP$6),"",VLOOKUP(D8,ram,8,0)))))))),"") -> 4064 | H8: =IFERROR(IF(D8="","",IF(AND(E8=""),"",IF(OR(D8=$AX$24,D8=$AX$25,D8=$AX$26,D8=$AX$27,D8=$AX$28,D8=$AX$29),"",IF(AND('Master Data'!$I$28='GA55 Check & Edit'!$AP$5),'Master Data'!$B$43,"")))),"") -> 0 | I8: =IFERROR(IF(D8="","",IF(AND(E8=""),"",IF(OR(D8=$AX$24,D8=$AX$25,D8=$AX$26,D8=$AX$27,D8=$AX$28,D8=$AX$29),"",IF(AND('Master Data'!$I$28='GA55 Check & Edit'!$AP$5,'Master Data'!$E$28='GA55 Check & Edit'!$AO$5),'Master Data'!$C$43,"0")))),"") -> 0 | J8: =IFERROR(IF(OR('Master Data'!$E$32=$AO$6,'Master Data'!$E$32=""),"",IF(D8="","",IF(AND(E8=""),"",IF(OR(D8=$AX$24,D8=$AX$25,D8=$AX$26,D8=$AX$27,D8=$AX$28,D8=$AX$29),"",IF(AND('Master Data'!$I$28='GA55 Check & Edit'!$AP$6),"",IF(AND('Master Data'!$I$32=$AR$9),$AS$6,IF(AND('Master Data'!$I$32=$AR$10),$AS$6,IF(AND('Master Data'!$I$32=$AR$11),$AS$6,IF(AND('Master Data'!$I$32=$AR$12),$AS$6,$AS$5))))))))),"") ->  | K8: =IFERROR(IF(D8="","",IF(AND(E8=""),"",IF(OR(D8=$AX$24,D8=$AX$25,D8=$AX$26,D8=$AX$27,D8=$AX$28,D8=$AX$29),"",IF(AND('Master Data'!$I$28='GA55 Check & Edit'!$AP$5),'Master Data'!$E$43,"")))),"") -> 0 | L8: =IFERROR(IF(D8="","",IF(AND(E8=""),"",IF(OR(D8=$AX$24,D8=$AX$25,D8=$AX$26,D8=$AX$27,D8=$AX$28,D8=$AX$29),"",IF(AND('Master Data'!$I$28='GA55 Check & Edit'!$AP$6),"",'Master Data'!$F$43)))),"") -> 0 | M8: =IFERROR(IF(D8="","",IF(AND('Master Data'!$I$28='GA55 Check & Edit'!$AP$6),"",IF(AND('Master Data'!$I$24='GA55 Check & Edit'!$AO$6),"0",IF(AND(D8="Bonus"),VLOOKUP(D8,ram,4,0),"")))),"") ->  | N8: =IFERROR(IF(AND(D8=""),"",IF(AND(D8=$AX$25,'Master Data'!$I$30='GA55 Check & Edit'!$AN$6),ROUND((E8+F8)*0.1,0),IF(AND(D8=$AX$29,'Master Data'!$I$30='GA55 Check & Edit'!$AN$6),ROUND((F8)*0.1,0),IF(AND(D8=$AX$26,'Master Data'!$I$30='GA55 Check & Edit'!$AN$6),ROUND((F8)*0.1,0),IF(AND(D8=$AX$27,'Master Data'!$I$30='GA55 Check & Edit'!$AN$6),ROUND((E8+F8)*0.1,0),IF(AND('Master Data'!$I$30='GA55 Check & Edit'!$AN$5),"",IF(AND('Master Data'!$I$30='GA55 Check & Edit'!$AN$6,'Master Data'!$I$28='GA55 Check & Edit'!$AP$6),ROUND((E8)*0.1,0),ROUND((E8+F8)*0.1,0)))))))),"") -> 5944 | O8: =IF(D8="","",IF('Master Data'!$H$18='GA55 Check & Edit'!$AO$5,SUM(E8:N8),SUM(E8:M8))) -> 63500 | P8: =IFERROR(IF(OR('Master Data'!$I$28='GA55 Check & Edit'!$AP$6,D8=""),"",IF(AND(D8=$AX$24),"",IF(AND(D8=$AX$25),"",IF(AND(D8=$AX$26),"",IF(AND(D8=$AX$27),"",IF(AND(D8=$AX$28),"",IF(AND(D8=$AX$29),"",IF(AND(E8=""),"",VLOOKUP(D8,ram,11,0))))))))),"") -> 7000 | Q8: =IFERROR(IF(AND(D8="",E8=""),"",IF(AND(D8=$AX$25,'Master Data'!$I$30='GA55 Check & Edit'!$AN$6),ROUND((E8+F8)*0.1,0),IF(AND(D8=$AX$29,'Master Data'!$I$30='GA55 Check & Edit'!$AN$6),ROUND((F8)*0.1,0),IF(AND(D8=$AX$26,'Master Data'!$I$30='GA55 Check & Edit'!$AN$6),ROUND((F8)*0.1,0),IF(AND(D8=$AX$27,'Master Data'!$I$30='GA55 Check & Edit'!$AN$6),ROUND((E8+F8)*0.1,0),IF(AND('Master Data'!$I$30='GA55 Check & Edit'!$AN$6,'Master Data'!$I$28='GA55 Check & Edit'!$AP$6),ROUND((E8)*0.1,0),IF(AND('Master Data'!$I$30='GA55 Check & Edit'!$AN$6,'Master Data'!$I$28='GA55 Check & Edit'!$AP$5),ROUND((E8+F8)*0.1,0),IF(AND('Master Data'!$I$30='GA55 Check & Edit'!$AN$5,'Master Data'!$I$28='GA55 Check & Edit'!$AP$5),VLOOKUP(D8,ram,12,0))))))))),"") -> 5944 | R8: =IFERROR(IF(OR('Master Data'!$I$28='GA55 Check & Edit'!$AP$6,D8=""),"",IF(AND(D8=$AX$24),"",IF(AND(D8=$AX$25),"",IF(AND(D8=$AX$26),"",IF(AND(D8=$AX$27),"",IF(AND(D8=$AX$28),"",IF(AND(D8=$AX$29),"",IF(AND(D8=$AX$32),"",IF(AND(E8=""),"",'Master Data'!$I$43))))))))),"") -> 1880 | S8: =IFERROR(IF(OR('Master Data'!$I$28='GA55 Check & Edit'!$AP$6),"",IF(D8="","",IF(E8="","",IF(AND(D8=$AX$24),"",IF(AND(D8=$AX$25),"",IF(AND(D8=$AX$26),"",IF(AND(D8=$AX$27),"",IF(AND(D8=$AX$28),"",IF(AND(D8=$AX$29),"",VLOOKUP(D8,ram,10,0)))))))))),"") -> 0 | T8: =IFERROR(IF(OR('Master Data'!$I$28='GA55 Check & Edit'!$AP$6,D8=""),"",IF(AND(D8=$AX$24),"",IF(AND(D8=$AX$25),"",IF(AND(D8=$AX$26),"",IF(AND(D8=$AX$27),"",IF(AND(D8=$AX$28),"",IF(AND(D8=$AX$29),"",IF(AND(E8=""),"",'Master Data'!$K$43)))))))),"") -> 0 | U8: =IFERROR(IF(OR('Master Data'!$I$28='GA55 Check & Edit'!$AP$6,D8=""),"",IF(AND(D8=$AX$24),"",IF(AND(D8=$AX$25),"",IF(AND(D8=$AX$26),"",IF(AND(D8=$AX$27),"",IF(AND(D8=$AX$28),"",IF(AND(D8=$AX$29),"",IF(AND(E8=""),"",'Master Data'!$L$43)))))))),"") -> 0 | V8: =IFERROR(IF(OR('Master Data'!$I$28='GA55 Check & Edit'!$AP$6,D8=""),"",IF(AND(D8=$AX$24,'Master Data'!$I$28='GA55 Check & Edit'!$AP$5,'Master Data'!$I$30='GA55 Check & Edit'!$AN$6),ROUND(M8*50%,0),IF(AND(D8=$AX$25),"",IF(AND(D8=$AX$26,'Master Data'!$I$28='GA55 Check & Edit'!$AP$5,'Master Data'!$I$30='GA55 Check & Edit'!$AN$6),SUM(F8-N8),IF(AND(D8=$AX$27),"",IF(AND(D8=$AX$28),"",IF(AND(D8=$AX$29,'Master Data'!$I$28='GA55 Check & Edit'!$AP$5,'Master Data'!$I$30='GA55 Check & Edit'!$AN$6),SUM(F8-N8),IF(AND(E8=""),"",'Master Data'!$M$43)))))))),"") -> 0 | W8: =IFERROR(IF(OR('Master Data'!$I$28='GA55 Check & Edit'!$AP$6,D8=""),"",IF(AND(D8=$AX$24),"",IF(AND(D8=$AX$25),"",IF(AND(D8=$AX$26),"",IF(AND(D8=$AX$27),"",IF(AND(D8=$AX$28),"",IF(AND(D8=$AX$29),"",IF(AND(E8=""),"",'Master Data'!$O$43)))))))),"") -> 0 | X8: =IFERROR(IF(OR('Master Data'!$I$28='GA55 Check & Edit'!$AP$6,D8=""),"",IF(AND(E8=""),"",IF(AND('GA55 Check & Edit'!D8='GA55 Check & Edit'!$AT$17,'Master Data'!$D$18="Gazetted"),500,IF(AND('GA55 Check & Edit'!D8='GA55 Check & Edit'!$AT$17,'Master Data'!$D$18="Non-Gazetted"),250,"")))),"") ->  | Y8: =IFERROR(IF(D8="","",IF(AND(E8=""),"",IF(AND(D8=$AX$24),"",IF(AND(D8=$AX$25),"",IF(AND(D8=$AX$26),"",IF(AND(D8=$AX$27),"",IF(AND(D8=$AX$28),"",IF(AND(D8=$AX$29),"",IF(OR('Master Data'!$I$28='GA55 Check & Edit'!$AP$6,D8=""),"",$Y$7))))))))),"") -> 0 | Z8: =IFERROR(IF(OR('Master Data'!$I$28='GA55 Check & Edit'!$AP$6),"",IF(D8="","",IF(E8="","",VLOOKUP(D8,ram,9,0)))),"") -> 0 | AA8: =IFERROR(IF(OR('Master Data'!$I$28='GA55 Check & Edit'!$AP$6,D8="",'Master Data'!$N$38=""),"",IF(AND(E8=""),"",IF('GA55 Check & Edit'!D8='GA55 Check & Edit'!$AT$9,'Master Data'!$N$38,""))),"") ->  | AB8: =IFERROR(IF(D8="","",IF(AND(O8=""),"",IF(AND(N8=""),SUM(P8:AA8),IF(AND('Master Data'!$H$18='GA55 Check & Edit'!$AO$5,'Master Data'!$I$30='GA55 Check & Edit'!$AN$6),SUM(P8:AA8)+N8,SUM(P8:AA8))))),"0") -> 14824 | AC8: =IFERROR(IF(AND(E8="",O8="",AB8=""),"",SUM(O8-AB8)),"") -> 48676 | AR8: Jaipur (U.A.) | AS8: JAN | AT8: 2021-03-01 | AU8: L-1 | AX8: 2020-03-01
A9: =MOD(B9,2) -> 0 | B9: =IF(LEN(D9)>=3,B8+1,0) -> 2 | C9: 2 | D9: =IFERROR(IF(BO13="","",BO13),"") -> 2021-04-01 | E9: =IFERROR(IF(D9="","",IF(AND(BQ13=""),"",IF(AND('Master Data'!$I$28='GA55 Check & Edit'!$AP$6),VLOOKUP(D9,ram,13,0),VLOOKUP(D9,ram,4,0)))),"") -> 50800 | F9: =IFERROR(IF(D9="","",IF(D9=$AX$24,"",IF(AND(D9=$AX$25),$BC$25,IF(AND(D9=$AX$27),"",IF(AND(D9=$AX$28),"",IF(AND('Master Data'!$I$28='GA55 Check & Edit'!$AP$5),VLOOKUP(D9,ram,7,0),"")))))),"") -> 8636 | G9: =IFERROR(IF(D9="","",IF(D9=$AX$24,"",IF(AND(D9=$AX$25),"",IF(AND(D9=$AX$26),"",IF(AND(D9=$AX$27),"",IF(AND(D9=$AX$29),"",IF(AND('Master Data'!$I$28='GA55 Check & Edit'!$AP$6),"",VLOOKUP(D9,ram,8,0)))))))),"") -> 4064 | H9: =IFERROR(IF(D9="","",IF(AND(E9=""),"",IF(OR(D9=$AX$24,D9=$AX$25,D9=$AX$26,D9=$AX$27,D9=$AX$28,D9=$AX$29),"",IF(AND('Master Data'!$I$28='GA55 Check & Edit'!$AP$5),'Master Data'!$B$43,"")))),"") -> 0 | I9: =IFERROR(IF(D9="","",IF(AND(E9=""),"",IF(OR(D9=$AX$24,D9=$AX$25,D9=$AX$26,D9=$AX$27,D9=$AX$28,D9=$AX$29),"",IF(AND('Master Data'!$I$28='GA55 Check & Edit'!$AP$5,'Master Data'!$E$28='GA55 Check & Edit'!$AO$5),'Master Data'!$C$43,"0")))),"") -> 0 | J9: =IFERROR(IF(OR('Master Data'!$E$32=$AO$6,'Master Data'!$E$32=""),"",IF(D9="","",IF(AND(E9=""),"",IF(OR(D9=$AX$24,D9=$AX$25,D9=$AX$26,D9=$AX$27,D9=$AX$28,D9=$AX$29),"",IF(AND('Master Data'!$I$28='GA55 Check & Edit'!$AP$6),"",IF(AND('Master Data'!$I$32=$AR$9),$AS$6,IF(AND('Master Data'!$I$32=$AR$10),$AS$6,IF(AND('Master Data'!$I$32=$AR$11),$AS$6,IF(AND('Master Data'!$I$32=$AR$12),$AS$6,$AS$5))))))))),"") ->  | K9: =IFERROR(IF(D9="","",IF(AND(E9=""),"",IF(OR(D9=$AX$24,D9=$AX$25,D9=$AX$26,D9=$AX$27,D9=$AX$28,D9=$AX$29),"",IF(AND('Master Data'!$I$28='GA55 Check & Edit'!$AP$5),'Master Data'!$E$43,"")))),"") -> 0 | L9: =IFERROR(IF(D9="","",IF(AND(E9=""),"",IF(OR(D9=$AX$24,D9=$AX$25,D9=$AX$26,D9=$AX$27,D9=$AX$28,D9=$AX$29),"",IF(AND('Master Data'!$I$28='GA55 Check & Edit'!$AP$6),"",'Master Data'!$F$43)))),"") -> 0 | M9: =IFERROR(IF(D9="","",IF(AND('Master Data'!$I$28='GA55 Check & Edit'!$AP$6),"",IF(AND('Master Data'!$I$24='GA55 Check & Edit'!$AO$6),"",IF(AND(D9="Bonus"),VLOOKUP(D9,ram,4,0),"")))),"") ->  | N9: =IFERROR(IF(AND(D9=""),"",IF(AND(D9=$AX$25,'Master Data'!$I$30='GA55 Check & Edit'!$AN$6),ROUND((E9+F9)*0.1,0),IF(AND(D9=$AX$29,'Master Data'!$I$30='GA55 Check & Edit'!$AN$6),ROUND((F9)*0.1,0),IF(AND(D9=$AX$26,'Master Data'!$I$30='GA55 Check & Edit'!$AN$6),ROUND((F9)*0.1,0),IF(AND(D9=$AX$27,'Master Data'!$I$30='GA55 Check & Edit'!$AN$6),ROUND((E9+F9)*0.1,0),IF(AND('Master Data'!$I$30='GA55 Check & Edit'!$AN$5),"",IF(AND('Master Data'!$I$30='GA55 Check & Edit'!$AN$6,'Master Data'!$I$28='GA55 Check & Edit'!$AP$6),ROUND((E9)*0.1,0),ROUND((E9+F9)*0.1,0)))))))),"") -> 5944 | O9: =IF(D9="","",IF('Master Data'!$H$18='GA55 Check & Edit'!$AO$5,SUM(E9:N9),SUM(E9:M9))) -> 63500 | P9: =IFERROR(IF(OR('Master Data'!$I$28='GA55 Check & Edit'!$AP$6,D9=""),"",IF(AND(D9=$AX$24),"",IF(AND(D9=$AX$25),"",IF(AND(D9=$AX$26),"",IF(AND(D9=$AX$27),"",IF(AND(D9=$AX$28),"",IF(AND(D9=$AX$29),"",IF(AND(E9=""),"",VLOOKUP(D9,ram,11,0))))))))),"") -> 7000 | Q9: =IFERROR(IF(AND(D9="",E9=""),"",IF(AND(D9=$AX$25,'Master Data'!$I$30='GA55 Check & Edit'!$AN$6),ROUND((E9+F9)*0.1,0),IF(AND(D9=$AX$29,'Master Data'!$I$30='GA55 Check & Edit'!$AN$6),ROUND((F9)*0.1,0),IF(AND(D9=$AX$26,'Master Data'!$I$30='GA55 Check & Edit'!$AN$6),ROUND((F9)*0.1,0),IF(AND(D9=$AX$27,'Master Data'!$I$30='GA55 Check & Edit'!$AN$6),ROUND((E9+F9)*0.1,0),IF(AND('Master Data'!$I$30='GA55 Check & Edit'!$AN$6,'Master Data'!$I$28='GA55 Check & Edit'!$AP$6),ROUND((E9)*0.1,0),IF(AND('Master Data'!$I$30='GA55 Check & Edit'!$AN$6,'Master Data'!$I$28='GA55 Check & Edit'!$AP$5),ROUND((E9+F9)*0.1,0),IF(AND('Master Data'!$I$30='GA55 Check & Edit'!$AN$5,'Master Data'!$I$28='GA55 Check & Edit'!$AP$5),VLOOKUP(D9,ram,12,0))))))))),"") -> 5944 | R9: =IFERROR(IF(OR('Master Data'!$I$28='GA55 Check & Edit'!$AP$6,D9=""),"",IF(AND(D9=$AX$24),"",IF(AND(D9=$AX$25),"",IF(AND(D9=$AX$26),"",IF(AND(D9=$AX$27),"",IF(AND(D9=$AX$28),"",IF(AND(D9=$AX$29),"",IF(AND(D9=$AX$32),"",IF(AND(E9=""),"",'Master Data'!$I$43))))))))),"") -> 1880 | S9: =IFERROR(IF(OR('Master Data'!$I$28='GA55 Check & Edit'!$AP$6),"",IF(D9="","",IF(E9="","",IF(AND(D9=$AX$24),"",IF(AND(D9=$AX$25),"",IF(AND(D9=$AX$26),"",IF(AND(D9=$AX$27),"",IF(AND(D9=$AX$28),"",IF(AND(D9=$AX$29),"",VLOOKUP(D9,ram,10,0)))))))))),"") -> 0 | T9: =IFERROR(IF(OR('Master Data'!$I$28='GA55 Check & Edit'!$AP$6,D9=""),"",IF(AND(D9=$AX$24),"",IF(AND(D9=$AX$25),"",IF(AND(D9=$AX$26),"",IF(AND(D9=$AX$27),"",IF(AND(D9=$AX$28),"",IF(AND(D9=$AX$29),"",IF(AND(E9=""),"",'Master Data'!$K$43)))))))),"") -> 0 | U9: =IFERROR(IF(OR('Master Data'!$I$28='GA55 Check & Edit'!$AP$6,D9=""),"",IF(AND(D9=$AX$24),"",IF(AND(D9=$AX$25),"",IF(AND(D9=$AX$26),"",IF(AND(D9=$AX$27),"",IF(AND(D9=$AX$28),"",IF(AND(D9=$AX$29),"",IF(AND(E9=""),"",'Master Data'!$L$43)))))))),"") -> 0 | V9: =IFERROR(IF(OR('Master Data'!$I$28='GA55 Check & Edit'!$AP$6,D9=""),"",IF(AND(D9=$AX$24,'Master Data'!$I$28='GA55 Check & Edit'!$AP$5,'Master Data'!$I$30='GA55 Check & Edit'!$AN$6),ROUND(M9*50%,0),IF(AND(D9=$AX$25),"",IF(AND(D9=$AX$26,'Master Data'!$I$28='GA55 Check & Edit'!$AP$5,'Master Data'!$I$30='GA55 Check & Edit'!$AN$6),SUM(F9-N9),IF(AND(D9=$AX$27),"",IF(AND(D9=$AX$28),"",IF(AND(D9=$AX$29,'Master Data'!$I$28='GA55 Check & Edit'!$AP$5,'Master Data'!$I$30='GA55 Check & Edit'!$AN$6),SUM(F9-N9),IF(AND(E9=""),"",'Master Data'!$M$43)))))))),"") -> 0 | W9: =IFERROR(IF(OR('Master Data'!$I$28='GA55 Check & Edit'!$AP$6,D9=""),"",IF(AND(D9=$AX$24),"",IF(AND(D9=$AX$25),"",IF(AND(D9=$AX$26),"",IF(AND(D9=$AX$27),"",IF(AND(D9=$AX$28),"",IF(AND(D9=$AX$29),"",IF(AND(E9=""),"",'Master Data'!$O$43)))))))),"") -> 0 | X9: =IFERROR(IF(OR('Master Data'!$I$28='GA55 Check & Edit'!$AP$6,D9=""),"",IF(AND(E9=""),"",IF(AND('GA55 Check & Edit'!D9='GA55 Check & Edit'!$AT$17,'Master Data'!$D$18="Gazetted"),500,IF(AND('GA55 Check & Edit'!D9='GA55 Check & Edit'!$AT$17,'Master Data'!$D$18="Non-Gazetted"),250,"")))),"") ->  | Y9: =IFERROR(IF(D9="","",IF(AND(E9=""),"",IF(AND(D9=$AX$24),"",IF(AND(D9=$AX$25),"",IF(AND(D9=$AX$26),"",IF(AND(D9=$AX$27),"",IF(AND(D9=$AX$28),"",IF(AND(D9=$AX$29),"",IF(OR('Master Data'!$I$28='GA55 Check & Edit'!$AP$6,D9=""),"",$Y$7))))))))),"") -> 0 | Z9: =IFERROR(IF(OR('Master Data'!$I$28='GA55 Check & Edit'!$AP$6),"",IF(D9="","",IF(E9="","",VLOOKUP(D9,ram,9,0)))),"") -> 1500 | AA9: =IFERROR(IF(OR('Master Data'!$I$28='GA55 Check & Edit'!$AP$6,D9="",'Master Data'!$N$38=""),"",IF(AND(E9=""),"",IF('GA55 Check & Edit'!D9='GA55 Check & Edit'!$AT$9,'Master Data'!$N$38,""))),"") -> 220 | AB9: =IFERROR(IF(D9="","",IF(AND(O9=""),"",IF(AND(N9=""),SUM(P9:AA9),IF(AND('Master Data'!$H$18='GA55 Check & Edit'!$AO$5,'Master Data'!$I$30='GA55 Check & Edit'!$AN$6),SUM(P9:AA9)+N9,SUM(P9:AA9))))),"0") -> 16544 | AC9: =IFERROR(IF(AND(E9="",O9="",AB9=""),"",SUM(O9-AB9)),"") -> 46956 | AR9: Ajmer | AS9: FEB | AT9: 2021-04-01 | AU9: L-2 | AZ9: 2022-02-28 | BC9: =IF('Master Data'!I34>9,ROUND('Master Data'!$E$36/31*15,0),IF('Master Data'!E34='GA55 Check & Edit'!AO5,ROUND('Master Data'!$E$36/31*15,0),IF('Master Data'!I34>=5,ROUND('Master Data'!$E$36/31*22,0),IF('Master Data'!D18='GA55 Check & Edit'!AO5,ROUND('Master Data'!$E$36/31*22,0),'Master Data'!E36)))) -> 24581
A10: 1 | B10: =IF(LEN(D10)>=3,B9+1,0) -> 3 | C10: =IF(B10=0,"",B10) -> 3 | D10: 2021-05-01 | E10: =IFERROR(IF(D10="","",IF(AND(BQ14=""),"",IF(AND('Master Data'!$I$28='GA55 Check & Edit'!$AP$6),VLOOKUP(D10,ram,13,0),VLOOKUP(D10,ram,4,0)))),"") -> 50800 | F10: =IFERROR(IF(D10="","",IF(D10=$AX$24,"",IF(AND(D10=$AX$25),$BC$25,IF(AND(D10=$AX$27),"",IF(AND(D10=$AX$28),"",IF(AND('Master Data'!$I$28='GA55 Check & Edit'!$AP$5),VLOOKUP(D10,ram,7,0),"")))))),"") -> 8636 | G10: =IFERROR(IF(D10="","",IF(D10=$AX$24,"",IF(AND(D10=$AX$25),"",IF(AND(D10=$AX$26),"",IF(AND(D10=$AX$27),"",IF(AND(D10=$AX$29),"",IF(AND('Master Data'!$I$28='GA55 Check & Edit'!$AP$6),"",VLOOKUP(D10,ram,8,0)))))))),"") -> 4064 | H10: =IFERROR(IF(D10="","",IF(AND(E10=""),"",IF(OR(D10=$AX$24,D10=$AX$25,D10=$AX$26,D10=$AX$27,D10=$AX$28,D10=$AX$29),"",IF(AND('Master Data'!$I$28='GA55 Check & Edit'!$AP$5),'Master Data'!$B$43,"")))),"") -> 0 | I10: =IFERROR(IF(D10="","",IF(AND(E10=""),"",IF(OR(D10=$AX$24,D10=$AX$25,D10=$AX$26,D10=$AX$27,D10=$AX$28,D10=$AX$29),"",IF(AND('Master Data'!$I$28='GA55 Check & Edit'!$AP$5,'Master Data'!$E$28='GA55 Check & Edit'!$AO$5),'Master Data'!$C$43,"0")))),"") -> 0 | J10: =IFERROR(IF(OR('Master Data'!$E$32=$AO$6,'Master Data'!$E$32=""),"",IF(D10="","",IF(AND(E10=""),"",IF(OR(D10=$AX$24,D10=$AX$25,D10=$AX$26,D10=$AX$27,D10=$AX$28,D10=$AX$29),"",IF(AND('Master Data'!$I$28='GA55 Check & Edit'!$AP$6),"",IF(AND('Master Data'!$I$32=$AR$9),$AS$6,IF(AND('Master Data'!$I$32=$AR$10),$AS$6,IF(AND('Master Data'!$I$32=$AR$11),$AS$6,IF(AND('Master Data'!$I$32=$AR$12),$AS$6,$AS$5))))))))),"") ->  | K10: =IFERROR(IF(D10="","",IF(AND(E10=""),"",IF(OR(D10=$AX$24,D10=$AX$25,D10=$AX$26,D10=$AX$27,D10=$AX$28,D10=$AX$29),"",IF(AND('Master Data'!$I$28='GA55 Check & Edit'!$AP$5),'Master Data'!$E$43,"")))),"") -> 0 | L10: =IFERROR(IF(D10="","",IF(AND(E10=""),"",IF(OR(D10=$AX$24,D10=$AX$25,D10=$AX$26,D10=$AX$27,D10=$AX$28,D10=$AX$29),"",IF(AND('Master Data'!$I$28='GA55 Check & Edit'!$AP$6),"",'Master Data'!$F$43)))),"") -> 0 | M10: =IFERROR(IF(D10="","",IF(AND('Master Data'!$I$28='GA55 Check & Edit'!$AP$6),"",IF(AND('Master Data'!$I$24='GA55 Check & Edit'!$AO$6),"",IF(AND(D10="Bonus"),VLOOKUP(D10,ram,4,0),"")))),"") ->  | N10: =IFERROR(IF(AND(D10=""),"",IF(AND(D10=$AX$25,'Master Data'!$I$30='GA55 Check & Edit'!$AN$6),ROUND((E10+F10)*0.1,0),IF(AND(D10=$AX$29,'Master Data'!$I$30='GA55 Check & Edit'!$AN$6),ROUND((F10)*0.1,0),IF(AND(D10=$AX$26,'Master Data'!$I$30='GA55 Check & Edit'!$AN$6),ROUND((F10)*0.1,0),IF(AND(D10=$AX$27,'Master Data'!$I$30='GA55 Check & Edit'!$AN$6),ROUND((E10+F10)*0.1,0),IF(AND('Master Data'!$I$30='GA55 Check & Edit'!$AN$5),"",IF(AND('Master Data'!$I$30='GA55 Check & Edit'!$AN$6,'Master Data'!$I$28='GA55 Check & Edit'!$AP$6),ROUND((E10)*0.1,0),ROUND((E10+F10)*0.1,0)))))))),"") -> 5944 | O10: =IF(D10="","",IF('Master Data'!$H$18='GA55 Check & Edit'!$AO$5,SUM(E10:N10),SUM(E10:M10))) -> 63500 | P10: =IFERROR(IF(OR('Master Data'!$I$28='GA55 Check & Edit'!$AP$6,D10=""),"",IF(AND(D10=$AX$24),"",IF(AND(D10=$AX$25),"",IF(AND(D10=$AX$26),"",IF(AND(D10=$AX$27),"",IF(AND(D10=$AX$28),"",IF(AND(D10=$AX$29),"",IF(AND(E10=""),"",VLOOKUP(D10,ram,11,0))))))))),"") -> 7000 | Q10: =IFERROR(IF(AND(D10="",E10=""),"",IF(AND(D10=$AX$25,'Master Data'!$I$30='GA55 Check & Edit'!$AN$6),ROUND((E10+F10)*0.1,0),IF(AND(D10=$AX$29,'Master Data'!$I$30='GA55 Check & Edit'!$AN$6),ROUND((F10)*0.1,0),IF(AND(D10=$AX$26,'Master Data'!$I$30='GA55 Check & Edit'!$AN$6),ROUND((F10)*0.1,0),IF(AND(D10=$AX$27,'Master Data'!$I$30='GA55 Check & Edit'!$AN$6),ROUND((E10+F10)*0.1,0),IF(AND('Master Data'!$I$30='GA55 Check & Edit'!$AN$6,'Master Data'!$I$28='GA55 Check & Edit'!$AP$6),ROUND((E10)*0.1,0),IF(AND('Master Data'!$I$30='GA55 Check & Edit'!$AN$6,'Master Data'!$I$28='GA55 Check & Edit'!$AP$5),ROUND((E10+F10)*0.1,0),IF(AND('Master Data'!$I$30='GA55 Check & Edit'!$AN$5,'Master Data'!$I$28='GA55 Check & Edit'!$AP$5),VLOOKUP(D10,ram,12,0))))))))),"") -> 5944 | R10: =IFERROR(IF(OR('Master Data'!$I$28='GA55 Check & Edit'!$AP$6,D10=""),"",IF(AND(D10=$AX$24),"",IF(AND(D10=$AX$25),"",IF(AND(D10=$AX$26),"",IF(AND(D10=$AX$27),"",IF(AND(D10=$AX$28),"",IF(AND(D10=$AX$29),"",IF(AND(D10=$AX$32),"",IF(AND(E10=""),"",'Master Data'!$I$43))))))))),"") -> 1880 | S10: =IFERROR(IF(OR('Master Data'!$I$28='GA55 Check & Edit'!$AP$6),"",IF(D10="","",IF(E10="","",IF(AND(D10=$AX$24),"",IF(AND(D10=$AX$25),"",IF(AND(D10=$AX$26),"",IF(AND(D10=$AX$27),"",IF(AND(D10=$AX$28),"",IF(AND(D10=$AX$29),"",VLOOKUP(D10,ram,10,0)))))))))),"") -> 0 | T10: =IFERROR(IF(OR('Master Data'!$I$28='GA55 Check & Edit'!$AP$6,D10=""),"",IF(AND(D10=$AX$24),"",IF(AND(D10=$AX$25),"",IF(AND(D10=$AX$26),"",IF(AND(D10=$AX$27),"",IF(AND(D10=$AX$28),"",IF(AND(D10=$AX$29),"",IF(AND(E10=""),"",'Master Data'!$K$43)))))))),"") -> 0 | U10: =IFERROR(IF(OR('Master Data'!$I$28='GA55 Check & Edit'!$AP$6,D10=""),"",IF(AND(D10=$AX$24),"",IF(AND(D10=$AX$25),"",IF(AND(D10=$AX$26),"",IF(AND(D10=$AX$27),"",IF(AND(D10=$AX$28),"",IF(AND(D10=$AX$29),"",IF(AND(E10=""),"",'Master Data'!$L$43)))))))),"") -> 0 | V10: =IFERROR(IF(OR('Master Data'!$I$28='GA55 Check & Edit'!$AP$6,D10=""),"",IF(AND(D10=$AX$24,'Master Data'!$I$28='GA55 Check & Edit'!$AP$5,'Master Data'!$I$30='GA55 Check & Edit'!$AN$6),ROUND(M10*50%,0),IF(AND(D10=$AX$25),"",IF(AND(D10=$AX$26,'Master Data'!$I$28='GA55 Check & Edit'!$AP$5,'Master Data'!$I$30='GA55 Check & Edit'!$AN$6),SUM(F10-N10),IF(AND(D10=$AX$27),"",IF(AND(D10=$AX$28),"",IF(AND(D10=$AX$29,'Master Data'!$I$28='GA55 Check & Edit'!$AP$5,'Master Data'!$I$30='GA55 Check & Edit'!$AN$6),SUM(F10-N10),IF(AND(E10=""),"",'Master Data'!$M$43)))))))),"") -> 0 | W10: =IFERROR(IF(OR('Master Data'!$I$28='GA55 Check & Edit'!$AP$6,D10=""),"",IF(AND(D10=$AX$24),"",IF(AND(D10=$AX$25),"",IF(AND(D10=$AX$26),"",IF(AND(D10=$AX$27),"",IF(AND(D10=$AX$28),"",IF(AND(D10=$AX$29),"",IF(AND(E10=""),"",'Master Data'!$O$43)))))))),"") -> 0 | X10: =IFERROR(IF(OR('Master Data'!$I$28='GA55 Check & Edit'!$AP$6,D10=""),"",IF(AND(E10=""),"",IF(AND('GA55 Check & Edit'!D10='GA55 Check & Edit'!$AT$17,'Master Data'!$D$18="Gazetted"),500,IF(AND('GA55 Check & Edit'!D10='GA55 Check & Edit'!$AT$17,'Master Data'!$D$18="Non-Gazetted"),250,"")))),"") ->  | Y10: =IFERROR(IF(D10="","",IF(AND(E10=""),"",IF(AND(D10=$AX$24),"",IF(AND(D10=$AX$25),"",IF(AND(D10=$AX$26),"",IF(AND(D10=$AX$27),"",IF(AND(D10=$AX$28),"",IF(AND(D10=$AX$29),"",IF(OR('Master Data'!$I$28='GA55 Check & Edit'!$AP$6,D10=""),"",$Y$7))))))))),"") -> 0 | Z10: =IFERROR(IF(OR('Master Data'!$I$28='GA55 Check & Edit'!$AP$6),"",IF(D10="","",IF(E10="","",VLOOKUP(D10,ram,9,0)))),"") -> 1500 | AA10: =IFERROR(IF(OR('Master Data'!$I$28='GA55 Check & Edit'!$AP$6,D10="",'Master Data'!$N$38=""),"",IF(AND(E10=""),"",IF('GA55 Check & Edit'!D10='GA55 Check & Edit'!$AT$9,'Master Data'!$N$38,""))),"") ->  | AB10: =IFERROR(IF(D10="","",IF(AND(O10=""),"",IF(AND(N10=""),SUM(P10:AA10),IF(AND('Master Data'!$H$18='GA55 Check & Edit'!$AO$5,'Master Data'!$I$30='GA55 Check & Edit'!$AN$6),SUM(P10:AA10)+N10,SUM(P10:AA10))))),"0") -> 16324 | AC10: 47176 | AR10: Bikaner | AS10: MAR | AT10: 2021-05-01 | AU10: L-3 | AW10: JAN | AX10: 2021-01-01 | BA10: =IF(AND('Master Data'!$E$36=""),"",'Master Data'!$E$36) -> 50800 | BB10: =IF(AND(AX10<$AZ$16),"",IF(AND(AX10>$AZ$17),"",BA10)) ->  | BC10: =IF(AND('Master Data'!$E$36=""),"",ROUND(17%*BA10,0)) -> 8636 | BD10: =IF(BB10="","",BC10) ->  | BG10: =IFERROR(IF(AND('Master Data'!$I$28='GA55 Check & Edit'!$AP$6),"",IF(AND('Master Data'!$I$30='GA55 Check & Edit'!$AN$6,'Master Data'!$N$36='GA55 Check & Edit'!$AO$6),"",IF(AND('Master Data'!$I$30='GA55 Check & Edit'!$AN$5),IF($AZ$15<18001,265,IF($AZ$15<33501,440,IF($AZ$15<54001,658,875)))))),0) ->  | BH10: =IFERROR(IF(OR('Master Data'!$I$28='GA55 Check & Edit'!$AP$6),"",'Master Data'!$G$43),"") -> 7000 | BI10: =IFERROR(IF(AND('Master Data'!$I$30='GA55 Check & Edit'!$AN$6),ROUND((E9)*0.1,0),IF(AND('Master Data'!$I$28='GA55 Check & Edit'!$AP$6),ROUND((E9+F9)*0.1,0),'Master Data'!$H$43)),"") -> 5080 | BJ10: =BA10 -> 50800 | BL10: =MONTH(AZ17) -> 2 | BS10: =D8 -> 2021-03-01
A11: 0 | B11: 4 | C11: 4 | D11: 2021-06-01 | E11: =IFERROR(IF(D11="","",IF(AND(BQ15=""),"",IF(AND('Master Data'!$I$28='GA55 Check & Edit'!$AP$6),VLOOKUP(D11,ram,13,0),VLOOKUP(D11,ram,4,0)))),"") -> 50800 | F11: =IFERROR(IF(D11="","",IF(D11=$AX$24,"",IF(AND(D11=$AX$25),$BC$25,IF(AND(D11=$AX$27),"",IF(AND(D11=$AX$28),"",IF(AND('Master Data'!$I$28='GA55 Check & Edit'!$AP$5),VLOOKUP(D11,ram,7,0),"")))))),"") -> 8636 | G11: =IFERROR(IF(D11="","",IF(D11=$AX$24,"",IF(AND(D11=$AX$25),"",IF(AND(D11=$AX$26),"",IF(AND(D11=$AX$27),"",IF(AND(D11=$AX$29),"",IF(AND('Master Data'!$I$28='GA55 Check & Edit'!$AP$6),"",VLOOKUP(D11,ram,8,0)))))))),"") -> 4064 | H11: =IFERROR(IF(D11="","",IF(AND(E11=""),"",IF(OR(D11=$AX$24,D11=$AX$25,D11=$AX$26,D11=$AX$27,D11=$AX$28,D11=$AX$29),"",IF(AND('Master Data'!$I$28='GA55 Check & Edit'!$AP$5),'Master Data'!$B$43,"")))),"") -> 0 | I11: =IFERROR(IF(D11="","",IF(AND(E11=""),"",IF(OR(D11=$AX$24,D11=$AX$25,D11=$AX$26,D11=$AX$27,D11=$AX$28,D11=$AX$29),"",IF(AND('Master Data'!$I$28='GA55 Check & Edit'!$AP$5,'Master Data'!$E$28='GA55 Check & Edit'!$AO$5),'Master Data'!$C$43,"0")))),"") -> 0 | J11: =IFERROR(IF(OR('Master Data'!$E$32=$AO$6,'Master Data'!$E$32=""),"",IF(D11="","",IF(AND(E11=""),"",IF(OR(D11=$AX$24,D11=$AX$25,D11=$AX$26,D11=$AX$27,D11=$AX$28,D11=$AX$29),"",IF(AND('Master Data'!$I$28='GA55 Check & Edit'!$AP$6),"",IF(AND('Master Data'!$I$32=$AR$9),$AS$6,IF(AND('Master Data'!$I$32=$AR$10),$AS$6,IF(AND('Master Data'!$I$32=$AR$11),$AS$6,IF(AND('Master Data'!$I$32=$AR$12),$AS$6,$AS$5))))))))),"") ->  | K11: =IFERROR(IF(D11="","",IF(AND(E11=""),"",IF(OR(D11=$AX$24,D11=$AX$25,D11=$AX$26,D11=$AX$27,D11=$AX$28,D11=$AX$29),"",IF(AND('Master Data'!$I$28='GA55 Check & Edit'!$AP$5),'Master Data'!$E$43,"")))),"") -> 0 | L11: =IFERROR(IF(D11="","",IF(AND(E11=""),"",IF(OR(D11=$AX$24,D11=$AX$25,D11=$AX$26,D11=$AX$27,D11=$AX$28,D11=$AX$29),"",IF(AND('Master Data'!$I$28='GA55 Check & Edit'!$AP$6),"",'Master Data'!$F$43)))),"") -> 0 | M11: =IFERROR(IF(D11="","",IF(AND('Master Data'!$I$28='GA55 Check & Edit'!$AP$6),"",IF(AND('Master Data'!$I$24='GA55 Check & Edit'!$AO$6),"",IF(AND(D11="Bonus"),VLOOKUP(D11,ram,4,0),"")))),"") ->  | N11: =IFERROR(IF(AND(D11=""),"",IF(AND(D11=$AX$25,'Master Data'!$I$30='GA55 Check & Edit'!$AN$6),ROUND((E11+F11)*0.1,0),IF(AND(D11=$AX$29,'Master Data'!$I$30='GA55 Check & Edit'!$AN$6),ROUND((F11)*0.1,0),IF(AND(D11=$AX$26,'Master Data'!$I$30='GA55 Check & Edit'!$AN$6),ROUND((F11)*0.1,0),IF(AND(D11=$AX$27,'Master Data'!$I$30='GA55 Check & Edit'!$AN$6),ROUND((E11+F11)*0.1,0),IF(AND('Master Data'!$I$30='GA55 Check & Edit'!$AN$5),"",IF(AND('Master Data'!$I$30='GA55 Check & Edit'!$AN$6,'Master Data'!$I$28='GA55 Check & Edit'!$AP$6),ROUND((E11)*0.1,0),ROUND((E11+F11)*0.1,0)))))))),"") -> 5944 | O11: =IF(D11="","",IF('Master Data'!$H$18='GA55 Check & Edit'!$AO$5,SUM(E11:N11),SUM(E11:M11))) -> 63500 | P11: =IFERROR(IF(OR('Master Data'!$I$28='GA55 Check & Edit'!$AP$6,D11=""),"",IF(AND(D11=$AX$24),"",IF(AND(D11=$AX$25),"",IF(AND(D11=$AX$26),"",IF(AND(D11=$AX$27),"",IF(AND(D11=$AX$28),"",IF(AND(D11=$AX$29),"",IF(AND(E11=""),"",VLOOKUP(D11,ram,11,0))))))))),"") -> 7000 | Q11: =IFERROR(IF(AND(D11="",E11=""),"",IF(AND(D11=$AX$25,'Master Data'!$I$30='GA55 Check & Edit'!$AN$6),ROUND((E11+F11)*0.1,0),IF(AND(D11=$AX$29,'Master Data'!$I$30='GA55 Check & Edit'!$AN$6),ROUND((F11)*0.1,0),IF(AND(D11=$AX$26,'Master Data'!$I$30='GA55 Check & Edit'!$AN$6),ROUND((F11)*0.1,0),IF(AND(D11=$AX$27,'Master Data'!$I$30='GA55 Check & Edit'!$AN$6),ROUND((E11+F11)*0.1,0),IF(AND('Master Data'!$I$30='GA55 Check & Edit'!$AN$6,'Master Data'!$I$28='GA55 Check & Edit'!$AP$6),ROUND((E11)*0.1,0),IF(AND('Master Data'!$I$30='GA55 Check & Edit'!$AN$6,'Master Data'!$I$28='GA55 Check & Edit'!$AP$5),ROUND((E11+F11)*0.1,0),IF(AND('Master Data'!$I$30='GA55 Check & Edit'!$AN$5,'Master Data'!$I$28='GA55 Check & Edit'!$AP$5),VLOOKUP(D11,ram,12,0))))))))),"") -> 5944 | R11: =IFERROR(IF(OR('Master Data'!$I$28='GA55 Check & Edit'!$AP$6,D11=""),"",IF(AND(D11=$AX$24),"",IF(AND(D11=$AX$25),"",IF(AND(D11=$AX$26),"",IF(AND(D11=$AX$27),"",IF(AND(D11=$AX$28),"",IF(AND(D11=$AX$29),"",IF(AND(D11=$AX$32),"",IF(AND(E11=""),"",'Master Data'!$I$43))))))))),"") -> 1880 | S11: =IFERROR(IF(OR('Master Data'!$I$28='GA55 Check & Edit'!$AP$6),"",IF(D11="","",IF(E11="","",IF(AND(D11=$AX$24),"",IF(AND(D11=$AX$25),"",IF(AND(D11=$AX$26),"",IF(AND(D11=$AX$27),"",IF(AND(D11=$AX$28),"",IF(AND(D11=$AX$29),"",VLOOKUP(D11,ram,10,0)))))))))),"") -> 0 | T11: =IFERROR(IF(OR('Master Data'!$I$28='GA55 Check & Edit'!$AP$6,D11=""),"",IF(AND(D11=$AX$24),"",IF(AND(D11=$AX$25),"",IF(AND(D11=$AX$26),"",IF(AND(D11=$AX$27),"",IF(AND(D11=$AX$28),"",IF(AND(D11=$AX$29),"",IF(AND(E11=""),"",'Master Data'!$K$43)))))))),"") -> 0 | U11: =IFERROR(IF(OR('Master Data'!$I$28='GA55 Check & Edit'!$AP$6,D11=""),"",IF(AND(D11=$AX$24),"",IF(AND(D11=$AX$25),"",IF(AND(D11=$AX$26),"",IF(AND(D11=$AX$27),"",IF(AND(D11=$AX$28),"",IF(AND(D11=$AX$29),"",IF(AND(E11=""),"",'Master Data'!$L$43)))))))),"") -> 0 | V11: =IFERROR(IF(OR('Master Data'!$I$28='GA55 Check & Edit'!$AP$6,D11=""),"",IF(AND(D11=$AX$24,'Master Data'!$I$28='GA55 Check & Edit'!$AP$5,'Master Data'!$I$30='GA55 Check & Edit'!$AN$6),ROUND(M11*50%,0),IF(AND(D11=$AX$25),"",IF(AND(D11=$AX$26,'Master Data'!$I$28='GA55 Check & Edit'!$AP$5,'Master Data'!$I$30='GA55 Check & Edit'!$AN$6),SUM(F11-N11),IF(AND(D11=$AX$27),"",IF(AND(D11=$AX$28),"",IF(AND(D11=$AX$29,'Master Data'!$I$28='GA55 Check & Edit'!$AP$5,'Master Data'!$I$30='GA55 Check & Edit'!$AN$6),SUM(F11-N11),IF(AND(E11=""),"",'Master Data'!$M$43)))))))),"") -> 0 | W11: =IFERROR(IF(OR('Master Data'!$I$28='GA55 Check & Edit'!$AP$6,D11=""),"",IF(AND(D11=$AX$24),"",IF(AND(D11=$AX$25),"",IF(AND(D11=$AX$26),"",IF(AND(D11=$AX$27),"",IF(AND(D11=$AX$28),"",IF(AND(D11=$AX$29),"",IF(AND(E11=""),"",'Master Data'!$O$43)))))))),"") -> 0 | X11: =IFERROR(IF(OR('Master Data'!$I$28='GA55 Check & Edit'!$AP$6,D11=""),"",IF(AND(E11=""),"",IF(AND('GA55 Check & Edit'!D11='GA55 Check & Edit'!$AT$17,'Master Data'!$D$18="Gazetted"),500,IF(AND('GA55 Check & Edit'!D11='GA55 Check & Edit'!$AT$17,'Master Data'!$D$18="Non-Gazetted"),250,"")))),"") ->  | Y11: =IFERROR(IF(D11="","",IF(AND(E11=""),"",IF(AND(D11=$AX$24),"",IF(AND(D11=$AX$25),"",IF(AND(D11=$AX$26),"",IF(AND(D11=$AX$27),"",IF(AND(D11=$AX$28),"",IF(AND(D11=$AX$29),"",IF(OR('Master Data'!$I$28='GA55 Check & Edit'!$AP$6,D11=""),"",$Y$7))))))))),"") -> 0 | Z11: =IFERROR(IF(OR('Master Data'!$I$28='GA55 Check & Edit'!$AP$6),"",IF(D11="","",IF(E11="","",VLOOKUP(D11,ram,9,0)))),"") -> 1500 | AA11: =IFERROR(IF(OR('Master Data'!$I$28='GA55 Check & Edit'!$AP$6,D11="",'Master Data'!$N$38=""),"",IF(AND(E11=""),"",IF('GA55 Check & Edit'!D11='GA55 Check & Edit'!$AT$9,'Master Data'!$N$38,""))),"") ->  | AB11: =IFERROR(IF(D11="","",IF(AND(O11=""),"",IF(AND(N11=""),SUM(P11:AA11),IF(AND('Master Data'!$H$18='GA55 Check & Edit'!$AO$5,'Master Data'!$I$30='GA55 Check & Edit'!$AN$6),SUM(P11:AA11)+N11,SUM(P11:AA11))))),"0") -> 16324 | AC11: 47176 | AR11: Jodhpur | AS11: APR | AT11: 2021-06-01 | AU11: L-4 | AW11: FEB | AX11: 2021-02-01 | BA11: =IF(AND('Master Data'!$E$36=""),"",'Master Data'!$E$36) -> 50800 | BB11: =IF(AND(AX11<$AZ$16),"",IF(AND(AX11>$AZ$17),"",BA11)) ->  | BC11: =IF(AND('Master Data'!$E$36=""),"",ROUND(17%*BA11,0)) -> 8636 | BD11: =IF(BB11="","",BC11) ->  | BG11: =IF(AND('Master Data'!$I$28='GA55 Check & Edit'!$AP$6),"",IF(AND('Master Data'!$I$30='GA55 Check & Edit'!$AN$6,'Master Data'!$N$36='GA55 Check & Edit'!$AO$6),"",IF(AND('Master Data'!$I$30='GA55 Check & Edit'!$AN$5),IF($AZ$15<18001,265,IF($AZ$15<33501,440,IF($AZ$15<54001,658,875)))))) ->  | BH11: =IFERROR(IF(OR('Master Data'!$I$28='GA55 Check & Edit'!$AP$6),"",'Master Data'!$G$43),"") -> 7000 | BI11: =IFERROR(IF(AND('Master Data'!$I$30='GA55 Check & Edit'!$AN$6),ROUND((E9)*0.1,0),IF(AND('Master Data'!$I$28='GA55 Check & Edit'!$AP$6),ROUND((E9+F9)*0.1,0),'Master Data'!$H$43)),"") -> 5080 | BJ11: =BA11 -> 50800
A12: 1 | B12: =IF(LEN(D12)>=3,B11+1,0) -> 5 | C12: =IF(B12=0,"",B12) -> 5 | D12: 2021-07-01 | E12: =IFERROR(IF(D12="","",IF(AND(BQ16=""),"",IF(AND('Master Data'!$I$28='GA55 Check & Edit'!$AP$6),VLOOKUP(D12,ram,13,0),VLOOKUP(D12,ram,4,0)))),"") -> 52300 | F12: =IFERROR(IF(D12="","",IF(D12=$AX$24,"",IF(AND(D12=$AX$25),$BC$25,IF(AND(D12=$AX$27),"",IF(AND(D12=$AX$28),"",IF(AND('Master Data'!$I$28='GA55 Check & Edit'!$AP$5),VLOOKUP(D12,ram,7,0),"")))))),"") -> 14644 | G12: =IFERROR(IF(D12="","",IF(D12=$AX$24,"",IF(AND(D12=$AX$25),"",IF(AND(D12=$AX$26),"",IF(AND(D12=$AX$27),"",IF(AND(D12=$AX$29),"",IF(AND('Master Data'!$I$28='GA55 Check & Edit'!$AP$6),"",VLOOKUP(D12,ram,8,0)))))))),"") -> 4184 | H12: =IFERROR(IF(D12="","",IF(AND(E12=""),"",IF(OR(D12=$AX$24,D12=$AX$25,D12=$AX$26,D12=$AX$27,D12=$AX$28,D12=$AX$29),"",IF(AND('Master Data'!$I$28='GA55 Check & Edit'!$AP$5),'Master Data'!$B$43,"")))),"") -> 0 | I12: =IFERROR(IF(D12="","",IF(AND(E12=""),"",IF(OR(D12=$AX$24,D12=$AX$25,D12=$AX$26,D12=$AX$27,D12=$AX$28,D12=$AX$29),"",IF(AND('Master Data'!$I$28='GA55 Check & Edit'!$AP$5,'Master Data'!$E$28='GA55 Check & Edit'!$AO$5),'Master Data'!$C$43,"0")))),"") -> 0 | J12: =IFERROR(IF(OR('Master Data'!$E$32=$AO$6,'Master Data'!$E$32=""),"",IF(D12="","",IF(AND(E12=""),"",IF(OR(D12=$AX$24,D12=$AX$25,D12=$AX$26,D12=$AX$27,D12=$AX$28,D12=$AX$29),"",IF(AND('Master Data'!$I$28='GA55 Check & Edit'!$AP$6),"",IF(AND('Master Data'!$I$32=$AR$9),$AS$6,IF(AND('Master Data'!$I$32=$AR$10),$AS$6,IF(AND('Master Data'!$I$32=$AR$11),$AS$6,IF(AND('Master Data'!$I$32=$AR$12),$AS$6,$AS$5))))))))),"") ->  | K12: =IFERROR(IF(D12="","",IF(AND(E12=""),"",IF(OR(D12=$AX$24,D12=$AX$25,D12=$AX$26,D12=$AX$27,D12=$AX$28,D12=$AX$29),"",IF(AND('Master Data'!$I$28='GA55 Check & Edit'!$AP$5),'Master Data'!$E$43,"")))),"") -> 0 | L12: =IFERROR(IF(D12="","",IF(AND(E12=""),"",IF(OR(D12=$AX$24,D12=$AX$25,D12=$AX$26,D12=$AX$27,D12=$AX$28,D12=$AX$29),"",IF(AND('Master Data'!$I$28='GA55 Check & Edit'!$AP$6),"",'Master Data'!$F$43)))),"") -> 0 | M12: =IFERROR(IF(D12="","",IF(AND('Master Data'!$I$28='GA55 Check & Edit'!$AP$6),"",IF(AND('Master Data'!$I$24='GA55 Check & Edit'!$AO$6),"",IF(AND(D12="Bonus"),VLOOKUP(D12,ram,4,0),"")))),"") ->  | N12: =IFERROR(IF(AND(D12=""),"",IF(AND(D12=$AX$25,'Master Data'!$I$30='GA55 Check & Edit'!$AN$6),ROUND((E12+F12)*0.1,0),IF(AND(D12=$AX$29,'Master Data'!$I$30='GA55 Check & Edit'!$AN$6),ROUND((F12)*0.1,0),IF(AND(D12=$AX$26,'Master Data'!$I$30='GA55 Check & Edit'!$AN$6),ROUND((F12)*0.1,0),IF(AND(D12=$AX$27,'Master Data'!$I$30='GA55 Check & Edit'!$AN$6),ROUND((E12+F12)*0.1,0),IF(AND('Master Data'!$I$30='GA55 Check & Edit'!$AN$5),"",IF(AND('Master Data'!$I$30='GA55 Check & Edit'!$AN$6,'Master Data'!$I$28='GA55 Check & Edit'!$AP$6),ROUND((E12)*0.1,0),ROUND((E12+F12)*0.1,0)))))))),"") -> 6694 | O12: =IF(D12="","",IF('Master Data'!$H$18='GA55 Check & Edit'!$AO$5,SUM(E12:N12),SUM(E12:M12))) -> 71128 | P12: =IFERROR(IF(OR('Master Data'!$I$28='GA55 Check & Edit'!$AP$6,D12=""),"",IF(AND(D12=$AX$24),"",IF(AND(D12=$AX$25),"",IF(AND(D12=$AX$26),"",IF(AND(D12=$AX$27),"",IF(AND(D12=$AX$28),"",IF(AND(D12=$AX$29),"",IF(AND(E12=""),"",VLOOKUP(D12,ram,11,0))))))))),"") -> 7000 | Q12: =IFERROR(IF(AND(D12="",E12=""),"",IF(AND(D12=$AX$25,'Master Data'!$I$30='GA55 Check & Edit'!$AN$6),ROUND((E12+F12)*0.1,0),IF(AND(D12=$AX$29,'Master Data'!$I$30='GA55 Check & Edit'!$AN$6),ROUND((F12)*0.1,0),IF(AND(D12=$AX$26,'Master Data'!$I$30='GA55 Check & Edit'!$AN$6),ROUND((F12)*0.1,0),IF(AND(D12=$AX$27,'Master Data'!$I$30='GA55 Check & Edit'!$AN$6),ROUND((E12+F12)*0.1,0),IF(AND('Master Data'!$I$30='GA55 Check & Edit'!$AN$6,'Master Data'!$I$28='GA55 Check & Edit'!$AP$6),ROUND((E12)*0.1,0),IF(AND('Master Data'!$I$30='GA55 Check & Edit'!$AN$6,'Master Data'!$I$28='GA55 Check & Edit'!$AP$5),ROUND((E12+F12)*0.1,0),IF(AND('Master Data'!$I$30='GA55 Check & Edit'!$AN$5,'Master Data'!$I$28='GA55 Check & Edit'!$AP$5),VLOOKUP(D12,ram,12,0))))))))),"") -> 6694 | R12: =IFERROR(IF(OR('Master Data'!$I$28='GA55 Check & Edit'!$AP$6,D12=""),"",IF(AND(D12=$AX$24),"",IF(AND(D12=$AX$25),"",IF(AND(D12=$AX$26),"",IF(AND(D12=$AX$27),"",IF(AND(D12=$AX$28),"",IF(AND(D12=$AX$29),"",IF(AND(D12=$AX$32),"",IF(AND(E12=""),"",'Master Data'!$I$43))))))))),"") -> 1880 | S12: =IFERROR(IF(OR('Master Data'!$I$28='GA55 Check & Edit'!$AP$6),"",IF(D12="","",IF(E12="","",IF(AND(D12=$AX$24),"",IF(AND(D12=$AX$25),"",IF(AND(D12=$AX$26),"",IF(AND(D12=$AX$27),"",IF(AND(D12=$AX$28),"",IF(AND(D12=$AX$29),"",VLOOKUP(D12,ram,10,0)))))))))),"") -> 0 | T12: =IFERROR(IF(OR('Master Data'!$I$28='GA55 Check & Edit'!$AP$6,D12=""),"",IF(AND(D12=$AX$24),"",IF(AND(D12=$AX$25),"",IF(AND(D12=$AX$26),"",IF(AND(D12=$AX$27),"",IF(AND(D12=$AX$28),"",IF(AND(D12=$AX$29),"",IF(AND(E12=""),"",'Master Data'!$K$43)))))))),"") -> 0 | U12: =IFERROR(IF(OR('Master Data'!$I$28='GA55 Check & Edit'!$AP$6,D12=""),"",IF(AND(D12=$AX$24),"",IF(AND(D12=$AX$25),"",IF(AND(D12=$AX$26),"",IF(AND(D12=$AX$27),"",IF(AND(D12=$AX$28),"",IF(AND(D12=$AX$29),"",IF(AND(E12=""),"",'Master Data'!$L$43)))))))),"") -> 0 | V12: =IFERROR(IF(OR('Master Data'!$I$28='GA55 Check & Edit'!$AP$6,D12=""),"",IF(AND(D12=$AX$24,'Master Data'!$I$28='GA55 Check & Edit'!$AP$5,'Master Data'!$I$30='GA55 Check & Edit'!$AN$6),ROUND(M12*50%,0),IF(AND(D12=$AX$25),"",IF(AND(D12=$AX$26,'Master Data'!$I$28='GA55 Check & Edit'!$AP$5,'Master Data'!$I$30='GA55 Check & Edit'!$AN$6),SUM(F12-N12),IF(AND(D12=$AX$27),"",IF(AND(D12=$AX$28),"",IF(AND(D12=$AX$29,'Master Data'!$I$28='GA55 Check & Edit'!$AP$5,'Master Data'!$I$30='GA55 Check & Edit'!$AN$6),SUM(F12-N12),IF(AND(E12=""),"",'Master Data'!$M$43)))))))),"") -> 0 | W12: =IFERROR(IF(OR('Master Data'!$I$28='GA55 Check & Edit'!$AP$6,D12=""),"",IF(AND(D12=$AX$24),"",IF(AND(D12=$AX$25),"",IF(AND(D12=$AX$26),"",IF(AND(D12=$AX$27),"",IF(AND(D12=$AX$28),"",IF(AND(D12=$AX$29),"",IF(AND(E12=""),"",'Master Data'!$O$43)))))))),"") -> 0 | X12: =IFERROR(IF(OR('Master Data'!$I$28='GA55 Check & Edit'!$AP$6,D12=""),"",IF(AND(E12=""),"",IF(AND('GA55 Check & Edit'!D12='GA55 Check & Edit'!$AT$17,'Master Data'!$D$18="Gazetted"),500,IF(AND('GA55 Check & Edit'!D12='GA55 Check & Edit'!$AT$17,'Master Data'!$D$18="Non-Gazetted"),250,"")))),"") ->  | Y12: =IFERROR(IF(D12="","",IF(AND(E12=""),"",IF(AND(D12=$AX$24),"",IF(AND(D12=$AX$25),"",IF(AND(D12=$AX$26),"",IF(AND(D12=$AX$27),"",IF(AND(D12=$AX$28),"",IF(AND(D12=$AX$29),"",IF(OR('Master Data'!$I$28='GA55 Check & Edit'!$AP$6,D12=""),"",$Y$7))))))))),"") -> 0 | Z12: =IFERROR(IF(OR('Master Data'!$I$28='GA55 Check & Edit'!$AP$6),"",IF(D12="","",IF(E12="","",VLOOKUP(D12,ram,9,0)))),"") -> 1500 | AA12: =IFERROR(IF(OR('Master Data'!$I$28='GA55 Check & Edit'!$AP$6,D12="",'Master Data'!$N$38=""),"",IF(AND(E12=""),"",IF('GA55 Check & Edit'!D12='GA55 Check & Edit'!$AT$9,'Master Data'!$N$38,""))),"") ->  | AB12: =IFERROR(IF(D12="","",IF(AND(O12=""),"",IF(AND(N12=""),SUM(P12:AA12),IF(AND('Master Data'!$H$18='GA55 Check & Edit'!$AO$5,'Master Data'!$I$30='GA55 Check & Edit'!$AN$6),SUM(P12:AA12)+N12,SUM(P12:AA12))))),"0") -> 17074 | AC12: 54054 | AR12: Kota | AS12: MAY | AT12: 2021-07-01 | AU12: L-5 | AW12: MAR | AX12: 2021-03-01 | AY12: 3 | BA12: =IF(AND('Master Data'!$E$36=""),"",IF(AND('Master Data'!$I$28='GA55 Check & Edit'!$AP$6),'GA55 Check & Edit'!$AZ$15,BU12)) -> 50800 | BB12: =IF(AND(AX12<$AZ$16),"",IF(AND(AX12>$AZ$17),"",BA12)) -> 50800 | BC12: =IF(AND('Master Data'!$E$36=""),"",ROUND(17%*BA12,0)) -> 8636 | BD12: =IF(BB12="","",BC12) -> 8636 | BE12: =IFERROR(IF(AND('Master Data'!$E$36=""),"",ROUND('Master Data'!$E$30%*BB12,0)),"") -> 4064 | BF12: ='Master Data'!B47 -> 0 | BG12: =IF(AND('Master Data'!$I$28='GA55 Check & Edit'!$AP$6),"",IF(AND('Master Data'!$I$30='GA55 Check & Edit'!$AN$6,'Master Data'!$N$36='GA55 Check & Edit'!$AO$6),0,IF(AND('Master Data'!$I$30='GA55 Check & Edit'!$AN$6,'Master Data'!$N$36='GA55 Check & Edit'!$AO$5),'Master Data'!$J$43,IF(AND('Master Data'!$I$30='GA55 Check & Edit'!$AN$5),IF($AZ$15<18001,265,IF($AZ$15<33501,440,IF($AZ$15<54001,658,875))))))) -> 0 | BH12: =IFERROR(IF(OR('Master Data'!$I$28='GA55 Check & Edit'!$AP$6),"",'Master Data'!$G$43),"") -> 7000 | BI12: =IFERROR(IF(AND('Master Data'!$I$30='GA55 Check & Edit'!$AN$6),ROUND((E8)*0.1,0),IF(AND('Master Data'!$I$28='GA55 Check & Edit'!$AP$6),ROUND((E8+F8)*0.1,0),'Master Data'!$H$43)),"") -> 5080 | BJ12: =BA12 -> 50800 | BK12: 2021-03-01 | BL12: =IFERROR(IF('Master Data'!$E$36="","",IF('Master Data'!$F$40="","",IF(AND($AZ$17>$AZ$9),"",DATE(YEAR(AZ16),MONTH(AZ16),DAY(AZ16))))),"") -> 2021-03-01 | BM12: =IFERROR(IF('Master Data'!$E$36="","",IF('Master Data'!$F$40="","",IF(AND($AZ$17>$AZ$9),"",DATE(YEAR(AZ16),MONTH(AZ16),DAY(AZ16))))),"") -> 2021-03-01 | BN12: =IF(AND(BM12=""),"",IF(AND(BM12=$BK$12),$BK$12,IF(AND(BM12=$BK$13),$BK$13,IF(AND(BM12=$BK$14),$BK$14,IF(AND(BM12=$BK$15),$BK$15,IF(AND(BM12=$BK$16),$BK$16,IF(AND(BM12=$BK$17),$BK$17,IF(AND(BM12=$BK$18),$BK$18,IF(AND(BM12=$BK$19),$BK$19,IF(AND(BM12=$BK$20),$BK$20,IF(AND(BM12=$BK$21),$BK$21,IF(AND(BM12=$BK$22),$BK$22,IF(AND(BM12=$BK$23),$BK$23,IF(AND(BM12=$BK$24),$BM$24,IF(AND(BM12=$BK$25),$BM$25,IF(AND(BM12=$BK$26),$BM$26,IF(AND(BM12=$BK$27),$BM$27,IF(AND(BM12=$BK$28),$BM$28,IF(AND(BM12=$BK$29),$BM$29,IF(AND(BM12=$BK$30),$BM$30,IF(AND(BM12=$BK$31),$BM$31,IF(AND(BM12=$BK$32),$BM$32,"")))))))))))))))))))))) -> 2021-03-01 | BO12: =IFERROR(IF(BM12="","",IF(AND(BL12=$BK$24),$BM$24,IF(AND(BL12=$BK$25),$BM$25,IF(AND(BL12=$BK$26),$BM$26,IF(AND(BL12=$BK$27),$BM$27,IF(AND(BL12=$BK$28),$BM$28,IF(AND(BL12=$BK$29),$BM$29,IF(AND(BL12=$BK$30),$BM$30,IF(AND(BL12=$BK$31),$BM$31,IF(AND(BL12=$BK$32),$BM$32,BN12)))))))))),"") -> 2021-03-01 | BQ12: =IFERROR(IF(BM12="","",IF(D8=$AX$25,$AX$25,IF(D8=$AX$30,$AX$30,IF(D8=$AX$31,$AX$31,IF(D8=$AX$32,$AX$32,IF(BM12>$AZ$17,"",BM12)))))),"") -> 2021-03-01 | BS12: =OFFSET(D6,MATCH(BO12,$D$8:$D$27,0)+1,MATCH(BO12,D8:N8,0)) -> 50800 | BU12: =IF(AND('Master Data'!$E$36=""),"",IF(AND('Master Data'!$I$38='GA55 Check & Edit'!AX13),'Master Data'!$I$36,'Master Data'!$E$36)) -> 50800 | BX12: =IF(BB12="",0,BF12) -> 0
A13: 0 | B13: =IF(LEN(D13)>=3,B12+1,0) -> 6 | C13: =IF(B13=0,"",B13) -> 6 | D13: 2021-08-01 | E13: =IFERROR(IF(D13="","",IF(AND(BQ17=""),"",IF(AND('Master Data'!$I$28='GA55 Check & Edit'!$AP$6),VLOOKUP(D13,ram,13,0),VLOOKUP(D13,ram,4,0)))),"") -> 52300 | F13: =IFERROR(IF(D13="","",IF(D13=$AX$24,"",IF(AND(D13=$AX$25),$BC$25,IF(AND(D13=$AX$27),"",IF(AND(D13=$AX$28),"",IF(AND('Master Data'!$I$28='GA55 Check & Edit'!$AP$5),VLOOKUP(D13,ram,7,0),"")))))),"") -> 14644 | G13: =IFERROR(IF(D13="","",IF(D13=$AX$24,"",IF(AND(D13=$AX$25),"",IF(AND(D13=$AX$26),"",IF(AND(D13=$AX$27),"",IF(AND(D13=$AX$29),"",IF(AND('Master Data'!$I$28='GA55 Check & Edit'!$AP$6),"",VLOOKUP(D13,ram,8,0)))))))),"") -> 4707 | H13: =IFERROR(IF(D13="","",IF(AND(E13=""),"",IF(OR(D13=$AX$24,D13=$AX$25,D13=$AX$26,D13=$AX$27,D13=$AX$28,D13=$AX$29),"",IF(AND('Master Data'!$I$28='GA55 Check & Edit'!$AP$5),'Master Data'!$B$43,"")))),"") -> 0 | I13: =IFERROR(IF(D13="","",IF(AND(E13=""),"",IF(OR(D13=$AX$24,D13=$AX$25,D13=$AX$26,D13=$AX$27,D13=$AX$28,D13=$AX$29),"",IF(AND('Master Data'!$I$28='GA55 Check & Edit'!$AP$5,'Master Data'!$E$28='GA55 Check & Edit'!$AO$5),'Master Data'!$C$43,"0")))),"") -> 0 | J13: =IFERROR(IF(OR('Master Data'!$E$32=$AO$6,'Master Data'!$E$32=""),"",IF(D13="","",IF(AND(E13=""),"",IF(OR(D13=$AX$24,D13=$AX$25,D13=$AX$26,D13=$AX$27,D13=$AX$28,D13=$AX$29),"",IF(AND('Master Data'!$I$28='GA55 Check & Edit'!$AP$6),"",IF(AND('Master Data'!$I$32=$AR$9),$AS$6,IF(AND('Master Data'!$I$32=$AR$10),$AS$6,IF(AND('Master Data'!$I$32=$AR$11),$AS$6,IF(AND('Master Data'!$I$32=$AR$12),$AS$6,$AS$5))))))))),"") ->  | K13: =IFERROR(IF(D13="","",IF(AND(E13=""),"",IF(OR(D13=$AX$24,D13=$AX$25,D13=$AX$26,D13=$AX$27,D13=$AX$28,D13=$AX$29),"",IF(AND('Master Data'!$I$28='GA55 Check & Edit'!$AP$5),'Master Data'!$E$43,"")))),"") -> 0 | L13: =IFERROR(IF(D13="","",IF(AND(E13=""),"",IF(OR(D13=$AX$24,D13=$AX$25,D13=$AX$26,D13=$AX$27,D13=$AX$28,D13=$AX$29),"",IF(AND('Master Data'!$I$28='GA55 Check & Edit'!$AP$6),"",'Master Data'!$F$43)))),"") -> 0 | M13: =IFERROR(IF(D13="","",IF(AND('Master Data'!$I$28='GA55 Check & Edit'!$AP$6),"",IF(AND('Master Data'!$I$24='GA55 Check & Edit'!$AO$6),"",IF(AND(D13="Bonus"),VLOOKUP(D13,ram,4,0),"")))),"") ->  | N13: =IFERROR(IF(AND(D13=""),"",IF(AND(D13=$AX$25,'Master Data'!$I$30='GA55 Check & Edit'!$AN$6),ROUND((E13+F13)*0.1,0),IF(AND(D13=$AX$29,'Master Data'!$I$30='GA55 Check & Edit'!$AN$6),ROUND((F13)*0.1,0),IF(AND(D13=$AX$26,'Master Data'!$I$30='GA55 Check & Edit'!$AN$6),ROUND((F13)*0.1,0),IF(AND(D13=$AX$27,'Master Data'!$I$30='GA55 Check & Edit'!$AN$6),ROUND((E13+F13)*0.1,0),IF(AND('Master Data'!$I$30='GA55 Check & Edit'!$AN$5),"",IF(AND('Master Data'!$I$30='GA55 Check & Edit'!$AN$6,'Master Data'!$I$28='GA55 Check & Edit'!$AP$6),ROUND((E13)*0.1,0),ROUND((E13+F13)*0.1,0)))))))),"") -> 6694 | O13: =IF(D13="","",IF('Master Data'!$H$18='GA55 Check & Edit'!$AO$5,SUM(E13:N13),SUM(E13:M13))) -> 71651 | P13: =IFERROR(IF(OR('Master Data'!$I$28='GA55 Check & Edit'!$AP$6,D13=""),"",IF(AND(D13=$AX$24),"",IF(AND(D13=$AX$25),"",IF(AND(D13=$AX$26),"",IF(AND(D13=$AX$27),"",IF(AND(D13=$AX$28),"",IF(AND(D13=$AX$29),"",IF(AND(E13=""),"",VLOOKUP(D13,ram,11,0))))))))),"") -> 7000 | Q13: =IFERROR(IF(AND(D13="",E13=""),"",IF(AND(D13=$AX$25,'Master Data'!$I$30='GA55 Check & Edit'!$AN$6),ROUND((E13+F13)*0.1,0),IF(AND(D13=$AX$29,'Master Data'!$I$30='GA55 Check & Edit'!$AN$6),ROUND((F13)*0.1,0),IF(AND(D13=$AX$26,'Master Data'!$I$30='GA55 Check & Edit'!$AN$6),ROUND((F13)*0.1,0),IF(AND(D13=$AX$27,'Master Data'!$I$30='GA55 Check & Edit'!$AN$6),ROUND((E13+F13)*0.1,0),IF(AND('Master Data'!$I$30='GA55 Check & Edit'!$AN$6,'Master Data'!$I$28='GA55 Check & Edit'!$AP$6),ROUND((E13)*0.1,0),IF(AND('Master Data'!$I$30='GA55 Check & Edit'!$AN$6,'Master Data'!$I$28='GA55 Check & Edit'!$AP$5),ROUND((E13+F13)*0.1,0),IF(AND('Master Data'!$I$30='GA55 Check & Edit'!$AN$5,'Master Data'!$I$28='GA55 Check & Edit'!$AP$5),VLOOKUP(D13,ram,12,0))))))))),"") -> 6694 | R13: =IFERROR(IF(OR('Master Data'!$I$28='GA55 Check & Edit'!$AP$6,D13=""),"",IF(AND(D13=$AX$24),"",IF(AND(D13=$AX$25),"",IF(AND(D13=$AX$26),"",IF(AND(D13=$AX$27),"",IF(AND(D13=$AX$28),"",IF(AND(D13=$AX$29),"",IF(AND(D13=$AX$32),"",IF(AND(E13=""),"",'Master Data'!$I$43))))))))),"") -> 1880 | S13: =IFERROR(IF(OR('Master Data'!$I$28='GA55 Check & Edit'!$AP$6),"",IF(D13="","",IF(E13="","",IF(AND(D13=$AX$24),"",IF(AND(D13=$AX$25),"",IF(AND(D13=$AX$26),"",IF(AND(D13=$AX$27),"",IF(AND(D13=$AX$28),"",IF(AND(D13=$AX$29),"",VLOOKUP(D13,ram,10,0)))))))))),"") -> 0 | T13: =IFERROR(IF(OR('Master Data'!$I$28='GA55 Check & Edit'!$AP$6,D13=""),"",IF(AND(D13=$AX$24),"",IF(AND(D13=$AX$25),"",IF(AND(D13=$AX$26),"",IF(AND(D13=$AX$27),"",IF(AND(D13=$AX$28),"",IF(AND(D13=$AX$29),"",IF(AND(E13=""),"",'Master Data'!$K$43)))))))),"") -> 0 | U13: =IFERROR(IF(OR('Master Data'!$I$28='GA55 Check & Edit'!$AP$6,D13=""),"",IF(AND(D13=$AX$24),"",IF(AND(D13=$AX$25),"",IF(AND(D13=$AX$26),"",IF(AND(D13=$AX$27),"",IF(AND(D13=$AX$28),"",IF(AND(D13=$AX$29),"",IF(AND(E13=""),"",'Master Data'!$L$43)))))))),"") -> 0 | V13: =IFERROR(IF(OR('Master Data'!$I$28='GA55 Check & Edit'!$AP$6,D13=""),"",IF(AND(D13=$AX$24,'Master Data'!$I$28='GA55 Check & Edit'!$AP$5,'Master Data'!$I$30='GA55 Check & Edit'!$AN$6),ROUND(M13*50%,0),IF(AND(D13=$AX$25),"",IF(AND(D13=$AX$26,'Master Data'!$I$28='GA55 Check & Edit'!$AP$5,'Master Data'!$I$30='GA55 Check & Edit'!$AN$6),SUM(F13-N13),IF(AND(D13=$AX$27),"",IF(AND(D13=$AX$28),"",IF(AND(D13=$AX$29,'Master Data'!$I$28='GA55 Check & Edit'!$AP$5,'Master Data'!$I$30='GA55 Check & Edit'!$AN$6),SUM(F13-N13),IF(AND(E13=""),"",'Master Data'!$M$43)))))))),"") -> 0 | W13: =IFERROR(IF(OR('Master Data'!$I$28='GA55 Check & Edit'!$AP$6,D13=""),"",IF(AND(D13=$AX$24),"",IF(AND(D13=$AX$25),"",IF(AND(D13=$AX$26),"",IF(AND(D13=$AX$27),"",IF(AND(D13=$AX$28),"",IF(AND(D13=$AX$29),"",IF(AND(E13=""),"",'Master Data'!$O$43)))))))),"") -> 0 | X13: =IFERROR(IF(OR('Master Data'!$I$28='GA55 Check & Edit'!$AP$6,D13=""),"",IF(AND(E13=""),"",IF(AND('GA55 Check & Edit'!D13='GA55 Check & Edit'!$AT$17,'Master Data'!$D$18="Gazetted"),500,IF(AND('GA55 Check & Edit'!D13='GA55 Check & Edit'!$AT$17,'Master Data'!$D$18="Non-Gazetted"),250,"")))),"") ->  | Y13: =IFERROR(IF(D13="","",IF(AND(E13=""),"",IF(AND(D13=$AX$24),"",IF(AND(D13=$AX$25),"",IF(AND(D13=$AX$26),"",IF(AND(D13=$AX$27),"",IF(AND(D13=$AX$28),"",IF(AND(D13=$AX$29),"",IF(OR('Master Data'!$I$28='GA55 Check & Edit'!$AP$6,D13=""),"",$Y$7))))))))),"") -> 0 | Z13: =IFERROR(IF(OR('Master Data'!$I$28='GA55 Check & Edit'!$AP$6),"",IF(D13="","",IF(E13="","",VLOOKUP(D13,ram,9,0)))),"") -> 1500 | AA13: =IFERROR(IF(OR('Master Data'!$I$28='GA55 Check & Edit'!$AP$6,D13="",'Master Data'!$N$38=""),"",IF(AND(E13=""),"",IF('GA55 Check & Edit'!D13='GA55 Check & Edit'!$AT$9,'Master Data'!$N$38,""))),"") ->  | AB13: =IFERROR(IF(D13="","",IF(AND(O13=""),"",IF(AND(N13=""),SUM(P13:AA13),IF(AND('Master Data'!$H$18='GA55 Check & Edit'!$AO$5,'Master Data'!$I$30='GA55 Check & Edit'!$AN$6),SUM(P13:AA13)+N13,SUM(P13:AA13))))),"0") -> 17074 | AC13: 54577 | AS13: JUN | AT13: 2021-08-01 | AU13: L-6 | AW13: APR | AX13: 2021-04-01 | AY13: 4 | BA13: =IF(AND('Master Data'!$E$36=""),"",IF(AND('Master Data'!$I$28='GA55 Check & Edit'!$AP$6),'GA55 Check & Edit'!$AZ$15,BU13)) -> 50800 | BB13: =IF(AND(AX13<$AZ$16),"",IF(AND(AX13>$AZ$17),"",BA13)) -> 50800 | BC13: =IF(AND('Master Data'!$E$36=""),"",ROUND(17%*BA13,0)) -> 8636 | BD13: =IF(BB13="","",BC13) -> 8636 | BE13: =IFERROR(IF(AND('Master Data'!$E$36=""),"",ROUND('Master Data'!$E$30%*BB13,0)),"") -> 4064 | BF13: ='Master Data'!C47 -> 1500 | BG13: =IF(AND('Master Data'!$I$28='GA55 Check & Edit'!$AP$6),"",IF(AND('Master Data'!$I$30='GA55 Check & Edit'!$AN$6,'Master Data'!$N$36='GA55 Check & Edit'!$AO$6),0,IF(AND('Master Data'!$I$30='GA55 Check & Edit'!$AN$6,'Master Data'!$N$36='GA55 Check & Edit'!$AO$5),'Master Data'!$J$43,IF(AND('Master Data'!$I$30='GA55 Check & Edit'!$AN$5),IF($AZ$15<18001,265,IF($AZ$15<33501,440,IF($AZ$15<54001,658,875))))))) -> 0 | BH13: =IFERROR(IF(OR('Master Data'!$I$28='GA55 Check & Edit'!$AP$6),"",'Master Data'!$G$43),"") -> 7000 | BI13: =IFERROR(IF(AND('Master Data'!$I$30='GA55 Check & Edit'!$AN$6),ROUND((E9)*0.1,0),IF(AND('Master Data'!$I$28='GA55 Check & Edit'!$AP$6),ROUND((E9+F9)*0.1,0),'Master Data'!$H$43)),"") -> 5080 | BJ13: =BA13 -> 50800 | BK13: 2021-04-01 | BL13: =IFERROR(IF('Master Data'!$E$36="","",IF('Master Data'!$F$40="","",IF(AND($AZ$17>$AZ$9),"",DATE(YEAR(BL12),MONTH(BL12)+1,DAY(BL12))))),"") -> 2021-04-01 | BM13: =IFERROR(IF('Master Data'!$E$36="","",IF('Master Data'!$F$40="","",IF(AND($AZ$17>$AZ$9),"",DATE(YEAR(BM12),MONTH(BM12)+1,DAY(BM12))))),"") -> 2021-04-01 | BN13: =IF(AND(BM13=""),"",IF(AND(BM13=$BK$12),$BK$12,IF(AND(BM13=$BK$13),$BK$13,IF(AND(BM13=$BK$14),$BK$14,IF(AND(BM13=$BK$15),$BK$15,IF(AND(BM13=$BK$16),$BK$16,IF(AND(BM13=$BK$17),$BK$17,IF(AND(BM13=$BK$18),$BK$18,IF(AND(BM13=$BK$19),$BK$19,IF(AND(BM13=$BK$20),$BK$20,IF(AND(BM13=$BK$21),$BK$21,IF(AND(BM13=$BK$22),$BK$22,IF(AND(BM13=$BK$23),$BK$23,IF(AND(BM13=$BK$24),$BM$24,IF(AND(BM13=$BK$25),$BM$25,IF(AND(BM13=$BK$26),$BM$26,IF(AND(BM13=$BK$27),$BM$27,IF(AND(BM13=$BK$28),$BM$28,IF(AND(BM13=$BK$29),$BM$29,IF(AND(BM13=$BK$30),$BM$30,IF(AND(BM13=$BK$31),$BM$31,IF(AND(BM13=$BK$32),$BM$32,"")))))))))))))))))))))) -> 2021-04-01 | BO13: =IFERROR(IF(BM13="","",IF(AND(BL13=$BK$24),$BM$24,IF(AND(BL13=$BK$25),$BM$25,IF(AND(BL13=$BK$26),$BM$26,IF(AND(BL13=$BK$27),$BM$27,IF(AND(BL13=$BK$28),$BM$28,IF(AND(BL13=$BK$29),$BM$29,IF(AND(BL13=$BK$30),$BM$30,IF(AND(BL13=$BK$31),$BM$31,IF(AND(BL13=$BK$32),$BM$32,BN13)))))))))),"") -> 2021-04-01 | BQ13: =IFERROR(IF(BM13="","",IF(D9=$AX$25,$AX$25,IF(D9=$AX$30,$AX$30,IF(D9=$AX$31,$AX$31,IF(D9=$AX$32,$AX$32,IF(BM13>$AZ$17,"",BM13)))))),"") -> 2021-04-01 | BS13: =OFFSET(D7,MATCH(BO13,$D$8:$D$27,0)+1,MATCH(BO13,D9:N9,0)) -> 50800 | BU13: =IF(AND('Master Data'!$E$36=""),"",IF(AND('Master Data'!$I$38='GA55 Check & Edit'!AX13),'Master Data'!$I$36,'Master Data'!$E$36)) -> 50800 | BX13: =IF(BB13="",0,BF13) -> 1500
A14: 1 | B14: 7 | C14: 7 | D14: 2021-09-01 | E14: =IFERROR(IF(D14="","",IF(AND(BQ18=""),"",IF(AND('Master Data'!$I$28='GA55 Check & Edit'!$AP$6),VLOOKUP(D14,ram,13,0),VLOOKUP(D14,ram,4,0)))),"") -> 52300 | F14: =IFERROR(IF(D14="","",IF(D14=$AX$24,"",IF(AND(D14=$AX$25),$BC$25,IF(AND(D14=$AX$27),"",IF(AND(D14=$AX$28),"",IF(AND('Master Data'!$I$28='GA55 Check & Edit'!$AP$5),VLOOKUP(D14,ram,7,0),"")))))),"") -> 14644 | G14: =IFERROR(IF(D14="","",IF(D14=$AX$24,"",IF(AND(D14=$AX$25),"",IF(AND(D14=$AX$26),"",IF(AND(D14=$AX$27),"",IF(AND(D14=$AX$29),"",IF(AND('Master Data'!$I$28='GA55 Check & Edit'!$AP$6),"",VLOOKUP(D14,ram,8,0)))))))),"") -> 4707 | H14: =IFERROR(IF(D14="","",IF(AND(E14=""),"",IF(OR(D14=$AX$24,D14=$AX$25,D14=$AX$26,D14=$AX$27,D14=$AX$28,D14=$AX$29),"",IF(AND('Master Data'!$I$28='GA55 Check & Edit'!$AP$5),'Master Data'!$B$43,"")))),"") -> 0 | I14: =IFERROR(IF(D14="","",IF(AND(E14=""),"",IF(OR(D14=$AX$24,D14=$AX$25,D14=$AX$26,D14=$AX$27,D14=$AX$28,D14=$AX$29),"",IF(AND('Master Data'!$I$28='GA55 Check & Edit'!$AP$5,'Master Data'!$E$28='GA55 Check & Edit'!$AO$5),'Master Data'!$C$43,"0")))),"") -> 0 | J14: =IFERROR(IF(OR('Master Data'!$E$32=$AO$6,'Master Data'!$E$32=""),"",IF(D14="","",IF(AND(E14=""),"",IF(OR(D14=$AX$24,D14=$AX$25,D14=$AX$26,D14=$AX$27,D14=$AX$28,D14=$AX$29),"",IF(AND('Master Data'!$I$28='GA55 Check & Edit'!$AP$6),"",IF(AND('Master Data'!$I$32=$AR$9),$AS$6,IF(AND('Master Data'!$I$32=$AR$10),$AS$6,IF(AND('Master Data'!$I$32=$AR$11),$AS$6,IF(AND('Master Data'!$I$32=$AR$12),$AS$6,$AS$5))))))))),"") ->  | K14: =IFERROR(IF(D14="","",IF(AND(E14=""),"",IF(OR(D14=$AX$24,D14=$AX$25,D14=$AX$26,D14=$AX$27,D14=$AX$28,D14=$AX$29),"",IF(AND('Master Data'!$I$28='GA55 Check & Edit'!$AP$5),'Master Data'!$E$43,"")))),"") -> 0 | L14: =IFERROR(IF(D14="","",IF(AND(E14=""),"",IF(OR(D14=$AX$24,D14=$AX$25,D14=$AX$26,D14=$AX$27,D14=$AX$28,D14=$AX$29),"",IF(AND('Master Data'!$I$28='GA55 Check & Edit'!$AP$6),"",'Master Data'!$F$43)))),"") -> 0 | M14: =IFERROR(IF(D14="","",IF(AND('Master Data'!$I$28='GA55 Check & Edit'!$AP$6),"",IF(AND('Master Data'!$I$24='GA55 Check & Edit'!$AO$6),"",IF(AND(D14="Bonus"),VLOOKUP(D14,ram,4,0),"")))),"") ->  | N14: =IFERROR(IF(AND(D14=""),"",IF(AND(D14=$AX$25,'Master Data'!$I$30='GA55 Check & Edit'!$AN$6),ROUND((E14+F14)*0.1,0),IF(AND(D14=$AX$29,'Master Data'!$I$30='GA55 Check & Edit'!$AN$6),ROUND((F14)*0.1,0),IF(AND(D14=$AX$26,'Master Data'!$I$30='GA55 Check & Edit'!$AN$6),ROUND((F14)*0.1,0),IF(AND(D14=$AX$27,'Master Data'!$I$30='GA55 Check & Edit'!$AN$6),ROUND((E14+F14)*0.1,0),IF(AND('Master Data'!$I$30='GA55 Check & Edit'!$AN$5),"",IF(AND('Master Data'!$I$30='GA55 Check & Edit'!$AN$6,'Master Data'!$I$28='GA55 Check & Edit'!$AP$6),ROUND((E14)*0.1,0),ROUND((E14+F14)*0.1,0)))))))),"") -> 6694 | O14: =IF(D14="","",IF('Master Data'!$H$18='GA55 Check & Edit'!$AO$5,SUM(E14:N14),SUM(E14:M14))) -> 71651 | P14: =IFERROR(IF(OR('Master Data'!$I$28='GA55 Check & Edit'!$AP$6,D14=""),"",IF(AND(D14=$AX$24),"",IF(AND(D14=$AX$25),"",IF(AND(D14=$AX$26),"",IF(AND(D14=$AX$27),"",IF(AND(D14=$AX$28),"",IF(AND(D14=$AX$29),"",IF(AND(E14=""),"",VLOOKUP(D14,ram,11,0))))))))),"") -> 7000 | Q14: =IFERROR(IF(AND(D14="",E14=""),"",IF(AND(D14=$AX$25,'Master Data'!$I$30='GA55 Check & Edit'!$AN$6),ROUND((E14+F14)*0.1,0),IF(AND(D14=$AX$29,'Master Data'!$I$30='GA55 Check & Edit'!$AN$6),ROUND((F14)*0.1,0),IF(AND(D14=$AX$26,'Master Data'!$I$30='GA55 Check & Edit'!$AN$6),ROUND((F14)*0.1,0),IF(AND(D14=$AX$27,'Master Data'!$I$30='GA55 Check & Edit'!$AN$6),ROUND((E14+F14)*0.1,0),IF(AND('Master Data'!$I$30='GA55 Check & Edit'!$AN$6,'Master Data'!$I$28='GA55 Check & Edit'!$AP$6),ROUND((E14)*0.1,0),IF(AND('Master Data'!$I$30='GA55 Check & Edit'!$AN$6,'Master Data'!$I$28='GA55 Check & Edit'!$AP$5),ROUND((E14+F14)*0.1,0),IF(AND('Master Data'!$I$30='GA55 Check & Edit'!$AN$5,'Master Data'!$I$28='GA55 Check & Edit'!$AP$5),VLOOKUP(D14,ram,12,0))))))))),"") -> 6694 | R14: =IFERROR(IF(OR('Master Data'!$I$28='GA55 Check & Edit'!$AP$6,D14=""),"",IF(AND(D14=$AX$24),"",IF(AND(D14=$AX$25),"",IF(AND(D14=$AX$26),"",IF(AND(D14=$AX$27),"",IF(AND(D14=$AX$28),"",IF(AND(D14=$AX$29),"",IF(AND(D14=$AX$32),"",IF(AND(E14=""),"",'Master Data'!$I$43))))))))),"") -> 1880 | S14: =IFERROR(IF(OR('Master Data'!$I$28='GA55 Check & Edit'!$AP$6),"",IF(D14="","",IF(E14="","",IF(AND(D14=$AX$24),"",IF(AND(D14=$AX$25),"",IF(AND(D14=$AX$26),"",IF(AND(D14=$AX$27),"",IF(AND(D14=$AX$28),"",IF(AND(D14=$AX$29),"",VLOOKUP(D14,ram,10,0)))))))))),"") -> 0 | T14: =IFERROR(IF(OR('Master Data'!$I$28='GA55 Check & Edit'!$AP$6,D14=""),"",IF(AND(D14=$AX$24),"",IF(AND(D14=$AX$25),"",IF(AND(D14=$AX$26),"",IF(AND(D14=$AX$27),"",IF(AND(D14=$AX$28),"",IF(AND(D14=$AX$29),"",IF(AND(E14=""),"",'Master Data'!$K$43)))))))),"") -> 0 | U14: =IFERROR(IF(OR('Master Data'!$I$28='GA55 Check & Edit'!$AP$6,D14=""),"",IF(AND(D14=$AX$24),"",IF(AND(D14=$AX$25),"",IF(AND(D14=$AX$26),"",IF(AND(D14=$AX$27),"",IF(AND(D14=$AX$28),"",IF(AND(D14=$AX$29),"",IF(AND(E14=""),"",'Master Data'!$L$43)))))))),"") -> 0 | V14: =IFERROR(IF(OR('Master Data'!$I$28='GA55 Check & Edit'!$AP$6,D14=""),"",IF(AND(D14=$AX$24,'Master Data'!$I$28='GA55 Check & Edit'!$AP$5,'Master Data'!$I$30='GA55 Check & Edit'!$AN$6),ROUND(M14*50%,0),IF(AND(D14=$AX$25),"",IF(AND(D14=$AX$26,'Master Data'!$I$28='GA55 Check & Edit'!$AP$5,'Master Data'!$I$30='GA55 Check & Edit'!$AN$6),SUM(F14-N14),IF(AND(D14=$AX$27),"",IF(AND(D14=$AX$28),"",IF(AND(D14=$AX$29,'Master Data'!$I$28='GA55 Check & Edit'!$AP$5,'Master Data'!$I$30='GA55 Check & Edit'!$AN$6),SUM(F14-N14),IF(AND(E14=""),"",'Master Data'!$M$43)))))))),"") -> 0 | W14: =IFERROR(IF(OR('Master Data'!$I$28='GA55 Check & Edit'!$AP$6,D14=""),"",IF(AND(D14=$AX$24),"",IF(AND(D14=$AX$25),"",IF(AND(D14=$AX$26),"",IF(AND(D14=$AX$27),"",IF(AND(D14=$AX$28),"",IF(AND(D14=$AX$29),"",IF(AND(E14=""),"",'Master Data'!$O$43)))))))),"") -> 0 | X14: =IFERROR(IF(OR('Master Data'!$I$28='GA55 Check & Edit'!$AP$6,D14=""),"",IF(AND(E14=""),"",IF(AND('GA55 Check & Edit'!D14='GA55 Check & Edit'!$AT$17,'Master Data'!$D$18="Gazetted"),500,IF(AND('GA55 Check & Edit'!D14='GA55 Check & Edit'!$AT$17,'Master Data'!$D$18="Non-Gazetted"),250,"")))),"") ->  | Y14: =IFERROR(IF(D14="","",IF(AND(E14=""),"",IF(AND(D14=$AX$24),"",IF(AND(D14=$AX$25),"",IF(AND(D14=$AX$26),"",IF(AND(D14=$AX$27),"",IF(AND(D14=$AX$28),"",IF(AND(D14=$AX$29),"",IF(OR('Master Data'!$I$28='GA55 Check & Edit'!$AP$6,D14=""),"",$Y$7))))))))),"") -> 0 | Z14: =IFERROR(IF(OR('Master Data'!$I$28='GA55 Check & Edit'!$AP$6),"",IF(D14="","",IF(E14="","",VLOOKUP(D14,ram,9,0)))),"") -> 1500 | AA14: =IFERROR(IF(OR('Master Data'!$I$28='GA55 Check & Edit'!$AP$6,D14="",'Master Data'!$N$38=""),"",IF(AND(E14=""),"",IF('GA55 Check & Edit'!D14='GA55 Check & Edit'!$AT$9,'Master Data'!$N$38,""))),"") ->  | AB14: =IFERROR(IF(D14="","",IF(AND(O14=""),"",IF(AND(N14=""),SUM(P14:AA14),IF(AND('Master Data'!$H$18='GA55 Check & Edit'!$AO$5,'Master Data'!$I$30='GA55 Check & Edit'!$AN$6),SUM(P14:AA14)+N14,SUM(P14:AA14))))),"0") -> 17074 | AC14: 54577 | AS14: JUL | AT14: 2021-09-01 | AU14: L-7 | AW14: MAY | AX14: 2021-05-01 | AY14: 5 | BA14: =IF(AND('Master Data'!$E$36=""),"",IF(AND('Master Data'!$I$28='GA55 Check & Edit'!$AP$6),'GA55 Check & Edit'!$AZ$15,BU14)) -> 50800 | BB14: =IF(AND(AX14<$AZ$16),"",IF(AND(AX14>$AZ$17),"",BA14)) -> 50800 | BC14: =IF(AND('Master Data'!$E$36=""),"",ROUND(17%*BA14,0)) -> 8636 | BD14: =IF(BB14="","",BC14) -> 8636 | BE14: =IFERROR(IF(AND('Master Data'!$E$36=""),"",ROUND('Master Data'!$E$30%*BB14,0)),"") -> 4064 | BF14: ='Master Data'!D47 -> 1500 | BG14: =IF(AND('Master Data'!$I$28='GA55 Check & Edit'!$AP$6),"",IF(AND('Master Data'!$I$30='GA55 Check & Edit'!$AN$6,'Master Data'!$N$36='GA55 Check & Edit'!$AO$6),0,IF(AND('Master Data'!$I$30='GA55 Check & Edit'!$AN$6,'Master Data'!$N$36='GA55 Check & Edit'!$AO$5),'Master Data'!$J$43,IF(AND('Master Data'!$I$30='GA55 Check & Edit'!$AN$5),IF($AZ$15<18001,265,IF($AZ$15<33501,440,IF($AZ$15<54001,658,875))))))) -> 0 | BH14: =IFERROR(IF(OR('Master Data'!$I$28='GA55 Check & Edit'!$AP$6),"",'Master Data'!$G$43),"") -> 7000 | BI14: =IFERROR(IF(AND('Master Data'!$I$30='GA55 Check & Edit'!$AN$6),ROUND((E10)*0.1,0),IF(AND('Master Data'!$I$28='GA55 Check & Edit'!$AP$6),ROUND((E10+F10)*0.1,0),'Master Data'!$H$43)),"") -> 5080 | BJ14: =BA14 -> 50800 | BK14: 2021-05-01 | BL14: =IFERROR(IF('Master Data'!$E$36="","",IF('Master Data'!$F$40="","",IF(AND($AZ$17>$AZ$9),"",DATE(YEAR(BL13),MONTH(BL13)+1,DAY(BL13))))),"") -> 2021-05-01 | BM14: =IFERROR(IF('Master Data'!$E$36="","",IF('Master Data'!$F$40="","",IF(AND($AZ$17>$AZ$9),"",DATE(YEAR(BM13),MONTH(BM13)+1,DAY(BM13))))),"") -> 2021-05-01 | BN14: 2021-05-01 | BO14: 2021-05-01 | BQ14: 2021-05-01 | BS14: 52300 | BU14: =IF(AND('Master Data'!$I$38='GA55 Check & Edit'!AX14),'Master Data'!$I$36,BU13) -> 50800 | BX14: 1500
A15: 0 | B15: 8 | C15: 8 | D15: 2021-10-01 | E15: =IFERROR(IF(D15="","",IF(AND(BQ19=""),"",IF(AND('Master Data'!$I$28='GA55 Check & Edit'!$AP$6),VLOOKUP(D15,ram,13,0),VLOOKUP(D15,ram,4,0)))),"") -> 52300 | F15: =IFERROR(IF(D15="","",IF(D15=$AX$24,"",IF(AND(D15=$AX$25),$BC$25,IF(AND(D15=$AX$27),"",IF(AND(D15=$AX$28),"",IF(AND('Master Data'!$I$28='GA55 Check & Edit'!$AP$5),VLOOKUP(D15,ram,7,0),"")))))),"") -> 16213 | G15: =IFERROR(IF(D15="","",IF(D15=$AX$24,"",IF(AND(D15=$AX$25),"",IF(AND(D15=$AX$26),"",IF(AND(D15=$AX$27),"",IF(AND(D15=$AX$29),"",IF(AND('Master Data'!$I$28='GA55 Check & Edit'!$AP$6),"",VLOOKUP(D15,ram,8,0)))))))),"") -> 4707 | H15: =IFERROR(IF(D15="","",IF(AND(E15=""),"",IF(OR(D15=$AX$24,D15=$AX$25,D15=$AX$26,D15=$AX$27,D15=$AX$28,D15=$AX$29),"",IF(AND('Master Data'!$I$28='GA55 Check & Edit'!$AP$5),'Master Data'!$B$43,"")))),"") -> 0 | I15: =IFERROR(IF(D15="","",IF(AND(E15=""),"",IF(OR(D15=$AX$24,D15=$AX$25,D15=$AX$26,D15=$AX$27,D15=$AX$28,D15=$AX$29),"",IF(AND('Master Data'!$I$28='GA55 Check & Edit'!$AP$5,'Master Data'!$E$28='GA55 Check & Edit'!$AO$5),'Master Data'!$C$43,"0")))),"") -> 0 | J15: =IFERROR(IF(OR('Master Data'!$E$32=$AO$6,'Master Data'!$E$32=""),"",IF(D15="","",IF(AND(E15=""),"",IF(OR(D15=$AX$24,D15=$AX$25,D15=$AX$26,D15=$AX$27,D15=$AX$28,D15=$AX$29),"",IF(AND('Master Data'!$I$28='GA55 Check & Edit'!$AP$6),"",IF(AND('Master Data'!$I$32=$AR$9),$AS$6,IF(AND('Master Data'!$I$32=$AR$10),$AS$6,IF(AND('Master Data'!$I$32=$AR$11),$AS$6,IF(AND('Master Data'!$I$32=$AR$12),$AS$6,$AS$5))))))))),"") ->  | K15: =IFERROR(IF(D15="","",IF(AND(E15=""),"",IF(OR(D15=$AX$24,D15=$AX$25,D15=$AX$26,D15=$AX$27,D15=$AX$28,D15=$AX$29),"",IF(AND('Master Data'!$I$28='GA55 Check & Edit'!$AP$5),'Master Data'!$E$43,"")))),"") -> 0 | L15: =IFERROR(IF(D15="","",IF(AND(E15=""),"",IF(OR(D15=$AX$24,D15=$AX$25,D15=$AX$26,D15=$AX$27,D15=$AX$28,D15=$AX$29),"",IF(AND('Master Data'!$I$28='GA55 Check & Edit'!$AP$6),"",'Master Data'!$F$43)))),"") -> 0 | M15: =IFERROR(IF(D15="","",IF(AND('Master Data'!$I$28='GA55 Check & Edit'!$AP$6),"",IF(AND('Master Data'!$I$24='GA55 Check & Edit'!$AO$6),"",IF(AND(D15="Bonus"),VLOOKUP(D15,ram,4,0),"")))),"") ->  | N15: =IFERROR(IF(AND(D15=""),"",IF(AND(D15=$AX$25,'Master Data'!$I$30='GA55 Check & Edit'!$AN$6),ROUND((E15+F15)*0.1,0),IF(AND(D15=$AX$29,'Master Data'!$I$30='GA55 Check & Edit'!$AN$6),ROUND((F15)*0.1,0),IF(AND(D15=$AX$26,'Master Data'!$I$30='GA55 Check & Edit'!$AN$6),ROUND((F15)*0.1,0),IF(AND(D15=$AX$27,'Master Data'!$I$30='GA55 Check & Edit'!$AN$6),ROUND((E15+F15)*0.1,0),IF(AND('Master Data'!$I$30='GA55 Check & Edit'!$AN$5),"",IF(AND('Master Data'!$I$30='GA55 Check & Edit'!$AN$6,'Master Data'!$I$28='GA55 Check & Edit'!$AP$6),ROUND((E15)*0.1,0),ROUND((E15+F15)*0.1,0)))))))),"") -> 6851 | O15: =IF(D15="","",IF('Master Data'!$H$18='GA55 Check & Edit'!$AO$5,SUM(E15:N15),SUM(E15:M15))) -> 73220 | P15: =IFERROR(IF(OR('Master Data'!$I$28='GA55 Check & Edit'!$AP$6,D15=""),"",IF(AND(D15=$AX$24),"",IF(AND(D15=$AX$25),"",IF(AND(D15=$AX$26),"",IF(AND(D15=$AX$27),"",IF(AND(D15=$AX$28),"",IF(AND(D15=$AX$29),"",IF(AND(E15=""),"",VLOOKUP(D15,ram,11,0))))))))),"") -> 7000 | Q15: =IFERROR(IF(AND(D15="",E15=""),"",IF(AND(D15=$AX$25,'Master Data'!$I$30='GA55 Check & Edit'!$AN$6),ROUND((E15+F15)*0.1,0),IF(AND(D15=$AX$29,'Master Data'!$I$30='GA55 Check & Edit'!$AN$6),ROUND((F15)*0.1,0),IF(AND(D15=$AX$26,'Master Data'!$I$30='GA55 Check & Edit'!$AN$6),ROUND((F15)*0.1,0),IF(AND(D15=$AX$27,'Master Data'!$I$30='GA55 Check & Edit'!$AN$6),ROUND((E15+F15)*0.1,0),IF(AND('Master Data'!$I$30='GA55 Check & Edit'!$AN$6,'Master Data'!$I$28='GA55 Check & Edit'!$AP$6),ROUND((E15)*0.1,0),IF(AND('Master Data'!$I$30='GA55 Check & Edit'!$AN$6,'Master Data'!$I$28='GA55 Check & Edit'!$AP$5),ROUND((E15+F15)*0.1,0),IF(AND('Master Data'!$I$30='GA55 Check & Edit'!$AN$5,'Master Data'!$I$28='GA55 Check & Edit'!$AP$5),VLOOKUP(D15,ram,12,0))))))))),"") -> 6851 | R15: =IFERROR(IF(OR('Master Data'!$I$28='GA55 Check & Edit'!$AP$6,D15=""),"",IF(AND(D15=$AX$24),"",IF(AND(D15=$AX$25),"",IF(AND(D15=$AX$26),"",IF(AND(D15=$AX$27),"",IF(AND(D15=$AX$28),"",IF(AND(D15=$AX$29),"",IF(AND(D15=$AX$32),"",IF(AND(E15=""),"",'Master Data'!$I$43))))))))),"") -> 1880 | S15: =IFERROR(IF(OR('Master Data'!$I$28='GA55 Check & Edit'!$AP$6),"",IF(D15="","",IF(E15="","",IF(AND(D15=$AX$24),"",IF(AND(D15=$AX$25),"",IF(AND(D15=$AX$26),"",IF(AND(D15=$AX$27),"",IF(AND(D15=$AX$28),"",IF(AND(D15=$AX$29),"",VLOOKUP(D15,ram,10,0)))))))))),"") -> 0 | T15: =IFERROR(IF(OR('Master Data'!$I$28='GA55 Check & Edit'!$AP$6,D15=""),"",IF(AND(D15=$AX$24),"",IF(AND(D15=$AX$25),"",IF(AND(D15=$AX$26),"",IF(AND(D15=$AX$27),"",IF(AND(D15=$AX$28),"",IF(AND(D15=$AX$29),"",IF(AND(E15=""),"",'Master Data'!$K$43)))))))),"") -> 0 | U15: =IFERROR(IF(OR('Master Data'!$I$28='GA55 Check & Edit'!$AP$6,D15=""),"",IF(AND(D15=$AX$24),"",IF(AND(D15=$AX$25),"",IF(AND(D15=$AX$26),"",IF(AND(D15=$AX$27),"",IF(AND(D15=$AX$28),"",IF(AND(D15=$AX$29),"",IF(AND(E15=""),"",'Master Data'!$L$43)))))))),"") -> 0 | V15: =IFERROR(IF(OR('Master Data'!$I$28='GA55 Check & Edit'!$AP$6,D15=""),"",IF(AND(D15=$AX$24,'Master Data'!$I$28='GA55 Check & Edit'!$AP$5,'Master Data'!$I$30='GA55 Check & Edit'!$AN$6),ROUND(M15*50%,0),IF(AND(D15=$AX$25),"",IF(AND(D15=$AX$26,'Master Data'!$I$28='GA55 Check & Edit'!$AP$5,'Master Data'!$I$30='GA55 Check & Edit'!$AN$6),SUM(F15-N15),IF(AND(D15=$AX$27),"",IF(AND(D15=$AX$28),"",IF(AND(D15=$AX$29,'Master Data'!$I$28='GA55 Check & Edit'!$AP$5,'Master Data'!$I$30='GA55 Check & Edit'!$AN$6),SUM(F15-N15),IF(AND(E15=""),"",'Master Data'!$M$43)))))))),"") -> 0 | W15: =IFERROR(IF(OR('Master Data'!$I$28='GA55 Check & Edit'!$AP$6,D15=""),"",IF(AND(D15=$AX$24),"",IF(AND(D15=$AX$25),"",IF(AND(D15=$AX$26),"",IF(AND(D15=$AX$27),"",IF(AND(D15=$AX$28),"",IF(AND(D15=$AX$29),"",IF(AND(E15=""),"",'Master Data'!$O$43)))))))),"") -> 0 | X15: =IFERROR(IF(OR('Master Data'!$I$28='GA55 Check & Edit'!$AP$6,D15=""),"",IF(AND(E15=""),"",IF(AND('GA55 Check & Edit'!D15='GA55 Check & Edit'!$AT$17,'Master Data'!$D$18="Gazetted"),500,IF(AND('GA55 Check & Edit'!D15='GA55 Check & Edit'!$AT$17,'Master Data'!$D$18="Non-Gazetted"),250,"")))),"") ->  | Y15: =IFERROR(IF(D15="","",IF(AND(E15=""),"",IF(AND(D15=$AX$24),"",IF(AND(D15=$AX$25),"",IF(AND(D15=$AX$26),"",IF(AND(D15=$AX$27),"",IF(AND(D15=$AX$28),"",IF(AND(D15=$AX$29),"",IF(OR('Master Data'!$I$28='GA55 Check & Edit'!$AP$6,D15=""),"",$Y$7))))))))),"") -> 0 | Z15: =IFERROR(IF(OR('Master Data'!$I$28='GA55 Check & Edit'!$AP$6),"",IF(D15="","",IF(E15="","",VLOOKUP(D15,ram,9,0)))),"") -> 1500 | AA15: =IFERROR(IF(OR('Master Data'!$I$28='GA55 Check & Edit'!$AP$6,D15="",'Master Data'!$N$38=""),"",IF(AND(E15=""),"",IF('GA55 Check & Edit'!D15='GA55 Check & Edit'!$AT$9,'Master Data'!$N$38,""))),"") ->  | AB15: =IFERROR(IF(D15="","",IF(AND(O15=""),"",IF(AND(N15=""),SUM(P15:AA15),IF(AND('Master Data'!$H$18='GA55 Check & Edit'!$AO$5,'Master Data'!$I$30='GA55 Check & Edit'!$AN$6),SUM(P15:AA15)+N15,SUM(P15:AA15))))),"0") -> 17231 | AC15: 55989 | AS15: AUG | AT15: 2021-10-01 | AU15: L-8 | AW15: JUN | AX15: 2021-06-01 | AY15: 6 | AZ15: =IF(AND('Master Data'!E36=""),"",'Master Data'!E36) -> 50800 | BA15: =IF(AND('Master Data'!$E$36=""),"",IF(AND('Master Data'!$I$28='GA55 Check & Edit'!$AP$6),'GA55 Check & Edit'!$AZ$15,BU15)) -> 50800 | BB15: 50800 | BC15: =IF(AND('Master Data'!$E$36=""),"",ROUND(17%*BA15,0)) -> 8636 | BD15: =IF(BB15="","",BC15) -> 8636 | BE15: =IFERROR(IF(AND('Master Data'!$E$36=""),"",ROUND('Master Data'!$E$30%*BB15,0)),"") -> 4064 | BF15: ='Master Data'!E47 -> 1500 | BG15: =IF(AND('Master Data'!$I$28='GA55 Check & Edit'!$AP$6),"",IF(AND('Master Data'!$I$30='GA55 Check & Edit'!$AN$6,'Master Data'!$N$36='GA55 Check & Edit'!$AO$6),0,IF(AND('Master Data'!$I$30='GA55 Check & Edit'!$AN$6,'Master Data'!$N$36='GA55 Check & Edit'!$AO$5),'Master Data'!$J$43,IF(AND('Master Data'!$I$30='GA55 Check & Edit'!$AN$5),IF($AZ$15<18001,265,IF($AZ$15<33501,440,IF($AZ$15<54001,658,875))))))) -> 0 | BH15: =IFERROR(IF(OR('Master Data'!$I$28='GA55 Check & Edit'!$AP$6),"",'Master Data'!$G$43),"") -> 7000 | BI15: =IFERROR(IF(AND('Master Data'!$I$30='GA55 Check & Edit'!$AN$6),ROUND((E11)*0.1,0),IF(AND('Master Data'!$I$28='GA55 Check & Edit'!$AP$6),ROUND((E11+F11)*0.1,0),'Master Data'!$H$43)),"") -> 5080 | BJ15: 50800 | BK15: 2021-06-01 | BL15: =IFERROR(IF('Master Data'!$E$36="","",IF('Master Data'!$F$40="","",IF(AND($AZ$17>$AZ$9),"",DATE(YEAR(BL14),MONTH(BL14)+1,DAY(BL14))))),"") -> 2021-06-01 | BM15: =IFERROR(IF('Master Data'!$E$36="","",IF('Master Data'!$F$40="","",IF(AND($AZ$17>$AZ$9),"",DATE(YEAR(BM14),MONTH(BM14)+1,DAY(BM14))))),"") -> 2021-06-01 | BN15: 2021-06-01 | BO15: 2021-06-01 | BQ15: 2021-06-01 | BS15: 52300 | BU15: =IF(AND('Master Data'!$I$38='GA55 Check & Edit'!AX15),'Master Data'!$I$36,BU14) -> 50800 | BX15: 1500
A16: 1 | B16: 9 | C16: 9 | D16: 2021-11-01 | E16: =IFERROR(IF(D16="","",IF(AND(BQ20=""),"",IF(AND('Master Data'!$I$28='GA55 Check & Edit'!$AP$6),VLOOKUP(D16,ram,13,0),VLOOKUP(D16,ram,4,0)))),"") -> 52300 | F16: =IFERROR(IF(D16="","",IF(D16=$AX$24,"",IF(AND(D16=$AX$25),$BC$25,IF(AND(D16=$AX$27),"",IF(AND(D16=$AX$28),"",IF(AND('Master Data'!$I$28='GA55 Check & Edit'!$AP$5),VLOOKUP(D16,ram,7,0),"")))))),"") -> 16213 | G16: =IFERROR(IF(D16="","",IF(D16=$AX$24,"",IF(AND(D16=$AX$25),"",IF(AND(D16=$AX$26),"",IF(AND(D16=$AX$27),"",IF(AND(D16=$AX$29),"",IF(AND('Master Data'!$I$28='GA55 Check & Edit'!$AP$6),"",VLOOKUP(D16,ram,8,0)))))))),"") -> 4707 | H16: =IFERROR(IF(D16="","",IF(AND(E16=""),"",IF(OR(D16=$AX$24,D16=$AX$25,D16=$AX$26,D16=$AX$27,D16=$AX$28,D16=$AX$29),"",IF(AND('Master Data'!$I$28='GA55 Check & Edit'!$AP$5),'Master Data'!$B$43,"")))),"") -> 0 | I16: =IFERROR(IF(D16="","",IF(AND(E16=""),"",IF(OR(D16=$AX$24,D16=$AX$25,D16=$AX$26,D16=$AX$27,D16=$AX$28,D16=$AX$29),"",IF(AND('Master Data'!$I$28='GA55 Check & Edit'!$AP$5,'Master Data'!$E$28='GA55 Check & Edit'!$AO$5),'Master Data'!$C$43,"0")))),"") -> 0 | J16: =IFERROR(IF(OR('Master Data'!$E$32=$AO$6,'Master Data'!$E$32=""),"",IF(D16="","",IF(AND(E16=""),"",IF(OR(D16=$AX$24,D16=$AX$25,D16=$AX$26,D16=$AX$27,D16=$AX$28,D16=$AX$29),"",IF(AND('Master Data'!$I$28='GA55 Check & Edit'!$AP$6),"",IF(AND('Master Data'!$I$32=$AR$9),$AS$6,IF(AND('Master Data'!$I$32=$AR$10),$AS$6,IF(AND('Master Data'!$I$32=$AR$11),$AS$6,IF(AND('Master Data'!$I$32=$AR$12),$AS$6,$AS$5))))))))),"") ->  | K16: =IFERROR(IF(D16="","",IF(AND(E16=""),"",IF(OR(D16=$AX$24,D16=$AX$25,D16=$AX$26,D16=$AX$27,D16=$AX$28,D16=$AX$29),"",IF(AND('Master Data'!$I$28='GA55 Check & Edit'!$AP$5),'Master Data'!$E$43,"")))),"") -> 0 | L16: =IFERROR(IF(D16="","",IF(AND(E16=""),"",IF(OR(D16=$AX$24,D16=$AX$25,D16=$AX$26,D16=$AX$27,D16=$AX$28,D16=$AX$29),"",IF(AND('Master Data'!$I$28='GA55 Check & Edit'!$AP$6),"",'Master Data'!$F$43)))),"") -> 0 | M16: =IFERROR(IF(D16="","",IF(AND('Master Data'!$I$28='GA55 Check & Edit'!$AP$6),"",IF(AND('Master Data'!$I$24='GA55 Check & Edit'!$AO$6),"",IF(AND(D16="Bonus"),VLOOKUP(D16,ram,4,0),"")))),"") ->  | N16: =IFERROR(IF(AND(D16=""),"",IF(AND(D16=$AX$25,'Master Data'!$I$30='GA55 Check & Edit'!$AN$6),ROUND((E16+F16)*0.1,0),IF(AND(D16=$AX$29,'Master Data'!$I$30='GA55 Check & Edit'!$AN$6),ROUND((F16)*0.1,0),IF(AND(D16=$AX$26,'Master Data'!$I$30='GA55 Check & Edit'!$AN$6),ROUND((F16)*0.1,0),IF(AND(D16=$AX$27,'Master Data'!$I$30='GA55 Check & Edit'!$AN$6),ROUND((E16+F16)*0.1,0),IF(AND('Master Data'!$I$30='GA55 Check & Edit'!$AN$5),"",IF(AND('Master Data'!$I$30='GA55 Check & Edit'!$AN$6,'Master Data'!$I$28='GA55 Check & Edit'!$AP$6),ROUND((E16)*0.1,0),ROUND((E16+F16)*0.1,0)))))))),"") -> 6851 | O16: =IF(D16="","",IF('Master Data'!$H$18='GA55 Check & Edit'!$AO$5,SUM(E16:N16),SUM(E16:M16))) -> 73220 | P16: =IFERROR(IF(OR('Master Data'!$I$28='GA55 Check & Edit'!$AP$6,D16=""),"",IF(AND(D16=$AX$24),"",IF(AND(D16=$AX$25),"",IF(AND(D16=$AX$26),"",IF(AND(D16=$AX$27),"",IF(AND(D16=$AX$28),"",IF(AND(D16=$AX$29),"",IF(AND(E16=""),"",VLOOKUP(D16,ram,11,0))))))))),"") -> 7000 | Q16: =IFERROR(IF(AND(D16="",E16=""),"",IF(AND(D16=$AX$25,'Master Data'!$I$30='GA55 Check & Edit'!$AN$6),ROUND((E16+F16)*0.1,0),IF(AND(D16=$AX$29,'Master Data'!$I$30='GA55 Check & Edit'!$AN$6),ROUND((F16)*0.1,0),IF(AND(D16=$AX$26,'Master Data'!$I$30='GA55 Check & Edit'!$AN$6),ROUND((F16)*0.1,0),IF(AND(D16=$AX$27,'Master Data'!$I$30='GA55 Check & Edit'!$AN$6),ROUND((E16+F16)*0.1,0),IF(AND('Master Data'!$I$30='GA55 Check & Edit'!$AN$6,'Master Data'!$I$28='GA55 Check & Edit'!$AP$6),ROUND((E16)*0.1,0),IF(AND('Master Data'!$I$30='GA55 Check & Edit'!$AN$6,'Master Data'!$I$28='GA55 Check & Edit'!$AP$5),ROUND((E16+F16)*0.1,0),IF(AND('Master Data'!$I$30='GA55 Check & Edit'!$AN$5,'Master Data'!$I$28='GA55 Check & Edit'!$AP$5),VLOOKUP(D16,ram,12,0))))))))),"") -> 6851 | R16: =IFERROR(IF(OR('Master Data'!$I$28='GA55 Check & Edit'!$AP$6,D16=""),"",IF(AND(D16=$AX$24),"",IF(AND(D16=$AX$25),"",IF(AND(D16=$AX$26),"",IF(AND(D16=$AX$27),"",IF(AND(D16=$AX$28),"",IF(AND(D16=$AX$29),"",IF(AND(D16=$AX$32),"",IF(AND(E16=""),"",'Master Data'!$I$43))))))))),"") -> 1880 | S16: =IFERROR(IF(OR('Master Data'!$I$28='GA55 Check & Edit'!$AP$6),"",IF(D16="","",IF(E16="","",IF(AND(D16=$AX$24),"",IF(AND(D16=$AX$25),"",IF(AND(D16=$AX$26),"",IF(AND(D16=$AX$27),"",IF(AND(D16=$AX$28),"",IF(AND(D16=$AX$29),"",VLOOKUP(D16,ram,10,0)))))))))),"") -> 0 | T16: =IFERROR(IF(OR('Master Data'!$I$28='GA55 Check & Edit'!$AP$6,D16=""),"",IF(AND(D16=$AX$24),"",IF(AND(D16=$AX$25),"",IF(AND(D16=$AX$26),"",IF(AND(D16=$AX$27),"",IF(AND(D16=$AX$28),"",IF(AND(D16=$AX$29),"",IF(AND(E16=""),"",'Master Data'!$K$43)))))))),"") -> 0 | U16: =IFERROR(IF(OR('Master Data'!$I$28='GA55 Check & Edit'!$AP$6,D16=""),"",IF(AND(D16=$AX$24),"",IF(AND(D16=$AX$25),"",IF(AND(D16=$AX$26),"",IF(AND(D16=$AX$27),"",IF(AND(D16=$AX$28),"",IF(AND(D16=$AX$29),"",IF(AND(E16=""),"",'Master Data'!$L$43)))))))),"") -> 0 | V16: =IFERROR(IF(OR('Master Data'!$I$28='GA55 Check & Edit'!$AP$6,D16=""),"",IF(AND(D16=$AX$24,'Master Data'!$I$28='GA55 Check & Edit'!$AP$5,'Master Data'!$I$30='GA55 Check & Edit'!$AN$6),ROUND(M16*50%,0),IF(AND(D16=$AX$25),"",IF(AND(D16=$AX$26,'Master Data'!$I$28='GA55 Check & Edit'!$AP$5,'Master Data'!$I$30='GA55 Check & Edit'!$AN$6),SUM(F16-N16),IF(AND(D16=$AX$27),"",IF(AND(D16=$AX$28),"",IF(AND(D16=$AX$29,'Master Data'!$I$28='GA55 Check & Edit'!$AP$5,'Master Data'!$I$30='GA55 Check & Edit'!$AN$6),SUM(F16-N16),IF(AND(E16=""),"",'Master Data'!$M$43)))))))),"") -> 0 | W16: =IFERROR(IF(OR('Master Data'!$I$28='GA55 Check & Edit'!$AP$6,D16=""),"",IF(AND(D16=$AX$24),"",IF(AND(D16=$AX$25),"",IF(AND(D16=$AX$26),"",IF(AND(D16=$AX$27),"",IF(AND(D16=$AX$28),"",IF(AND(D16=$AX$29),"",IF(AND(E16=""),"",'Master Data'!$O$43)))))))),"") -> 0 | X16: =IFERROR(IF(OR('Master Data'!$I$28='GA55 Check & Edit'!$AP$6,D16=""),"",IF(AND(E16=""),"",IF(AND('GA55 Check & Edit'!D16='GA55 Check & Edit'!$AT$17,'Master Data'!$D$18="Gazetted"),500,IF(AND('GA55 Check & Edit'!D16='GA55 Check & Edit'!$AT$17,'Master Data'!$D$18="Non-Gazetted"),250,"")))),"") ->  | Y16: =IFERROR(IF(D16="","",IF(AND(E16=""),"",IF(AND(D16=$AX$24),"",IF(AND(D16=$AX$25),"",IF(AND(D16=$AX$26),"",IF(AND(D16=$AX$27),"",IF(AND(D16=$AX$28),"",IF(AND(D16=$AX$29),"",IF(OR('Master Data'!$I$28='GA55 Check & Edit'!$AP$6,D16=""),"",$Y$7))))))))),"") -> 0 | Z16: =IFERROR(IF(OR('Master Data'!$I$28='GA55 Check & Edit'!$AP$6),"",IF(D16="","",IF(E16="","",VLOOKUP(D16,ram,9,0)))),"") -> 1500 | AA16: =IFERROR(IF(OR('Master Data'!$I$28='GA55 Check & Edit'!$AP$6,D16="",'Master Data'!$N$38=""),"",IF(AND(E16=""),"",IF('GA55 Check & Edit'!D16='GA55 Check & Edit'!$AT$9,'Master Data'!$N$38,""))),"") ->  | AB16: =IFERROR(IF(D16="","",IF(AND(O16=""),"",IF(AND(N16=""),SUM(P16:AA16),IF(AND('Master Data'!$H$18='GA55 Check & Edit'!$AO$5,'Master Data'!$I$30='GA55 Check & Edit'!$AN$6),SUM(P16:AA16)+N16,SUM(P16:AA16))))),"0") -> 17231 | AC16: 55989 | AS16: SEP | AT16: 2021-11-01 | AU16: L-9 | AW16: JUL | AX16: 2021-07-01 | AY16: 7 | AZ16: =IF(AND('Master Data'!F40=""),"",'Master Data'!F40) -> 2021-03-01 | BA16: =IF(AND('Master Data'!$E$36=""),"",IF(AND('Master Data'!$I$28='GA55 Check & Edit'!$AP$6),'GA55 Check & Edit'!$AZ$15,BU16)) -> 52300 | BB16: 52300 | BC16: =IF(AND('Master Data'!$E$36=""),"",IF(AND('Master Data'!$N$26='GA55 Check & Edit'!$AO$5),ROUND(28%*BA16,0),ROUND(17%*BA16,0))) -> 14644 | BD16: 14644 | BE16: =IFERROR(IF(AND('Master Data'!$E$36=""),"",ROUND('Master Data'!$E$30%*BB16,0)),"") -> 4184 | BF16: ='Master Data'!F47 -> 1500 | BG16: =IF(AND('Master Data'!$I$28='GA55 Check & Edit'!$AP$6),"",IF(AND('Master Data'!$I$30='GA55 Check & Edit'!$AN$6,'Master Data'!$N$36='GA55 Check & Edit'!$AO$6),0,IF(AND('Master Data'!$I$30='GA55 Check & Edit'!$AN$6,'Master Data'!$N$36='GA55 Check & Edit'!$AO$5),'Master Data'!$J$43,IF(AND('Master Data'!$I$30='GA55 Check & Edit'!$AN$5),IF($AZ$15<18001,265,IF($AZ$15<33501,440,IF($AZ$15<54001,658,875))))))) -> 0 | BH16: =IFERROR(IF(OR('Master Data'!$I$28='GA55 Check & Edit'!$AP$6),"",'Master Data'!$G$43),"") -> 7000 | BI16: =IFERROR(IF(AND('Master Data'!$I$30='GA55 Check & Edit'!$AN$6),ROUND((E12)*0.1,0),IF(AND('Master Data'!$I$28='GA55 Check & Edit'!$AP$6),ROUND((E12+F12)*0.1,0),'Master Data'!$H$43)),"") -> 5230 | BJ16: =BA16 -> 52300 | BK16: 2021-07-01 | BL16: =IFERROR(IF('Master Data'!$E$36="","",IF('Master Data'!$F$40="","",IF(AND($AZ$17>$AZ$9),"",DATE(YEAR(BL15),MONTH(BL15)+1,DAY(BL15))))),"") -> 2021-07-01 | BM16: =IFERROR(IF('Master Data'!$E$36="","",IF('Master Data'!$F$40="","",IF(AND($AZ$17>$AZ$9),"",DATE(YEAR(BM15),MONTH(BM15)+1,DAY(BM15))))),"") -> 2021-07-01 | BN16: 2021-07-01 | BO16: 2021-07-01 | BQ16: 2021-07-01 | BS16: 52300 | BU16: =IF(AND('Master Data'!$I$38='GA55 Check & Edit'!AX16),'Master Data'!$I$36,AZ18) -> 52300 | BX16: 1500
A17: 0 | B17: 10 | C17: 10 | D17: =IFERROR(IF(BO21="","",BO21),"") -> 2021-12-01 | E17: =IFERROR(IF(D17="","",IF(AND(BQ21=""),"",IF(AND('Master Data'!$I$28='GA55 Check & Edit'!$AP$6),VLOOKUP(D17,ram,13,0),VLOOKUP(D17,ram,4,0)))),"") -> 52300 | F17: =IFERROR(IF(D17="","",IF(D17=$AX$24,"",IF(AND(D17=$AX$25),$BC$25,IF(AND(D17=$AX$27),"",IF(AND(D17=$AX$28),"",IF(AND('Master Data'!$I$28='GA55 Check & Edit'!$AP$5),VLOOKUP(D17,ram,7,0),"")))))),"") -> 16213 | G17: =IFERROR(IF(D17="","",IF(D17=$AX$24,"",IF(AND(D17=$AX$25),"",IF(AND(D17=$AX$26),"",IF(AND(D17=$AX$27),"",IF(AND(D17=$AX$29),"",IF(AND('Master Data'!$I$28='GA55 Check & Edit'!$AP$6),"",VLOOKUP(D17,ram,8,0)))))))),"") -> 4707 | H17: =IFERROR(IF(D17="","",IF(AND(E17=""),"",IF(OR(D17=$AX$24,D17=$AX$25,D17=$AX$26,D17=$AX$27,D17=$AX$28,D17=$AX$29),"",IF(AND('Master Data'!$I$28='GA55 Check & Edit'!$AP$5),'Master Data'!$B$43,"")))),"") -> 0 | I17: =IFERROR(IF(D17="","",IF(AND(E17=""),"",IF(OR(D17=$AX$24,D17=$AX$25,D17=$AX$26,D17=$AX$27,D17=$AX$28,D17=$AX$29),"",IF(AND('Master Data'!$I$28='GA55 Check & Edit'!$AP$5,'Master Data'!$E$28='GA55 Check & Edit'!$AO$5),'Master Data'!$C$43,"0")))),"") -> 0 | J17: =IFERROR(IF(OR('Master Data'!$E$32=$AO$6,'Master Data'!$E$32=""),"",IF(D17="","",IF(AND(E17=""),"",IF(OR(D17=$AX$24,D17=$AX$25,D17=$AX$26,D17=$AX$27,D17=$AX$28,D17=$AX$29),"",IF(AND('Master Data'!$I$28='GA55 Check & Edit'!$AP$6),"",IF(AND('Master Data'!$I$32=$AR$9),$AS$6,IF(AND('Master Data'!$I$32=$AR$10),$AS$6,IF(AND('Master Data'!$I$32=$AR$11),$AS$6,IF(AND('Master Data'!$I$32=$AR$12),$AS$6,$AS$5))))))))),"") ->  | K17: =IFERROR(IF(D17="","",IF(AND(E17=""),"",IF(OR(D17=$AX$24,D17=$AX$25,D17=$AX$26,D17=$AX$27,D17=$AX$28,D17=$AX$29),"",IF(AND('Master Data'!$I$28='GA55 Check & Edit'!$AP$5),'Master Data'!$E$43,"")))),"") -> 0 | L17: =IFERROR(IF(D17="","",IF(AND(E17=""),"",IF(OR(D17=$AX$24,D17=$AX$25,D17=$AX$26,D17=$AX$27,D17=$AX$28,D17=$AX$29),"",IF(AND('Master Data'!$I$28='GA55 Check & Edit'!$AP$6),"",'Master Data'!$F$43)))),"") -> 0 | M17: =IFERROR(IF(D17="","",IF(AND('Master Data'!$I$28='GA55 Check & Edit'!$AP$6),"",IF(AND('Master Data'!$I$24='GA55 Check & Edit'!$AO$6),"",IF(AND(D17="Bonus"),VLOOKUP(D17,ram,4,0),"")))),"") ->  | N17: =IFERROR(IF(AND(D17=""),"",IF(AND(D17=$AX$25,'Master Data'!$I$30='GA55 Check & Edit'!$AN$6),ROUND((E17+F17)*0.1,0),IF(AND(D17=$AX$29,'Master Data'!$I$30='GA55 Check & Edit'!$AN$6),ROUND((F17)*0.1,0),IF(AND(D17=$AX$26,'Master Data'!$I$30='GA55 Check & Edit'!$AN$6),ROUND((F17)*0.1,0),IF(AND(D17=$AX$27,'Master Data'!$I$30='GA55 Check & Edit'!$AN$6),ROUND((E17+F17)*0.1,0),IF(AND('Master Data'!$I$30='GA55 Check & Edit'!$AN$5),"",IF(AND('Master Data'!$I$30='GA55 Check & Edit'!$AN$6,'Master Data'!$I$28='GA55 Check & Edit'!$AP$6),ROUND((E17)*0.1,0),ROUND((E17+F17)*0.1,0)))))))),"") -> 6851 | O17: =IF(D17="","",IF('Master Data'!$H$18='GA55 Check & Edit'!$AO$5,SUM(E17:N17),SUM(E17:M17))) -> 73220 | P17: =IFERROR(IF(OR('Master Data'!$I$28='GA55 Check & Edit'!$AP$6,D17=""),"",IF(AND(D17=$AX$24),"",IF(AND(D17=$AX$25),"",IF(AND(D17=$AX$26),"",IF(AND(D17=$AX$27),"",IF(AND(D17=$AX$28),"",IF(AND(D17=$AX$29),"",IF(AND(E17=""),"",VLOOKUP(D17,ram,11,0))))))))),"") -> 7000 | Q17: =IFERROR(IF(AND(D17="",E17=""),"",IF(AND(D17=$AX$25,'Master Data'!$I$30='GA55 Check & Edit'!$AN$6),ROUND((E17+F17)*0.1,0),IF(AND(D17=$AX$29,'Master Data'!$I$30='GA55 Check & Edit'!$AN$6),ROUND((F17)*0.1,0),IF(AND(D17=$AX$26,'Master Data'!$I$30='GA55 Check & Edit'!$AN$6),ROUND((F17)*0.1,0),IF(AND(D17=$AX$27,'Master Data'!$I$30='GA55 Check & Edit'!$AN$6),ROUND((E17+F17)*0.1,0),IF(AND('Master Data'!$I$30='GA55 Check & Edit'!$AN$6,'Master Data'!$I$28='GA55 Check & Edit'!$AP$6),ROUND((E17)*0.1,0),IF(AND('Master Data'!$I$30='GA55 Check & Edit'!$AN$6,'Master Data'!$I$28='GA55 Check & Edit'!$AP$5),ROUND((E17+F17)*0.1,0),IF(AND('Master Data'!$I$30='GA55 Check & Edit'!$AN$5,'Master Data'!$I$28='GA55 Check & Edit'!$AP$5),VLOOKUP(D17,ram,12,0))))))))),"") -> 6851 | R17: =IFERROR(IF(OR('Master Data'!$I$28='GA55 Check & Edit'!$AP$6,D17=""),"",IF(AND(D17=$AX$24),"",IF(AND(D17=$AX$25),"",IF(AND(D17=$AX$26),"",IF(AND(D17=$AX$27),"",IF(AND(D17=$AX$28),"",IF(AND(D17=$AX$29),"",IF(AND(D17=$AX$32),"",IF(AND(E17=""),"",'Master Data'!$I$43))))))))),"") -> 1880 | S17: =IFERROR(IF(OR('Master Data'!$I$28='GA55 Check & Edit'!$AP$6),"",IF(D17="","",IF(E17="","",IF(AND(D17=$AX$24),"",IF(AND(D17=$AX$25),"",IF(AND(D17=$AX$26),"",IF(AND(D17=$AX$27),"",IF(AND(D17=$AX$28),"",IF(AND(D17=$AX$29),"",VLOOKUP(D17,ram,10,0)))))))))),"") -> 0 | T17: =IFERROR(IF(OR('Master Data'!$I$28='GA55 Check & Edit'!$AP$6,D17=""),"",IF(AND(D17=$AX$24),"",IF(AND(D17=$AX$25),"",IF(AND(D17=$AX$26),"",IF(AND(D17=$AX$27),"",IF(AND(D17=$AX$28),"",IF(AND(D17=$AX$29),"",IF(AND(E17=""),"",'Master Data'!$K$43)))))))),"") -> 0 | U17: =IFERROR(IF(OR('Master Data'!$I$28='GA55 Check & Edit'!$AP$6,D17=""),"",IF(AND(D17=$AX$24),"",IF(AND(D17=$AX$25),"",IF(AND(D17=$AX$26),"",IF(AND(D17=$AX$27),"",IF(AND(D17=$AX$28),"",IF(AND(D17=$AX$29),"",IF(AND(E17=""),"",'Master Data'!$L$43)))))))),"") -> 0 | V17: =IFERROR(IF(OR('Master Data'!$I$28='GA55 Check & Edit'!$AP$6,D17=""),"",IF(AND(D17=$AX$24,'Master Data'!$I$28='GA55 Check & Edit'!$AP$5,'Master Data'!$I$30='GA55 Check & Edit'!$AN$6),ROUND(M17*50%,0),IF(AND(D17=$AX$25),"",IF(AND(D17=$AX$26,'Master Data'!$I$28='GA55 Check & Edit'!$AP$5,'Master Data'!$I$30='GA55 Check & Edit'!$AN$6),SUM(F17-N17),IF(AND(D17=$AX$27),"",IF(AND(D17=$AX$28),"",IF(AND(D17=$AX$29,'Master Data'!$I$28='GA55 Check & Edit'!$AP$5,'Master Data'!$I$30='GA55 Check & Edit'!$AN$6),SUM(F17-N17),IF(AND(E17=""),"",'Master Data'!$M$43)))))))),"") -> 0 | W17: =IFERROR(IF(OR('Master Data'!$I$28='GA55 Check & Edit'!$AP$6,D17=""),"",IF(AND(D17=$AX$24),"",IF(AND(D17=$AX$25),"",IF(AND(D17=$AX$26),"",IF(AND(D17=$AX$27),"",IF(AND(D17=$AX$28),"",IF(AND(D17=$AX$29),"",IF(AND(E17=""),"",'Master Data'!$O$43)))))))),"") -> 0 | X17: =IFERROR(IF(OR('Master Data'!$I$28='GA55 Check & Edit'!$AP$6,D17=""),"",IF(AND(E17=""),"",IF(AND('GA55 Check & Edit'!D17='GA55 Check & Edit'!$AT$17,'Master Data'!$D$18="Gazetted"),500,IF(AND('GA55 Check & Edit'!D17='GA55 Check & Edit'!$AT$17,'Master Data'!$D$18="Non-Gazetted"),250,"")))),"") -> 250 | Y17: =IFERROR(IF(D17="","",IF(AND(E17=""),"",IF(AND(D17=$AX$24),"",IF(AND(D17=$AX$25),"",IF(AND(D17=$AX$26),"",IF(AND(D17=$AX$27),"",IF(AND(D17=$AX$28),"",IF(AND(D17=$AX$29),"",IF(OR('Master Data'!$I$28='GA55 Check & Edit'!$AP$6,D17=""),"",$Y$7))))))))),"") -> 0 | Z17: =IFERROR(IF(OR('Master Data'!$I$28='GA55 Check & Edit'!$AP$6),"",IF(D17="","",IF(E17="","",VLOOKUP(D17,ram,9,0)))),"") -> 1500 | AA17: =IFERROR(IF(OR('Master Data'!$I$28='GA55 Check & Edit'!$AP$6,D17="",'Master Data'!$N$38=""),"",IF(AND(E17=""),"",IF('GA55 Check & Edit'!D17='GA55 Check & Edit'!$AT$9,'Master Data'!$N$38,""))),"") ->  | AB17: =IFERROR(IF(D17="","",IF(AND(O17=""),"",IF(AND(N17=""),SUM(P17:AA17),IF(AND('Master Data'!$H$18='GA55 Check & Edit'!$AO$5,'Master Data'!$I$30='GA55 Check & Edit'!$AN$6),SUM(P17:AA17)+N17,SUM(P17:AA17))))),"0") -> 17481 | AC17: 55739 | AS17: OCT | AT17: 2021-12-01 | AU17: L-10 | AW17: AUG | AX17: 2021-08-01 | AY17: 8 | AZ17: =IF(AND('Master Data'!H40=""),"",'Master Data'!H40) -> 2022-02-01 | BA17: =IF(AND('Master Data'!$E$36=""),"",IF(AND('Master Data'!$I$28='GA55 Check & Edit'!$AP$6),'GA55 Check & Edit'!$AZ$15,BU17)) -> 52300 | BB17: 52300 | BC17: =IF(AND('Master Data'!$E$36=""),"",IF(AND('Master Data'!$N$26='GA55 Check & Edit'!$AO$5),ROUND(28%*BA17,0),ROUND(17%*BA17,0))) -> 14644 | BD17: 14644 | BE17: =IFERROR(IF(AND('Master Data'!$E$36=""),"",ROUND('Master Data'!$E$34%*BB17,0)),"") -> 4707 | BF17: ='Master Data'!G47 -> 1500 | BG17: =IF(AND('Master Data'!$I$28='GA55 Check & Edit'!$AP$6),"",IF(AND('Master Data'!$I$30='GA55 Check & Edit'!$AN$6,'Master Data'!$N$36='GA55 Check & Edit'!$AO$6),0,IF(AND('Master Data'!$I$30='GA55 Check & Edit'!$AN$6,'Master Data'!$N$36='GA55 Check & Edit'!$AO$5),'Master Data'!$J$43,IF(AND('Master Data'!$I$30='GA55 Check & Edit'!$AN$5),IF($AZ$15<18001,265,IF($AZ$15<33501,440,IF($AZ$15<54001,658,875))))))) -> 0 | BH17: =IFERROR(IF(OR('Master Data'!$I$28='GA55 Check & Edit'!$AP$6),"",'Master Data'!$G$43),"") -> 7000 | BI17: =IFERROR(IF(AND('Master Data'!$I$30='GA55 Check & Edit'!$AN$6),ROUND((E13)*0.1,0),IF(AND('Master Data'!$I$28='GA55 Check & Edit'!$AP$6),ROUND((E13+F13)*0.1,0),'Master Data'!$H$43)),"") -> 5230 | BJ17: =BJ16 -> 52300 | BK17: 2021-08-01 | BL17: =IFERROR(IF('Master Data'!$E$36="","",IF('Master Data'!$F$40="","",IF(AND($AZ$17>$AZ$9),"",DATE(YEAR(BL16),MONTH(BL16)+1,DAY(BL16))))),"") -> 2021-08-01 | BM17: =IFERROR(IF('Master Data'!$E$36="","",IF('Master Data'!$F$40="","",IF(AND($AZ$17>$AZ$9),"",DATE(YEAR(BM16),MONTH(BM16)+1,DAY(BM16))))),"") -> 2021-08-01 | BN17: 2021-08-01 | BO17: 2021-08-01 | BQ17: 2021-08-01 | BS17: 52300 | BU17: =IF(AND('Master Data'!$I$38='GA55 Check & Edit'!AX17),'Master Data'!$I$36,BU16) -> 52300 | BX17: 1500
A18: 1 | B18: 11 | C18: 11 | D18: 2022-01-01 | E18: =IFERROR(IF(D18="","",IF(AND(BQ22=""),"",IF(AND('Master Data'!$I$28='GA55 Check & Edit'!$AP$6),VLOOKUP(D18,ram,13,0),VLOOKUP(D18,ram,4,0)))),"") -> 52300 | F18: =IFERROR(IF(D18="","",IF(D18=$AX$24,"",IF(AND(D18=$AX$25),$BC$25,IF(AND(D18=$AX$27),"",IF(AND(D18=$AX$28),"",IF(AND('Master Data'!$I$28='GA55 Check & Edit'!$AP$5),VLOOKUP(D18,ram,7,0),"")))))),"") -> 16213 | G18: =IFERROR(IF(D18="","",IF(D18=$AX$24,"",IF(AND(D18=$AX$25),"",IF(AND(D18=$AX$26),"",IF(AND(D18=$AX$27),"",IF(AND(D18=$AX$29),"",IF(AND('Master Data'!$I$28='GA55 Check & Edit'!$AP$6),"",VLOOKUP(D18,ram,8,0)))))))),"") -> 4707 | H18: =IFERROR(IF(D18="","",IF(AND(E18=""),"",IF(OR(D18=$AX$24,D18=$AX$25,D18=$AX$26,D18=$AX$27,D18=$AX$28,D18=$AX$29),"",IF(AND('Master Data'!$I$28='GA55 Check & Edit'!$AP$5),'Master Data'!$B$43,"")))),"") -> 0 | I18: =IFERROR(IF(D18="","",IF(AND(E18=""),"",IF(OR(D18=$AX$24,D18=$AX$25,D18=$AX$26,D18=$AX$27,D18=$AX$28,D18=$AX$29),"",IF(AND('Master Data'!$I$28='GA55 Check & Edit'!$AP$5,'Master Data'!$E$28='GA55 Check & Edit'!$AO$5),'Master Data'!$C$43,"0")))),"") -> 0 | J18: =IFERROR(IF(OR('Master Data'!$E$32=$AO$6,'Master Data'!$E$32=""),"",IF(D18="","",IF(AND(E18=""),"",IF(OR(D18=$AX$24,D18=$AX$25,D18=$AX$26,D18=$AX$27,D18=$AX$28,D18=$AX$29),"",IF(AND('Master Data'!$I$28='GA55 Check & Edit'!$AP$6),"",IF(AND('Master Data'!$I$32=$AR$9),$AS$6,IF(AND('Master Data'!$I$32=$AR$10),$AS$6,IF(AND('Master Data'!$I$32=$AR$11),$AS$6,IF(AND('Master Data'!$I$32=$AR$12),$AS$6,$AS$5))))))))),"") ->  | K18: =IFERROR(IF(D18="","",IF(AND(E18=""),"",IF(OR(D18=$AX$24,D18=$AX$25,D18=$AX$26,D18=$AX$27,D18=$AX$28,D18=$AX$29),"",IF(AND('Master Data'!$I$28='GA55 Check & Edit'!$AP$5),'Master Data'!$E$43,"")))),"") -> 0 | L18: =IFERROR(IF(D18="","",IF(AND(E18=""),"",IF(OR(D18=$AX$24,D18=$AX$25,D18=$AX$26,D18=$AX$27,D18=$AX$28,D18=$AX$29),"",IF(AND('Master Data'!$I$28='GA55 Check & Edit'!$AP$6),"",'Master Data'!$F$43)))),"") -> 0 | M18: =IFERROR(IF(D18="","",IF(AND('Master Data'!$I$28='GA55 Check & Edit'!$AP$6),"",IF(AND('Master Data'!$I$24='GA55 Check & Edit'!$AO$6),"",IF(AND(D18="Bonus"),VLOOKUP(D18,ram,4,0),"")))),"") ->  | N18: =IFERROR(IF(AND(D18=""),"",IF(AND(D18=$AX$25,'Master Data'!$I$30='GA55 Check & Edit'!$AN$6),ROUND((E18+F18)*0.1,0),IF(AND(D18=$AX$29,'Master Data'!$I$30='GA55 Check & Edit'!$AN$6),ROUND((F18)*0.1,0),IF(AND(D18=$AX$26,'Master Data'!$I$30='GA55 Check & Edit'!$AN$6),ROUND((F18)*0.1,0),IF(AND(D18=$AX$27,'Master Data'!$I$30='GA55 Check & Edit'!$AN$6),ROUND((E18+F18)*0.1,0),IF(AND('Master Data'!$I$30='GA55 Check & Edit'!$AN$5),"",IF(AND('Master Data'!$I$30='GA55 Check & Edit'!$AN$6,'Master Data'!$I$28='GA55 Check & Edit'!$AP$6),ROUND((E18)*0.1,0),ROUND((E18+F18)*0.1,0)))))))),"") -> 6851 | O18: =IF(D18="","",IF('Master Data'!$H$18='GA55 Check & Edit'!$AO$5,SUM(E18:N18),SUM(E18:M18))) -> 73220 | P18: =IFERROR(IF(OR('Master Data'!$I$28='GA55 Check & Edit'!$AP$6,D18=""),"",IF(AND(D18=$AX$24),"",IF(AND(D18=$AX$25),"",IF(AND(D18=$AX$26),"",IF(AND(D18=$AX$27),"",IF(AND(D18=$AX$28),"",IF(AND(D18=$AX$29),"",IF(AND(E18=""),"",VLOOKUP(D18,ram,11,0))))))))),"") -> 7000 | Q18: =IFERROR(IF(AND(D18="",E18=""),"",IF(AND(D18=$AX$25,'Master Data'!$I$30='GA55 Check & Edit'!$AN$6),ROUND((E18+F18)*0.1,0),IF(AND(D18=$AX$29,'Master Data'!$I$30='GA55 Check & Edit'!$AN$6),ROUND((F18)*0.1,0),IF(AND(D18=$AX$26,'Master Data'!$I$30='GA55 Check & Edit'!$AN$6),ROUND((F18)*0.1,0),IF(AND(D18=$AX$27,'Master Data'!$I$30='GA55 Check & Edit'!$AN$6),ROUND((E18+F18)*0.1,0),IF(AND('Master Data'!$I$30='GA55 Check & Edit'!$AN$6,'Master Data'!$I$28='GA55 Check & Edit'!$AP$6),ROUND((E18)*0.1,0),IF(AND('Master Data'!$I$30='GA55 Check & Edit'!$AN$6,'Master Data'!$I$28='GA55 Check & Edit'!$AP$5),ROUND((E18+F18)*0.1,0),IF(AND('Master Data'!$I$30='GA55 Check & Edit'!$AN$5,'Master Data'!$I$28='GA55 Check & Edit'!$AP$5),VLOOKUP(D18,ram,12,0))))))))),"") -> 6851 | R18: =IFERROR(IF(OR('Master Data'!$I$28='GA55 Check & Edit'!$AP$6,D18=""),"",IF(AND(D18=$AX$24),"",IF(AND(D18=$AX$25),"",IF(AND(D18=$AX$26),"",IF(AND(D18=$AX$27),"",IF(AND(D18=$AX$28),"",IF(AND(D18=$AX$29),"",IF(AND(D18=$AX$32),"",IF(AND(E18=""),"",'Master Data'!$I$43))))))))),"") -> 1880 | S18: =IFERROR(IF(OR('Master Data'!$I$28='GA55 Check & Edit'!$AP$6),"",IF(D18="","",IF(E18="","",IF(AND(D18=$AX$24),"",IF(AND(D18=$AX$25),"",IF(AND(D18=$AX$26),"",IF(AND(D18=$AX$27),"",IF(AND(D18=$AX$28),"",IF(AND(D18=$AX$29),"",VLOOKUP(D18,ram,10,0)))))))))),"") -> 0 | T18: =IFERROR(IF(OR('Master Data'!$I$28='GA55 Check & Edit'!$AP$6,D18=""),"",IF(AND(D18=$AX$24),"",IF(AND(D18=$AX$25),"",IF(AND(D18=$AX$26),"",IF(AND(D18=$AX$27),"",IF(AND(D18=$AX$28),"",IF(AND(D18=$AX$29),"",IF(AND(E18=""),"",'Master Data'!$K$43)))))))),"") -> 0 | U18: =IFERROR(IF(OR('Master Data'!$I$28='GA55 Check & Edit'!$AP$6,D18=""),"",IF(AND(D18=$AX$24),"",IF(AND(D18=$AX$25),"",IF(AND(D18=$AX$26),"",IF(AND(D18=$AX$27),"",IF(AND(D18=$AX$28),"",IF(AND(D18=$AX$29),"",IF(AND(E18=""),"",'Master Data'!$L$43)))))))),"") -> 0 | V18: =IFERROR(IF(OR('Master Data'!$I$28='GA55 Check & Edit'!$AP$6,D18=""),"",IF(AND(D18=$AX$24,'Master Data'!$I$28='GA55 Check & Edit'!$AP$5,'Master Data'!$I$30='GA55 Check & Edit'!$AN$6),ROUND(M18*50%,0),IF(AND(D18=$AX$25),"",IF(AND(D18=$AX$26,'Master Data'!$I$28='GA55 Check & Edit'!$AP$5,'Master Data'!$I$30='GA55 Check & Edit'!$AN$6),SUM(F18-N18),IF(AND(D18=$AX$27),"",IF(AND(D18=$AX$28),"",IF(AND(D18=$AX$29,'Master Data'!$I$28='GA55 Check & Edit'!$AP$5,'Master Data'!$I$30='GA55 Check & Edit'!$AN$6),SUM(F18-N18),IF(AND(E18=""),"",'Master Data'!$M$43)))))))),"") -> 0 | W18: =IFERROR(IF(OR('Master Data'!$I$28='GA55 Check & Edit'!$AP$6,D18=""),"",IF(AND(D18=$AX$24),"",IF(AND(D18=$AX$25),"",IF(AND(D18=$AX$26),"",IF(AND(D18=$AX$27),"",IF(AND(D18=$AX$28),"",IF(AND(D18=$AX$29),"",IF(AND(E18=""),"",'Master Data'!$O$43)))))))),"") -> 0 | X18: =IFERROR(IF(OR('Master Data'!$I$28='GA55 Check & Edit'!$AP$6,D18=""),"",IF(AND(E18=""),"",IF(AND('GA55 Check & Edit'!D18='GA55 Check & Edit'!$AT$17,'Master Data'!$D$18="Gazetted"),500,IF(AND('GA55 Check & Edit'!D18='GA55 Check & Edit'!$AT$17,'Master Data'!$D$18="Non-Gazetted"),250,"")))),"") ->  | Y18: =IFERROR(IF(D18="","",IF(AND(E18=""),"",IF(AND(D18=$AX$24),"",IF(AND(D18=$AX$25),"",IF(AND(D18=$AX$26),"",IF(AND(D18=$AX$27),"",IF(AND(D18=$AX$28),"",IF(AND(D18=$AX$29),"",IF(OR('Master Data'!$I$28='GA55 Check & Edit'!$AP$6,D18=""),"",$Y$7))))))))),"") -> 0 | Z18: =IFERROR(IF(OR('Master Data'!$I$28='GA55 Check & Edit'!$AP$6),"",IF(D18="","",IF(E18="","",VLOOKUP(D18,ram,9,0)))),"") -> 1500 | AA18: =IFERROR(IF(OR('Master Data'!$I$28='GA55 Check & Edit'!$AP$6,D18="",'Master Data'!$N$38=""),"",IF(AND(E18=""),"",IF('GA55 Check & Edit'!D18='GA55 Check & Edit'!$AT$9,'Master Data'!$N$38,""))),"") ->  | AB18: =IFERROR(IF(D18="","",IF(AND(O18=""),"",IF(AND(N18=""),SUM(P18:AA18),IF(AND('Master Data'!$H$18='GA55 Check & Edit'!$AO$5,'Master Data'!$I$30='GA55 Check & Edit'!$AN$6),SUM(P18:AA18)+N18,SUM(P18:AA18))))),"0") -> 17231 | AC18: 55989 | AS18: NOV | AT18: 2022-01-01 | AU18: L-11 | AW18: SEP | AX18: 2021-09-01 | AY18: 9 | AZ18: =IF(OR('Master Data'!I36="",'Master Data'!I38=""),MROUND(AZ15*1.03,100),IF('Master Data'!I38<'GA55 Check & Edit'!AX16,MROUND('Master Data'!I36*1.03,100),MROUND(AZ15*1.03,100))) -> 52300 | BA18: =IF(AND('Master Data'!$E$36=""),"",IF(AND('Master Data'!$I$28='GA55 Check & Edit'!$AP$6),'GA55 Check & Edit'!$AZ$15,BU18)) -> 52300 | BB18: 52300 | BC18: =IF(AND('Master Data'!$E$36=""),"",IF(AND('Master Data'!$N$26='GA55 Check & Edit'!$AO$5),ROUND(28%*BA18,0),ROUND(17%*BA18,0))) -> 14644 | BD18: 14644 | BE18: =IFERROR(IF(AND('Master Data'!$E$36=""),"",ROUND('Master Data'!$E$34%*BB18,0)),"") -> 4707 | BF18: ='Master Data'!H47 -> 1500 | BG18: =IF(AND('Master Data'!$I$28='GA55 Check & Edit'!$AP$6),"",IF(AND('Master Data'!$I$30='GA55 Check & Edit'!$AN$6,'Master Data'!$N$36='GA55 Check & Edit'!$AO$6),0,IF(AND('Master Data'!$I$30='GA55 Check & Edit'!$AN$6,'Master Data'!$N$36='GA55 Check & Edit'!$AO$5),'Master Data'!$J$43,IF(AND('Master Data'!$I$30='GA55 Check & Edit'!$AN$5),IF($AZ$15<18001,265,IF($AZ$15<33501,440,IF($AZ$15<54001,658,875))))))) -> 0 | BH18: =IFERROR(IF(OR('Master Data'!$I$28='GA55 Check & Edit'!$AP$6),"",'Master Data'!$G$43),"") -> 7000 | BI18: =IFERROR(IF(AND('Master Data'!$I$30='GA55 Check & Edit'!$AN$6),ROUND((E14)*0.1,0),IF(AND('Master Data'!$I$28='GA55 Check & Edit'!$AP$6),ROUND((E14+F14)*0.1,0),'Master Data'!$H$43)),"") -> 5230 | BJ18: =BJ17 -> 52300 | BK18: 2021-09-01 | BL18: =IFERROR(IF('Master Data'!$E$36="","",IF('Master Data'!$F$40="","",IF(AND($AZ$17>$AZ$9),"",DATE(YEAR(BL17),MONTH(BL17)+1,DAY(BL17))))),"") -> 2021-09-01 | BM18: =IFERROR(IF('Master Data'!$E$36="","",IF('Master Data'!$F$40="","",IF(AND($AZ$17>$AZ$9),"",DATE(YEAR(BM17),MONTH(BM17)+1,DAY(BM17))))),"") -> 2021-09-01 | BN18: 2021-09-01 | BO18: 2021-09-01 | BQ18: 2021-09-01 | BU18: =IF(AND('Master Data'!$I$38='GA55 Check & Edit'!AX18),'Master Data'!$I$36,BU17) -> 52300 | BX18: 1500
A19: 0 | B19: 12 | C19: 12 | D19: =IFERROR(IF(BO23="","",BO23),"") -> 2022-02-01 | E19: =IFERROR(IF(D19="","",IF(AND(BQ23=""),"",IF(AND('Master Data'!$I$28='GA55 Check & Edit'!$AP$6),VLOOKUP(D19,ram,13,0),VLOOKUP(D19,ram,4,0)))),"") -> 52300 | F19: =IFERROR(IF(D19="","",IF(D19=$AX$24,"",IF(AND(D19=$AX$25),$BC$25,IF(AND(D19=$AX$27),"",IF(AND(D19=$AX$28),"",IF(AND('Master Data'!$I$28='GA55 Check & Edit'!$AP$5),VLOOKUP(D19,ram,7,0),"")))))),"") -> 16213 | G19: =IFERROR(IF(D19="","",IF(D19=$AX$24,"",IF(AND(D19=$AX$25),"",IF(AND(D19=$AX$26),"",IF(AND(D19=$AX$27),"",IF(AND(D19=$AX$29),"",IF(AND('Master Data'!$I$28='GA55 Check & Edit'!$AP$6),"",VLOOKUP(D19,ram,8,0)))))))),"") -> 4707 | H19: =IFERROR(IF(D19="","",IF(AND(E19=""),"",IF(OR(D19=$AX$24,D19=$AX$25,D19=$AX$26,D19=$AX$27,D19=$AX$28,D19=$AX$29),"",IF(AND('Master Data'!$I$28='GA55 Check & Edit'!$AP$5),'Master Data'!$B$43,"")))),"") -> 0 | I19: =IFERROR(IF(D19="","",IF(AND(E19=""),"",IF(OR(D19=$AX$24,D19=$AX$25,D19=$AX$26,D19=$AX$27,D19=$AX$28,D19=$AX$29),"",IF(AND('Master Data'!$I$28='GA55 Check & Edit'!$AP$5,'Master Data'!$E$28='GA55 Check & Edit'!$AO$5),'Master Data'!$C$43,"0")))),"") -> 0 | J19: =IFERROR(IF(OR('Master Data'!$E$32=$AO$6,'Master Data'!$E$32=""),"",IF(D19="","",IF(AND(E19=""),"",IF(OR(D19=$AX$24,D19=$AX$25,D19=$AX$26,D19=$AX$27,D19=$AX$28,D19=$AX$29),"",IF(AND('Master Data'!$I$28='GA55 Check & Edit'!$AP$6),"",IF(AND('Master Data'!$I$32=$AR$9),$AS$6,IF(AND('Master Data'!$I$32=$AR$10),$AS$6,IF(AND('Master Data'!$I$32=$AR$11),$AS$6,IF(AND('Master Data'!$I$32=$AR$12),$AS$6,$AS$5))))))))),"") ->  | K19: =IFERROR(IF(D19="","",IF(AND(E19=""),"",IF(OR(D19=$AX$24,D19=$AX$25,D19=$AX$26,D19=$AX$27,D19=$AX$28,D19=$AX$29),"",IF(AND('Master Data'!$I$28='GA55 Check & Edit'!$AP$5),'Master Data'!$E$43,"")))),"") -> 0 | L19: =IFERROR(IF(D19="","",IF(AND(E19=""),"",IF(OR(D19=$AX$24,D19=$AX$25,D19=$AX$26,D19=$AX$27,D19=$AX$28,D19=$AX$29),"",IF(AND('Master Data'!$I$28='GA55 Check & Edit'!$AP$6),"",'Master Data'!$F$43)))),"") -> 0 | M19: =IFERROR(IF(D19="","",IF(AND('Master Data'!$I$28='GA55 Check & Edit'!$AP$6),"",IF(AND('Master Data'!$I$24='GA55 Check & Edit'!$AO$6),"",IF(AND(D19="Bonus"),VLOOKUP(D19,ram,4,0),"")))),"") ->  | N19: =IFERROR(IF(AND(D19=""),"",IF(AND(D19=$AX$25,'Master Data'!$I$30='GA55 Check & Edit'!$AN$6),ROUND((E19+F19)*0.1,0),IF(AND(D19=$AX$29,'Master Data'!$I$30='GA55 Check & Edit'!$AN$6),ROUND((F19)*0.1,0),IF(AND(D19=$AX$26,'Master Data'!$I$30='GA55 Check & Edit'!$AN$6),ROUND((F19)*0.1,0),IF(AND(D19=$AX$27,'Master Data'!$I$30='GA55 Check & Edit'!$AN$6),ROUND((E19+F19)*0.1,0),IF(AND('Master Data'!$I$30='GA55 Check & Edit'!$AN$5),"",IF(AND('Master Data'!$I$30='GA55 Check & Edit'!$AN$6,'Master Data'!$I$28='GA55 Check & Edit'!$AP$6),ROUND((E19)*0.1,0),ROUND((E19+F19)*0.1,0)))))))),"") -> 6851 | O19: =IF(D19="","",IF('Master Data'!$H$18='GA55 Check & Edit'!$AO$5,SUM(E19:N19),SUM(E19:M19))) -> 73220 | P19: =IFERROR(IF(OR('Master Data'!$I$28='GA55 Check & Edit'!$AP$6,D19=""),"",IF(AND(D19=$AX$24),"",IF(AND(D19=$AX$25),"",IF(AND(D19=$AX$26),"",IF(AND(D19=$AX$27),"",IF(AND(D19=$AX$28),"",IF(AND(D19=$AX$29),"",IF(AND(E19=""),"",VLOOKUP(D19,ram,11,0))))))))),"") -> 7000 | Q19: =IFERROR(IF(AND(D19="",E19=""),"",IF(AND(D19=$AX$25,'Master Data'!$I$30='GA55 Check & Edit'!$AN$6),ROUND((E19+F19)*0.1,0),IF(AND(D19=$AX$29,'Master Data'!$I$30='GA55 Check & Edit'!$AN$6),ROUND((F19)*0.1,0),IF(AND(D19=$AX$26,'Master Data'!$I$30='GA55 Check & Edit'!$AN$6),ROUND((F19)*0.1,0),IF(AND(D19=$AX$27,'Master Data'!$I$30='GA55 Check & Edit'!$AN$6),ROUND((E19+F19)*0.1,0),IF(AND('Master Data'!$I$30='GA55 Check & Edit'!$AN$6,'Master Data'!$I$28='GA55 Check & Edit'!$AP$6),ROUND((E19)*0.1,0),IF(AND('Master Data'!$I$30='GA55 Check & Edit'!$AN$6,'Master Data'!$I$28='GA55 Check & Edit'!$AP$5),ROUND((E19+F19)*0.1,0),IF(AND('Master Data'!$I$30='GA55 Check & Edit'!$AN$5,'Master Data'!$I$28='GA55 Check & Edit'!$AP$5),VLOOKUP(D19,ram,12,0))))))))),"") -> 6851 | R19: =IFERROR(IF(OR('Master Data'!$I$28='GA55 Check & Edit'!$AP$6,D19=""),"",IF(AND(D19=$AX$24),"",IF(AND(D19=$AX$25),"",IF(AND(D19=$AX$26),"",IF(AND(D19=$AX$27),"",IF(AND(D19=$AX$28),"",IF(AND(D19=$AX$29),"",IF(AND(D19=$AX$32),"",IF(AND(E19=""),"",'Master Data'!$I$43))))))))),"") -> 1880 | S19: =IFERROR(IF(OR('Master Data'!$I$28='GA55 Check & Edit'!$AP$6),"",IF(D19="","",IF(E19="","",IF(AND(D19=$AX$24),"",IF(AND(D19=$AX$25),"",IF(AND(D19=$AX$26),"",IF(AND(D19=$AX$27),"",IF(AND(D19=$AX$28),"",IF(AND(D19=$AX$29),"",VLOOKUP(D19,ram,10,0)))))))))),"") -> 0 | T19: =IFERROR(IF(OR('Master Data'!$I$28='GA55 Check & Edit'!$AP$6,D19=""),"",IF(AND(D19=$AX$24),"",IF(AND(D19=$AX$25),"",IF(AND(D19=$AX$26),"",IF(AND(D19=$AX$27),"",IF(AND(D19=$AX$28),"",IF(AND(D19=$AX$29),"",IF(AND(E19=""),"",'Master Data'!$K$43)))))))),"") -> 0 | U19: =IFERROR(IF(OR('Master Data'!$I$28='GA55 Check & Edit'!$AP$6,D19=""),"",IF(AND(D19=$AX$24),"",IF(AND(D19=$AX$25),"",IF(AND(D19=$AX$26),"",IF(AND(D19=$AX$27),"",IF(AND(D19=$AX$28),"",IF(AND(D19=$AX$29),"",IF(AND(E19=""),"",'Master Data'!$L$43)))))))),"") -> 0 | V19: =IFERROR(IF(OR('Master Data'!$I$28='GA55 Check & Edit'!$AP$6,D19=""),"",IF(AND(D19=$AX$24,'Master Data'!$I$28='GA55 Check & Edit'!$AP$5,'Master Data'!$I$30='GA55 Check & Edit'!$AN$6),ROUND(M19*50%,0),IF(AND(D19=$AX$25),"",IF(AND(D19=$AX$26,'Master Data'!$I$28='GA55 Check & Edit'!$AP$5,'Master Data'!$I$30='GA55 Check & Edit'!$AN$6),SUM(F19-N19),IF(AND(D19=$AX$27),"",IF(AND(D19=$AX$28),"",IF(AND(D19=$AX$29,'Master Data'!$I$28='GA55 Check & Edit'!$AP$5,'Master Data'!$I$30='GA55 Check & Edit'!$AN$6),SUM(F19-N19),IF(AND(E19=""),"",'Master Data'!$M$43)))))))),"") -> 0 | W19: =IFERROR(IF(OR('Master Data'!$I$28='GA55 Check & Edit'!$AP$6,D19=""),"",IF(AND(D19=$AX$24),"",IF(AND(D19=$AX$25),"",IF(AND(D19=$AX$26),"",IF(AND(D19=$AX$27),"",IF(AND(D19=$AX$28),"",IF(AND(D19=$AX$29),"",IF(AND(E19=""),"",'Master Data'!$O$43)))))))),"") -> 0 | X19: =IFERROR(IF(OR('Master Data'!$I$28='GA55 Check & Edit'!$AP$6,D19=""),"",IF(AND(E19=""),"",IF(AND('GA55 Check & Edit'!D19='GA55 Check & Edit'!$AT$17,'Master Data'!$D$18="Gazetted"),500,IF(AND('GA55 Check & Edit'!D19='GA55 Check & Edit'!$AT$17,'Master Data'!$D$18="Non-Gazetted"),250,"")))),"") ->  | Y19: =IFERROR(IF(D19="","",IF(AND(E19=""),"",IF(AND(D19=$AX$24),"",IF(AND(D19=$AX$25),"",IF(AND(D19=$AX$26),"",IF(AND(D19=$AX$27),"",IF(AND(D19=$AX$28),"",IF(AND(D19=$AX$29),"",IF(OR('Master Data'!$I$28='GA55 Check & Edit'!$AP$6,D19=""),"",$Y$7))))))))),"") -> 0 | Z19: =IFERROR(IF(OR('Master Data'!$I$28='GA55 Check & Edit'!$AP$6),"",IF(D19="","",IF(E19="","",VLOOKUP(D19,ram,9,0)))),"") -> 0 | AA19: =IFERROR(IF(OR('Master Data'!$I$28='GA55 Check & Edit'!$AP$6,D19="",'Master Data'!$N$38=""),"",IF(AND(E19=""),"",IF('GA55 Check & Edit'!D19='GA55 Check & Edit'!$AT$9,'Master Data'!$N$38,""))),"") ->  | AB19: =IFERROR(IF(D19="","",IF(AND(O19=""),"",IF(AND(N19=""),SUM(P19:AA19),IF(AND('Master Data'!$H$18='GA55 Check & Edit'!$AO$5,'Master Data'!$I$30='GA55 Check & Edit'!$AN$6),SUM(P19:AA19)+N19,SUM(P19:AA19))))),"0") -> 15731 | AC19: 57489 | AS19: DEC | AT19: 2022-02-01 | AU19: L-12 | AW19: OCT | AX19: 2021-10-01 | AY19: 10 | BA19: =IF(AND('Master Data'!$E$36=""),"",IF(AND('Master Data'!$I$28='GA55 Check & Edit'!$AP$6),'GA55 Check & Edit'!$AZ$15,BU19)) -> 52300 | BB19: =IF(AND(AX19<$AZ$16),"",IF(AND(AX19>$AZ$17),"",BA19)) -> 52300 | BC19: =IF(AND('Master Data'!$E$36=""),"",IF(AND('Master Data'!$N$26='GA55 Check & Edit'!$AO$5),ROUND(31%*BA19,0),ROUND(17%*BA19,0))) -> 16213 | BD19: =IF(BB19="","",BC19) -> 16213 | BE19: =IFERROR(IF(AND('Master Data'!$E$36=""),"",ROUND('Master Data'!$E$34%*BB19,0)),"") -> 4707 | BF19: ='Master Data'!I47 -> 1500 | BG19: =IF(AND('Master Data'!$I$28='GA55 Check & Edit'!$AP$6),"",IF(AND('Master Data'!$I$30='GA55 Check & Edit'!$AN$6,'Master Data'!$N$36='GA55 Check & Edit'!$AO$6),0,IF(AND('Master Data'!$I$30='GA55 Check & Edit'!$AN$6,'Master Data'!$N$36='GA55 Check & Edit'!$AO$5),'Master Data'!$J$43,IF(AND('Master Data'!$I$30='GA55 Check & Edit'!$AN$5),IF($AZ$15<18001,265,IF($AZ$15<33501,440,IF($AZ$15<54001,658,875))))))) -> 0 | BH19: =IFERROR(IF(OR('Master Data'!$I$28='GA55 Check & Edit'!$AP$6),"",'Master Data'!$G$43),"") -> 7000 | BI19: =IFERROR(IF(AND('Master Data'!$I$30='GA55 Check & Edit'!$AN$6),ROUND((E15)*0.1,0),IF(AND('Master Data'!$I$28='GA55 Check & Edit'!$AP$6),ROUND((E15+F15)*0.1,0),'Master Data'!$H$43)),"") -> 5230 | BJ19: 52300 | BK19: 2021-10-01 | BL19: =IFERROR(IF('Master Data'!$E$36="","",IF('Master Data'!$F$40="","",IF(AND($AZ$17>$AZ$9),"",DATE(YEAR(BL18),MONTH(BL18)+1,DAY(BL18))))),"") -> 2021-10-01 | BM19: =IFERROR(IF('Master Data'!$E$36="","",IF('Master Data'!$F$40="","",IF(AND($AZ$17>$AZ$9),"",DATE(YEAR(BM18),MONTH(BM18)+1,DAY(BM18))))),"") -> 2021-10-01 | BN19: 2021-10-01 | BO19: 2021-10-01 | BQ19: 2021-10-01 | BU19: =IF(AND('Master Data'!$I$38='GA55 Check & Edit'!AX19),'Master Data'!$I$36,BU18) -> 52300 | BX19: 1500
A20: 1 | B20: =IF(LEN(D20)>=3,B19+1,0) -> 13 | C20: 13 | D20: Bonus | E20: =IFERROR(IF(D20="","",IF(AND(BQ24=""),"",IF(AND('Master Data'!$I$28='GA55 Check & Edit'!$AP$6),VLOOKUP(D20,ram,13,0),VLOOKUP(D20,ram,4,0)))),"") ->  | F20: =IFERROR(IF(D20="","",IF(D20=$AX$24,"",IF(AND(D20=$AX$25),$BC$25,IF(AND(D20=$AX$27),"",IF(AND(D20=$AX$28),"",IF(AND('Master Data'!$I$28='GA55 Check & Edit'!$AP$5),VLOOKUP(D20,ram,7,0),"")))))),"") ->  | G20: =IFERROR(IF(D20="","",IF(D20=$AX$24,"",IF(AND(D20=$AX$25),"",IF(AND(D20=$AX$26),"",IF(AND(D20=$AX$27),"",IF(AND(D20=$AX$29),"",IF(AND('Master Data'!$I$28='GA55 Check & Edit'!$AP$6),"",VLOOKUP(D20,ram,8,0)))))))),"") ->  | H20: =IFERROR(IF(D20="","",IF(AND(E20=""),"",IF(OR(D20=$AX$24,D20=$AX$25,D20=$AX$26,D20=$AX$27,D20=$AX$28,D20=$AX$29),"",IF(AND('Master Data'!$I$28='GA55 Check & Edit'!$AP$5),'Master Data'!$B$43,"")))),"") ->  | I20: =IFERROR(IF(D20="","",IF(AND(E20=""),"",IF(OR(D20=$AX$24,D20=$AX$25,D20=$AX$26,D20=$AX$27,D20=$AX$28,D20=$AX$29),"",IF(AND('Master Data'!$I$28='GA55 Check & Edit'!$AP$5,'Master Data'!$E$28='GA55 Check & Edit'!$AO$5),'Master Data'!$C$43,"0")))),"") ->  | J20: =IFERROR(IF(OR('Master Data'!$E$32=$AO$6,'Master Data'!$E$32=""),"",IF(D20="","",IF(AND(E20=""),"",IF(OR(D20=$AX$24,D20=$AX$25,D20=$AX$26,D20=$AX$27,D20=$AX$28,D20=$AX$29),"",IF(AND('Master Data'!$I$28='GA55 Check & Edit'!$AP$6),"",IF(AND('Master Data'!$I$32=$AR$9),$AS$6,IF(AND('Master Data'!$I$32=$AR$10),$AS$6,IF(AND('Master Data'!$I$32=$AR$11),$AS$6,IF(AND('Master Data'!$I$32=$AR$12),$AS$6,$AS$5))))))))),"") ->  | K20: =IFERROR(IF(D20="","",IF(AND(E20=""),"",IF(OR(D20=$AX$24,D20=$AX$25,D20=$AX$26,D20=$AX$27,D20=$AX$28,D20=$AX$29),"",IF(AND('Master Data'!$I$28='GA55 Check & Edit'!$AP$5),'Master Data'!$E$43,"")))),"") ->  | L20: =IFERROR(IF(D20="","",IF(AND(E20=""),"",IF(OR(D20=$AX$24,D20=$AX$25,D20=$AX$26,D20=$AX$27,D20=$AX$28,D20=$AX$29),"",IF(AND('Master Data'!$I$28='GA55 Check & Edit'!$AP$6),"",'Master Data'!$F$43)))),"") ->  | M20: =IFERROR(IF(D20="","",IF(AND('Master Data'!$I$28='GA55 Check & Edit'!$AP$6),"",IF(AND('Master Data'!$I$24='GA55 Check & Edit'!$AO$6),"",IF(AND(D20="Bonus"),VLOOKUP(D20,ram,4,0),"")))),"") -> 6774 | N20: =IFERROR(IF(AND(D20=""),"",IF(AND(D20=$AX$25,'Master Data'!$I$30='GA55 Check & Edit'!$AN$6),ROUND((E20+F20)*0.1,0),IF(AND(D20=$AX$29,'Master Data'!$I$30='GA55 Check & Edit'!$AN$6),ROUND((F20)*0.1,0),IF(AND(D20=$AX$26,'Master Data'!$I$30='GA55 Check & Edit'!$AN$6),ROUND((F20)*0.1,0),IF(AND(D20=$AX$27,'Master Data'!$I$30='GA55 Check & Edit'!$AN$6),ROUND((E20+F20)*0.1,0),IF(AND('Master Data'!$I$30='GA55 Check & Edit'!$AN$5),"",IF(AND('Master Data'!$I$30='GA55 Check & Edit'!$AN$6,'Master Data'!$I$28='GA55 Check & Edit'!$AP$6),ROUND((E20)*0.1,0),ROUND((E20+F20)*0.1,0)))))))),"") ->  | O20: =IF(D20="","",IF('Master Data'!$H$18='GA55 Check & Edit'!$AO$5,SUM(E20:N20),SUM(E20:M20))) -> 6774 | P20: =IFERROR(IF(OR('Master Data'!$I$28='GA55 Check & Edit'!$AP$6,D20=""),"",IF(AND(D20=$AX$24),"",IF(AND(D20=$AX$25),"",IF(AND(D20=$AX$26),"",IF(AND(D20=$AX$27),"",IF(AND(D20=$AX$28),"",IF(AND(D20=$AX$29),"",IF(AND(E20=""),"",VLOOKUP(D20,ram,11,0))))))))),"") ->  | Q20: =IFERROR(IF(AND(D20="",E20=""),"",IF(AND(D20=$AX$25,'Master Data'!$I$30='GA55 Check & Edit'!$AN$6),ROUND((E20+F20)*0.1,0),IF(AND(D20=$AX$29,'Master Data'!$I$30='GA55 Check & Edit'!$AN$6),ROUND((F20)*0.1,0),IF(AND(D20=$AX$26,'Master Data'!$I$30='GA55 Check & Edit'!$AN$6),ROUND((F20)*0.1,0),IF(AND(D20=$AX$27,'Master Data'!$I$30='GA55 Check & Edit'!$AN$6),ROUND((E20+F20)*0.1,0),IF(AND('Master Data'!$I$30='GA55 Check & Edit'!$AN$6,'Master Data'!$I$28='GA55 Check & Edit'!$AP$6),ROUND((E20)*0.1,0),IF(AND('Master Data'!$I$30='GA55 Check & Edit'!$AN$6,'Master Data'!$I$28='GA55 Check & Edit'!$AP$5),ROUND((E20+F20)*0.1,0),IF(AND('Master Data'!$I$30='GA55 Check & Edit'!$AN$5,'Master Data'!$I$28='GA55 Check & Edit'!$AP$5),VLOOKUP(D20,ram,12,0))))))))),"") ->  | R20: =IFERROR(IF(OR('Master Data'!$I$28='GA55 Check & Edit'!$AP$6,D20=""),"",IF(AND(D20=$AX$24),"",IF(AND(D20=$AX$25),"",IF(AND(D20=$AX$26),"",IF(AND(D20=$AX$27),"",IF(AND(D20=$AX$28),"",IF(AND(D20=$AX$29),"",IF(AND(D20=$AX$32),"",IF(AND(E20=""),"",'Master Data'!$I$43))))))))),"") ->  | S20: =IFERROR(IF(OR('Master Data'!$I$28='GA55 Check & Edit'!$AP$6),"",IF(D20="","",IF(E20="","",IF(AND(D20=$AX$24),"",IF(AND(D20=$AX$25),"",IF(AND(D20=$AX$26),"",IF(AND(D20=$AX$27),"",IF(AND(D20=$AX$28),"",IF(AND(D20=$AX$29),"",VLOOKUP(D20,ram,10,0)))))))))),"") ->  | T20: =IFERROR(IF(OR('Master Data'!$I$28='GA55 Check & Edit'!$AP$6,D20=""),"",IF(AND(D20=$AX$24),"",IF(AND(D20=$AX$25),"",IF(AND(D20=$AX$26),"",IF(AND(D20=$AX$27),"",IF(AND(D20=$AX$28),"",IF(AND(D20=$AX$29),"",IF(AND(E20=""),"",'Master Data'!$K$43)))))))),"") ->  | U20: =IFERROR(IF(OR('Master Data'!$I$28='GA55 Check & Edit'!$AP$6,D20=""),"",IF(AND(D20=$AX$24),"",IF(AND(D20=$AX$25),"",IF(AND(D20=$AX$26),"",IF(AND(D20=$AX$27),"",IF(AND(D20=$AX$28),"",IF(AND(D20=$AX$29),"",IF(AND(E20=""),"",'Master Data'!$L$43)))))))),"") ->  | V20: =IFERROR(IF(OR('Master Data'!$I$28='GA55 Check & Edit'!$AP$6,D20=""),"",IF(AND(D20=$AX$24,'Master Data'!$I$28='GA55 Check & Edit'!$AP$5,'Master Data'!$I$30='GA55 Check & Edit'!$AN$6),ROUND(M20*50%,0),IF(AND(D20=$AX$25),"",IF(AND(D20=$AX$26,'Master Data'!$I$28='GA55 Check & Edit'!$AP$5,'Master Data'!$I$30='GA55 Check & Edit'!$AN$6),SUM(F20-N20),IF(AND(D20=$AX$27),"",IF(AND(D20=$AX$28),"",IF(AND(D20=$AX$29,'Master Data'!$I$28='GA55 Check & Edit'!$AP$5,'Master Data'!$I$30='GA55 Check & Edit'!$AN$6),SUM(F20-N20),IF(AND(E20=""),"",'Master Data'!$M$43)))))))),"") -> 3387 | W20: =IFERROR(IF(OR('Master Data'!$I$28='GA55 Check & Edit'!$AP$6,D20=""),"",IF(AND(D20=$AX$24),"",IF(AND(D20=$AX$25),"",IF(AND(D20=$AX$26),"",IF(AND(D20=$AX$27),"",IF(AND(D20=$AX$28),"",IF(AND(D20=$AX$29),"",IF(AND(E20=""),"",'Master Data'!$O$43)))))))),"") ->  | X20: =IFERROR(IF(OR('Master Data'!$I$28='GA55 Check & Edit'!$AP$6,D20=""),"",IF(AND(E20=""),"",IF(AND('GA55 Check & Edit'!D20='GA55 Check & Edit'!$AT$17,'Master Data'!$D$18="Gazetted"),500,IF(AND('GA55 Check & Edit'!D20='GA55 Check & Edit'!$AT$17,'Master Data'!$D$18="Non-Gazetted"),250,"")))),"") ->  | Y20: =IFERROR(IF(D20="","",IF(AND(E20=""),"",IF(AND(D20=$AX$24),"",IF(AND(D20=$AX$25),"",IF(AND(D20=$AX$26),"",IF(AND(D20=$AX$27),"",IF(AND(D20=$AX$28),"",IF(AND(D20=$AX$29),"",IF(OR('Master Data'!$I$28='GA55 Check & Edit'!$AP$6,D20=""),"",$Y$7))))))))),"") ->  | AA20: =IFERROR(IF(OR('Master Data'!$I$28='GA55 Check & Edit'!$AP$6,D20="",'Master Data'!$N$38=""),"",IF(AND(E20=""),"",IF('GA55 Check & Edit'!D20='GA55 Check & Edit'!$AT$9,'Master Data'!$N$38,""))),"") ->  | AB20: =IFERROR(IF(D20="","",IF(AND(O20=""),"",IF(AND(N20=""),SUM(P20:AA20),IF(AND('Master Data'!$H$18='GA55 Check & Edit'!$AO$5,'Master Data'!$I$30='GA55 Check & Edit'!$AN$6),SUM(P20:AA20)+N20,SUM(P20:AA20))))),"0") -> 3387 | AC20: 3387 | AU20: L-13 | AW20: NOV | AX20: 2021-11-01 | AY20: 11 | AZ20: =ROUND(17%*AZ18,0)+ROUND(AZ18*'Master Data'!E30%,0) -> 13075 | BA20: =IF(AND('Master Data'!$E$36=""),"",IF(AND('Master Data'!$I$28='GA55 Check & Edit'!$AP$6),'GA55 Check & Edit'!$AZ$15,BU20)) -> 52300 | BB20: 52300 | BC20: =IF(AND('Master Data'!$E$36=""),"",IF(AND('Master Data'!$N$26='GA55 Check & Edit'!$AO$5),ROUND(31%*BA20,0),ROUND(17%*BA20,0))) -> 16213 | BD20: 16213 | BE20: =IFERROR(IF(AND('Master Data'!$E$36=""),"",ROUND('Master Data'!$E$34%*BB20,0)),"") -> 4707 | BF20: ='Master Data'!J47 -> 1500 | BG20: =IF(AND('Master Data'!$I$28='GA55 Check & Edit'!$AP$6),"",IF(AND('Master Data'!$I$30='GA55 Check & Edit'!$AN$6,'Master Data'!$N$36='GA55 Check & Edit'!$AO$6),0,IF(AND('Master Data'!$I$30='GA55 Check & Edit'!$AN$6,'Master Data'!$N$36='GA55 Check & Edit'!$AO$5),'Master Data'!$J$43,IF(AND('Master Data'!$I$30='GA55 Check & Edit'!$AN$5),IF($AZ$15<18001,265,IF($AZ$15<33501,440,IF($AZ$15<54001,658,875))))))) -> 0 | BH20: =IFERROR(IF(OR('Master Data'!$I$28='GA55 Check & Edit'!$AP$6),"",'Master Data'!$G$43),"") -> 7000 | BI20: =IFERROR(IF(AND('Master Data'!$I$30='GA55 Check & Edit'!$AN$6),ROUND((E16)*0.1,0),IF(AND('Master Data'!$I$28='GA55 Check & Edit'!$AP$6),ROUND((E16+F16)*0.1,0),'Master Data'!$H$43)),"") -> 5230 | BJ20: 52300 | BK20: 2021-11-01 | BL20: =IFERROR(IF('Master Data'!$E$36="","",IF('Master Data'!$F$40="","",IF(AND($AZ$17>$AZ$9),"",DATE(YEAR(BL19),MONTH(BL19)+1,DAY(BL19))))),"") -> 2021-11-01 | BM20: =IFERROR(IF('Master Data'!$E$36="","",IF('Master Data'!$F$40="","",IF(AND($AZ$17>$AZ$9),"",DATE(YEAR(BM19),MONTH(BM19)+1,DAY(BM19))))),"") -> 2021-11-01 | BN20: 2021-11-01 | BO20: 2021-11-01 | BQ20: 2021-11-01 | BU20: =IF(AND('Master Data'!$I$38='GA55 Check & Edit'!AX20),'Master Data'!$I$36,BU19) -> 52300 | BX20: 1500
A21: 0 | B21: 14 | C21: 14 | D21: PL Surrender | E21: =IFERROR(IF(D21="","",IF(AND(BQ25=""),"",IF(AND('Master Data'!$I$28='GA55 Check & Edit'!$AP$6),VLOOKUP(D21,ram,13,0),VLOOKUP(D21,ram,4,0)))),"") -> 0 | F21: =IFERROR(IF(D21="","",IF(D21=$AX$24,"",IF(AND(D21=$AX$25),$BC$25,IF(AND(D21=$AX$27),"",IF(AND(D21=$AX$28),"",IF(AND('Master Data'!$I$28='GA55 Check & Edit'!$AP$5),VLOOKUP(D21,ram,7,0),"")))))),"") -> 0 | G21: =IFERROR(IF(D21="","",IF(D21=$AX$24,"",IF(AND(D21=$AX$25),"",IF(AND(D21=$AX$26),"",IF(AND(D21=$AX$27),"",IF(AND(D21=$AX$29),"",IF(AND('Master Data'!$I$28='GA55 Check & Edit'!$AP$6),"",VLOOKUP(D21,ram,8,0)))))))),"") ->  | H21: =IFERROR(IF(D21="","",IF(AND(E21=""),"",IF(OR(D21=$AX$24,D21=$AX$25,D21=$AX$26,D21=$AX$27,D21=$AX$28,D21=$AX$29),"",IF(AND('Master Data'!$I$28='GA55 Check & Edit'!$AP$5),'Master Data'!$B$43,"")))),"") ->  | I21: =IFERROR(IF(D21="","",IF(AND(E21=""),"",IF(OR(D21=$AX$24,D21=$AX$25,D21=$AX$26,D21=$AX$27,D21=$AX$28,D21=$AX$29),"",IF(AND('Master Data'!$I$28='GA55 Check & Edit'!$AP$5,'Master Data'!$E$28='GA55 Check & Edit'!$AO$5),'Master Data'!$C$43,"0")))),"") ->  | J21: =IFERROR(IF(OR('Master Data'!$E$32=$AO$6,'Master Data'!$E$32=""),"",IF(D21="","",IF(AND(E21=""),"",IF(OR(D21=$AX$24,D21=$AX$25,D21=$AX$26,D21=$AX$27,D21=$AX$28,D21=$AX$29),"",IF(AND('Master Data'!$I$28='GA55 Check & Edit'!$AP$6),"",IF(AND('Master Data'!$I$32=$AR$9),$AS$6,IF(AND('Master Data'!$I$32=$AR$10),$AS$6,IF(AND('Master Data'!$I$32=$AR$11),$AS$6,IF(AND('Master Data'!$I$32=$AR$12),$AS$6,$AS$5))))))))),"") ->  | K21: =IFERROR(IF(D21="","",IF(AND(E21=""),"",IF(OR(D21=$AX$24,D21=$AX$25,D21=$AX$26,D21=$AX$27,D21=$AX$28,D21=$AX$29),"",IF(AND('Master Data'!$I$28='GA55 Check & Edit'!$AP$5),'Master Data'!$E$43,"")))),"") ->  | L21: =IFERROR(IF(D21="","",IF(AND(E21=""),"",IF(OR(D21=$AX$24,D21=$AX$25,D21=$AX$26,D21=$AX$27,D21=$AX$28,D21=$AX$29),"",IF(AND('Master Data'!$I$28='GA55 Check & Edit'!$AP$6),"",'Master Data'!$F$43)))),"") ->  | N21: =IFERROR(IF(AND(D21=""),"",IF(AND(D21=$AX$25,'Master Data'!$I$30='GA55 Check & Edit'!$AN$6),ROUND((E21+F21)*0.1,0),IF(AND(D21=$AX$29,'Master Data'!$I$30='GA55 Check & Edit'!$AN$6),ROUND((F21)*0.1,0),IF(AND(D21=$AX$26,'Master Data'!$I$30='GA55 Check & Edit'!$AN$6),ROUND((F21)*0.1,0),IF(AND(D21=$AX$27,'Master Data'!$I$30='GA55 Check & Edit'!$AN$6),ROUND((E21+F21)*0.1,0),IF(AND('Master Data'!$I$30='GA55 Check & Edit'!$AN$5),"",IF(AND('Master Data'!$I$30='GA55 Check & Edit'!$AN$6,'Master Data'!$I$28='GA55 Check & Edit'!$AP$6),ROUND((E21)*0.1,0),ROUND((E21+F21)*0.1,0)))))))),"") -> 0 | O21: =IF(D21="","",IF('Master Data'!$H$18='GA55 Check & Edit'!$AO$5,SUM(E21:N21),SUM(E21:M21))) -> 0 | P21: =IFERROR(IF(OR('Master Data'!$I$28='GA55 Check & Edit'!$AP$6,D21=""),"",IF(AND(D21=$AX$24),"",IF(AND(D21=$AX$25),"",IF(AND(D21=$AX$26),"",IF(AND(D21=$AX$27),"",IF(AND(D21=$AX$28),"",IF(AND(D21=$AX$29),"",IF(AND(E21=""),"",VLOOKUP(D21,ram,11,0))))))))),"") ->  | Q21: =IFERROR(IF(AND(D21="",E21=""),"",IF(AND(D21=$AX$25,'Master Data'!$I$30='GA55 Check & Edit'!$AN$6),ROUND((E21+F21)*0.1,0),IF(AND(D21=$AX$29,'Master Data'!$I$30='GA55 Check & Edit'!$AN$6),ROUND((F21)*0.1,0),IF(AND(D21=$AX$26,'Master Data'!$I$30='GA55 Check & Edit'!$AN$6),ROUND((F21)*0.1,0),IF(AND(D21=$AX$27,'Master Data'!$I$30='GA55 Check & Edit'!$AN$6),ROUND((E21+F21)*0.1,0),IF(AND('Master Data'!$I$30='GA55 Check & Edit'!$AN$6,'Master Data'!$I$28='GA55 Check & Edit'!$AP$6),ROUND((E21)*0.1,0),IF(AND('Master Data'!$I$30='GA55 Check & Edit'!$AN$6,'Master Data'!$I$28='GA55 Check & Edit'!$AP$5),ROUND((E21+F21)*0.1,0),IF(AND('Master Data'!$I$30='GA55 Check & Edit'!$AN$5,'Master Data'!$I$28='GA55 Check & Edit'!$AP$5),VLOOKUP(D21,ram,12,0))))))))),"") -> 0 | R21: =IFERROR(IF(OR('Master Data'!$I$28='GA55 Check & Edit'!$AP$6,D21=""),"",IF(AND(D21=$AX$24),"",IF(AND(D21=$AX$25),"",IF(AND(D21=$AX$26),"",IF(AND(D21=$AX$27),"",IF(AND(D21=$AX$28),"",IF(AND(D21=$AX$29),"",IF(AND(D21=$AX$32),"",IF(AND(E21=""),"",'Master Data'!$I$43))))))))),"") ->  | S21: =IFERROR(IF(OR('Master Data'!$I$28='GA55 Check & Edit'!$AP$6),"",IF(D21="","",IF(E21="","",IF(AND(D21=$AX$24),"",IF(AND(D21=$AX$25),"",IF(AND(D21=$AX$26),"",IF(AND(D21=$AX$27),"",IF(AND(D21=$AX$28),"",IF(AND(D21=$AX$29),"",VLOOKUP(D21,ram,10,0)))))))))),"") ->  | T21: =IFERROR(IF(OR('Master Data'!$I$28='GA55 Check & Edit'!$AP$6,D21=""),"",IF(AND(D21=$AX$24),"",IF(AND(D21=$AX$25),"",IF(AND(D21=$AX$26),"",IF(AND(D21=$AX$27),"",IF(AND(D21=$AX$28),"",IF(AND(D21=$AX$29),"",IF(AND(E21=""),"",'Master Data'!$K$43)))))))),"") ->  | U21: =IFERROR(IF(OR('Master Data'!$I$28='GA55 Check & Edit'!$AP$6,D21=""),"",IF(AND(D21=$AX$24),"",IF(AND(D21=$AX$25),"",IF(AND(D21=$AX$26),"",IF(AND(D21=$AX$27),"",IF(AND(D21=$AX$28),"",IF(AND(D21=$AX$29),"",IF(AND(E21=""),"",'Master Data'!$L$43)))))))),"") ->  | V21: =IFERROR(IF(OR('Master Data'!$I$28='GA55 Check & Edit'!$AP$6,D21=""),"",IF(AND(D21=$AX$24,'Master Data'!$I$28='GA55 Check & Edit'!$AP$5,'Master Data'!$I$30='GA55 Check & Edit'!$AN$6),ROUND(M21*50%,0),IF(AND(D21=$AX$25),"",IF(AND(D21=$AX$26,'Master Data'!$I$28='GA55 Check & Edit'!$AP$5,'Master Data'!$I$30='GA55 Check & Edit'!$AN$6),SUM(F21-N21),IF(AND(D21=$AX$27),"",IF(AND(D21=$AX$28),"",IF(AND(D21=$AX$29,'Master Data'!$I$28='GA55 Check & Edit'!$AP$5,'Master Data'!$I$30='GA55 Check & Edit'!$AN$6),SUM(F21-N21),IF(AND(E21=""),"",'Master Data'!$M$43)))))))),"") ->  | W21: =IFERROR(IF(OR('Master Data'!$I$28='GA55 Check & Edit'!$AP$6,D21=""),"",IF(AND(D21=$AX$24),"",IF(AND(D21=$AX$25),"",IF(AND(D21=$AX$26),"",IF(AND(D21=$AX$27),"",IF(AND(D21=$AX$28),"",IF(AND(D21=$AX$29),"",IF(AND(E21=""),"",'Master Data'!$O$43)))))))),"") ->  | X21: =IFERROR(IF(OR('Master Data'!$I$28='GA55 Check & Edit'!$AP$6,D21=""),"",IF(AND(E21=""),"",IF(AND('GA55 Check & Edit'!D21='GA55 Check & Edit'!$AT$17,'Master Data'!$D$18="Gazetted"),500,IF(AND('GA55 Check & Edit'!D21='GA55 Check & Edit'!$AT$17,'Master Data'!$D$18="Non-Gazetted"),250,"")))),"") ->  | Y21: =IFERROR(IF(D21="","",IF(AND(E21=""),"",IF(AND(D21=$AX$24),"",IF(AND(D21=$AX$25),"",IF(AND(D21=$AX$26),"",IF(AND(D21=$AX$27),"",IF(AND(D21=$AX$28),"",IF(AND(D21=$AX$29),"",IF(OR('Master Data'!$I$28='GA55 Check & Edit'!$AP$6,D21=""),"",$Y$7))))))))),"") ->  | AA21: =IFERROR(IF(OR('Master Data'!$I$28='GA55 Check & Edit'!$AP$6,D21="",'Master Data'!$N$38=""),"",IF(AND(E21=""),"",IF('GA55 Check & Edit'!D21='GA55 Check & Edit'!$AT$9,'Master Data'!$N$38,""))),"") ->  | AB21: =IFERROR(IF(D21="","",IF(AND(O21=""),"",IF(AND(N21=""),SUM(P21:AA21),IF(AND('Master Data'!$H$18='GA55 Check & Edit'!$AO$5,'Master Data'!$I$30='GA55 Check & Edit'!$AN$6),SUM(P21:AA21)+N21,SUM(P21:AA21))))),"0") -> 0 | AC21: 0 | AU21: L-14 | AW21: DEC | AX21: 2021-12-01 | AY21: 12 | AZ21: =AZ18+AZ20 -> 65375 | BA21: =IF(AND('Master Data'!$E$36=""),"",IF(AND('Master Data'!$I$28='GA55 Check & Edit'!$AP$6),'GA55 Check & Edit'!$AZ$15,BU21)) -> 52300 | BB21: 52300 | BC21: =IF(AND('Master Data'!$E$36=""),"",IF(AND('Master Data'!$N$26='GA55 Check & Edit'!$AO$5),ROUND(31%*BA21,0),ROUND(17%*BA21,0))) -> 16213 | BD21: 16213 | BE21: =IFERROR(IF(AND('Master Data'!$E$36=""),"",ROUND('Master Data'!$E$34%*BB21,0)),"") -> 4707 | BF21: ='Master Data'!K47 -> 1500 | BG21: =IF(AND('Master Data'!$I$28='GA55 Check & Edit'!$AP$6),"",IF(AND('Master Data'!$I$30='GA55 Check & Edit'!$AN$6,'Master Data'!$N$36='GA55 Check & Edit'!$AO$6),0,IF(AND('Master Data'!$I$30='GA55 Check & Edit'!$AN$6,'Master Data'!$N$36='GA55 Check & Edit'!$AO$5),'Master Data'!$J$43,IF(AND('Master Data'!$I$30='GA55 Check & Edit'!$AN$5),IF($AZ$15<18001,265,IF($AZ$15<33501,440,IF($AZ$15<54001,658,875))))))) -> 0 | BH21: =IFERROR(IF(OR('Master Data'!$I$28='GA55 Check & Edit'!$AP$6),"",'Master Data'!$G$43),"") -> 7000 | BI21: =IFERROR(IF(AND('Master Data'!$I$30='GA55 Check & Edit'!$AN$6),ROUND((E17)*0.1,0),IF(AND('Master Data'!$I$28='GA55 Check & Edit'!$AP$6),ROUND((E17+F17)*0.1,0),'Master Data'!$H$43)),"") -> 5230 | BJ21: 52300 | BK21: 2021-12-01 | BL21: =IFERROR(IF('Master Data'!$E$36="","",IF('Master Data'!$F$40="","",IF(AND($AZ$17>$AZ$9),"",DATE(YEAR(BL20),MONTH(BL20)+1,DAY(BL20))))),"") -> 2021-12-01 | BM21: =IFERROR(IF('Master Data'!$E$36="","",IF('Master Data'!$F$40="","",IF(AND($AZ$17>$AZ$9),"",DATE(YEAR(BM20),MONTH(BM20)+1,DAY(BM20))))),"") -> 2021-12-01 | BN21: 2021-12-01 | BO21: 2021-12-01 | BQ21: 2021-12-01 | BU21: =IF(AND('Master Data'!$I$38='GA55 Check & Edit'!AX21),'Master Data'!$I$36,BU20) -> 52300 | BX21: 1500
A22: 1 | B22: 15 | C22: 15 | D22: DA Arrear | E22: =IFERROR(IF(D22="","",IF(AND(BQ26=""),"",IF(AND('Master Data'!$I$28='GA55 Check & Edit'!$AP$6),VLOOKUP(D22,ram,13,0),VLOOKUP(D22,ram,4,0)))),"") ->  | F22: =IFERROR(IF(D22="","",IF(D22=$AX$24,"",IF(AND(D22=$AX$25),$BC$25,IF(AND(D22=$AX$27),"",IF(AND(D22=$AX$28),"",IF(AND('Master Data'!$I$28='GA55 Check & Edit'!$AP$5),VLOOKUP(D22,ram,7,0),"")))))),"") -> 4707 | G22: =IFERROR(IF(D22="","",IF(D22=$AX$24,"",IF(AND(D22=$AX$25),"",IF(AND(D22=$AX$26),"",IF(AND(D22=$AX$27),"",IF(AND(D22=$AX$29),"",IF(AND('Master Data'!$I$28='GA55 Check & Edit'!$AP$6),"",VLOOKUP(D22,ram,8,0)))))))),"") ->  | H22: =IFERROR(IF(D22="","",IF(AND(E22=""),"",IF(OR(D22=$AX$24,D22=$AX$25,D22=$AX$26,D22=$AX$27,D22=$AX$28,D22=$AX$29),"",IF(AND('Master Data'!$I$28='GA55 Check & Edit'!$AP$5),'Master Data'!$B$43,"")))),"") ->  | I22: =IFERROR(IF(D22="","",IF(AND(E22=""),"",IF(OR(D22=$AX$24,D22=$AX$25,D22=$AX$26,D22=$AX$27,D22=$AX$28,D22=$AX$29),"",IF(AND('Master Data'!$I$28='GA55 Check & Edit'!$AP$5,'Master Data'!$E$28='GA55 Check & Edit'!$AO$5),'Master Data'!$C$43,"0")))),"") ->  | J22: =IFERROR(IF(OR('Master Data'!$E$32=$AO$6,'Master Data'!$E$32=""),"",IF(D22="","",IF(AND(E22=""),"",IF(OR(D22=$AX$24,D22=$AX$25,D22=$AX$26,D22=$AX$27,D22=$AX$28,D22=$AX$29),"",IF(AND('Master Data'!$I$28='GA55 Check & Edit'!$AP$6),"",IF(AND('Master Data'!$I$32=$AR$9),$AS$6,IF(AND('Master Data'!$I$32=$AR$10),$AS$6,IF(AND('Master Data'!$I$32=$AR$11),$AS$6,IF(AND('Master Data'!$I$32=$AR$12),$AS$6,$AS$5))))))))),"") ->  | K22: =IFERROR(IF(D22="","",IF(AND(E22=""),"",IF(OR(D22=$AX$24,D22=$AX$25,D22=$AX$26,D22=$AX$27,D22=$AX$28,D22=$AX$29),"",IF(AND('Master Data'!$I$28='GA55 Check & Edit'!$AP$5),'Master Data'!$E$43,"")))),"") ->  | L22: =IFERROR(IF(D22="","",IF(AND(E22=""),"",IF(OR(D22=$AX$24,D22=$AX$25,D22=$AX$26,D22=$AX$27,D22=$AX$28,D22=$AX$29),"",IF(AND('Master Data'!$I$28='GA55 Check & Edit'!$AP$6),"",'Master Data'!$F$43)))),"") ->  | N22: =IFERROR(IF(AND(D22=""),"",IF(AND(D22=$AX$25,'Master Data'!$I$30='GA55 Check & Edit'!$AN$6),ROUND((E22+F22)*0.1,0),IF(AND(D22=$AX$29,'Master Data'!$I$30='GA55 Check & Edit'!$AN$6),ROUND((F22)*0.1,0),IF(AND(D22=$AX$26,'Master Data'!$I$30='GA55 Check & Edit'!$AN$6),ROUND((F22)*0.1,0),IF(AND(D22=$AX$27,'Master Data'!$I$30='GA55 Check & Edit'!$AN$6),ROUND((E22+F22)*0.1,0),IF(AND('Master Data'!$I$30='GA55 Check & Edit'!$AN$5),"",IF(AND('Master Data'!$I$30='GA55 Check & Edit'!$AN$6,'Master Data'!$I$28='GA55 Check & Edit'!$AP$6),ROUND((E22)*0.1,0),ROUND((E22+F22)*0.1,0)))))))),"") -> 471 | O22: =IF(D22="","",IF('Master Data'!$H$18='GA55 Check & Edit'!$AO$5,SUM(E22:N22),SUM(E22:M22))) -> 4707 | P22: =IFERROR(IF(OR('Master Data'!$I$28='GA55 Check & Edit'!$AP$6,D22=""),"",IF(AND(D22=$AX$24),"",IF(AND(D22=$AX$25),"",IF(AND(D22=$AX$26),"",IF(AND(D22=$AX$27),"",IF(AND(D22=$AX$28),"",IF(AND(D22=$AX$29),"",IF(AND(E22=""),"",VLOOKUP(D22,ram,11,0))))))))),"") ->  | Q22: =IFERROR(IF(AND(D22="",E22=""),"",IF(AND(D22=$AX$25,'Master Data'!$I$30='GA55 Check & Edit'!$AN$6),ROUND((E22+F22)*0.1,0),IF(AND(D22=$AX$29,'Master Data'!$I$30='GA55 Check & Edit'!$AN$6),ROUND((F22)*0.1,0),IF(AND(D22=$AX$26,'Master Data'!$I$30='GA55 Check & Edit'!$AN$6),ROUND((F22)*0.1,0),IF(AND(D22=$AX$27,'Master Data'!$I$30='GA55 Check & Edit'!$AN$6),ROUND((E22+F22)*0.1,0),IF(AND('Master Data'!$I$30='GA55 Check & Edit'!$AN$6,'Master Data'!$I$28='GA55 Check & Edit'!$AP$6),ROUND((E22)*0.1,0),IF(AND('Master Data'!$I$30='GA55 Check & Edit'!$AN$6,'Master Data'!$I$28='GA55 Check & Edit'!$AP$5),ROUND((E22+F22)*0.1,0),IF(AND('Master Data'!$I$30='GA55 Check & Edit'!$AN$5,'Master Data'!$I$28='GA55 Check & Edit'!$AP$5),VLOOKUP(D22,ram,12,0))))))))),"") -> 471 | R22: =IFERROR(IF(OR('Master Data'!$I$28='GA55 Check & Edit'!$AP$6,D22=""),"",IF(AND(D22=$AX$24),"",IF(AND(D22=$AX$25),"",IF(AND(D22=$AX$26),"",IF(AND(D22=$AX$27),"",IF(AND(D22=$AX$28),"",IF(AND(D22=$AX$29),"",IF(AND(D22=$AX$32),"",IF(AND(E22=""),"",'Master Data'!$I$43))))))))),"") ->  | S22: =IFERROR(IF(OR('Master Data'!$I$28='GA55 Check & Edit'!$AP$6),"",IF(D22="","",IF(E22="","",IF(AND(D22=$AX$24),"",IF(AND(D22=$AX$25),"",IF(AND(D22=$AX$26),"",IF(AND(D22=$AX$27),"",IF(AND(D22=$AX$28),"",IF(AND(D22=$AX$29),"",VLOOKUP(D22,ram,10,0)))))))))),"") ->  | T22: =IFERROR(IF(OR('Master Data'!$I$28='GA55 Check & Edit'!$AP$6,D22=""),"",IF(AND(D22=$AX$24),"",IF(AND(D22=$AX$25),"",IF(AND(D22=$AX$26),"",IF(AND(D22=$AX$27),"",IF(AND(D22=$AX$28),"",IF(AND(D22=$AX$29),"",IF(AND(E22=""),"",'Master Data'!$K$43)))))))),"") ->  | U22: =IFERROR(IF(OR('Master Data'!$I$28='GA55 Check & Edit'!$AP$6,D22=""),"",IF(AND(D22=$AX$24),"",IF(AND(D22=$AX$25),"",IF(AND(D22=$AX$26),"",IF(AND(D22=$AX$27),"",IF(AND(D22=$AX$28),"",IF(AND(D22=$AX$29),"",IF(AND(E22=""),"",'Master Data'!$L$43)))))))),"") ->  | V22: =IFERROR(IF(OR('Master Data'!$I$28='GA55 Check & Edit'!$AP$6,D22=""),"",IF(AND(D22=$AX$24,'Master Data'!$I$28='GA55 Check & Edit'!$AP$5,'Master Data'!$I$30='GA55 Check & Edit'!$AN$6),ROUND(M22*50%,0),IF(AND(D22=$AX$25),"",IF(AND(D22=$AX$26,'Master Data'!$I$28='GA55 Check & Edit'!$AP$5,'Master Data'!$I$30='GA55 Check & Edit'!$AN$6),SUM(F22-N22),IF(AND(D22=$AX$27),"",IF(AND(D22=$AX$28),"",IF(AND(D22=$AX$29,'Master Data'!$I$28='GA55 Check & Edit'!$AP$5,'Master Data'!$I$30='GA55 Check & Edit'!$AN$6),SUM(F22-N22),IF(AND(E22=""),"",'Master Data'!$M$43)))))))),"") -> 4236 | W22: =IFERROR(IF(OR('Master Data'!$I$28='GA55 Check & Edit'!$AP$6,D22=""),"",IF(AND(D22=$AX$24),"",IF(AND(D22=$AX$25),"",IF(AND(D22=$AX$26),"",IF(AND(D22=$AX$27),"",IF(AND(D22=$AX$28),"",IF(AND(D22=$AX$29),"",IF(AND(E22=""),"",'Master Data'!$O$43)))))))),"") ->  | X22: =IFERROR(IF(OR('Master Data'!$I$28='GA55 Check & Edit'!$AP$6,D22=""),"",IF(AND(E22=""),"",IF(AND('GA55 Check & Edit'!D22='GA55 Check & Edit'!$AT$17,'Master Data'!$D$18="Gazetted"),500,IF(AND('GA55 Check & Edit'!D22='GA55 Check & Edit'!$AT$17,'Master Data'!$D$18="Non-Gazetted"),250,"")))),"") ->  | Y22: =IFERROR(IF(D22="","",IF(AND(E22=""),"",IF(AND(D22=$AX$24),"",IF(AND(D22=$AX$25),"",IF(AND(D22=$AX$26),"",IF(AND(D22=$AX$27),"",IF(AND(D22=$AX$28),"",IF(AND(D22=$AX$29),"",IF(OR('Master Data'!$I$28='GA55 Check & Edit'!$AP$6,D22=""),"",$Y$7))))))))),"") ->  | AA22: =IFERROR(IF(OR('Master Data'!$I$28='GA55 Check & Edit'!$AP$6,D22="",'Master Data'!$N$38=""),"",IF(AND(E22=""),"",IF('GA55 Check & Edit'!D22='GA55 Check & Edit'!$AT$9,'Master Data'!$N$38,""))),"") ->  | AB22: =IFERROR(IF(D22="","",IF(AND(O22=""),"",IF(AND(N22=""),SUM(P22:AA22),IF(AND('Master Data'!$H$18='GA55 Check & Edit'!$AO$5,'Master Data'!$I$30='GA55 Check & Edit'!$AN$6),SUM(P22:AA22)+N22,SUM(P22:AA22))))),"0") -> 4707 | AC22: 0 | AU22: L-15 | AW22: JAN | AX22: 2022-01-01 | AY22: 1 | BA22: =IF(AND('Master Data'!$E$36=""),"",IF(AND('Master Data'!$I$28='GA55 Check & Edit'!$AP$6),'GA55 Check & Edit'!$AZ$15,BU22)) -> 52300 | BB22: 52300 | BC22: =IF(AND('Master Data'!$E$36=""),"",IF(AND('Master Data'!$N$26='GA55 Check & Edit'!$AO$5),ROUND(31%*BA22,0),ROUND(17%*BA22,0))) -> 16213 | BD22: 16213 | BE22: =IFERROR(IF(AND('Master Data'!$E$36=""),"",ROUND('Master Data'!$E$34%*BB22,0)),"") -> 4707 | BF22: ='Master Data'!L47 -> 1500 | BG22: =IF(AND('Master Data'!$I$28='GA55 Check & Edit'!$AP$6),"",IF(AND('Master Data'!$I$30='GA55 Check & Edit'!$AN$6,'Master Data'!$N$36='GA55 Check & Edit'!$AO$6),0,IF(AND('Master Data'!$I$30='GA55 Check & Edit'!$AN$6,'Master Data'!$N$36='GA55 Check & Edit'!$AO$5),'Master Data'!$J$43,IF(AND('Master Data'!$I$30='GA55 Check & Edit'!$AN$5),IF($AZ$15<18001,265,IF($AZ$15<33501,440,IF($AZ$15<54001,658,875))))))) -> 0 | BH22: =IFERROR(IF(OR('Master Data'!$I$28='GA55 Check & Edit'!$AP$6),"",'Master Data'!$G$43),"") -> 7000 | BI22: =IFERROR(IF(AND('Master Data'!$I$30='GA55 Check & Edit'!$AN$6),ROUND((E18)*0.1,0),IF(AND('Master Data'!$I$28='GA55 Check & Edit'!$AP$6),ROUND((E18+F18)*0.1,0),'Master Data'!$H$43)),"") -> 5230 | BJ22: 52300 | BK22: 2022-01-01 | BL22: =IFERROR(IF('Master Data'!$E$36="","",IF('Master Data'!$F$40="","",IF(AND($AZ$17>$AZ$9),"",DATE(YEAR(BL21),MONTH(BL21)+1,DAY(BL21))))),"") -> 2022-01-01 | BM22: =IFERROR(IF('Master Data'!$E$36="","",IF('Master Data'!$F$40="","",IF(AND($AZ$17>$AZ$9),"",DATE(YEAR(BM21),MONTH(BM21)+1,DAY(BM21))))),"") -> 2022-01-01 | BN22: 2022-01-01 | BO22: 2022-01-01 | BQ22: 2022-01-01 | BU22: =IF(AND('Master Data'!$I$38='GA55 Check & Edit'!AX22),'Master Data'!$I$36,BU21) -> 52300 | BX22: 1500
A23: 0 | B23: 16 | C23: 16 | D23: Fixation arear | E23: =IFERROR(IF(D23="","",IF(AND(BQ27=""),"",IF(AND('Master Data'!$I$28='GA55 Check & Edit'!$AP$6),VLOOKUP(D23,ram,13,0),VLOOKUP(D23,ram,4,0)))),"") ->  | F23: =IFERROR(IF(D23="","",IF(D23=$AX$24,"",IF(AND(D23=$AX$25),$BC$25,IF(AND(D23=$AX$27),"",IF(AND(D23=$AX$28),"",IF(AND('Master Data'!$I$28='GA55 Check & Edit'!$AP$5),VLOOKUP(D23,ram,7,0),"")))))),"") ->  | G23: =IFERROR(IF(D23="","",IF(D23=$AX$24,"",IF(AND(D23=$AX$25),"",IF(AND(D23=$AX$26),"",IF(AND(D23=$AX$27),"",IF(AND(D23=$AX$29),"",IF(AND('Master Data'!$I$28='GA55 Check & Edit'!$AP$6),"",VLOOKUP(D23,ram,8,0)))))))),"") ->  | H23: =IFERROR(IF(D23="","",IF(AND(E23=""),"",IF(OR(D23=$AX$24,D23=$AX$25,D23=$AX$26,D23=$AX$27,D23=$AX$28,D23=$AX$29),"",IF(AND('Master Data'!$I$28='GA55 Check & Edit'!$AP$5),'Master Data'!$B$43,"")))),"") ->  | I23: =IFERROR(IF(D23="","",IF(AND(E23=""),"",IF(OR(D23=$AX$24,D23=$AX$25,D23=$AX$26,D23=$AX$27,D23=$AX$28,D23=$AX$29),"",IF(AND('Master Data'!$I$28='GA55 Check & Edit'!$AP$5,'Master Data'!$E$28='GA55 Check & Edit'!$AO$5),'Master Data'!$C$43,"0")))),"") ->  | J23: =IFERROR(IF(OR('Master Data'!$E$32=$AO$6,'Master Data'!$E$32=""),"",IF(D23="","",IF(AND(E23=""),"",IF(OR(D23=$AX$24,D23=$AX$25,D23=$AX$26,D23=$AX$27,D23=$AX$28,D23=$AX$29),"",IF(AND('Master Data'!$I$28='GA55 Check & Edit'!$AP$6),"",IF(AND('Master Data'!$I$32=$AR$9),$AS$6,IF(AND('Master Data'!$I$32=$AR$10),$AS$6,IF(AND('Master Data'!$I$32=$AR$11),$AS$6,IF(AND('Master Data'!$I$32=$AR$12),$AS$6,$AS$5))))))))),"") ->  | K23: =IFERROR(IF(D23="","",IF(AND(E23=""),"",IF(OR(D23=$AX$24,D23=$AX$25,D23=$AX$26,D23=$AX$27,D23=$AX$28,D23=$AX$29),"",IF(AND('Master Data'!$I$28='GA55 Check & Edit'!$AP$5),'Master Data'!$E$43,"")))),"") ->  | L23: =IFERROR(IF(D23="","",IF(AND(E23=""),"",IF(OR(D23=$AX$24,D23=$AX$25,D23=$AX$26,D23=$AX$27,D23=$AX$28,D23=$AX$29),"",IF(AND('Master Data'!$I$28='GA55 Check & Edit'!$AP$6),"",'Master Data'!$F$43)))),"") ->  | N23: =IFERROR(IF(AND(D23=""),"",IF(AND(D23=$AX$25,'Master Data'!$I$30='GA55 Check & Edit'!$AN$6),ROUND((E23+F23)*0.1,0),IF(AND(D23=$AX$29,'Master Data'!$I$30='GA55 Check & Edit'!$AN$6),ROUND((F23)*0.1,0),IF(AND(D23=$AX$26,'Master Data'!$I$30='GA55 Check & Edit'!$AN$6),ROUND((F23)*0.1,0),IF(AND(D23=$AX$27,'Master Data'!$I$30='GA55 Check & Edit'!$AN$6),ROUND((E23+F23)*0.1,0),IF(AND('Master Data'!$I$30='GA55 Check & Edit'!$AN$5),"",IF(AND('Master Data'!$I$30='GA55 Check & Edit'!$AN$6,'Master Data'!$I$28='GA55 Check & Edit'!$AP$6),ROUND((E23)*0.1,0),ROUND((E23+F23)*0.1,0)))))))),"") ->  | O23: =IF(D23="","",IF('Master Data'!$H$18='GA55 Check & Edit'!$AO$5,SUM(E23:N23),SUM(E23:M23))) -> 0 | P23: =IFERROR(IF(OR('Master Data'!$I$28='GA55 Check & Edit'!$AP$6,D23=""),"",IF(AND(D23=$AX$24),"",IF(AND(D23=$AX$25),"",IF(AND(D23=$AX$26),"",IF(AND(D23=$AX$27),"",IF(AND(D23=$AX$28),"",IF(AND(D23=$AX$29),"",IF(AND(E23=""),"",VLOOKUP(D23,ram,11,0))))))))),"") ->  | Q23: =IFERROR(IF(AND(D23="",E23=""),"",IF(AND(D23=$AX$25,'Master Data'!$I$30='GA55 Check & Edit'!$AN$6),ROUND((E23+F23)*0.1,0),IF(AND(D23=$AX$29,'Master Data'!$I$30='GA55 Check & Edit'!$AN$6),ROUND((F23)*0.1,0),IF(AND(D23=$AX$26,'Master Data'!$I$30='GA55 Check & Edit'!$AN$6),ROUND((F23)*0.1,0),IF(AND(D23=$AX$27,'Master Data'!$I$30='GA55 Check & Edit'!$AN$6),ROUND((E23+F23)*0.1,0),IF(AND('Master Data'!$I$30='GA55 Check & Edit'!$AN$6,'Master Data'!$I$28='GA55 Check & Edit'!$AP$6),ROUND((E23)*0.1,0),IF(AND('Master Data'!$I$30='GA55 Check & Edit'!$AN$6,'Master Data'!$I$28='GA55 Check & Edit'!$AP$5),ROUND((E23+F23)*0.1,0),IF(AND('Master Data'!$I$30='GA55 Check & Edit'!$AN$5,'Master Data'!$I$28='GA55 Check & Edit'!$AP$5),VLOOKUP(D23,ram,12,0))))))))),"") ->  | R23: =IFERROR(IF(OR('Master Data'!$I$28='GA55 Check & Edit'!$AP$6,D23=""),"",IF(AND(D23=$AX$24),"",IF(AND(D23=$AX$25),"",IF(AND(D23=$AX$26),"",IF(AND(D23=$AX$27),"",IF(AND(D23=$AX$28),"",IF(AND(D23=$AX$29),"",IF(AND(D23=$AX$32),"",IF(AND(E23=""),"",'Master Data'!$I$43))))))))),"") ->  | S23: =IFERROR(IF(OR('Master Data'!$I$28='GA55 Check & Edit'!$AP$6),"",IF(D23="","",IF(E23="","",IF(AND(D23=$AX$24),"",IF(AND(D23=$AX$25),"",IF(AND(D23=$AX$26),"",IF(AND(D23=$AX$27),"",IF(AND(D23=$AX$28),"",IF(AND(D23=$AX$29),"",VLOOKUP(D23,ram,10,0)))))))))),"") ->  | T23: =IFERROR(IF(OR('Master Data'!$I$28='GA55 Check & Edit'!$AP$6,D23=""),"",IF(AND(D23=$AX$24),"",IF(AND(D23=$AX$25),"",IF(AND(D23=$AX$26),"",IF(AND(D23=$AX$27),"",IF(AND(D23=$AX$28),"",IF(AND(D23=$AX$29),"",IF(AND(E23=""),"",'Master Data'!$K$43)))))))),"") ->  | U23: =IFERROR(IF(OR('Master Data'!$I$28='GA55 Check & Edit'!$AP$6,D23=""),"",IF(AND(D23=$AX$24),"",IF(AND(D23=$AX$25),"",IF(AND(D23=$AX$26),"",IF(AND(D23=$AX$27),"",IF(AND(D23=$AX$28),"",IF(AND(D23=$AX$29),"",IF(AND(E23=""),"",'Master Data'!$L$43)))))))),"") ->  | V23: =IFERROR(IF(OR('Master Data'!$I$28='GA55 Check & Edit'!$AP$6,D23=""),"",IF(AND(D23=$AX$24,'Master Data'!$I$28='GA55 Check & Edit'!$AP$5,'Master Data'!$I$30='GA55 Check & Edit'!$AN$6),ROUND(M23*50%,0),IF(AND(D23=$AX$25),"",IF(AND(D23=$AX$26,'Master Data'!$I$28='GA55 Check & Edit'!$AP$5,'Master Data'!$I$30='GA55 Check & Edit'!$AN$6),SUM(F23-N23),IF(AND(D23=$AX$27),"",IF(AND(D23=$AX$28),"",IF(AND(D23=$AX$29,'Master Data'!$I$28='GA55 Check & Edit'!$AP$5,'Master Data'!$I$30='GA55 Check & Edit'!$AN$6),SUM(F23-N23),IF(AND(E23=""),"",'Master Data'!$M$43)))))))),"") ->  | W23: =IFERROR(IF(OR('Master Data'!$I$28='GA55 Check & Edit'!$AP$6,D23=""),"",IF(AND(D23=$AX$24),"",IF(AND(D23=$AX$25),"",IF(AND(D23=$AX$26),"",IF(AND(D23=$AX$27),"",IF(AND(D23=$AX$28),"",IF(AND(D23=$AX$29),"",IF(AND(E23=""),"",'Master Data'!$O$43)))))))),"") ->  | X23: =IFERROR(IF(OR('Master Data'!$I$28='GA55 Check & Edit'!$AP$6,D23=""),"",IF(AND(E23=""),"",IF(AND('GA55 Check & Edit'!D23='GA55 Check & Edit'!$AT$17,'Master Data'!$D$18="Gazetted"),500,IF(AND('GA55 Check & Edit'!D23='GA55 Check & Edit'!$AT$17,'Master Data'!$D$18="Non-Gazetted"),250,"")))),"") ->  | Y23: =IFERROR(IF(D23="","",IF(AND(E23=""),"",IF(AND(D23=$AX$24),"",IF(AND(D23=$AX$25),"",IF(AND(D23=$AX$26),"",IF(AND(D23=$AX$27),"",IF(AND(D23=$AX$28),"",IF(AND(D23=$AX$29),"",IF(OR('Master Data'!$I$28='GA55 Check & Edit'!$AP$6,D23=""),"",$Y$7))))))))),"") ->  | AA23: =IFERROR(IF(OR('Master Data'!$I$28='GA55 Check & Edit'!$AP$6,D23="",'Master Data'!$N$38=""),"",IF(AND(E23=""),"",IF('GA55 Check & Edit'!D23='GA55 Check & Edit'!$AT$9,'Master Data'!$N$38,""))),"") ->  | AB23: =IFERROR(IF(D23="","",IF(AND(O23=""),"",IF(AND(N23=""),SUM(P23:AA23),IF(AND('Master Data'!$H$18='GA55 Check & Edit'!$AO$5,'Master Data'!$I$30='GA55 Check & Edit'!$AN$6),SUM(P23:AA23)+N23,SUM(P23:AA23))))),"0") -> 0 | AC23: 0 | AR23: =IF('Master Data'!I38<'GA55 Check & Edit'!AX16,MROUND('Master Data'!I36*1.03,100),MROUND(AZ15*1.03,100)) -> 0 | AU23: L-16 | AW23: FEB | AX23: 2022-02-01 | AY23: 2 | BA23: =IF(AND('Master Data'!$E$36=""),"",IF(AND('Master Data'!$I$28='GA55 Check & Edit'!$AP$6),'GA55 Check & Edit'!$AZ$15,BU23)) -> 52300 | BB23: 52300 | BC23: =IF(AND('Master Data'!$E$36=""),"",IF(AND('Master Data'!$N$26='GA55 Check & Edit'!$AO$5),ROUND(31%*BA23,0),ROUND(17%*BA23,0))) -> 16213 | BD23: =IF(BB23="","",BC23) -> 16213 | BE23: =IFERROR(IF(AND('Master Data'!$E$36=""),"",ROUND('Master Data'!$E$34%*BB23,0)),"") -> 4707 | BF23: ='Master Data'!M47 -> 0 | BG23: =IF(AND('Master Data'!$I$28='GA55 Check & Edit'!$AP$6),"",IF(AND('Master Data'!$I$30='GA55 Check & Edit'!$AN$6,'Master Data'!$N$36='GA55 Check & Edit'!$AO$6),0,IF(AND('Master Data'!$I$30='GA55 Check & Edit'!$AN$6,'Master Data'!$N$36='GA55 Check & Edit'!$AO$5),'Master Data'!$J$43,IF(AND('Master Data'!$I$30='GA55 Check & Edit'!$AN$5),IF($AZ$15<18001,265,IF($AZ$15<33501,440,IF($AZ$15<54001,658,875))))))) -> 0 | BH23: =IFERROR(IF(OR('Master Data'!$I$28='GA55 Check & Edit'!$AP$6),"",'Master Data'!$G$43),"") -> 7000 | BI23: =IFERROR(IF(AND('Master Data'!$I$30='GA55 Check & Edit'!$AN$6),ROUND((E19)*0.1,0),IF(AND('Master Data'!$I$28='GA55 Check & Edit'!$AP$6),ROUND((E19+F19)*0.1,0),'Master Data'!$H$43)),"") -> 5230 | BJ23: 52300 | BK23: 2022-02-01 | BL23: =IFERROR(IF('Master Data'!$E$36="","",IF('Master Data'!$F$40="","",IF(AND($AZ$17>$AZ$9),"",DATE(YEAR(BL22),MONTH(BL22)+1,DAY(BL22))))),"") -> 2022-02-01 | BM23: =IFERROR(IF('Master Data'!$E$36="","",IF('Master Data'!$F$40="","",IF(AND($AZ$17>$AZ$9),"",DATE(YEAR(BM22),MONTH(BM22)+1,DAY(BM22))))),"") -> 2022-02-01 | BN23: 2022-02-01 | BO23: 2022-02-01 | BQ23: 2022-02-01 | BU23: =IF(AND('Master Data'!$I$38='GA55 Check & Edit'!AX23),'Master Data'!$I$36,BU22) -> 52300 | BX23: =IF(BB23="",0,BF23) -> 0
A24: 1 | B24: 17 | C24: 17 | D24: HRA Arrear | E24: =IFERROR(IF(D24="","",IF(AND(BQ28=""),"",IF(AND('Master Data'!$I$28='GA55 Check & Edit'!$AP$6),VLOOKUP(D24,ram,13,0),VLOOKUP(D24,ram,4,0)))),"") ->  | F24: =IFERROR(IF(D24="","",IF(D24=$AX$24,"",IF(AND(D24=$AX$25),$BC$25,IF(AND(D24=$AX$27),"",IF(AND(D24=$AX$28),"",IF(AND('Master Data'!$I$28='GA55 Check & Edit'!$AP$5),VLOOKUP(D24,ram,7,0),"")))))),"") ->  | G24: =IFERROR(IF(D24="","",IF(D24=$AX$24,"",IF(AND(D24=$AX$25),"",IF(AND(D24=$AX$26),"",IF(AND(D24=$AX$27),"",IF(AND(D24=$AX$29),"",IF(AND('Master Data'!$I$28='GA55 Check & Edit'!$AP$6),"",VLOOKUP(D24,ram,8,0)))))))),"") -> 523 | H24: =IFERROR(IF(D24="","",IF(AND(E24=""),"",IF(OR(D24=$AX$24,D24=$AX$25,D24=$AX$26,D24=$AX$27,D24=$AX$28,D24=$AX$29),"",IF(AND('Master Data'!$I$28='GA55 Check & Edit'!$AP$5),'Master Data'!$B$43,"")))),"") ->  | I24: =IFERROR(IF(D24="","",IF(AND(E24=""),"",IF(OR(D24=$AX$24,D24=$AX$25,D24=$AX$26,D24=$AX$27,D24=$AX$28,D24=$AX$29),"",IF(AND('Master Data'!$I$28='GA55 Check & Edit'!$AP$5,'Master Data'!$E$28='GA55 Check & Edit'!$AO$5),'Master Data'!$C$43,"0")))),"") ->  | J24: =IFERROR(IF(OR('Master Data'!$E$32=$AO$6,'Master Data'!$E$32=""),"",IF(D24="","",IF(AND(E24=""),"",IF(OR(D24=$AX$24,D24=$AX$25,D24=$AX$26,D24=$AX$27,D24=$AX$28,D24=$AX$29),"",IF(AND('Master Data'!$I$28='GA55 Check & Edit'!$AP$6),"",IF(AND('Master Data'!$I$32=$AR$9),$AS$6,IF(AND('Master Data'!$I$32=$AR$10),$AS$6,IF(AND('Master Data'!$I$32=$AR$11),$AS$6,IF(AND('Master Data'!$I$32=$AR$12),$AS$6,$AS$5))))))))),"") ->  | K24: =IFERROR(IF(D24="","",IF(AND(E24=""),"",IF(OR(D24=$AX$24,D24=$AX$25,D24=$AX$26,D24=$AX$27,D24=$AX$28,D24=$AX$29),"",IF(AND('Master Data'!$I$28='GA55 Check & Edit'!$AP$5),'Master Data'!$E$43,"")))),"") ->  | L24: =IFERROR(IF(D24="","",IF(AND(E24=""),"",IF(OR(D24=$AX$24,D24=$AX$25,D24=$AX$26,D24=$AX$27,D24=$AX$28,D24=$AX$29),"",IF(AND('Master Data'!$I$28='GA55 Check & Edit'!$AP$6),"",'Master Data'!$F$43)))),"") ->  | N24: =IFERROR(IF(AND(D24=""),"",IF(AND(D24=$AX$25,'Master Data'!$I$30='GA55 Check & Edit'!$AN$6),ROUND((E24+F24)*0.1,0),IF(AND(D24=$AX$29,'Master Data'!$I$30='GA55 Check & Edit'!$AN$6),ROUND((F24)*0.1,0),IF(AND(D24=$AX$26,'Master Data'!$I$30='GA55 Check & Edit'!$AN$6),ROUND((F24)*0.1,0),IF(AND(D24=$AX$27,'Master Data'!$I$30='GA55 Check & Edit'!$AN$6),ROUND((E24+F24)*0.1,0),IF(AND('Master Data'!$I$30='GA55 Check & Edit'!$AN$5),"",IF(AND('Master Data'!$I$30='GA55 Check & Edit'!$AN$6,'Master Data'!$I$28='GA55 Check & Edit'!$AP$6),ROUND((E24)*0.1,0),ROUND((E24+F24)*0.1,0)))))))),"") ->  | O24: =IF(D24="","",IF('Master Data'!$H$18='GA55 Check & Edit'!$AO$5,SUM(E24:N24),SUM(E24:M24))) -> 523 | P24: =IFERROR(IF(OR('Master Data'!$I$28='GA55 Check & Edit'!$AP$6,D24=""),"",IF(AND(D24=$AX$24),"",IF(AND(D24=$AX$25),"",IF(AND(D24=$AX$26),"",IF(AND(D24=$AX$27),"",IF(AND(D24=$AX$28),"",IF(AND(D24=$AX$29),"",IF(AND(E24=""),"",VLOOKUP(D24,ram,11,0))))))))),"") ->  | Q24: =IFERROR(IF(AND(D24="",E24=""),"",IF(AND(D24=$AX$25,'Master Data'!$I$30='GA55 Check & Edit'!$AN$6),ROUND((E24+F24)*0.1,0),IF(AND(D24=$AX$29,'Master Data'!$I$30='GA55 Check & Edit'!$AN$6),ROUND((F24)*0.1,0),IF(AND(D24=$AX$26,'Master Data'!$I$30='GA55 Check & Edit'!$AN$6),ROUND((F24)*0.1,0),IF(AND(D24=$AX$27,'Master Data'!$I$30='GA55 Check & Edit'!$AN$6),ROUND((E24+F24)*0.1,0),IF(AND('Master Data'!$I$30='GA55 Check & Edit'!$AN$6,'Master Data'!$I$28='GA55 Check & Edit'!$AP$6),ROUND((E24)*0.1,0),IF(AND('Master Data'!$I$30='GA55 Check & Edit'!$AN$6,'Master Data'!$I$28='GA55 Check & Edit'!$AP$5),ROUND((E24+F24)*0.1,0),IF(AND('Master Data'!$I$30='GA55 Check & Edit'!$AN$5,'Master Data'!$I$28='GA55 Check & Edit'!$AP$5),VLOOKUP(D24,ram,12,0))))))))),"") ->  | R24: =IFERROR(IF(OR('Master Data'!$I$28='GA55 Check & Edit'!$AP$6,D24=""),"",IF(AND(D24=$AX$24),"",IF(AND(D24=$AX$25),"",IF(AND(D24=$AX$26),"",IF(AND(D24=$AX$27),"",IF(AND(D24=$AX$28),"",IF(AND(D24=$AX$29),"",IF(AND(D24=$AX$32),"",IF(AND(E24=""),"",'Master Data'!$I$43))))))))),"") ->  | S24: =IFERROR(IF(OR('Master Data'!$I$28='GA55 Check & Edit'!$AP$6),"",IF(D24="","",IF(E24="","",IF(AND(D24=$AX$24),"",IF(AND(D24=$AX$25),"",IF(AND(D24=$AX$26),"",IF(AND(D24=$AX$27),"",IF(AND(D24=$AX$28),"",IF(AND(D24=$AX$29),"",VLOOKUP(D24,ram,10,0)))))))))),"") ->  | T24: =IFERROR(IF(OR('Master Data'!$I$28='GA55 Check & Edit'!$AP$6,D24=""),"",IF(AND(D24=$AX$24),"",IF(AND(D24=$AX$25),"",IF(AND(D24=$AX$26),"",IF(AND(D24=$AX$27),"",IF(AND(D24=$AX$28),"",IF(AND(D24=$AX$29),"",IF(AND(E24=""),"",'Master Data'!$K$43)))))))),"") ->  | U24: =IFERROR(IF(OR('Master Data'!$I$28='GA55 Check & Edit'!$AP$6,D24=""),"",IF(AND(D24=$AX$24),"",IF(AND(D24=$AX$25),"",IF(AND(D24=$AX$26),"",IF(AND(D24=$AX$27),"",IF(AND(D24=$AX$28),"",IF(AND(D24=$AX$29),"",IF(AND(E24=""),"",'Master Data'!$L$43)))))))),"") ->  | V24: =IFERROR(IF(OR('Master Data'!$I$28='GA55 Check & Edit'!$AP$6,D24=""),"",IF(AND(D24=$AX$24,'Master Data'!$I$28='GA55 Check & Edit'!$AP$5,'Master Data'!$I$30='GA55 Check & Edit'!$AN$6),ROUND(M24*50%,0),IF(AND(D24=$AX$25),"",IF(AND(D24=$AX$26,'Master Data'!$I$28='GA55 Check & Edit'!$AP$5,'Master Data'!$I$30='GA55 Check & Edit'!$AN$6),SUM(F24-N24),IF(AND(D24=$AX$27),"",IF(AND(D24=$AX$28),"",IF(AND(D24=$AX$29,'Master Data'!$I$28='GA55 Check & Edit'!$AP$5,'Master Data'!$I$30='GA55 Check & Edit'!$AN$6),SUM(F24-N24),IF(AND(E24=""),"",'Master Data'!$M$43)))))))),"") ->  | W24: =IFERROR(IF(OR('Master Data'!$I$28='GA55 Check & Edit'!$AP$6,D24=""),"",IF(AND(D24=$AX$24),"",IF(AND(D24=$AX$25),"",IF(AND(D24=$AX$26),"",IF(AND(D24=$AX$27),"",IF(AND(D24=$AX$28),"",IF(AND(D24=$AX$29),"",IF(AND(E24=""),"",'Master Data'!$O$43)))))))),"") ->  | X24: =IFERROR(IF(OR('Master Data'!$I$28='GA55 Check & Edit'!$AP$6,D24=""),"",IF(AND(E24=""),"",IF(AND('GA55 Check & Edit'!D24='GA55 Check & Edit'!$AT$17,'Master Data'!$D$18="Gazetted"),500,IF(AND('GA55 Check & Edit'!D24='GA55 Check & Edit'!$AT$17,'Master Data'!$D$18="Non-Gazetted"),250,"")))),"") ->  | Y24: =IFERROR(IF(D24="","",IF(AND(E24=""),"",IF(AND(D24=$AX$24),"",IF(AND(D24=$AX$25),"",IF(AND(D24=$AX$26),"",IF(AND(D24=$AX$27),"",IF(AND(D24=$AX$28),"",IF(AND(D24=$AX$29),"",IF(OR('Master Data'!$I$28='GA55 Check & Edit'!$AP$6,D24=""),"",$Y$7))))))))),"") ->  | AA24: =IFERROR(IF(OR('Master Data'!$I$28='GA55 Check & Edit'!$AP$6,D24="",'Master Data'!$N$38=""),"",IF(AND(E24=""),"",IF('GA55 Check & Edit'!D24='GA55 Check & Edit'!$AT$9,'Master Data'!$N$38,""))),"") ->  | AB24: =IFERROR(IF(D24="","",IF(AND(O24=""),"",IF(AND(N24=""),SUM(P24:AA24),IF(AND('Master Data'!$H$18='GA55 Check & Edit'!$AO$5,'Master Data'!$I$30='GA55 Check & Edit'!$AN$6),SUM(P24:AA24)+N24,SUM(P24:AA24))))),"0") -> 0 | AC24: 523 | AS24: =MROUND('Master Data'!I36*1.03,100) -> 0 | AU24: L-17 | AX24: =BM24 -> Bonus | BA24: =IF('Master Data'!$I$26=1,ROUND((6774/12)*1,0),IF('Master Data'!$I$26=2,ROUND((6774/12)*2,0),IF('Master Data'!$I$26=3,ROUND((6774/12)*3,0),IF('Master Data'!$I$26=4,ROUND((6774/12)*4,0),IF('Master Data'!$I$26=5,ROUND((6774/12)*5,0),IF('Master Data'!$I$26=6,ROUND((6774/12)*6,0),IF('Master Data'!$I$26=7,ROUND((6774/12)*7,0),IF('Master Data'!$I$26=8,ROUND((6774/12)*8,0),IF('Master Data'!$I$26=9,ROUND((6774/12)*9,0),IF('Master Data'!$I$26=10,ROUND((6774/12)*10,0),IF('Master Data'!$I$26=11,ROUND((6774/12)*11,0),IF('Master Data'!$I$26=12,ROUND((6774/12)*12,0),0)))))))))))) -> 6774 | BD24: =IF(BC24="","",BC24) ->  | BI24: =IF(AND('Master Data'!$I$24='GA55 Check & Edit'!$AO$6),"",ROUND(BA24*50%,0)) -> 3387 | BK24: 2022-03-01 | BL24: =IFERROR(IF('Master Data'!$E$36="","",IF('Master Data'!$F$40="","",IF(AND($AZ$17>$AZ$9),"",DATE(YEAR(BL23),MONTH(BL23)+1,DAY(BL23))))),"") -> 2022-03-01 | BM24: Bonus | BO24: Bonus | BX24: 0
A25: 0 | B25: 18 | C25: 18 | D25: =IFERROR(IF(BO29="","",BO29),"") -> PL Surrender Arrear | E25: =IFERROR(IF(D25="","",IF(AND(BQ29=""),"",IF(AND('Master Data'!$I$28='GA55 Check & Edit'!$AP$6),VLOOKUP(D25,ram,13,0),VLOOKUP(D25,ram,4,0)))),"") ->  | F25: =IFERROR(IF(D25="","",IF(D25=$AX$24,"",IF(AND(D25=$AX$25),$BC$25,IF(AND(D25=$AX$27),"",IF(AND(D25=$AX$28),"",IF(AND('Master Data'!$I$28='GA55 Check & Edit'!$AP$5),VLOOKUP(D25,ram,7,0),"")))))),"") -> 0 | G25: =IFERROR(IF(D25="","",IF(D25=$AX$24,"",IF(AND(D25=$AX$25),"",IF(AND(D25=$AX$26),"",IF(AND(D25=$AX$27),"",IF(AND(D25=$AX$29),"",IF(AND('Master Data'!$I$28='GA55 Check & Edit'!$AP$6),"",VLOOKUP(D25,ram,8,0)))))))),"") ->  | H25: =IFERROR(IF(D25="","",IF(AND(E25=""),"",IF(OR(D25=$AX$24,D25=$AX$25,D25=$AX$26,D25=$AX$27,D25=$AX$28,D25=$AX$29),"",IF(AND('Master Data'!$I$28='GA55 Check & Edit'!$AP$5),'Master Data'!$B$43,"")))),"") ->  | I25: =IFERROR(IF(D25="","",IF(AND(E25=""),"",IF(OR(D25=$AX$24,D25=$AX$25,D25=$AX$26,D25=$AX$27,D25=$AX$28,D25=$AX$29),"",IF(AND('Master Data'!$I$28='GA55 Check & Edit'!$AP$5,'Master Data'!$E$28='GA55 Check & Edit'!$AO$5),'Master Data'!$C$43,"0")))),"") ->  | J25: =IFERROR(IF(OR('Master Data'!$E$32=$AO$6,'Master Data'!$E$32=""),"",IF(D25="","",IF(AND(E25=""),"",IF(OR(D25=$AX$24,D25=$AX$25,D25=$AX$26,D25=$AX$27,D25=$AX$28,D25=$AX$29),"",IF(AND('Master Data'!$I$28='GA55 Check & Edit'!$AP$6),"",IF(AND('Master Data'!$I$32=$AR$9),$AS$6,IF(AND('Master Data'!$I$32=$AR$10),$AS$6,IF(AND('Master Data'!$I$32=$AR$11),$AS$6,IF(AND('Master Data'!$I$32=$AR$12),$AS$6,$AS$5))))))))),"") ->  | K25: =IFERROR(IF(D25="","",IF(AND(E25=""),"",IF(OR(D25=$AX$24,D25=$AX$25,D25=$AX$26,D25=$AX$27,D25=$AX$28,D25=$AX$29),"",IF(AND('Master Data'!$I$28='GA55 Check & Edit'!$AP$5),'Master Data'!$E$43,"")))),"") ->  | L25: =IFERROR(IF(D25="","",IF(AND(E25=""),"",IF(OR(D25=$AX$24,D25=$AX$25,D25=$AX$26,D25=$AX$27,D25=$AX$28,D25=$AX$29),"",IF(AND('Master Data'!$I$28='GA55 Check & Edit'!$AP$6),"",'Master Data'!$F$43)))),"") ->  | N25: =IFERROR(IF(AND(D25=""),"",IF(AND(D25=$AX$25,'Master Data'!$I$30='GA55 Check & Edit'!$AN$6),ROUND((E25+F25)*0.1,0),IF(AND(D25=$AX$29,'Master Data'!$I$30='GA55 Check & Edit'!$AN$6),ROUND((F25)*0.1,0),IF(AND(D25=$AX$26,'Master Data'!$I$30='GA55 Check & Edit'!$AN$6),ROUND((F25)*0.1,0),IF(AND(D25=$AX$27,'Master Data'!$I$30='GA55 Check & Edit'!$AN$6),ROUND((E25+F25)*0.1,0),IF(AND('Master Data'!$I$30='GA55 Check & Edit'!$AN$5),"",IF(AND('Master Data'!$I$30='GA55 Check & Edit'!$AN$6,'Master Data'!$I$28='GA55 Check & Edit'!$AP$6),ROUND((E25)*0.1,0),ROUND((E25+F25)*0.1,0)))))))),"") -> 0 | O25: =IF(D25="","",IF('Master Data'!$H$18='GA55 Check & Edit'!$AO$5,SUM(E25:N25),SUM(E25:M25))) -> 0 | P25: =IFERROR(IF(OR('Master Data'!$I$28='GA55 Check & Edit'!$AP$6,D25=""),"",IF(AND(D25=$AX$24),"",IF(AND(D25=$AX$25),"",IF(AND(D25=$AX$26),"",IF(AND(D25=$AX$27),"",IF(AND(D25=$AX$28),"",IF(AND(D25=$AX$29),"",IF(AND(E25=""),"",VLOOKUP(D25,ram,11,0))))))))),"") ->  | Q25: =IFERROR(IF(AND(D25="",E25=""),"",IF(AND(D25=$AX$25,'Master Data'!$I$30='GA55 Check & Edit'!$AN$6),ROUND((E25+F25)*0.1,0),IF(AND(D25=$AX$29,'Master Data'!$I$30='GA55 Check & Edit'!$AN$6),ROUND((F25)*0.1,0),IF(AND(D25=$AX$26,'Master Data'!$I$30='GA55 Check & Edit'!$AN$6),ROUND((F25)*0.1,0),IF(AND(D25=$AX$27,'Master Data'!$I$30='GA55 Check & Edit'!$AN$6),ROUND((E25+F25)*0.1,0),IF(AND('Master Data'!$I$30='GA55 Check & Edit'!$AN$6,'Master Data'!$I$28='GA55 Check & Edit'!$AP$6),ROUND((E25)*0.1,0),IF(AND('Master Data'!$I$30='GA55 Check & Edit'!$AN$6,'Master Data'!$I$28='GA55 Check & Edit'!$AP$5),ROUND((E25+F25)*0.1,0),IF(AND('Master Data'!$I$30='GA55 Check & Edit'!$AN$5,'Master Data'!$I$28='GA55 Check & Edit'!$AP$5),VLOOKUP(D25,ram,12,0))))))))),"") -> 0 | R25: =IFERROR(IF(OR('Master Data'!$I$28='GA55 Check & Edit'!$AP$6,D25=""),"",IF(AND(D25=$AX$24),"",IF(AND(D25=$AX$25),"",IF(AND(D25=$AX$26),"",IF(AND(D25=$AX$27),"",IF(AND(D25=$AX$28),"",IF(AND(D25=$AX$29),"",IF(AND(D25=$AX$32),"",IF(AND(E25=""),"",'Master Data'!$I$43))))))))),"") ->  | S25: =IFERROR(IF(OR('Master Data'!$I$28='GA55 Check & Edit'!$AP$6),"",IF(D25="","",IF(E25="","",IF(AND(D25=$AX$24),"",IF(AND(D25=$AX$25),"",IF(AND(D25=$AX$26),"",IF(AND(D25=$AX$27),"",IF(AND(D25=$AX$28),"",IF(AND(D25=$AX$29),"",VLOOKUP(D25,ram,10,0)))))))))),"") ->  | T25: =IFERROR(IF(OR('Master Data'!$I$28='GA55 Check & Edit'!$AP$6,D25=""),"",IF(AND(D25=$AX$24),"",IF(AND(D25=$AX$25),"",IF(AND(D25=$AX$26),"",IF(AND(D25=$AX$27),"",IF(AND(D25=$AX$28),"",IF(AND(D25=$AX$29),"",IF(AND(E25=""),"",'Master Data'!$K$43)))))))),"") ->  | U25: =IFERROR(IF(OR('Master Data'!$I$28='GA55 Check & Edit'!$AP$6,D25=""),"",IF(AND(D25=$AX$24),"",IF(AND(D25=$AX$25),"",IF(AND(D25=$AX$26),"",IF(AND(D25=$AX$27),"",IF(AND(D25=$AX$28),"",IF(AND(D25=$AX$29),"",IF(AND(E25=""),"",'Master Data'!$L$43)))))))),"") ->  | V25: =IFERROR(IF(OR('Master Data'!$I$28='GA55 Check & Edit'!$AP$6,D25=""),"",IF(AND(D25=$AX$24,'Master Data'!$I$28='GA55 Check & Edit'!$AP$5,'Master Data'!$I$30='GA55 Check & Edit'!$AN$6),ROUND(M25*50%,0),IF(AND(D25=$AX$25),"",IF(AND(D25=$AX$26,'Master Data'!$I$28='GA55 Check & Edit'!$AP$5,'Master Data'!$I$30='GA55 Check & Edit'!$AN$6),SUM(F25-N25),IF(AND(D25=$AX$27),"",IF(AND(D25=$AX$28),"",IF(AND(D25=$AX$29,'Master Data'!$I$28='GA55 Check & Edit'!$AP$5,'Master Data'!$I$30='GA55 Check & Edit'!$AN$6),SUM(F25-N25),IF(AND(E25=""),"",'Master Data'!$M$43)))))))),"") -> 0 | W25: =IFERROR(IF(OR('Master Data'!$I$28='GA55 Check & Edit'!$AP$6,D25=""),"",IF(AND(D25=$AX$24),"",IF(AND(D25=$AX$25),"",IF(AND(D25=$AX$26),"",IF(AND(D25=$AX$27),"",IF(AND(D25=$AX$28),"",IF(AND(D25=$AX$29),"",IF(AND(E25=""),"",'Master Data'!$O$43)))))))),"") ->  | X25: =IFERROR(IF(OR('Master Data'!$I$28='GA55 Check & Edit'!$AP$6,D25=""),"",IF(AND(E25=""),"",IF(AND('GA55 Check & Edit'!D25='GA55 Check & Edit'!$AT$17,'Master Data'!$D$18="Gazetted"),500,IF(AND('GA55 Check & Edit'!D25='GA55 Check & Edit'!$AT$17,'Master Data'!$D$18="Non-Gazetted"),250,"")))),"") ->  | Y25: =IFERROR(IF(D25="","",IF(AND(E25=""),"",IF(AND(D25=$AX$24),"",IF(AND(D25=$AX$25),"",IF(AND(D25=$AX$26),"",IF(AND(D25=$AX$27),"",IF(AND(D25=$AX$28),"",IF(AND(D25=$AX$29),"",IF(OR('Master Data'!$I$28='GA55 Check & Edit'!$AP$6,D25=""),"",$Y$7))))))))),"") ->  | AA25: =IFERROR(IF(OR('Master Data'!$I$28='GA55 Check & Edit'!$AP$6,D25="",'Master Data'!$N$38=""),"",IF(AND(E25=""),"",IF('GA55 Check & Edit'!D25='GA55 Check & Edit'!$AT$9,'Master Data'!$N$38,""))),"") ->  | AB25: =IFERROR(IF(D25="","",IF(AND(O25=""),"",IF(AND(N25=""),SUM(P25:AA25),IF(AND('Master Data'!$H$18='GA55 Check & Edit'!$AO$5,'Master Data'!$I$30='GA55 Check & Edit'!$AN$6),SUM(P25:AA25)+N25,SUM(P25:AA25))))),"0") -> 0 | AC25: 0 | AS25: =MROUND(AZ15*1.03,100) -> 52300 | AU25: L-18 | AX25: =BM25 -> PL Surrender | BA25: =IF('Master Data'!$I$28='GA55 Check & Edit'!$AP$6,"",IF(OR('Master Data'!E22="NO",'Master Data'!E22=""),0,VLOOKUP('Master Data'!I22,AW12:BD29,5,0)/2)) -> 0 | BC25: =IF('Master Data'!$I$28='GA55 Check & Edit'!$AP$6,"",IF(AND(BA25=""),"",IF(OR('Master Data'!I22='GA55 Check & Edit'!AW12,'Master Data'!I22='GA55 Check & Edit'!AW13,'Master Data'!I22='GA55 Check & Edit'!AW14,'Master Data'!I22='GA55 Check & Edit'!AW15),ROUND(17%*BA25,0),IF(OR('Master Data'!I22='GA55 Check & Edit'!AW16,'Master Data'!I22='GA55 Check & Edit'!AW17,'Master Data'!I22='GA55 Check & Edit'!AW18),ROUND(28%*BA25,0),ROUND(31%*BA25,0))))) -> 0 | BD25: =IF(BC25="","",BC25) -> 0 | BK25: 2022-04-01 | BL25: =IFERROR(IF('Master Data'!$E$36="","",IF('Master Data'!$F$40="","",IF(AND($AZ$17>$AZ$9),"",DATE(YEAR(BL24),MONTH(BL24)+1,DAY(BL24))))),"") -> 2022-04-01 | BM25: PL Surrender | BO25: PL Surrender | BQ25: PL Surrender | BX25: 0
A26: 0 | B26: 0 | D26: =IFERROR(IF(BO30="","",BO30),"") ->  | E26: =IFERROR(IF(D26="","",IF(AND(BQ30=""),"",IF(AND('Master Data'!$I$28='GA55 Check & Edit'!$AP$6),VLOOKUP(D26,ram,13,0),VLOOKUP(D26,ram,4,0)))),"") ->  | F26: =IFERROR(IF(D26="","",IF(D26=$AX$24,"",IF(AND(D26=$AX$25),$BC$25,IF(AND(D26=$AX$27),"",IF(AND(D26=$AX$28),"",IF(AND('Master Data'!$I$28='GA55 Check & Edit'!$AP$5),VLOOKUP(D26,ram,7,0),"")))))),"") ->  | G26: =IFERROR(IF(D26="","",IF(D26=$AX$24,"",IF(AND(D26=$AX$25),"",IF(AND(D26=$AX$26),"",IF(AND(D26=$AX$27),"",IF(AND(D26=$AX$29),"",IF(AND('Master Data'!$I$28='GA55 Check & Edit'!$AP$6),"",VLOOKUP(D26,ram,8,0)))))))),"") ->  | H26: =IFERROR(IF(D26="","",IF(AND(E26=""),"",IF(OR(D26=$AX$24,D26=$AX$25,D26=$AX$26,D26=$AX$27,D26=$AX$28,D26=$AX$29),"",IF(AND('Master Data'!$I$28='GA55 Check & Edit'!$AP$5),'Master Data'!$B$43,"")))),"") ->  | I26: =IFERROR(IF(D26="","",IF(AND(E26=""),"",IF(OR(D26=$AX$24,D26=$AX$25,D26=$AX$26,D26=$AX$27,D26=$AX$28,D26=$AX$29),"",IF(AND('Master Data'!$I$28='GA55 Check & Edit'!$AP$5,'Master Data'!$E$28='GA55 Check & Edit'!$AO$5),'Master Data'!$C$43,"0")))),"") ->  | J26: =IFERROR(IF(OR('Master Data'!$E$32=$AO$6,'Master Data'!$E$32=""),"",IF(D26="","",IF(AND(E26=""),"",IF(OR(D26=$AX$24,D26=$AX$25,D26=$AX$26,D26=$AX$27,D26=$AX$28,D26=$AX$29),"",IF(AND('Master Data'!$I$28='GA55 Check & Edit'!$AP$6),"",IF(AND('Master Data'!$I$32=$AR$9),$AS$6,IF(AND('Master Data'!$I$32=$AR$10),$AS$6,IF(AND('Master Data'!$I$32=$AR$11),$AS$6,IF(AND('Master Data'!$I$32=$AR$12),$AS$6,$AS$5))))))))),"") ->  | K26: =IFERROR(IF(D26="","",IF(AND(E26=""),"",IF(OR(D26=$AX$24,D26=$AX$25,D26=$AX$26,D26=$AX$27,D26=$AX$28,D26=$AX$29),"",IF(AND('Master Data'!$I$28='GA55 Check & Edit'!$AP$5),'Master Data'!$E$43,"")))),"") ->  | L26: =IFERROR(IF(D26="","",IF(AND(E26=""),"",IF(OR(D26=$AX$24,D26=$AX$25,D26=$AX$26,D26=$AX$27,D26=$AX$28,D26=$AX$29),"",IF(AND('Master Data'!$I$28='GA55 Check & Edit'!$AP$6),"",'Master Data'!$F$43)))),"") ->  | N26: =IFERROR(IF(AND(D26=""),"",IF(AND(D26=$AX$25,'Master Data'!$I$30='GA55 Check & Edit'!$AN$6),ROUND((E26+F26)*0.1,0),IF(AND(D26=$AX$29,'Master Data'!$I$30='GA55 Check & Edit'!$AN$6),ROUND((F26)*0.1,0),IF(AND(D26=$AX$26,'Master Data'!$I$30='GA55 Check & Edit'!$AN$6),ROUND((F26)*0.1,0),IF(AND(D26=$AX$27,'Master Data'!$I$30='GA55 Check & Edit'!$AN$6),ROUND((E26+F26)*0.1,0),IF(AND('Master Data'!$I$30='GA55 Check & Edit'!$AN$5),"",IF(AND('Master Data'!$I$30='GA55 Check & Edit'!$AN$6,'Master Data'!$I$28='GA55 Check & Edit'!$AP$6),ROUND((E26)*0.1,0),ROUND((E26+F26)*0.1,0)))))))),"") ->  | O26: =IF(D26="","",IF('Master Data'!$H$18='GA55 Check & Edit'!$AO$5,SUM(E26:N26),SUM(E26:M26))) ->  | P26: =IFERROR(IF(OR('Master Data'!$I$28='GA55 Check & Edit'!$AP$6,D26=""),"",IF(AND(D26=$AX$24),"",IF(AND(D26=$AX$25),"",IF(AND(D26=$AX$26),"",IF(AND(D26=$AX$27),"",IF(AND(D26=$AX$28),"",IF(AND(D26=$AX$29),"",IF(AND(E26=""),"",VLOOKUP(D26,ram,11,0))))))))),"") ->  | Q26: =IFERROR(IF(AND(D26="",E26=""),"",IF(AND(D26=$AX$25,'Master Data'!$I$30='GA55 Check & Edit'!$AN$6),ROUND((E26+F26)*0.1,0),IF(AND(D26=$AX$29,'Master Data'!$I$30='GA55 Check & Edit'!$AN$6),ROUND((F26)*0.1,0),IF(AND(D26=$AX$26,'Master Data'!$I$30='GA55 Check & Edit'!$AN$6),ROUND((F26)*0.1,0),IF(AND(D26=$AX$27,'Master Data'!$I$30='GA55 Check & Edit'!$AN$6),ROUND((E26+F26)*0.1,0),IF(AND('Master Data'!$I$30='GA55 Check & Edit'!$AN$6,'Master Data'!$I$28='GA55 Check & Edit'!$AP$6),ROUND((E26)*0.1,0),IF(AND('Master Data'!$I$30='GA55 Check & Edit'!$AN$6,'Master Data'!$I$28='GA55 Check & Edit'!$AP$5),ROUND((E26+F26)*0.1,0),IF(AND('Master Data'!$I$30='GA55 Check & Edit'!$AN$5,'Master Data'!$I$28='GA55 Check & Edit'!$AP$5),VLOOKUP(D26,ram,12,0))))))))),"") ->  | R26: =IFERROR(IF(OR('Master Data'!$I$28='GA55 Check & Edit'!$AP$6,D26=""),"",IF(AND(D26=$AX$24),"",IF(AND(D26=$AX$25),"",IF(AND(D26=$AX$26),"",IF(AND(D26=$AX$27),"",IF(AND(D26=$AX$28),"",IF(AND(D26=$AX$29),"",IF(AND(D26=$AX$32),"",IF(AND(E26=""),"",'Master Data'!$I$43))))))))),"") ->  | S26: =IFERROR(IF(OR('Master Data'!$I$28='GA55 Check & Edit'!$AP$6),"",IF(D26="","",IF(E26="","",IF(AND(D26=$AX$24),"",IF(AND(D26=$AX$25),"",IF(AND(D26=$AX$26),"",IF(AND(D26=$AX$27),"",IF(AND(D26=$AX$28),"",IF(AND(D26=$AX$29),"",VLOOKUP(D26,ram,10,0)))))))))),"") ->  | T26: =IFERROR(IF(OR('Master Data'!$I$28='GA55 Check & Edit'!$AP$6,D26=""),"",IF(AND(D26=$AX$24),"",IF(AND(D26=$AX$25),"",IF(AND(D26=$AX$26),"",IF(AND(D26=$AX$27),"",IF(AND(D26=$AX$28),"",IF(AND(D26=$AX$29),"",IF(AND(E26=""),"",'Master Data'!$K$43)))))))),"") ->  | U26: =IFERROR(IF(OR('Master Data'!$I$28='GA55 Check & Edit'!$AP$6,D26=""),"",IF(AND(D26=$AX$24),"",IF(AND(D26=$AX$25),"",IF(AND(D26=$AX$26),"",IF(AND(D26=$AX$27),"",IF(AND(D26=$AX$28),"",IF(AND(D26=$AX$29),"",IF(AND(E26=""),"",'Master Data'!$L$43)))))))),"") ->  | V26: =IFERROR(IF(OR('Master Data'!$I$28='GA55 Check & Edit'!$AP$6,D26=""),"",IF(AND(D26=$AX$24,'Master Data'!$I$28='GA55 Check & Edit'!$AP$5,'Master Data'!$I$30='GA55 Check & Edit'!$AN$6),ROUND(M26*50%,0),IF(AND(D26=$AX$25),"",IF(AND(D26=$AX$26,'Master Data'!$I$28='GA55 Check & Edit'!$AP$5,'Master Data'!$I$30='GA55 Check & Edit'!$AN$6),SUM(F26-N26),IF(AND(D26=$AX$27),"",IF(AND(D26=$AX$28),"",IF(AND(D26=$AX$29,'Master Data'!$I$28='GA55 Check & Edit'!$AP$5,'Master Data'!$I$30='GA55 Check & Edit'!$AN$6),SUM(F26-N26),IF(AND(E26=""),"",'Master Data'!$M$43)))))))),"") ->  | W26: =IFERROR(IF(OR('Master Data'!$I$28='GA55 Check & Edit'!$AP$6,D26=""),"",IF(AND(D26=$AX$24),"",IF(AND(D26=$AX$25),"",IF(AND(D26=$AX$26),"",IF(AND(D26=$AX$27),"",IF(AND(D26=$AX$28),"",IF(AND(D26=$AX$29),"",IF(AND(E26=""),"",'Master Data'!$O$43)))))))),"") ->  | X26: =IFERROR(IF(OR('Master Data'!$I$28='GA55 Check & Edit'!$AP$6,D26=""),"",IF(AND(E26=""),"",IF(AND('GA55 Check & Edit'!D26='GA55 Check & Edit'!$AT$17,'Master Data'!$D$18="Gazetted"),500,IF(AND('GA55 Check & Edit'!D26='GA55 Check & Edit'!$AT$17,'Master Data'!$D$18="Non-Gazetted"),250,"")))),"") ->  | Y26: =IFERROR(IF(D26="","",IF(AND(E26=""),"",IF(AND(D26=$AX$24),"",IF(AND(D26=$AX$25),"",IF(AND(D26=$AX$26),"",IF(AND(D26=$AX$27),"",IF(AND(D26=$AX$28),"",IF(AND(D26=$AX$29),"",IF(OR('Master Data'!$I$28='GA55 Check & Edit'!$AP$6,D26=""),"",$Y$7))))))))),"") ->  | AA26: =IFERROR(IF(OR('Master Data'!$I$28='GA55 Check & Edit'!$AP$6,D26="",'Master Data'!$N$38=""),"",IF(AND(E26=""),"",IF('GA55 Check & Edit'!D26='GA55 Check & Edit'!$AT$9,'Master Data'!$N$38,""))),"") ->  | AB26: =IFERROR(IF(D26="","",IF(AND(O26=""),"",IF(AND(N26=""),SUM(P26:AA26),IF(AND('Master Data'!$H$18='GA55 Check & Edit'!$AO$5,'Master Data'!$I$30='GA55 Check & Edit'!$AN$6),SUM(P26:AA26)+N26,SUM(P26:AA26))))),"0") ->  | AU26: L-19 | AX26: DA Arrear | BC26: =(ROUND((BA16*31%),0)-ROUND((BA16*28%),0))*3 -> 4707 | BD26: =IF(BC26="","",BC26) -> 4707 | BI26: =BD26 -> 4707 | BK26: 2022-05-01 | BL26: =IFERROR(IF('Master Data'!$E$36="","",IF('Master Data'!$F$40="","",IF(AND($AZ$17>$AZ$9),"",DATE(YEAR(BL25),MONTH(BL25)+1,DAY(BL25))))),"") -> 2022-05-01 | BM26: DA Arrear | BO26: DA Arrear | BX26: 0
A27: 0 | B27: 0 | E27: =IFERROR(IF(D27="","",IF(AND(BQ31=""),"",IF(AND('Master Data'!$I$28='GA55 Check & Edit'!$AP$6),VLOOKUP(D27,ram,13,0),VLOOKUP(D27,ram,4,0)))),"") ->  | F27: =IFERROR(IF(D27="","",IF(D27=$AX$24,"",IF(AND(D27=$AX$25),$BC$25,IF(AND(D27=$AX$27),"",IF(AND(D27=$AX$28),"",IF(AND('Master Data'!$I$28='GA55 Check & Edit'!$AP$5),VLOOKUP(D27,ram,7,0),"")))))),"") ->  | G27: =IFERROR(IF(D27="","",IF(D27=$AX$24,"",IF(AND(D27=$AX$25),"",IF(AND(D27=$AX$26),"",IF(AND(D27=$AX$27),"",IF(AND(D27=$AX$29),"",IF(AND('Master Data'!$I$28='GA55 Check & Edit'!$AP$6),"",VLOOKUP(D27,ram,8,0)))))))),"") ->  | H27: =IFERROR(IF(D27="","",IF(AND(E27=""),"",IF(OR(D27=$AX$24,D27=$AX$25,D27=$AX$26,D27=$AX$27,D27=$AX$28,D27=$AX$29),"",IF(AND('Master Data'!$I$28='GA55 Check & Edit'!$AP$5),'Master Data'!$B$43,"")))),"") ->  | I27: =IFERROR(IF(D27="","",IF(AND(E27=""),"",IF(OR(D27=$AX$24,D27=$AX$25,D27=$AX$26,D27=$AX$27,D27=$AX$28,D27=$AX$29),"",IF(AND('Master Data'!$I$28='GA55 Check & Edit'!$AP$5,'Master Data'!$E$28='GA55 Check & Edit'!$AO$5),'Master Data'!$C$43,"0")))),"") ->  | J27: =IFERROR(IF(OR('Master Data'!$E$32=$AO$6,'Master Data'!$E$32=""),"",IF(D27="","",IF(AND(E27=""),"",IF(OR(D27=$AX$24,D27=$AX$25,D27=$AX$26,D27=$AX$27,D27=$AX$28,D27=$AX$29),"",IF(AND('Master Data'!$I$28='GA55 Check & Edit'!$AP$6),"",IF(AND('Master Data'!$I$32=$AR$9),$AS$6,IF(AND('Master Data'!$I$32=$AR$10),$AS$6,IF(AND('Master Data'!$I$32=$AR$11),$AS$6,IF(AND('Master Data'!$I$32=$AR$12),$AS$6,$AS$5))))))))),"") ->  | K27: =IFERROR(IF(D27="","",IF(AND(E27=""),"",IF(OR(D27=$AX$24,D27=$AX$25,D27=$AX$26,D27=$AX$27,D27=$AX$28,D27=$AX$29),"",IF(AND('Master Data'!$I$28='GA55 Check & Edit'!$AP$5),'Master Data'!$E$43,"")))),"") ->  | L27: =IFERROR(IF(D27="","",IF(AND(E27=""),"",IF(OR(D27=$AX$24,D27=$AX$25,D27=$AX$26,D27=$AX$27,D27=$AX$28,D27=$AX$29),"",IF(AND('Master Data'!$I$28='GA55 Check & Edit'!$AP$6),"",'Master Data'!$F$43)))),"") ->  | N27: =IFERROR(IF(AND(D27=""),"",IF(AND(D27=$AX$25,'Master Data'!$I$30='GA55 Check & Edit'!$AN$6),ROUND((E27+F27)*0.1,0),IF(AND(D27=$AX$29,'Master Data'!$I$30='GA55 Check & Edit'!$AN$6),ROUND((F27)*0.1,0),IF(AND(D27=$AX$26,'Master Data'!$I$30='GA55 Check & Edit'!$AN$6),ROUND((F27)*0.1,0),IF(AND(D27=$AX$27,'Master Data'!$I$30='GA55 Check & Edit'!$AN$6),ROUND((E27+F27)*0.1,0),IF(AND('Master Data'!$I$30='GA55 Check & Edit'!$AN$5),"",IF(AND('Master Data'!$I$30='GA55 Check & Edit'!$AN$6,'Master Data'!$I$28='GA55 Check & Edit'!$AP$6),ROUND((E27)*0.1,0),ROUND((E27+F27)*0.1,0)))))))),"") ->  | O27: =IF(D27="","",IF('Master Data'!$H$18='GA55 Check & Edit'!$AO$5,SUM(E27:N27),SUM(E27:M27))) ->  | P27: =IFERROR(IF(OR('Master Data'!$I$28='GA55 Check & Edit'!$AP$6,D27=""),"",IF(AND(D27=$AX$24),"",IF(AND(D27=$AX$25),"",IF(AND(D27=$AX$26),"",IF(AND(D27=$AX$27),"",IF(AND(D27=$AX$28),"",IF(AND(D27=$AX$29),"",IF(AND(E27=""),"",VLOOKUP(D27,ram,11,0))))))))),"") ->  | Q27: =IFERROR(IF(AND(D27="",E27=""),"",IF(AND(D27=$AX$25,'Master Data'!$I$30='GA55 Check & Edit'!$AN$6),ROUND((E27+F27)*0.1,0),IF(AND(D27=$AX$29,'Master Data'!$I$30='GA55 Check & Edit'!$AN$6),ROUND((F27)*0.1,0),IF(AND(D27=$AX$26,'Master Data'!$I$30='GA55 Check & Edit'!$AN$6),ROUND((F27)*0.1,0),IF(AND(D27=$AX$27,'Master Data'!$I$30='GA55 Check & Edit'!$AN$6),ROUND((E27+F27)*0.1,0),IF(AND('Master Data'!$I$30='GA55 Check & Edit'!$AN$6,'Master Data'!$I$28='GA55 Check & Edit'!$AP$6),ROUND((E27)*0.1,0),IF(AND('Master Data'!$I$30='GA55 Check & Edit'!$AN$6,'Master Data'!$I$28='GA55 Check & Edit'!$AP$5),ROUND((E27+F27)*0.1,0),IF(AND('Master Data'!$I$30='GA55 Check & Edit'!$AN$5,'Master Data'!$I$28='GA55 Check & Edit'!$AP$5),VLOOKUP(D27,ram,12,0))))))))),"") ->  | R27: =IFERROR(IF(OR('Master Data'!$I$28='GA55 Check & Edit'!$AP$6,D27=""),"",IF(AND(D27=$AX$24),"",IF(AND(D27=$AX$25),"",IF(AND(D27=$AX$26),"",IF(AND(D27=$AX$27),"",IF(AND(D27=$AX$28),"",IF(AND(D27=$AX$29),"",IF(AND(D27=$AX$32),"",IF(AND(E27=""),"",'Master Data'!$I$43))))))))),"") ->  | S27: =IFERROR(IF(OR('Master Data'!$I$28='GA55 Check & Edit'!$AP$6),"",IF(D27="","",IF(E27="","",IF(AND(D27=$AX$24),"",IF(AND(D27=$AX$25),"",IF(AND(D27=$AX$26),"",IF(AND(D27=$AX$27),"",IF(AND(D27=$AX$28),"",IF(AND(D27=$AX$29),"",VLOOKUP(D27,ram,10,0)))))))))),"") ->  | T27: =IFERROR(IF(OR('Master Data'!$I$28='GA55 Check & Edit'!$AP$6,D27=""),"",IF(AND(D27=$AX$24),"",IF(AND(D27=$AX$25),"",IF(AND(D27=$AX$26),"",IF(AND(D27=$AX$27),"",IF(AND(D27=$AX$28),"",IF(AND(D27=$AX$29),"",IF(AND(E27=""),"",'Master Data'!$K$43)))))))),"") ->  | U27: =IFERROR(IF(OR('Master Data'!$I$28='GA55 Check & Edit'!$AP$6,D27=""),"",IF(AND(D27=$AX$24),"",IF(AND(D27=$AX$25),"",IF(AND(D27=$AX$26),"",IF(AND(D27=$AX$27),"",IF(AND(D27=$AX$28),"",IF(AND(D27=$AX$29),"",IF(AND(E27=""),"",'Master Data'!$L$43)))))))),"") ->  | V27: =IFERROR(IF(OR('Master Data'!$I$28='GA55 Check & Edit'!$AP$6,D27=""),"",IF(AND(D27=$AX$24,'Master Data'!$I$28='GA55 Check & Edit'!$AP$5,'Master Data'!$I$30='GA55 Check & Edit'!$AN$6),ROUND(M27*50%,0),IF(AND(D27=$AX$25),"",IF(AND(D27=$AX$26,'Master Data'!$I$28='GA55 Check & Edit'!$AP$5,'Master Data'!$I$30='GA55 Check & Edit'!$AN$6),SUM(F27-N27),IF(AND(D27=$AX$27),"",IF(AND(D27=$AX$28),"",IF(AND(D27=$AX$29,'Master Data'!$I$28='GA55 Check & Edit'!$AP$5,'Master Data'!$I$30='GA55 Check & Edit'!$AN$6),SUM(F27-N27),IF(AND(E27=""),"",'Master Data'!$M$43)))))))),"") ->  | W27: =IFERROR(IF(OR('Master Data'!$I$28='GA55 Check & Edit'!$AP$6,D27=""),"",IF(AND(D27=$AX$24),"",IF(AND(D27=$AX$25),"",IF(AND(D27=$AX$26),"",IF(AND(D27=$AX$27),"",IF(AND(D27=$AX$28),"",IF(AND(D27=$AX$29),"",IF(AND(E27=""),"",'Master Data'!$O$43)))))))),"") ->  | X27: =IFERROR(IF(OR('Master Data'!$I$28='GA55 Check & Edit'!$AP$6,D27=""),"",IF(AND(E27=""),"",IF(AND('GA55 Check & Edit'!D27='GA55 Check & Edit'!$AT$17,'Master Data'!$D$18="Gazetted"),500,IF(AND('GA55 Check & Edit'!D27='GA55 Check & Edit'!$AT$17,'Master Data'!$D$18="Non-Gazetted"),250,"")))),"") ->  | Y27: =IFERROR(IF(D27="","",IF(AND(E27=""),"",IF(AND(D27=$AX$24),"",IF(AND(D27=$AX$25),"",IF(AND(D27=$AX$26),"",IF(AND(D27=$AX$27),"",IF(AND(D27=$AX$28),"",IF(AND(D27=$AX$29),"",IF(OR('Master Data'!$I$28='GA55 Check & Edit'!$AP$6,D27=""),"",$Y$7))))))))),"") ->  | AA27: =IFERROR(IF(OR('Master Data'!$I$28='GA55 Check & Edit'!$AP$6,D27="",'Master Data'!$N$38=""),"",IF(AND(E27=""),"",IF('GA55 Check & Edit'!D27='GA55 Check & Edit'!$AT$9,'Master Data'!$N$38,""))),"") ->  | AB27: =IFERROR(IF(D27="","",IF(AND(O27=""),"",IF(AND(N27=""),SUM(P27:AA27),IF(AND('Master Data'!$H$18='GA55 Check & Edit'!$AO$5,'Master Data'!$I$30='GA55 Check & Edit'!$AN$6),SUM(P27:AA27)+N27,SUM(P27:AA27))))),"0") ->  | AU27: L-20 | AX27: Fixation arear | BD27: =IF(BC27="","",BC27) ->  | BK27: 2022-06-01 | BL27: =IFERROR(IF('Master Data'!$E$36="","",IF('Master Data'!$F$40="","",IF(AND($AZ$17>$AZ$9),"",DATE(YEAR(BL26),MONTH(BL26)+1,DAY(BL26))))),"") -> 2022-06-01 | BM27: Fixation arear | BO27: Fixation arear | BX27: 0
A28: 0 | B28: 0 | E28: =IFERROR(IF(D28="","",IF(AND(BQ32=""),"",IF(AND('Master Data'!$I$28='GA55 Check & Edit'!$AP$6),VLOOKUP(D28,ram,13,0),VLOOKUP(D28,ram,4,0)))),"") ->  | F28: =IFERROR(IF(D28="","",IF(D28=$AX$24,"",IF(AND(D28=$AX$25),$BC$25,IF(AND(D28=$AX$27),"",IF(AND(D28=$AX$28),"",IF(AND('Master Data'!$I$28='GA55 Check & Edit'!$AP$5),VLOOKUP(D28,ram,7,0),"")))))),"") ->  | G28: =IFERROR(IF(D28="","",IF(D28=$AX$24,"",IF(AND(D28=$AX$25),"",IF(AND(D28=$AX$26),"",IF(AND(D28=$AX$27),"",IF(AND(D28=$AX$29),"",IF(AND('Master Data'!$I$28='GA55 Check & Edit'!$AP$6),"",VLOOKUP(D28,ram,8,0)))))))),"") ->  | H28: =IFERROR(IF(D28="","",IF(AND(E28=""),"",IF(OR(D28=$AX$24,D28=$AX$25,D28=$AX$26,D28=$AX$27,D28=$AX$28,D28=$AX$29),"",IF(AND('Master Data'!$I$28='GA55 Check & Edit'!$AP$5),'Master Data'!$B$43,"")))),"") ->  | I28: =IFERROR(IF(D28="","",IF(AND(E28=""),"",IF(OR(D28=$AX$24,D28=$AX$25,D28=$AX$26,D28=$AX$27,D28=$AX$28,D28=$AX$29),"",IF(AND('Master Data'!$I$28='GA55 Check & Edit'!$AP$5,'Master Data'!$E$28='GA55 Check & Edit'!$AO$5),'Master Data'!$C$43,"0")))),"") ->  | J28: =IFERROR(IF(OR('Master Data'!$E$32=$AO$6,'Master Data'!$E$32=""),"",IF(D28="","",IF(AND(E28=""),"",IF(OR(D28=$AX$24,D28=$AX$25,D28=$AX$26,D28=$AX$27,D28=$AX$28,D28=$AX$29),"",IF(AND('Master Data'!$I$28='GA55 Check & Edit'!$AP$6),"",IF(AND('Master Data'!$I$32=$AR$9),$AS$6,IF(AND('Master Data'!$I$32=$AR$10),$AS$6,IF(AND('Master Data'!$I$32=$AR$11),$AS$6,IF(AND('Master Data'!$I$32=$AR$12),$AS$6,$AS$5))))))))),"") ->  | K28: =IFERROR(IF(D28="","",IF(AND(E28=""),"",IF(OR(D28=$AX$24,D28=$AX$25,D28=$AX$26,D28=$AX$27,D28=$AX$28,D28=$AX$29),"",IF(AND('Master Data'!$I$28='GA55 Check & Edit'!$AP$5),'Master Data'!$E$43,"")))),"") ->  | L28: =IFERROR(IF(D28="","",IF(AND(E28=""),"",IF(OR(D28=$AX$24,D28=$AX$25,D28=$AX$26,D28=$AX$27,D28=$AX$28,D28=$AX$29),"",IF(AND('Master Data'!$I$28='GA55 Check & Edit'!$AP$6),"",'Master Data'!$F$43)))),"") ->  | N28: =IFERROR(IF(AND(D28=""),"",IF(AND(D28=$AX$25,'Master Data'!$I$30='GA55 Check & Edit'!$AN$6),ROUND((E28+F28)*0.1,0),IF(AND(D28=$AX$29,'Master Data'!$I$30='GA55 Check & Edit'!$AN$6),ROUND((F28)*0.1,0),IF(AND(D28=$AX$26,'Master Data'!$I$30='GA55 Check & Edit'!$AN$6),ROUND((F28)*0.1,0),IF(AND(D28=$AX$27,'Master Data'!$I$30='GA55 Check & Edit'!$AN$6),ROUND((E28+F28)*0.1,0),IF(AND('Master Data'!$I$30='GA55 Check & Edit'!$AN$5),"",IF(AND('Master Data'!$I$30='GA55 Check & Edit'!$AN$6,'Master Data'!$I$28='GA55 Check & Edit'!$AP$6),ROUND((E28)*0.1,0),ROUND((E28+F28)*0.1,0)))))))),"") ->  | O28: =IF(D28="","",IF('Master Data'!$H$18='GA55 Check & Edit'!$AO$5,SUM(E28:N28),SUM(E28:M28))) ->  | P28: =IFERROR(IF(OR('Master Data'!$I$28='GA55 Check & Edit'!$AP$6,D28=""),"",IF(AND(D28=$AX$24),"",IF(AND(D28=$AX$25),"",IF(AND(D28=$AX$26),"",IF(AND(D28=$AX$27),"",IF(AND(D28=$AX$28),"",IF(AND(D28=$AX$29),"",IF(AND(E28=""),"",VLOOKUP(D28,ram,11,0))))))))),"") ->  | Q28: =IFERROR(IF(AND(D28="",E28=""),"",IF(AND(D28=$AX$25,'Master Data'!$I$30='GA55 Check & Edit'!$AN$6),ROUND((E28+F28)*0.1,0),IF(AND(D28=$AX$29,'Master Data'!$I$30='GA55 Check & Edit'!$AN$6),ROUND((F28)*0.1,0),IF(AND(D28=$AX$26,'Master Data'!$I$30='GA55 Check & Edit'!$AN$6),ROUND((F28)*0.1,0),IF(AND(D28=$AX$27,'Master Data'!$I$30='GA55 Check & Edit'!$AN$6),ROUND((E28+F28)*0.1,0),IF(AND('Master Data'!$I$30='GA55 Check & Edit'!$AN$6,'Master Data'!$I$28='GA55 Check & Edit'!$AP$6),ROUND((E28)*0.1,0),IF(AND('Master Data'!$I$30='GA55 Check & Edit'!$AN$6,'Master Data'!$I$28='GA55 Check & Edit'!$AP$5),ROUND((E28+F28)*0.1,0),IF(AND('Master Data'!$I$30='GA55 Check & Edit'!$AN$5,'Master Data'!$I$28='GA55 Check & Edit'!$AP$5),VLOOKUP(D28,ram,12,0))))))))),"") ->  | R28: =IFERROR(IF(OR('Master Data'!$I$28='GA55 Check & Edit'!$AP$6,D28=""),"",IF(AND(D28=$AX$24),"",IF(AND(D28=$AX$25),"",IF(AND(D28=$AX$26),"",IF(AND(D28=$AX$27),"",IF(AND(D28=$AX$28),"",IF(AND(D28=$AX$29),"",IF(AND(D28=$AX$32),"",IF(AND(E28=""),"",'Master Data'!$I$43))))))))),"") ->  | S28: =IFERROR(IF(OR('Master Data'!$I$28='GA55 Check & Edit'!$AP$6),"",IF(D28="","",IF(E28="","",IF(AND(D28=$AX$24),"",IF(AND(D28=$AX$25),"",IF(AND(D28=$AX$26),"",IF(AND(D28=$AX$27),"",IF(AND(D28=$AX$28),"",IF(AND(D28=$AX$29),"",VLOOKUP(D28,ram,10,0)))))))))),"") ->  | T28: =IFERROR(IF(OR('Master Data'!$I$28='GA55 Check & Edit'!$AP$6,D28=""),"",IF(AND(D28=$AX$24),"",IF(AND(D28=$AX$25),"",IF(AND(D28=$AX$26),"",IF(AND(D28=$AX$27),"",IF(AND(D28=$AX$28),"",IF(AND(D28=$AX$29),"",IF(AND(E28=""),"",'Master Data'!$K$43)))))))),"") ->  | U28: =IFERROR(IF(OR('Master Data'!$I$28='GA55 Check & Edit'!$AP$6,D28=""),"",IF(AND(D28=$AX$24),"",IF(AND(D28=$AX$25),"",IF(AND(D28=$AX$26),"",IF(AND(D28=$AX$27),"",IF(AND(D28=$AX$28),"",IF(AND(D28=$AX$29),"",IF(AND(E28=""),"",'Master Data'!$L$43)))))))),"") ->  | V28: =IFERROR(IF(OR('Master Data'!$I$28='GA55 Check & Edit'!$AP$6,D28=""),"",IF(AND(D28=$AX$24,'Master Data'!$I$28='GA55 Check & Edit'!$AP$5,'Master Data'!$I$30='GA55 Check & Edit'!$AN$6),ROUND(M28*50%,0),IF(AND(D28=$AX$25),"",IF(AND(D28=$AX$26,'Master Data'!$I$28='GA55 Check & Edit'!$AP$5,'Master Data'!$I$30='GA55 Check & Edit'!$AN$6),SUM(F28-N28),IF(AND(D28=$AX$27),"",IF(AND(D28=$AX$28),"",IF(AND(D28=$AX$29,'Master Data'!$I$28='GA55 Check & Edit'!$AP$5,'Master Data'!$I$30='GA55 Check & Edit'!$AN$6),SUM(F28-N28),IF(AND(E28=""),"",'Master Data'!$M$43)))))))),"") ->  | W28: =IFERROR(IF(OR('Master Data'!$I$28='GA55 Check & Edit'!$AP$6,D28=""),"",IF(AND(D28=$AX$24),"",IF(AND(D28=$AX$25),"",IF(AND(D28=$AX$26),"",IF(AND(D28=$AX$27),"",IF(AND(D28=$AX$28),"",IF(AND(D28=$AX$29),"",IF(AND(E28=""),"",'Master Data'!$O$43)))))))),"") ->  | X28: =IFERROR(IF(OR('Master Data'!$I$28='GA55 Check & Edit'!$AP$6,D28=""),"",IF(AND(E28=""),"",IF(AND('GA55 Check & Edit'!D28='GA55 Check & Edit'!$AT$17,'Master Data'!$D$18="Gazetted"),500,IF(AND('GA55 Check & Edit'!D28='GA55 Check & Edit'!$AT$17,'Master Data'!$D$18="Non-Gazetted"),250,"")))),"") ->  | Y28: =IFERROR(IF(D28="","",IF(AND(E28=""),"",IF(AND(D28=$AX$24),"",IF(AND(D28=$AX$25),"",IF(AND(D28=$AX$26),"",IF(AND(D28=$AX$27),"",IF(AND(D28=$AX$28),"",IF(AND(D28=$AX$29),"",IF(OR('Master Data'!$I$28='GA55 Check & Edit'!$AP$6,D28=""),"",$Y$7))))))))),"") ->  | AA28: =IFERROR(IF(OR('Master Data'!$I$28='GA55 Check & Edit'!$AP$6,D28="",'Master Data'!$N$38=""),"",IF(AND(E28=""),"",IF('GA55 Check & Edit'!D28='GA55 Check & Edit'!$AT$9,'Master Data'!$N$38,""))),"") ->  | AB28: =IFERROR(IF(D28="","",IF(AND(O28=""),"",IF(AND(N28=""),SUM(P28:AA28),IF(AND('Master Data'!$H$18='GA55 Check & Edit'!$AO$5,'Master Data'!$I$30='GA55 Check & Edit'!$AN$6),SUM(P28:AA28)+N28,SUM(P28:AA28))))),"0") ->  | AU28: L-21 | AX28: HRA Arrear | BD28: =IF(BC28="","",BC28) ->  | BE28: =SUM(ROUND(AZ18*'Master Data'!E34%,0)-ROUND('GA55 Check & Edit'!AZ18*'Master Data'!E30%,0)) -> 523 | BK28: 2022-07-01 | BL28: =IFERROR(IF('Master Data'!$E$36="","",IF('Master Data'!$F$40="","",IF(AND($AZ$17>$AZ$9),"",DATE(YEAR(BL27),MONTH(BL27)+1,DAY(BL27))))),"") -> 2022-07-01 | BM28: HRA Arrear | BO28: HRA Arrear | BX28: 0
W29: =IFERROR(IF(OR('Master Data'!$I$28='GA55 Check & Edit'!$AP$6,D29=""),"",IF(AND(D29=$AX$24),"",IF(AND(D29=$AX$25),"",IF(AND(D29=$AX$26),"",IF(AND(D29=$AX$27),"",IF(AND(D29=$AX$28),"",IF(AND(D29=$AX$29),"",IF(AND(E29=""),"",'Master Data'!$O$43)))))))),"") ->  | AX29: =IF(BM29="","",BM29) -> PL Surrender Arrear | BC29: =IF('Master Data'!$I$28='GA55 Check & Edit'!$AP$6,"",IF(AND(BA25=""),"",IF(OR('Master Data'!I22='GA55 Check & Edit'!AW16,'Master Data'!I22='GA55 Check & Edit'!AW17,'Master Data'!I22='GA55 Check & Edit'!AW18),ROUND(3%*BA25,0),""))) -> 0 | BD29: 0 | BI29: =BD29 -> 0 | BK29: 2022-08-01 | BL29: =IFERROR(IF('Master Data'!$E$36="","",IF('Master Data'!$F$40="","",IF(AND($AZ$17>$AZ$9),"",DATE(YEAR(BL28),MONTH(BL28)+1,DAY(BL28))))),"") -> 2022-08-01 | BM29: PL Surrender Arrear | BO29: PL Surrender Arrear | BX29: 0
AR30: =ROUND(BA24*50%,0) -> 3387 | AX30: =IF(BM30="","",BM30) ->  | BA30: =IF(AND('Master Data'!$E$36=""),"",IF('Master Data'!$N$32='GA55 Check & Edit'!$AO$5,'Master Data'!$E$36,"")) ->  | BB30: =IF('Master Data'!$N$32='GA55 Check & Edit'!$AO$5,BA30,"") ->  | BC30: =IFERROR(IF(AND('Master Data'!$E$36=""),"",ROUND(17%*BB30,0)),"") ->  | BD30: =IF(BC30="","",BC30) ->  | BE30: =IFERROR(IF(AND('Master Data'!$E$36=""),"",ROUND('Master Data'!$E$30%*BB30,0)),"") ->  | BG30: =IF(AND('Master Data'!$I$28='GA55 Check & Edit'!$AP$6),"",IF(AND('Master Data'!$I$30='GA55 Check & Edit'!$AN$6,'Master Data'!$N$36='GA55 Check & Edit'!$AO$6),0,IF(AND('Master Data'!$I$30='GA55 Check & Edit'!$AN$6,'Master Data'!$N$36='GA55 Check & Edit'!$AO$5),'Master Data'!$J$43,IF(AND('Master Data'!$I$30='GA55 Check & Edit'!$AN$5),IF($AZ$15<18001,265,IF($AZ$15<33501,440,IF($AZ$15<54001,658,875))))))) -> 0 | BH30: =IFERROR(IF(OR('Master Data'!$I$28='GA55 Check & Edit'!$AP$6),"",IF('Master Data'!$N$32='GA55 Check & Edit'!$AO$5,'Master Data'!$G$43,"")),"") ->  | BI30: =IFERROR(IF('Master Data'!$N$32='GA55 Check & Edit'!$AO$6,"",IF(AND('Master Data'!I$30='GA55 Check & Edit'!$AN$6),ROUND((BB30)*0.1,0),IF(AND('Master Data'!$I$28='GA55 Check & Edit'!$AP$6),ROUND((BB30+BD30)*0.1,0),'Master Data'!$H$43))),"") ->  | BK30: 2022-09-01 | BL30: =IFERROR(IF('Master Data'!$E$36="","",IF('Master Data'!$F$40="","",IF(AND($AZ$17>$AZ$9),"",DATE(YEAR(BL29),MONTH(BL29)+1,DAY(BL29))))),"") -> 2022-09-01 | BM30: =IF(OR('Master Data'!N34='GA55 Check & Edit'!AO5,'Master Data'!N32='GA55 Check & Edit'!AO5,'Master Data'!N40='GA55 Check & Edit'!AO5),'GA55 Check & Edit'!AX10,"") ->  | BQ30: =IFERROR(IF(BM30="","",IF(D26=$AX$25,$AX$25,IF(D26=$AX$30,$AX$30,IF(D26=$AX$31,$AX$31,IF(D26=$AX$32,$AX$32,IF(BM30>$AZ$17,"",BM30)))))),"") ->  | BX30: 0
AX31: =IF(BM31="","",BM31) ->  | BA31: =IF(AND('Master Data'!$E$36=""),"",IF('Master Data'!$N$34='GA55 Check & Edit'!$AO$5,'Master Data'!$E$36,"")) ->  | BB31: =IF('Master Data'!$N$34='GA55 Check & Edit'!$AO$5,BA31,"") ->  | BC31: =IFERROR(IF(AND('Master Data'!$E$36=""),"",ROUND(17%*BB31,0)),"") ->  | BD31: =IF(BC31="","",BC31) ->  | BE31: =IFERROR(IF(AND('Master Data'!$E$36=""),"",ROUND('Master Data'!$E$30%*BB31,0)),"") ->  | BG31: =IF(AND('Master Data'!$I$28='GA55 Check & Edit'!$AP$6),"",IF(AND('Master Data'!$I$30='GA55 Check & Edit'!$AN$6,'Master Data'!$N$36='GA55 Check & Edit'!$AO$6),0,IF(AND('Master Data'!$I$30='GA55 Check & Edit'!$AN$6,'Master Data'!$N$36='GA55 Check & Edit'!$AO$5),'Master Data'!$J$43,IF(AND('Master Data'!$I$30='GA55 Check & Edit'!$AN$5),IF($AZ$15<18001,265,IF($AZ$15<33501,440,IF($AZ$15<54001,658,875))))))) -> 0 | BH31: =IFERROR(IF(OR('Master Data'!$I$28='GA55 Check & Edit'!$AP$6),"",IF('Master Data'!$N$34='GA55 Check & Edit'!$AO$5,'Master Data'!$G$43,"")),"") ->  | BI31: =IFERROR(IF('Master Data'!$N$34='GA55 Check & Edit'!$AO$6,"",IF(AND('Master Data'!I$30='GA55 Check & Edit'!$AN$6),ROUND((BB31)*0.1,0),IF(AND('Master Data'!$I$28='GA55 Check & Edit'!$AP$6),ROUND((BB31+BD31)*0.1,0),'Master Data'!$H$43))),"") ->  | BK31: 2022-10-01 | BL31: =IFERROR(IF('Master Data'!$E$36="","",IF('Master Data'!$F$40="","",IF(AND($AZ$17>$AZ$9),"",DATE(YEAR(BL30),MONTH(BL30)+1,DAY(BL30))))),"") -> 2022-10-01 | BM31: =IF(OR('Master Data'!N34='GA55 Check & Edit'!AO5,'Master Data'!N40='GA55 Check & Edit'!AO5),'GA55 Check & Edit'!AX11,"") -> 
AX32: =IF(BM32="","",BM32) ->  | BA32: =IF('Master Data'!N40='GA55 Check & Edit'!$AO$5,(AZ3-AZ1),"") ->  | BB32: =IF('Master Data'!N40='GA55 Check & Edit'!$AO$5,BA32,"") ->  | BC32: =IF(OR('Master Data'!$E$36="",BB32=""),"",ROUND(17%*BB32,0)) ->  | BD32: =IF(BC32="","",BC32) ->  | BE32: =IFERROR(IF(AND('Master Data'!$E$36=""),"",ROUND('Master Data'!$E$30%*BB32,0)),"") ->  | BI32: =IFERROR(IF(AND('Master Data'!$I$30='GA55 Check & Edit'!$AN$6),ROUND((E19)*0.1,0),IF(AND('Master Data'!$I$28='GA55 Check & Edit'!$AP$6),ROUND((E19+F19)*0.1,0),'Master Data'!$H$43)),"") -> 5230 | BK32: 2022-11-01 | BL32: =IFERROR(IF('Master Data'!$E$36="","",IF('Master Data'!$F$40="","",IF(AND($AZ$17>$AZ$9),"",DATE(YEAR(BL31),MONTH(BL31)+1,DAY(BL31))))),"") -> 2022-11-01 | BM32: =IF('Master Data'!N40='GA55 Check & Edit'!AO5,CONCATENATE("Defer Salary"," - ","March-20"),"") ->  | BO32: =IFERROR(IF(BM32="","",IF(AND(BL32=$BK$24),$BM$24,IF(AND(BL32=$BK$25),$BM$25,IF(AND(BL32=$BK$26),$BM$26,IF(AND(BL32=$BK$27),$BM$27,IF(AND(BL32=$BK$28),$BM$28,IF(AND(BL32=$BK$29),$BM$29,IF(AND(BL32=$BK$30),$BM$30,IF(AND(BL32=$BK$31),$BM$31,IF(AND(BL32=$BK$32),$BM$32,BN32)))))))))),"") -> 
AX41: =IFERROR(IF(D23="","",IF(AND(D23=AX34),VLOOKUP(D23,ram,4,0),IF(AND('Master Data'!$I$28='GA55 Check & Edit'!$AP$6),'Master Data'!$E$36,VLOOKUP(D23,ram,4,0)))),"") -> 0

Sheet Extra Ded (hidden)
A1: https://www.youtube.com/watch?v=NWwIhkhEUoc
B2: अधिक जानकारी के लिए ऊपर Youtube video का लिंक दिया गया है।
C3: osru dVkSrh ds vfrfjDr dVkSfr;k ftlds rgr vki vk;dj esa NwV pkgrs gSa] rFkk vfrfjDr ¼vU;½ vk; dks ;gkW ij bUnzkt djsA
C6: 1- edku fdjk;k HkRrk ¼;fn jlhn ds ek/;e ls NwV ysuh gS rks jkf'k fy[ksas½ | G6: 20- bfDoVh fyad lsfoax Ldhe
C7: 2- LVs.MMZ fMMsD'ku (Standard Deduction) 50]000 ¼vf/kdre½ | E7: 50000 | G7: 21- x`g fdjk;k] /kkjk 10¼13-A½ ds vUrxrZ ,oa /kkjk 10¼14½ds vUrxrZ vU; Hkrs tks dj eqDÙk gSA
C8: 3- euksjatu Hkrk /kkjk 16 (ii) ds vUrxZr | G8: 22- LFkfxr okf"kZdh ¼Defferred Annuty)
C9: 4- O;o;k; dj /kkjk 16 ¼iii½ ds vUrxrZ | G9: 23- osru ds vykok tek djk;k x;k aavk;dj (TDS)
C10: 5- x`g lEifr ls izkIr fdjk;k & vk; | G10: 24- vU; vk; ¼/kkjk 80 lh ds vUrxZr½
C11: 6- x`gdj | G11: 25- vU; dksbZ Hkh izdkj NqV feyrh gSa tks /kkjk 10¼13&,½ o 10¼13½ds vUrxZr vkrh gks rks ;gk fy[ks ,oa vU; dj eqDr HkRrk ;gkW fy[ksaA
C12: 7- x`g _.k dh ewy fdLr ;gkW fy[kuh gSaA tks NwV ysuh gSaA | G12: 26- /kkjk 80CCC - isa'ku Iyku gsrq va'knku
C13: 8- x`g _.k fdLr ij C;kt tks NwV ysuk gS] ;gkW fy[ksA | G13: 27- vU; tek jkf'k ¼/kkjk 80 lh ds vUrxZr½ o E;qpvy QaM
C14: 9- thou chek izhfe;e ¼tks osru ls ugh dkVk x;k½ LIC | G14: 28- /kkjk 80CCD(1B) -uohu isa'ku ;kstuk esa vfrfjDr va'knku ¼vf/kdre :- 50]000½
C15: 10- ih-,y-vkbZ- (PLI) | G15: 29- /kkjk 80D - fpfdRlk chek izhfe;e
C16: 11- V;w'ku Qhl (Tution Fees) | G16: 30- /kkjk 80DD - fodykax vkfJrksa ds fpfdRlk mipkj
C17: 12- ;w- ,y- vkbZ- ih-@okf"kZd Iyku | G17: 31- /kkjk 80DDB - fof'k"V jksxksa ds mipkj gsrq dVkSrh ¼vf/kdre 40000 :½
C18: 13- jk"Vªh; cpr i= (NSC) | G18: 32- /kkjk 80E - mPp f'k{kk gsrq fy, _.k dk C;kt ¼/kkjk 80E½
C19: 14- jk"Vªh; cpr i= ij vnr C;kt | G19: 33- /kkjk 80G - /kekZFkZ laLFkkvksa vkfn dks fn;s nku ¼d Js.kh 100% ,oa [k Js.kh 50%½ | I19: =SUM(E25)+ROUND(I25/2,0) -> 0
C20: 15- yksd Hkfo"; fuf/k (PPF) | G20: 34- /kkjk 80U - LFkkbZ :i ls 'kkjhfjd vleFkZrrk
C21: 16- jk"Vªh; cpr Ldhe (NSS) | G21: 35- /kkjk 80TTA - cpr [kkrs ij vf/kdre C;kt :- 10]000 194(IA) | I21: 1500
C22: 17- lqdU;k le`f) ;kstuk (SSY) | G22: 36- /kkjk 80 GGA - vuqeksfnr oSKkfud]lkekftd]xzkeh.k fodkl vkfn gsrq fn;k x;k nku
C23: 18- Bonds ls C;kt | G23: 37- ,QMh vkfn vU; tek jkf'k ij izkIr dqy C;kt ¼ihih,Q dks NksM+dj½
C24: 19- vU; vk; % | G24: 38- jkgr /kkjk 89 ds rgr ¼ vxj NwV ysuh gS rks jkf'k fy[ksaA½ | I24: 0
C25: /kkjk 80G - /kekZFkZ laLFkkvksa vkfn dks fn;s nku ¼d Js.kh 100 %½ | G25: /kkjk 80G - /kekZFkZ laLFkkvksa vkfn dks fn;s nku ¼[k Js.kh 50 %½

Sheet GA 55 (hidden)
B2: =IF(AND('Master Data'!D4=""),"",CONCATENATE("Office Name :- ",PROPER('Master Data'!D4))) -> Office Name :- Mahatma Gandhi Govt. School (English Medium) Bar, Pali
A3: Employee Name :- | D3: =UPPER(IF('Master Data'!D6="","",'Master Data'!D6)) -> HEERALAL JAT | I3: Designation :- | M3: =UPPER(IF('Master Data'!H6="","",'Master Data'!H6)) -> SR TEACHER | Q3: Posting Place :- | U3: =UPPER(IF('Master Data'!D8="","",'Master Data'!D8)) -> M.G.G.S. BAR | AB3: osru Mªk ekufp=
A4: PAN No. :- | C4: =UPPER(IF('Master Data'!D12="","",'Master Data'!D12)) -> ABCDE1234H | F4: SI No. | G4: =IF(AND('Master Data'!H14=""),"",'Master Data'!H14) -> 123456 | J4: GPF | K4: =IF(AND('Master Data'!D14=""),"",'Master Data'!D14) -> 11 | O4: PRAN No. :- | R4: =IF(AND('Master Data'!D16=""),"",'Master Data'!D16) -> 12134545454541 | W4: Bank A/C. | AA4: =IF(AND('Master Data'!H16=""),"",'Master Data'!H16) -> 121212121212121
A5: osru tks fn;k x;k | N5: dVkSfr;kWa tks dh xbZ | AA5: ='GA55 Check & Edit'!AC6 -> NET PAY | AB5: ='GA55 Check & Edit'!AD6 -> TV.NO. | AC5: ='GA55 Check & Edit'!AE6 -> Enc. DATE
A6: =IF(AND('GA55 Check & Edit'!C6=""),"",'GA55 Check & Edit'!C6) -> S.N. | B6: =IF(AND('GA55 Check & Edit'!D6=""),"",'GA55 Check & Edit'!D6) -> Month | C6: =IF(AND('GA55 Check & Edit'!E6=""),"",'GA55 Check & Edit'!E6) -> Basic with Grade Pay | D6: =IF(AND('GA55 Check & Edit'!F6=""),"",'GA55 Check & Edit'!F6) -> DA | E6: =IF(AND('GA55 Check & Edit'!G6=""),"",'GA55 Check & Edit'!G6) -> HRA | F6: =IF(AND('GA55 Check & Edit'!H6=""),"",'GA55 Check & Edit'!H6) -> Wash All. | G6: =IF(AND('GA55 Check & Edit'!I6=""),"",'GA55 Check & Edit'!I6) -> Handi. All. | H6: =IF(AND('GA55 Check & Edit'!J6=""),"",'GA55 Check & Edit'!J6) -> CCA | I6: =IF(AND('GA55 Check & Edit'!K6=""),"",'GA55 Check & Edit'!K6) -> other-1 | J6: =IF(AND('GA55 Check & Edit'!L6=""),"",'GA55 Check & Edit'!L6) -> other-2 | K6: =IF(AND('GA55 Check & Edit'!M6=""),"",'GA55 Check & Edit'!M6) -> Bonus | L6: =IF(AND('GA55 Check & Edit'!N6=""),"",'GA55 Check & Edit'!N6) -> N.P.S. By Govt. | M6: =IF(AND('GA55 Check & Edit'!O6=""),"",'GA55 Check & Edit'!O6) -> TOTAL | N6: =IF(AND('GA55 Check & Edit'!P6=""),"",'GA55 Check & Edit'!P6) -> SI | O6: =IF(AND('GA55 Check & Edit'!Q6=""),"",'GA55 Check & Edit'!Q6) -> GPF / NPS | P6: =IF(AND('GA55 Check & Edit'!R6=""),"",'GA55 Check & Edit'!R6) -> L.I.C. | Q6: =IF(AND('GA55 Check & Edit'!S6=""),"",'GA55 Check & Edit'!S6) -> RPMF / RGHS | R6: =IF(AND('GA55 Check & Edit'!T6=""),"",'GA55 Check & Edit'!T6) -> SI Loan | S6: =IF(AND('GA55 Check & Edit'!U6=""),"",'GA55 Check & Edit'!U6) -> GPF Loan | T6: =IF(AND('GA55 Check & Edit'!V6=""),"",'GA55 Check & Edit'!V6) -> GPF 2004 (NPS) | U6: =IF(AND('GA55 Check & Edit'!W6=""),"",'GA55 Check & Edit'!W6) -> SI Int. | V6: =IF(AND('GA55 Check & Edit'!X6=""),"",'GA55 Check & Edit'!X6) -> HITKARI NIDHI | W6: =IF(AND('GA55 Check & Edit'!Y6=""),"",'GA55 Check & Edit'!Y6) -> Other | X6: =IF(AND('GA55 Check & Edit'!Z6=""),"",'GA55 Check & Edit'!Z6) -> Income Tax | Y6: =IF(AND('GA55 Check & Edit'!AA6=""),"",'GA55 Check & Edit'!AA6) -> G.I. + S. Tax | Z6: =IF(AND('GA55 Check & Edit'!AB6=""),"",'GA55 Check & Edit'!AB6) -> Total Ded.
A7: 1 | B7: =IF(AND('GA55 Check & Edit'!D8=""),"",'GA55 Check & Edit'!D8) -> 2021-03-01 | C7: =IF(AND('GA55 Check & Edit'!E8=""),"",'GA55 Check & Edit'!E8) -> 50800 | D7: =IF(AND('GA55 Check & Edit'!F8=""),"",'GA55 Check & Edit'!F8) -> 8636 | E7: =IF(AND('GA55 Check & Edit'!G8=""),"",'GA55 Check & Edit'!G8) -> 4064 | F7: =IF(AND('GA55 Check & Edit'!H8=""),"",'GA55 Check & Edit'!H8) -> 0 | G7: =IF(AND('GA55 Check & Edit'!I8=""),"",'GA55 Check & Edit'!I8) -> 0 | H7: =IF(AND('GA55 Check & Edit'!J8=""),"",'GA55 Check & Edit'!J8) ->  | I7: =IF(AND('GA55 Check & Edit'!K8=""),"",'GA55 Check & Edit'!K8) -> 0 | J7: =IF(AND('GA55 Check & Edit'!L8=""),"",'GA55 Check & Edit'!L8) -> 0 | K7: =IF(AND('GA55 Check & Edit'!M8=""),"",'GA55 Check & Edit'!M8) ->  | L7: =IF(AND('GA55 Check & Edit'!N8=""),"",'GA55 Check & Edit'!N8) -> 5944 | M7: =IF(B7="","",IF('Master Data'!$H$18='GA55 Check & Edit'!$AO$5,SUM(C7:L7),SUM(C7:K7))) -> 63500 | N7: =IF(AND('GA55 Check & Edit'!P8=""),"",'GA55 Check & Edit'!P8) -> 7000 | O7: =IF(AND('GA55 Check & Edit'!Q8=""),"",'GA55 Check & Edit'!Q8) -> 5944 | P7: =IF(AND('GA55 Check & Edit'!R8=""),"",'GA55 Check & Edit'!R8) -> 1880 | Q7: =IF(AND('GA55 Check & Edit'!S8=""),"",'GA55 Check & Edit'!S8) -> 0 | R7: =IF(AND('GA55 Check & Edit'!T8=""),"",'GA55 Check & Edit'!T8) -> 0 | S7: =IF(AND('GA55 Check & Edit'!U8=""),"",'GA55 Check & Edit'!U8) -> 0 | T7: =IF(AND('GA55 Check & Edit'!V8=""),"",'GA55 Check & Edit'!V8) -> 0 | U7: =IF(AND('GA55 Check & Edit'!W8=""),"",'GA55 Check & Edit'!W8) -> 0 | V7: =IF(AND('GA55 Check & Edit'!X8=""),"",'GA55 Check & Edit'!X8) ->  | W7: =IF(AND('GA55 Check & Edit'!Y8=""),"",'GA55 Check & Edit'!Y8) -> 0 | X7: =IF(AND('GA55 Check & Edit'!Z8=""),"",'GA55 Check & Edit'!Z8) -> 0 | Y7: =IF(AND('GA55 Check & Edit'!AA8=""),"",'GA55 Check & Edit'!AA8) ->  | Z7: =IFERROR(IF(B7="","",IF(L7="",SUM(N7:Y7),IF('Master Data'!$H$18='GA55 Check & Edit'!$AO$5,SUM(N7:Y7)+L7,SUM(N7:Y7)))),0) -> 14824 | AA7: =IFERROR(IF(AND(C7="",M7="",Z7=""),"",SUM(M7-Z7)),"") -> 48676
A8: 2 | B8: =IF(AND('GA55 Check & Edit'!D9=""),"",'GA55 Check & Edit'!D9) -> 2021-04-01 | C8: =IF(AND('GA55 Check & Edit'!E9=""),"",'GA55 Check & Edit'!E9) -> 50800 | D8: =IF(AND('GA55 Check & Edit'!F9=""),"",'GA55 Check & Edit'!F9) -> 8636 | E8: =IF(AND('GA55 Check & Edit'!G9=""),"",'GA55 Check & Edit'!G9) -> 4064 | F8: =IF(AND('GA55 Check & Edit'!H9=""),"",'GA55 Check & Edit'!H9) -> 0 | G8: =IF(AND('GA55 Check & Edit'!I9=""),"",'GA55 Check & Edit'!I9) -> 0 | H8: =IF(AND('GA55 Check & Edit'!J9=""),"",'GA55 Check & Edit'!J9) ->  | I8: =IF(AND('GA55 Check & Edit'!K9=""),"",'GA55 Check & Edit'!K9) -> 0 | J8: =IF(AND('GA55 Check & Edit'!L9=""),"",'GA55 Check & Edit'!L9) -> 0 | K8: =IF(AND('GA55 Check & Edit'!M9=""),"",'GA55 Check & Edit'!M9) ->  | L8: =IF(AND('GA55 Check & Edit'!N9=""),"",'GA55 Check & Edit'!N9) -> 5944 | M8: =IF(B8="","",IF('Master Data'!$H$18='GA55 Check & Edit'!$AO$5,SUM(C8:L8),SUM(C8:K8))) -> 63500 | N8: =IF(AND('GA55 Check & Edit'!P9=""),"",'GA55 Check & Edit'!P9) -> 7000 | O8: =IF(AND('GA55 Check & Edit'!Q9=""),"",'GA55 Check & Edit'!Q9) -> 5944 | P8: =IF(AND('GA55 Check & Edit'!R9=""),"",'GA55 Check & Edit'!R9) -> 1880 | Q8: =IF(AND('GA55 Check & Edit'!S9=""),"",'GA55 Check & Edit'!S9) -> 0 | R8: =IF(AND('GA55 Check & Edit'!T9=""),"",'GA55 Check & Edit'!T9) -> 0 | S8: =IF(AND('GA55 Check & Edit'!U9=""),"",'GA55 Check & Edit'!U9) -> 0 | T8: =IF(AND('GA55 Check & Edit'!V9=""),"",'GA55 Check & Edit'!V9) -> 0 | U8: =IF(AND('GA55 Check & Edit'!W9=""),"",'GA55 Check & Edit'!W9) -> 0 | V8: =IF(AND('GA55 Check & Edit'!X9=""),"",'GA55 Check & Edit'!X9) ->  | W8: =IF(AND('GA55 Check & Edit'!Y9=""),"",'GA55 Check & Edit'!Y9) -> 0 | X8: =IF(AND('GA55 Check & Edit'!Z9=""),"",'GA55 Check & Edit'!Z9) -> 1500 | Y8: =IF(AND('GA55 Check & Edit'!AA9=""),"",'GA55 Check & Edit'!AA9) -> 220 | Z8: =IFERROR(IF(B8="","",IF(L8="",SUM(N8:Y8),IF('Master Data'!$H$18='GA55 Check & Edit'!$AO$5,SUM(N8:Y8)+L8,SUM(N8:Y8)))),0) -> 16544 | AA8: =IFERROR(IF(AND(C8="",M8="",Z8=""),"",SUM(M8-Z8)),"") -> 46956
A9: 3 | B9: =IF(AND('GA55 Check & Edit'!D10=""),"",'GA55 Check & Edit'!D10) -> 2021-05-01 | C9: =IF(AND('GA55 Check & Edit'!E10=""),"",'GA55 Check & Edit'!E10) -> 50800 | D9: =IF(AND('GA55 Check & Edit'!F10=""),"",'GA55 Check & Edit'!F10) -> 8636 | E9: =IF(AND('GA55 Check & Edit'!G10=""),"",'GA55 Check & Edit'!G10) -> 4064 | F9: =IF(AND('GA55 Check & Edit'!H10=""),"",'GA55 Check & Edit'!H10) -> 0 | G9: =IF(AND('GA55 Check & Edit'!I10=""),"",'GA55 Check & Edit'!I10) -> 0 | H9: =IF(AND('GA55 Check & Edit'!J10=""),"",'GA55 Check & Edit'!J10) ->  | I9: =IF(AND('GA55 Check & Edit'!K10=""),"",'GA55 Check & Edit'!K10) -> 0 | J9: =IF(AND('GA55 Check & Edit'!L10=""),"",'GA55 Check & Edit'!L10) -> 0 | K9: =IF(AND('GA55 Check & Edit'!M10=""),"",'GA55 Check & Edit'!M10) ->  | L9: =IF(AND('GA55 Check & Edit'!N10=""),"",'GA55 Check & Edit'!N10) -> 5944 | M9: =IF(B9="","",IF('Master Data'!$H$18='GA55 Check & Edit'!$AO$5,SUM(C9:L9),SUM(C9:K9))) -> 63500 | N9: =IF(AND('GA55 Check & Edit'!P10=""),"",'GA55 Check & Edit'!P10) -> 7000 | O9: =IF(AND('GA55 Check & Edit'!Q10=""),"",'GA55 Check & Edit'!Q10) -> 5944 | P9: =IF(AND('GA55 Check & Edit'!R10=""),"",'GA55 Check & Edit'!R10) -> 1880 | Q9: =IF(AND('GA55 Check & Edit'!S10=""),"",'GA55 Check & Edit'!S10) -> 0 | R9: =IF(AND('GA55 Check & Edit'!T10=""),"",'GA55 Check & Edit'!T10) -> 0 | S9: =IF(AND('GA55 Check & Edit'!U10=""),"",'GA55 Check & Edit'!U10) -> 0 | T9: =IF(AND('GA55 Check & Edit'!V10=""),"",'GA55 Check & Edit'!V10) -> 0 | U9: =IF(AND('GA55 Check & Edit'!W10=""),"",'GA55 Check & Edit'!W10) -> 0 | V9: =IF(AND('GA55 Check & Edit'!X10=""),"",'GA55 Check & Edit'!X10) ->  | W9: =IF(AND('GA55 Check & Edit'!Y10=""),"",'GA55 Check & Edit'!Y10) -> 0 | X9: =IF(AND('GA55 Check & Edit'!Z10=""),"",'GA55 Check & Edit'!Z10) -> 1500 | Y9: =IF(AND('GA55 Check & Edit'!AA10=""),"",'GA55 Check & Edit'!AA10) ->  | Z9: =IFERROR(IF(B9="","",IF(L9="",SUM(N9:Y9),IF('Master Data'!$H$18='GA55 Check & Edit'!$AO$5,SUM(N9:Y9)+L9,SUM(N9:Y9)))),0) -> 16324 | AA9: 47176
A10: 4 | B10: =IF(AND('GA55 Check & Edit'!D11=""),"",'GA55 Check & Edit'!D11) -> 2021-06-01 | C10: =IF(AND('GA55 Check & Edit'!E11=""),"",'GA55 Check & Edit'!E11) -> 50800 | D10: =IF(AND('GA55 Check & Edit'!F11=""),"",'GA55 Check & Edit'!F11) -> 8636 | E10: =IF(AND('GA55 Check & Edit'!G11=""),"",'GA55 Check & Edit'!G11) -> 4064 | F10: =IF(AND('GA55 Check & Edit'!H11=""),"",'GA55 Check & Edit'!H11) -> 0 | G10: =IF(AND('GA55 Check & Edit'!I11=""),"",'GA55 Check & Edit'!I11) -> 0 | H10: =IF(AND('GA55 Check & Edit'!J11=""),"",'GA55 Check & Edit'!J11) ->  | I10: =IF(AND('GA55 Check & Edit'!K11=""),"",'GA55 Check & Edit'!K11) -> 0 | J10: =IF(AND('GA55 Check & Edit'!L11=""),"",'GA55 Check & Edit'!L11) -> 0 | K10: =IF(AND('GA55 Check & Edit'!M11=""),"",'GA55 Check & Edit'!M11) ->  | L10: =IF(AND('GA55 Check & Edit'!N11=""),"",'GA55 Check & Edit'!N11) -> 5944 | M10: =IF(B10="","",IF('Master Data'!$H$18='GA55 Check & Edit'!$AO$5,SUM(C10:L10),SUM(C10:K10))) -> 63500 | N10: =IF(AND('GA55 Check & Edit'!P11=""),"",'GA55 Check & Edit'!P11) -> 7000 | O10: =IF(AND('GA55 Check & Edit'!Q11=""),"",'GA55 Check & Edit'!Q11) -> 5944 | P10: =IF(AND('GA55 Check & Edit'!R11=""),"",'GA55 Check & Edit'!R11) -> 1880 | Q10: =IF(AND('GA55 Check & Edit'!S11=""),"",'GA55 Check & Edit'!S11) -> 0 | R10: =IF(AND('GA55 Check & Edit'!T11=""),"",'GA55 Check & Edit'!T11) -> 0 | S10: =IF(AND('GA55 Check & Edit'!U11=""),"",'GA55 Check & Edit'!U11) -> 0 | T10: =IF(AND('GA55 Check & Edit'!V11=""),"",'GA55 Check & Edit'!V11) -> 0 | U10: =IF(AND('GA55 Check & Edit'!W11=""),"",'GA55 Check & Edit'!W11) -> 0 | V10: =IF(AND('GA55 Check & Edit'!X11=""),"",'GA55 Check & Edit'!X11) ->  | W10: =IF(AND('GA55 Check & Edit'!Y11=""),"",'GA55 Check & Edit'!Y11) -> 0 | X10: =IF(AND('GA55 Check & Edit'!Z11=""),"",'GA55 Check & Edit'!Z11) -> 1500 | Y10: =IF(AND('GA55 Check & Edit'!AA11=""),"",'GA55 Check & Edit'!AA11) ->  | Z10: =IFERROR(IF(B10="","",IF(L10="",SUM(N10:Y10),IF('Master Data'!$H$18='GA55 Check & Edit'!$AO$5,SUM(N10:Y10)+L10,SUM(N10:Y10)))),0) -> 16324 | AA10: 47176
A11: 5 | B11: =IF(AND('GA55 Check & Edit'!D12=""),"",'GA55 Check & Edit'!D12) -> 2021-07-01 | C11: =IF(AND('GA55 Check & Edit'!E12=""),"",'GA55 Check & Edit'!E12) -> 52300 | D11: =IF(AND('GA55 Check & Edit'!F12=""),"",'GA55 Check & Edit'!F12) -> 14644 | E11: =IF(AND('GA55 Check & Edit'!G12=""),"",'GA55 Check & Edit'!G12) -> 4184 | F11: =IF(AND('GA55 Check & Edit'!H12=""),"",'GA55 Check & Edit'!H12) -> 0 | G11: =IF(AND('GA55 Check & Edit'!I12=""),"",'GA55 Check & Edit'!I12) -> 0 | H11: =IF(AND('GA55 Check & Edit'!J12=""),"",'GA55 Check & Edit'!J12) ->  | I11: =IF(AND('GA55 Check & Edit'!K12=""),"",'GA55 Check & Edit'!K12) -> 0 | J11: =IF(AND('GA55 Check & Edit'!L12=""),"",'GA55 Check & Edit'!L12) -> 0 | K11: =IF(AND('GA55 Check & Edit'!M12=""),"",'GA55 Check & Edit'!M12) ->  | L11: =IF(AND('GA55 Check & Edit'!N12=""),"",'GA55 Check & Edit'!N12) -> 6694 | M11: =IF(B11="","",IF('Master Data'!$H$18='GA55 Check & Edit'!$AO$5,SUM(C11:L11),SUM(C11:K11))) -> 71128 | N11: =IF(AND('GA55 Check & Edit'!P12=""),"",'GA55 Check & Edit'!P12) -> 7000 | O11: =IF(AND('GA55 Check & Edit'!Q12=""),"",'GA55 Check & Edit'!Q12) -> 6694 | P11: =IF(AND('GA55 Check & Edit'!R12=""),"",'GA55 Check & Edit'!R12) -> 1880 | Q11: =IF(AND('GA55 Check & Edit'!S12=""),"",'GA55 Check & Edit'!S12) -> 0 | R11: =IF(AND('GA55 Check & Edit'!T12=""),"",'GA55 Check & Edit'!T12) -> 0 | S11: =IF(AND('GA55 Check & Edit'!U12=""),"",'GA55 Check & Edit'!U12) -> 0 | T11: =IF(AND('GA55 Check & Edit'!V12=""),"",'GA55 Check & Edit'!V12) -> 0 | U11: =IF(AND('GA55 Check & Edit'!W12=""),"",'GA55 Check & Edit'!W12) -> 0 | V11: =IF(AND('GA55 Check & Edit'!X12=""),"",'GA55 Check & Edit'!X12) ->  | W11: =IF(AND('GA55 Check & Edit'!Y12=""),"",'GA55 Check & Edit'!Y12) -> 0 | X11: =IF(AND('GA55 Check & Edit'!Z12=""),"",'GA55 Check & Edit'!Z12) -> 1500 | Y11: =IF(AND('GA55 Check & Edit'!AA12=""),"",'GA55 Check & Edit'!AA12) ->  | Z11: =IFERROR(IF(B11="","",IF(L11="",SUM(N11:Y11),IF('Master Data'!$H$18='GA55 Check & Edit'!$AO$5,SUM(N11:Y11)+L11,SUM(N11:Y11)))),0) -> 17074 | AA11: 54054
A12: 6 | B12: =IF(AND('GA55 Check & Edit'!D13=""),"",'GA55 Check & Edit'!D13) -> 2021-08-01 | C12: =IF(AND('GA55 Check & Edit'!E13=""),"",'GA55 Check & Edit'!E13) -> 52300 | D12: =IF(AND('GA55 Check & Edit'!F13=""),"",'GA55 Check & Edit'!F13) -> 14644 | E12: =IF(AND('GA55 Check & Edit'!G13=""),"",'GA55 Check & Edit'!G13) -> 4707 | F12: =IF(AND('GA55 Check & Edit'!H13=""),"",'GA55 Check & Edit'!H13) -> 0 | G12: =IF(AND('GA55 Check & Edit'!I13=""),"",'GA55 Check & Edit'!I13) -> 0 | H12: =IF(AND('GA55 Check & Edit'!J13=""),"",'GA55 Check & Edit'!J13) ->  | I12: =IF(AND('GA55 Check & Edit'!K13=""),"",'GA55 Check & Edit'!K13) -> 0 | J12: =IF(AND('GA55 Check & Edit'!L13=""),"",'GA55 Check & Edit'!L13) -> 0 | K12: =IF(AND('GA55 Check & Edit'!M13=""),"",'GA55 Check & Edit'!M13) ->  | L12: =IF(AND('GA55 Check & Edit'!N13=""),"",'GA55 Check & Edit'!N13) -> 6694 | M12: =IF(B12="","",IF('Master Data'!$H$18='GA55 Check & Edit'!$AO$5,SUM(C12:L12),SUM(C12:K12))) -> 71651 | N12: =IF(AND('GA55 Check & Edit'!P13=""),"",'GA55 Check & Edit'!P13) -> 7000 | O12: =IF(AND('GA55 Check & Edit'!Q13=""),"",'GA55 Check & Edit'!Q13) -> 6694 | P12: =IF(AND('GA55 Check & Edit'!R13=""),"",'GA55 Check & Edit'!R13) -> 1880 | Q12: =IF(AND('GA55 Check & Edit'!S13=""),"",'GA55 Check & Edit'!S13) -> 0 | R12: =IF(AND('GA55 Check & Edit'!T13=""),"",'GA55 Check & Edit'!T13) -> 0 | S12: =IF(AND('GA55 Check & Edit'!U13=""),"",'GA55 Check & Edit'!U13) -> 0 | T12: =IF(AND('GA55 Check & Edit'!V13=""),"",'GA55 Check & Edit'!V13) -> 0 | U12: =IF(AND('GA55 Check & Edit'!W13=""),"",'GA55 Check & Edit'!W13) -> 0 | V12: =IF(AND('GA55 Check & Edit'!X13=""),"",'GA55 Check & Edit'!X13) ->  | W12: =IF(AND('GA55 Check & Edit'!Y13=""),"",'GA55 Check & Edit'!Y13) -> 0 | X12: =IF(AND('GA55 Check & Edit'!Z13=""),"",'GA55 Check & Edit'!Z13) -> 1500 | Y12: =IF(AND('GA55 Check & Edit'!AA13=""),"",'GA55 Check & Edit'!AA13) ->  | Z12: =IFERROR(IF(B12="","",IF(L12="",SUM(N12:Y12),IF('Master Data'!$H$18='GA55 Check & Edit'!$AO$5,SUM(N12:Y12)+L12,SUM(N12:Y12)))),0) -> 17074 | AA12: 54577
A13: 7 | B13: =IF(AND('GA55 Check & Edit'!D14=""),"",'GA55 Check & Edit'!D14) -> 2021-09-01 | C13: =IF(AND('GA55 Check & Edit'!E14=""),"",'GA55 Check & Edit'!E14) -> 52300 | D13: =IF(AND('GA55 Check & Edit'!F14=""),"",'GA55 Check & Edit'!F14) -> 14644 | E13: =IF(AND('GA55 Check & Edit'!G14=""),"",'GA55 Check & Edit'!G14) -> 4707 | F13: =IF(AND('GA55 Check & Edit'!H14=""),"",'GA55 Check & Edit'!H14) -> 0 | G13: =IF(AND('GA55 Check & Edit'!I14=""),"",'GA55 Check & Edit'!I14) -> 0 | H13: =IF(AND('GA55 Check & Edit'!J14=""),"",'GA55 Check & Edit'!J14) ->  | I13: =IF(AND('GA55 Check & Edit'!K14=""),"",'GA55 Check & Edit'!K14) -> 0 | J13: =IF(AND('GA55 Check & Edit'!L14=""),"",'GA55 Check & Edit'!L14) -> 0 | K13: =IF(AND('GA55 Check & Edit'!M14=""),"",'GA55 Check & Edit'!M14) ->  | L13: =IF(AND('GA55 Check & Edit'!N14=""),"",'GA55 Check & Edit'!N14) -> 6694 | M13: =IF(B13="","",IF('Master Data'!$H$18='GA55 Check & Edit'!$AO$5,SUM(C13:L13),SUM(C13:K13))) -> 71651 | N13: =IF(AND('GA55 Check & Edit'!P14=""),"",'GA55 Check & Edit'!P14) -> 7000 | O13: =IF(AND('GA55 Check & Edit'!Q14=""),"",'GA55 Check & Edit'!Q14) -> 6694 | P13: =IF(AND('GA55 Check & Edit'!R14=""),"",'GA55 Check & Edit'!R14) -> 1880 | Q13: =IF(AND('GA55 Check & Edit'!S14=""),"",'GA55 Check & Edit'!S14) -> 0 | R13: =IF(AND('GA55 Check & Edit'!T14=""),"",'GA55 Check & Edit'!T14) -> 0 | S13: =IF(AND('GA55 Check & Edit'!U14=""),"",'GA55 Check & Edit'!U14) -> 0 | T13: =IF(AND('GA55 Check & Edit'!V14=""),"",'GA55 Check & Edit'!V14) -> 0 | U13: =IF(AND('GA55 Check & Edit'!W14=""),"",'GA55 Check & Edit'!W14) -> 0 | V13: =IF(AND('GA55 Check & Edit'!X14=""),"",'GA55 Check & Edit'!X14) ->  | W13: =IF(AND('GA55 Check & Edit'!Y14=""),"",'GA55 Check & Edit'!Y14) -> 0 | X13: =IF(AND('GA55 Check & Edit'!Z14=""),"",'GA55 Check & Edit'!Z14) -> 1500 | Y13: =IF(AND('GA55 Check & Edit'!AA14=""),"",'GA55 Check & Edit'!AA14) ->  | Z13: =IFERROR(IF(B13="","",IF(L13="",SUM(N13:Y13),IF('Master Data'!$H$18='GA55 Check & Edit'!$AO$5,SUM(N13:Y13)+L13,SUM(N13:Y13)))),0) -> 17074 | AA13: 54577
A14: 8 | B14: =IF(AND('GA55 Check & Edit'!D15=""),"",'GA55 Check & Edit'!D15) -> 2021-10-01 | C14: =IF(AND('GA55 Check & Edit'!E15=""),"",'GA55 Check & Edit'!E15) -> 52300 | D14: =IF(AND('GA55 Check & Edit'!F15=""),"",'GA55 Check & Edit'!F15) -> 16213 | E14: =IF(AND('GA55 Check & Edit'!G15=""),"",'GA55 Check & Edit'!G15) -> 4707 | F14: =IF(AND('GA55 Check & Edit'!H15=""),"",'GA55 Check & Edit'!H15) -> 0 | G14: =IF(AND('GA55 Check & Edit'!I15=""),"",'GA55 Check & Edit'!I15) -> 0 | H14: =IF(AND('GA55 Check & Edit'!J15=""),"",'GA55 Check & Edit'!J15) ->  | I14: =IF(AND('GA55 Check & Edit'!K15=""),"",'GA55 Check & Edit'!K15) -> 0 | J14: =IF(AND('GA55 Check & Edit'!L15=""),"",'GA55 Check & Edit'!L15) -> 0 | K14: =IF(AND('GA55 Check & Edit'!M15=""),"",'GA55 Check & Edit'!M15) ->  | L14: =IF(AND('GA55 Check & Edit'!N15=""),"",'GA55 Check & Edit'!N15) -> 6851 | M14: =IF(B14="","",IF('Master Data'!$H$18='GA55 Check & Edit'!$AO$5,SUM(C14:L14),SUM(C14:K14))) -> 73220 | N14: =IF(AND('GA55 Check & Edit'!P15=""),"",'GA55 Check & Edit'!P15) -> 7000 | O14: =IF(AND('GA55 Check & Edit'!Q15=""),"",'GA55 Check & Edit'!Q15) -> 6851 | P14: =IF(AND('GA55 Check & Edit'!R15=""),"",'GA55 Check & Edit'!R15) -> 1880 | Q14: =IF(AND('GA55 Check & Edit'!S15=""),"",'GA55 Check & Edit'!S15) -> 0 | R14: =IF(AND('GA55 Check & Edit'!T15=""),"",'GA55 Check & Edit'!T15) -> 0 | S14: =IF(AND('GA55 Check & Edit'!U15=""),"",'GA55 Check & Edit'!U15) -> 0 | T14: =IF(AND('GA55 Check & Edit'!V15=""),"",'GA55 Check & Edit'!V15) -> 0 | U14: =IF(AND('GA55 Check & Edit'!W15=""),"",'GA55 Check & Edit'!W15) -> 0 | V14: =IF(AND('GA55 Check & Edit'!X15=""),"",'GA55 Check & Edit'!X15) ->  | W14: =IF(AND('GA55 Check & Edit'!Y15=""),"",'GA55 Check & Edit'!Y15) -> 0 | X14: =IF(AND('GA55 Check & Edit'!Z15=""),"",'GA55 Check & Edit'!Z15) -> 1500 | Y14: =IF(AND('GA55 Check & Edit'!AA15=""),"",'GA55 Check & Edit'!AA15) ->  | Z14: =IFERROR(IF(B14="","",IF(L14="",SUM(N14:Y14),IF('Master Data'!$H$18='GA55 Check & Edit'!$AO$5,SUM(N14:Y14)+L14,SUM(N14:Y14)))),0) -> 17231 | AA14: 55989
A15: 9 | B15: =IF(AND('GA55 Check & Edit'!D16=""),"",'GA55 Check & Edit'!D16) -> 2021-11-01 | C15: =IF(AND('GA55 Check & Edit'!E16=""),"",'GA55 Check & Edit'!E16) -> 52300 | D15: =IF(AND('GA55 Check & Edit'!F16=""),"",'GA55 Check & Edit'!F16) -> 16213 | E15: =IF(AND('GA55 Check & Edit'!G16=""),"",'GA55 Check & Edit'!G16) -> 4707 | F15: =IF(AND('GA55 Check & Edit'!H16=""),"",'GA55 Check & Edit'!H16) -> 0 | G15: =IF(AND('GA55 Check & Edit'!I16=""),"",'GA55 Check & Edit'!I16) -> 0 | H15: =IF(AND('GA55 Check & Edit'!J16=""),"",'GA55 Check & Edit'!J16) ->  | I15: =IF(AND('GA55 Check & Edit'!K16=""),"",'GA55 Check & Edit'!K16) -> 0 | J15: =IF(AND('GA55 Check & Edit'!L16=""),"",'GA55 Check & Edit'!L16) -> 0 | K15: =IF(AND('GA55 Check & Edit'!M16=""),"",'GA55 Check & Edit'!M16) ->  | L15: =IF(AND('GA55 Check & Edit'!N16=""),"",'GA55 Check & Edit'!N16) -> 6851 | M15: =IF(B15="","",IF('Master Data'!$H$18='GA55 Check & Edit'!$AO$5,SUM(C15:L15),SUM(C15:K15))) -> 73220 | N15: =IF(AND('GA55 Check & Edit'!P16=""),"",'GA55 Check & Edit'!P16) -> 7000 | O15: =IF(AND('GA55 Check & Edit'!Q16=""),"",'GA55 Check & Edit'!Q16) -> 6851 | P15: =IF(AND('GA55 Check & Edit'!R16=""),"",'GA55 Check & Edit'!R16) -> 1880 | Q15: =IF(AND('GA55 Check & Edit'!S16=""),"",'GA55 Check & Edit'!S16) -> 0 | R15: =IF(AND('GA55 Check & Edit'!T16=""),"",'GA55 Check & Edit'!T16) -> 0 | S15: =IF(AND('GA55 Check & Edit'!U16=""),"",'GA55 Check & Edit'!U16) -> 0 | T15: =IF(AND('GA55 Check & Edit'!V16=""),"",'GA55 Check & Edit'!V16) -> 0 | U15: =IF(AND('GA55 Check & Edit'!W16=""),"",'GA55 Check & Edit'!W16) -> 0 | V15: =IF(AND('GA55 Check & Edit'!X16=""),"",'GA55 Check & Edit'!X16) ->  | W15: =IF(AND('GA55 Check & Edit'!Y16=""),"",'GA55 Check & Edit'!Y16) -> 0 | X15: =IF(AND('GA55 Check & Edit'!Z16=""),"",'GA55 Check & Edit'!Z16) -> 1500 | Y15: =IF(AND('GA55 Check & Edit'!AA16=""),"",'GA55 Check & Edit'!AA16) ->  | Z15: =IFERROR(IF(B15="","",IF(L15="",SUM(N15:Y15),IF('Master Data'!$H$18='GA55 Check & Edit'!$AO$5,SUM(N15:Y15)+L15,SUM(N15:Y15)))),0) -> 17231 | AA15: 55989
A16: 10 | B16: =IF(AND('GA55 Check & Edit'!D17=""),"",'GA55 Check & Edit'!D17) -> 2021-12-01 | C16: =IF(AND('GA55 Check & Edit'!E17=""),"",'GA55 Check & Edit'!E17) -> 52300 | D16: =IF(AND('GA55 Check & Edit'!F17=""),"",'GA55 Check & Edit'!F17) -> 16213 | E16: =IF(AND('GA55 Check & Edit'!G17=""),"",'GA55 Check & Edit'!G17) -> 4707 | F16: =IF(AND('GA55 Check & Edit'!H17=""),"",'GA55 Check & Edit'!H17) -> 0 | G16: =IF(AND('GA55 Check & Edit'!I17=""),"",'GA55 Check & Edit'!I17) -> 0 | H16: =IF(AND('GA55 Check & Edit'!J17=""),"",'GA55 Check & Edit'!J17) ->  | I16: =IF(AND('GA55 Check & Edit'!K17=""),"",'GA55 Check & Edit'!K17) -> 0 | J16: =IF(AND('GA55 Check & Edit'!L17=""),"",'GA55 Check & Edit'!L17) -> 0 | K16: =IF(AND('GA55 Check & Edit'!M17=""),"",'GA55 Check & Edit'!M17) ->  | L16: =IF(AND('GA55 Check & Edit'!N17=""),"",'GA55 Check & Edit'!N17) -> 6851 | M16: =IF(B16="","",IF('Master Data'!$H$18='GA55 Check & Edit'!$AO$5,SUM(C16:L16),SUM(C16:K16))) -> 73220 | N16: =IF(AND('GA55 Check & Edit'!P17=""),"",'GA55 Check & Edit'!P17) -> 7000 | O16: =IF(AND('GA55 Check & Edit'!Q17=""),"",'GA55 Check & Edit'!Q17) -> 6851 | P16: =IF(AND('GA55 Check & Edit'!R17=""),"",'GA55 Check & Edit'!R17) -> 1880 | Q16: =IF(AND('GA55 Check & Edit'!S17=""),"",'GA55 Check & Edit'!S17) -> 0 | R16: =IF(AND('GA55 Check & Edit'!T17=""),"",'GA55 Check & Edit'!T17) -> 0 | S16: =IF(AND('GA55 Check & Edit'!U17=""),"",'GA55 Check & Edit'!U17) -> 0 | T16: =IF(AND('GA55 Check & Edit'!V17=""),"",'GA55 Check & Edit'!V17) -> 0 | U16: =IF(AND('GA55 Check & Edit'!W17=""),"",'GA55 Check & Edit'!W17) -> 0 | V16: =IF(AND('GA55 Check & Edit'!X17=""),"",'GA55 Check & Edit'!X17) -> 250 | W16: =IF(AND('GA55 Check & Edit'!Y17=""),"",'GA55 Check & Edit'!Y17) -> 0 | X16: =IF(AND('GA55 Check & Edit'!Z17=""),"",'GA55 Check & Edit'!Z17) -> 1500 | Y16: =IF(AND('GA55 Check & Edit'!AA17=""),"",'GA55 Check & Edit'!AA17) ->  | Z16: =IFERROR(IF(B16="","",IF(L16="",SUM(N16:Y16),IF('Master Data'!$H$18='GA55 Check & Edit'!$AO$5,SUM(N16:Y16)+L16,SUM(N16:Y16)))),0) -> 17481 | AA16: 55739
A17: 11 | B17: =IF(AND('GA55 Check & Edit'!D18=""),"",'GA55 Check & Edit'!D18) -> 2022-01-01 | C17: =IF(AND('GA55 Check & Edit'!E18=""),"",'GA55 Check & Edit'!E18) -> 52300 | D17: =IF(AND('GA55 Check & Edit'!F18=""),"",'GA55 Check & Edit'!F18) -> 16213 | E17: =IF(AND('GA55 Check & Edit'!G18=""),"",'GA55 Check & Edit'!G18) -> 4707 | F17: =IF(AND('GA55 Check & Edit'!H18=""),"",'GA55 Check & Edit'!H18) -> 0 | G17: =IF(AND('GA55 Check & Edit'!I18=""),"",'GA55 Check & Edit'!I18) -> 0 | H17: =IF(AND('GA55 Check & Edit'!J18=""),"",'GA55 Check & Edit'!J18) ->  | I17: =IF(AND('GA55 Check & Edit'!K18=""),"",'GA55 Check & Edit'!K18) -> 0 | J17: =IF(AND('GA55 Check & Edit'!L18=""),"",'GA55 Check & Edit'!L18) -> 0 | K17: =IF(AND('GA55 Check & Edit'!M18=""),"",'GA55 Check & Edit'!M18) ->  | L17: =IF(AND('GA55 Check & Edit'!N18=""),"",'GA55 Check & Edit'!N18) -> 6851 | M17: =IF(B17="","",IF('Master Data'!$H$18='GA55 Check & Edit'!$AO$5,SUM(C17:L17),SUM(C17:K17))) -> 73220 | N17: =IF(AND('GA55 Check & Edit'!P18=""),"",'GA55 Check & Edit'!P18) -> 7000 | O17: =IF(AND('GA55 Check & Edit'!Q18=""),"",'GA55 Check & Edit'!Q18) -> 6851 | P17: =IF(AND('GA55 Check & Edit'!R18=""),"",'GA55 Check & Edit'!R18) -> 1880 | Q17: =IF(AND('GA55 Check & Edit'!S18=""),"",'GA55 Check & Edit'!S18) -> 0 | R17: =IF(AND('GA55 Check & Edit'!T18=""),"",'GA55 Check & Edit'!T18) -> 0 | S17: =IF(AND('GA55 Check & Edit'!U18=""),"",'GA55 Check & Edit'!U18) -> 0 | T17: =IF(AND('GA55 Check & Edit'!V18=""),"",'GA55 Check & Edit'!V18) -> 0 | U17: =IF(AND('GA55 Check & Edit'!W18=""),"",'GA55 Check & Edit'!W18) -> 0 | V17: =IF(AND('GA55 Check & Edit'!X18=""),"",'GA55 Check & Edit'!X18) ->  | W17: =IF(AND('GA55 Check & Edit'!Y18=""),"",'GA55 Check & Edit'!Y18) -> 0 | X17: =IF(AND('GA55 Check & Edit'!Z18=""),"",'GA55 Check & Edit'!Z18) -> 1500 | Y17: =IF(AND('GA55 Check & Edit'!AA18=""),"",'GA55 Check & Edit'!AA18) ->  | Z17: =IFERROR(IF(B17="","",IF(L17="",SUM(N17:Y17),IF('Master Data'!$H$18='GA55 Check & Edit'!$AO$5,SUM(N17:Y17)+L17,SUM(N17:Y17)))),0) -> 17231 | AA17: 55989
A18: 12 | B18: =IF(AND('GA55 Check & Edit'!D19=""),"",'GA55 Check & Edit'!D19) -> 2022-02-01 | C18: =IF(AND('GA55 Check & Edit'!E19=""),"",'GA55 Check & Edit'!E19) -> 52300 | D18: =IF(AND('GA55 Check & Edit'!F19=""),"",'GA55 Check & Edit'!F19) -> 16213 | E18: =IF(AND('GA55 Check & Edit'!G19=""),"",'GA55 Check & Edit'!G19) -> 4707 | F18: =IF(AND('GA55 Check & Edit'!H19=""),"",'GA55 Check & Edit'!H19) -> 0 | G18: =IF(AND('GA55 Check & Edit'!I19=""),"",'GA55 Check & Edit'!I19) -> 0 | H18: =IF(AND('GA55 Check & Edit'!J19=""),"",'GA55 Check & Edit'!J19) ->  | I18: =IF(AND('GA55 Check & Edit'!K19=""),"",'GA55 Check & Edit'!K19) -> 0 | J18: =IF(AND('GA55 Check & Edit'!L19=""),"",'GA55 Check & Edit'!L19) -> 0 | K18: =IF(AND('GA55 Check & Edit'!M19=""),"",'GA55 Check & Edit'!M19) ->  | L18: =IF(AND('GA55 Check & Edit'!N19=""),"",'GA55 Check & Edit'!N19) -> 6851 | M18: =IF(B18="","",IF('Master Data'!$H$18='GA55 Check & Edit'!$AO$5,SUM(C18:L18),SUM(C18:K18))) -> 73220 | N18: =IF(AND('GA55 Check & Edit'!P19=""),"",'GA55 Check & Edit'!P19) -> 7000 | O18: =IF(AND('GA55 Check & Edit'!Q19=""),"",'GA55 Check & Edit'!Q19) -> 6851 | P18: =IF(AND('GA55 Check & Edit'!R19=""),"",'GA55 Check & Edit'!R19) -> 1880 | Q18: =IF(AND('GA55 Check & Edit'!S19=""),"",'GA55 Check & Edit'!S19) -> 0 | R18: =IF(AND('GA55 Check & Edit'!T19=""),"",'GA55 Check & Edit'!T19) -> 0 | S18: =IF(AND('GA55 Check & Edit'!U19=""),"",'GA55 Check & Edit'!U19) -> 0 | T18: =IF(AND('GA55 Check & Edit'!V19=""),"",'GA55 Check & Edit'!V19) -> 0 | U18: =IF(AND('GA55 Check & Edit'!W19=""),"",'GA55 Check & Edit'!W19) -> 0 | V18: =IF(AND('GA55 Check & Edit'!X19=""),"",'GA55 Check & Edit'!X19) ->  | W18: =IF(AND('GA55 Check & Edit'!Y19=""),"",'GA55 Check & Edit'!Y19) -> 0 | X18: =IF(AND('GA55 Check & Edit'!Z19=""),"",'GA55 Check & Edit'!Z19) -> 0 | Y18: =IF(AND('GA55 Check & Edit'!AA19=""),"",'GA55 Check & Edit'!AA19) ->  | Z18: =IFERROR(IF(B18="","",IF(L18="",SUM(N18:Y18),IF('Master Data'!$H$18='GA55 Check & Edit'!$AO$5,SUM(N18:Y18)+L18,SUM(N18:Y18)))),0) -> 15731 | AA18: 57489
A19: 13 | B19: =IF(AND('GA55 Check & Edit'!D20=""),"",'GA55 Check & Edit'!D20) -> Bonus | C19: =IF(AND('GA55 Check & Edit'!E20=""),"",'GA55 Check & Edit'!E20) ->  | D19: =IF(AND('GA55 Check & Edit'!F20=""),"",'GA55 Check & Edit'!F20) ->  | E19: =IF(AND('GA55 Check & Edit'!G20=""),"",'GA55 Check & Edit'!G20) ->  | F19: =IF(AND('GA55 Check & Edit'!H20=""),"",'GA55 Check & Edit'!H20) ->  | G19: =IF(AND('GA55 Check & Edit'!I20=""),"",'GA55 Check & Edit'!I20) ->  | H19: =IF(AND('GA55 Check & Edit'!J20=""),"",'GA55 Check & Edit'!J20) ->  | I19: =IF(AND('GA55 Check & Edit'!K20=""),"",'GA55 Check & Edit'!K20) ->  | J19: =IF(AND('GA55 Check & Edit'!L20=""),"",'GA55 Check & Edit'!L20) ->  | K19: =IF(AND('GA55 Check & Edit'!M20=""),"",'GA55 Check & Edit'!M20) -> 6774 | L19: =IF(AND('GA55 Check & Edit'!N20=""),"",'GA55 Check & Edit'!N20) ->  | M19: =IF(B19="","",IF('Master Data'!$H$18='GA55 Check & Edit'!$AO$5,SUM(C19:L19),SUM(C19:K19))) -> 6774 | N19: =IF(AND('GA55 Check & Edit'!P20=""),"",'GA55 Check & Edit'!P20) ->  | O19: =IF(AND('GA55 Check & Edit'!Q20=""),"",'GA55 Check & Edit'!Q20) ->  | P19: =IF(AND('GA55 Check & Edit'!R20=""),"",'GA55 Check & Edit'!R20) ->  | Q19: =IF(AND('GA55 Check & Edit'!S20=""),"",'GA55 Check & Edit'!S20) ->  | R19: =IF(AND('GA55 Check & Edit'!T20=""),"",'GA55 Check & Edit'!T20) ->  | S19: =IF(AND('GA55 Check & Edit'!U20=""),"",'GA55 Check & Edit'!U20) ->  | T19: =IF(AND('GA55 Check & Edit'!V20=""),"",'GA55 Check & Edit'!V20) -> 3387 | U19: =IF(AND('GA55 Check & Edit'!W20=""),"",'GA55 Check & Edit'!W20) ->  | V19: =IF(AND('GA55 Check & Edit'!X20=""),"",'GA55 Check & Edit'!X20) ->  | W19: =IF(AND('GA55 Check & Edit'!Y20=""),"",'GA55 Check & Edit'!Y20) ->  | X19: =IF(AND('GA55 Check & Edit'!Z20=""),"",'GA55 Check & Edit'!Z20) ->  | Y19: =IF(AND('GA55 Check & Edit'!AA20=""),"",'GA55 Check & Edit'!AA20) ->  | Z19: =IFERROR(IF(B19="","",IF(L19="",SUM(N19:Y19),IF('Master Data'!$H$18='GA55 Check & Edit'!$AO$5,SUM(N19:Y19)+L19,SUM(N19:Y19)))),0) -> 3387 | AA19: 3387
A20: 14 | B20: =IF(AND('GA55 Check & Edit'!D21=""),"",'GA55 Check & Edit'!D21) -> PL Surrender | C20: =IF(AND('GA55 Check & Edit'!E21=""),"",'GA55 Check & Edit'!E21) -> 0 | D20: =IF(AND('GA55 Check & Edit'!F21=""),"",'GA55 Check & Edit'!F21) -> 0 | E20: =IF(AND('GA55 Check & Edit'!G21=""),"",'GA55 Check & Edit'!G21) ->  | F20: =IF(AND('GA55 Check & Edit'!H21=""),"",'GA55 Check & Edit'!H21) ->  | G20: =IF(AND('GA55 Check & Edit'!I21=""),"",'GA55 Check & Edit'!I21) ->  | H20: =IF(AND('GA55 Check & Edit'!J21=""),"",'GA55 Check & Edit'!J21) ->  | I20: =IF(AND('GA55 Check & Edit'!K21=""),"",'GA55 Check & Edit'!K21) ->  | J20: =IF(AND('GA55 Check & Edit'!L21=""),"",'GA55 Check & Edit'!L21) ->  | K20: =IF(AND('GA55 Check & Edit'!M21=""),"",'GA55 Check & Edit'!M21) ->  | L20: =IF(AND('GA55 Check & Edit'!N21=""),"",'GA55 Check & Edit'!N21) -> 0 | M20: =IF(B20="","",IF('Master Data'!$H$18='GA55 Check & Edit'!$AO$5,SUM(C20:L20),SUM(C20:K20))) -> 0 | N20: =IF(AND('GA55 Check & Edit'!P21=""),"",'GA55 Check & Edit'!P21) ->  | O20: =IF(AND('GA55 Check & Edit'!Q21=""),"",'GA55 Check & Edit'!Q21) -> 0 | P20: =IF(AND('GA55 Check & Edit'!R21=""),"",'GA55 Check & Edit'!R21) ->  | Q20: =IF(AND('GA55 Check & Edit'!S21=""),"",'GA55 Check & Edit'!S21) ->  | R20: =IF(AND('GA55 Check & Edit'!T21=""),"",'GA55 Check & Edit'!T21) ->  | S20: =IF(AND('GA55 Check & Edit'!U21=""),"",'GA55 Check & Edit'!U21) ->  | T20: =IF(AND('GA55 Check & Edit'!V21=""),"",'GA55 Check & Edit'!V21) ->  | U20: =IF(AND('GA55 Check & Edit'!W21=""),"",'GA55 Check & Edit'!W21) ->  | V20: =IF(AND('GA55 Check & Edit'!X21=""),"",'GA55 Check & Edit'!X21) ->  | W20: =IF(AND('GA55 Check & Edit'!Y21=""),"",'GA55 Check & Edit'!Y21) ->  | X20: =IF(AND('GA55 Check & Edit'!Z21=""),"",'GA55 Check & Edit'!Z21) ->  | Y20: =IF(AND('GA55 Check & Edit'!AA21=""),"",'GA55 Check & Edit'!AA21) ->  | Z20: =IFERROR(IF(B20="","",IF(L20="",SUM(N20:Y20),IF('Master Data'!$H$18='GA55 Check & Edit'!$AO$5,SUM(N20:Y20)+L20,SUM(N20:Y20)))),0) -> 0 | AA20: 0
A21: 15 | B21: =IF(AND('GA55 Check & Edit'!D22=""),"",'GA55 Check & Edit'!D22) -> DA Arrear | C21: =IF(AND('GA55 Check & Edit'!E22=""),"",'GA55 Check & Edit'!E22) ->  | D21: =IF(AND('GA55 Check & Edit'!F22=""),"",'GA55 Check & Edit'!F22) -> 4707 | E21: =IF(AND('GA55 Check & Edit'!G22=""),"",'GA55 Check & Edit'!G22) ->  | F21: =IF(AND('GA55 Check & Edit'!H22=""),"",'GA55 Check & Edit'!H22) ->  | G21: =IF(AND('GA55 Check & Edit'!I22=""),"",'GA55 Check & Edit'!I22) ->  | H21: =IF(AND('GA55 Check & Edit'!J22=""),"",'GA55 Check & Edit'!J22) ->  | I21: =IF(AND('GA55 Check & Edit'!K22=""),"",'GA55 Check & Edit'!K22) ->  | J21: =IF(AND('GA55 Check & Edit'!L22=""),"",'GA55 Check & Edit'!L22) ->  | K21: =IF(AND('GA55 Check & Edit'!M22=""),"",'GA55 Check & Edit'!M22) ->  | L21: =IF(AND('GA55 Check & Edit'!N22=""),"",'GA55 Check & Edit'!N22) -> 471 | M21: =IF(B21="","",IF('Master Data'!$H$18='GA55 Check & Edit'!$AO$5,SUM(C21:L21),SUM(C21:K21))) -> 4707 | N21: =IF(AND('GA55 Check & Edit'!P22=""),"",'GA55 Check & Edit'!P22) ->  | O21: =IF(AND('GA55 Check & Edit'!Q22=""),"",'GA55 Check & Edit'!Q22) -> 471 | P21: =IF(AND('GA55 Check & Edit'!R22=""),"",'GA55 Check & Edit'!R22) ->  | Q21: =IF(AND('GA55 Check & Edit'!S22=""),"",'GA55 Check & Edit'!S22) ->  | R21: =IF(AND('GA55 Check & Edit'!T22=""),"",'GA55 Check & Edit'!T22) ->  | S21: =IF(AND('GA55 Check & Edit'!U22=""),"",'GA55 Check & Edit'!U22) ->  | T21: =IF(AND('GA55 Check & Edit'!V22=""),"",'GA55 Check & Edit'!V22) -> 4236 | U21: =IF(AND('GA55 Check & Edit'!W22=""),"",'GA55 Check & Edit'!W22) ->  | V21: =IF(AND('GA55 Check & Edit'!X22=""),"",'GA55 Check & Edit'!X22) ->  | W21: =IF(AND('GA55 Check & Edit'!Y22=""),"",'GA55 Check & Edit'!Y22) ->  | X21: =IF(AND('GA55 Check & Edit'!Z22=""),"",'GA55 Check & Edit'!Z22) ->  | Y21: =IF(AND('GA55 Check & Edit'!AA22=""),"",'GA55 Check & Edit'!AA22) ->  | Z21: =IFERROR(IF(B21="","",IF(L21="",SUM(N21:Y21),IF('Master Data'!$H$18='GA55 Check & Edit'!$AO$5,SUM(N21:Y21)+L21,SUM(N21:Y21)))),0) -> 4707 | AA21: 0
A22: 16 | B22: =IF(AND('GA55 Check & Edit'!D23=""),"",'GA55 Check & Edit'!D23) -> Fixation arear | C22: =IF(AND('GA55 Check & Edit'!E23=""),"",'GA55 Check & Edit'!E23) ->  | D22: =IF(AND('GA55 Check & Edit'!F23=""),"",'GA55 Check & Edit'!F23) ->  | E22: =IF(AND('GA55 Check & Edit'!G23=""),"",'GA55 Check & Edit'!G23) ->  | F22: =IF(AND('GA55 Check & Edit'!H23=""),"",'GA55 Check & Edit'!H23) ->  | G22: =IF(AND('GA55 Check & Edit'!I23=""),"",'GA55 Check & Edit'!I23) ->  | H22: =IF(AND('GA55 Check & Edit'!J23=""),"",'GA55 Check & Edit'!J23) ->  | I22: =IF(AND('GA55 Check & Edit'!K23=""),"",'GA55 Check & Edit'!K23) ->  | J22: =IF(AND('GA55 Check & Edit'!L23=""),"",'GA55 Check & Edit'!L23) ->  | K22: =IF(AND('GA55 Check & Edit'!M23=""),"",'GA55 Check & Edit'!M23) ->  | L22: =IF(AND('GA55 Check & Edit'!N23=""),"",'GA55 Check & Edit'!N23) ->  | M22: =IF(B22="","",IF('Master Data'!$H$18='GA55 Check & Edit'!$AO$5,SUM(C22:L22),SUM(C22:K22))) -> 0 | N22: =IF(AND('GA55 Check & Edit'!P23=""),"",'GA55 Check & Edit'!P23) ->  | O22: =IF(AND('GA55 Check & Edit'!Q23=""),"",'GA55 Check & Edit'!Q23) ->  | P22: =IF(AND('GA55 Check & Edit'!R23=""),"",'GA55 Check & Edit'!R23) ->  | Q22: =IF(AND('GA55 Check & Edit'!S23=""),"",'GA55 Check & Edit'!S23) ->  | R22: =IF(AND('GA55 Check & Edit'!T23=""),"",'GA55 Check & Edit'!T23) ->  | S22: =IF(AND('GA55 Check & Edit'!U23=""),"",'GA55 Check & Edit'!U23) ->  | T22: =IF(AND('GA55 Check & Edit'!V23=""),"",'GA55 Check & Edit'!V23) ->  | U22: =IF(AND('GA55 Check & Edit'!W23=""),"",'GA55 Check & Edit'!W23) ->  | V22: =IF(AND('GA55 Check & Edit'!X23=""),"",'GA55 Check & Edit'!X23) ->  | W22: =IF(AND('GA55 Check & Edit'!Y23=""),"",'GA55 Check & Edit'!Y23) ->  | X22: =IF(AND('GA55 Check & Edit'!Z23=""),"",'GA55 Check & Edit'!Z23) ->  | Y22: =IF(AND('GA55 Check & Edit'!AA23=""),"",'GA55 Check & Edit'!AA23) ->  | Z22: =IFERROR(IF(B22="","",IF(L22="",SUM(N22:Y22),IF('Master Data'!$H$18='GA55 Check & Edit'!$AO$5,SUM(N22:Y22)+L22,SUM(N22:Y22)))),0) -> 0 | AA22: 0
A23: 17 | B23: =IF(AND('GA55 Check & Edit'!D24=""),"",'GA55 Check & Edit'!D24) -> HRA Arrear | C23: =IF(AND('GA55 Check & Edit'!E24=""),"",'GA55 Check & Edit'!E24) ->  | D23: =IF(AND('GA55 Check & Edit'!F24=""),"",'GA55 Check & Edit'!F24) ->  | E23: =IF(AND('GA55 Check & Edit'!G24=""),"",'GA55 Check & Edit'!G24) -> 523 | F23: =IF(AND('GA55 Check & Edit'!H24=""),"",'GA55 Check & Edit'!H24) ->  | G23: =IF(AND('GA55 Check & Edit'!I24=""),"",'GA55 Check & Edit'!I24) ->  | H23: =IF(AND('GA55 Check & Edit'!J24=""),"",'GA55 Check & Edit'!J24) ->  | I23: =IF(AND('GA55 Check & Edit'!K24=""),"",'GA55 Check & Edit'!K24) ->  | J23: =IF(AND('GA55 Check & Edit'!L24=""),"",'GA55 Check & Edit'!L24) ->  | K23: =IF(AND('GA55 Check & Edit'!M24=""),"",'GA55 Check & Edit'!M24) ->  | L23: =IF(AND('GA55 Check & Edit'!N24=""),"",'GA55 Check & Edit'!N24) ->  | M23: =IF(B23="","",IF('Master Data'!$H$18='GA55 Check & Edit'!$AO$5,SUM(C23:L23),SUM(C23:K23))) -> 523 | N23: =IF(AND('GA55 Check & Edit'!P24=""),"",'GA55 Check & Edit'!P24) ->  | O23: =IF(AND('GA55 Check & Edit'!Q24=""),"",'GA55 Check & Edit'!Q24) ->  | P23: =IF(AND('GA55 Check & Edit'!R24=""),"",'GA55 Check & Edit'!R24) ->  | Q23: =IF(AND('GA55 Check & Edit'!S24=""),"",'GA55 Check & Edit'!S24) ->  | R23: =IF(AND('GA55 Check & Edit'!T24=""),"",'GA55 Check & Edit'!T24) ->  | S23: =IF(AND('GA55 Check & Edit'!U24=""),"",'GA55 Check & Edit'!U24) ->  | T23: =IF(AND('GA55 Check & Edit'!V24=""),"",'GA55 Check & Edit'!V24) ->  | U23: =IF(AND('GA55 Check & Edit'!W24=""),"",'GA55 Check & Edit'!W24) ->  | V23: =IF(AND('GA55 Check & Edit'!X24=""),"",'GA55 Check & Edit'!X24) ->  | W23: =IF(AND('GA55 Check & Edit'!Y24=""),"",'GA55 Check & Edit'!Y24) ->  | X23: =IF(AND('GA55 Check & Edit'!Z24=""),"",'GA55 Check & Edit'!Z24) ->  | Y23: =IF(AND('GA55 Check & Edit'!AA24=""),"",'GA55 Check & Edit'!AA24) ->  | Z23: =IFERROR(IF(B23="","",IF(L23="",SUM(N23:Y23),IF('Master Data'!$H$18='GA55 Check & Edit'!$AO$5,SUM(N23:Y23)+L23,SUM(N23:Y23)))),0) -> 0 | AA23: 523
A24: 18 | B24: =IF(AND('GA55 Check & Edit'!D25=""),"",'GA55 Check & Edit'!D25) -> PL Surrender Arrear | C24: =IF(AND('GA55 Check & Edit'!E25=""),"",'GA55 Check & Edit'!E25) ->  | D24: =IF(AND('GA55 Check & Edit'!F25=""),"",'GA55 Check & Edit'!F25) -> 0 | E24: =IF(AND('GA55 Check & Edit'!G25=""),"",'GA55 Check & Edit'!G25) ->  | F24: =IF(AND('GA55 Check & Edit'!H25=""),"",'GA55 Check & Edit'!H25) ->  | G24: =IF(AND('GA55 Check & Edit'!I25=""),"",'GA55 Check & Edit'!I25) ->  | H24: =IF(AND('GA55 Check & Edit'!J25=""),"",'GA55 Check & Edit'!J25) ->  | I24: =IF(AND('GA55 Check & Edit'!K25=""),"",'GA55 Check & Edit'!K25) ->  | J24: =IF(AND('GA55 Check & Edit'!L25=""),"",'GA55 Check & Edit'!L25) ->  | K24: =IF(AND('GA55 Check & Edit'!M25=""),"",'GA55 Check & Edit'!M25) ->  | L24: =IF(AND('GA55 Check & Edit'!N25=""),"",'GA55 Check & Edit'!N25) -> 0 | M24: =IF(B24="","",IF('Master Data'!$H$18='GA55 Check & Edit'!$AO$5,SUM(C24:L24),SUM(C24:K24))) -> 0 | N24: =IF(AND('GA55 Check & Edit'!P25=""),"",'GA55 Check & Edit'!P25) ->  | O24: =IF(AND('GA55 Check & Edit'!Q25=""),"",'GA55 Check & Edit'!Q25) -> 0 | P24: =IF(AND('GA55 Check & Edit'!R25=""),"",'GA55 Check & Edit'!R25) ->  | Q24: =IF(AND('GA55 Check & Edit'!S25=""),"",'GA55 Check & Edit'!S25) ->  | R24: =IF(AND('GA55 Check & Edit'!T25=""),"",'GA55 Check & Edit'!T25) ->  | S24: =IF(AND('GA55 Check & Edit'!U25=""),"",'GA55 Check & Edit'!U25) ->  | T24: =IF(AND('GA55 Check & Edit'!V25=""),"",'GA55 Check & Edit'!V25) -> 0 | U24: =IF(AND('GA55 Check & Edit'!W25=""),"",'GA55 Check & Edit'!W25) ->  | V24: =IF(AND('GA55 Check & Edit'!X25=""),"",'GA55 Check & Edit'!X25) ->  | W24: =IF(AND('GA55 Check & Edit'!Y25=""),"",'GA55 Check & Edit'!Y25) ->  | X24: =IF(AND('GA55 Check & Edit'!Z25=""),"",'GA55 Check & Edit'!Z25) ->  | Y24: =IF(AND('GA55 Check & Edit'!AA25=""),"",'GA55 Check & Edit'!AA25) ->  | Z24: =IFERROR(IF(B24="","",IF(L24="",SUM(N24:Y24),IF('Master Data'!$H$18='GA55 Check & Edit'!$AO$5,SUM(N24:Y24)+L24,SUM(N24:Y24)))),0) -> 0 | AA24: 0
A25: 19 | B25: =IF(AND('GA55 Check & Edit'!D26=""),"",'GA55 Check & Edit'!D26) ->  | C25: =IF(AND('GA55 Check & Edit'!E26=""),"",'GA55 Check & Edit'!E26) ->  | D25: =IF(AND('GA55 Check & Edit'!F26=""),"",'GA55 Check & Edit'!F26) ->  | E25: =IF(AND('GA55 Check & Edit'!G26=""),"",'GA55 Check & Edit'!G26) ->  | F25: =IF(AND('GA55 Check & Edit'!H26=""),"",'GA55 Check & Edit'!H26) ->  | G25: =IF(AND('GA55 Check & Edit'!I26=""),"",'GA55 Check & Edit'!I26) ->  | H25: =IF(AND('GA55 Check & Edit'!J26=""),"",'GA55 Check & Edit'!J26) ->  | I25: =IF(AND('GA55 Check & Edit'!K26=""),"",'GA55 Check & Edit'!K26) ->  | J25: =IF(AND('GA55 Check & Edit'!L26=""),"",'GA55 Check & Edit'!L26) ->  | K25: =IF(AND('GA55 Check & Edit'!M26=""),"",'GA55 Check & Edit'!M26) ->  | L25: =IF(AND('GA55 Check & Edit'!N26=""),"",'GA55 Check & Edit'!N26) ->  | M25: =IF(B25="","",IF('Master Data'!$H$18='GA55 Check & Edit'!$AO$5,SUM(C25:L25),SUM(C25:K25))) ->  | N25: =IF(AND('GA55 Check & Edit'!P26=""),"",'GA55 Check & Edit'!P26) ->  | O25: =IF(AND('GA55 Check & Edit'!Q26=""),"",'GA55 Check & Edit'!Q26) ->  | P25: =IF(AND('GA55 Check & Edit'!R26=""),"",'GA55 Check & Edit'!R26) ->  | Q25: =IF(AND('GA55 Check & Edit'!S26=""),"",'GA55 Check & Edit'!S26) ->  | R25: =IF(AND('GA55 Check & Edit'!T26=""),"",'GA55 Check & Edit'!T26) ->  | S25: =IF(AND('GA55 Check & Edit'!U26=""),"",'GA55 Check & Edit'!U26) ->  | T25: =IF(AND('GA55 Check & Edit'!V26=""),"",'GA55 Check & Edit'!V26) ->  | U25: =IF(AND('GA55 Check & Edit'!W26=""),"",'GA55 Check & Edit'!W26) ->  | V25: =IF(AND('GA55 Check & Edit'!X26=""),"",'GA55 Check & Edit'!X26) ->  | W25: =IF(AND('GA55 Check & Edit'!Y26=""),"",'GA55 Check & Edit'!Y26) ->  | X25: =IF(AND('GA55 Check & Edit'!Z26=""),"",'GA55 Check & Edit'!Z26) ->  | Y25: =IF(AND('GA55 Check & Edit'!AA26=""),"",'GA55 Check & Edit'!AA26) ->  | Z25: =IFERROR(IF(B25="","",IF(L25="",SUM(N25:Y25),IF('Master Data'!$H$18='GA55 Check & Edit'!$AO$5,SUM(N25:Y25)+L25,SUM(N25:Y25)))),0) -> 
A26: 20 | B26: =IF(AND('GA55 Check & Edit'!D27=""),"",'GA55 Check & Edit'!D27) ->  | C26: =IF(AND('GA55 Check & Edit'!E27=""),"",'GA55 Check & Edit'!E27) ->  | D26: =IF(AND('GA55 Check & Edit'!F27=""),"",'GA55 Check & Edit'!F27) ->  | E26: =IF(AND('GA55 Check & Edit'!G27=""),"",'GA55 Check & Edit'!G27) ->  | F26: =IF(AND('GA55 Check & Edit'!H27=""),"",'GA55 Check & Edit'!H27) ->  | G26: =IF(AND('GA55 Check & Edit'!I27=""),"",'GA55 Check & Edit'!I27) ->  | H26: =IF(AND('GA55 Check & Edit'!J27=""),"",'GA55 Check & Edit'!J27) ->  | I26: =IF(AND('GA55 Check & Edit'!K27=""),"",'GA55 Check & Edit'!K27) ->  | J26: =IF(AND('GA55 Check & Edit'!L27=""),"",'GA55 Check & Edit'!L27) ->  | K26: =IF(AND('GA55 Check & Edit'!M27=""),"",'GA55 Check & Edit'!M27) ->  | L26: =IF(AND('GA55 Check & Edit'!N27=""),"",'GA55 Check & Edit'!N27) ->  | M26: =IF(B26="","",IF('Master Data'!$H$18='GA55 Check & Edit'!$AO$5,SUM(C26:L26),SUM(C26:K26))) ->  | N26: =IF(AND('GA55 Check & Edit'!P27=""),"",'GA55 Check & Edit'!P27) ->  | O26: =IF(AND('GA55 Check & Edit'!Q27=""),"",'GA55 Check & Edit'!Q27) ->  | P26: =IF(AND('GA55 Check & Edit'!R27=""),"",'GA55 Check & Edit'!R27) ->  | Q26: =IF(AND('GA55 Check & Edit'!S27=""),"",'GA55 Check & Edit'!S27) ->  | R26: =IF(AND('GA55 Check & Edit'!T27=""),"",'GA55 Check & Edit'!T27) ->  | S26: =IF(AND('GA55 Check & Edit'!U27=""),"",'GA55 Check & Edit'!U27) ->  | T26: =IF(AND('GA55 Check & Edit'!V27=""),"",'GA55 Check & Edit'!V27) ->  | U26: =IF(AND('GA55 Check & Edit'!W27=""),"",'GA55 Check & Edit'!W27) ->  | V26: =IF(AND('GA55 Check & Edit'!X27=""),"",'GA55 Check & Edit'!X27) ->  | W26: =IF(AND('GA55 Check & Edit'!Y27=""),"",'GA55 Check & Edit'!Y27) ->  | X26: =IF(AND('GA55 Check & Edit'!Z27=""),"",'GA55 Check & Edit'!Z27) ->  | Y26: =IF(AND('GA55 Check & Edit'!AA27=""),"",'GA55 Check & Edit'!AA27) ->  | Z26: =IFERROR(IF(B26="","",IF(L26="",SUM(N26:Y26),IF('Master Data'!$H$18='GA55 Check & Edit'!$AO$5,SUM(N26:Y26)+L26,SUM(N26:Y26)))),0) -> 
A27: 21 | B27: =IF(AND('GA55 Check & Edit'!D28=""),"",'GA55 Check & Edit'!D28) ->  | C27: =IF(AND('GA55 Check & Edit'!E28=""),"",'GA55 Check & Edit'!E28) ->  | D27: =IF(AND('GA55 Check & Edit'!F28=""),"",'GA55 Check & Edit'!F28) ->  | E27: =IF(AND('GA55 Check & Edit'!G28=""),"",'GA55 Check & Edit'!G28) ->  | F27: =IF(AND('GA55 Check & Edit'!H28=""),"",'GA55 Check & Edit'!H28) ->  | G27: =IF(AND('GA55 Check & Edit'!I28=""),"",'GA55 Check & Edit'!I28) ->  | H27: =IF(AND('GA55 Check & Edit'!J28=""),"",'GA55 Check & Edit'!J28) ->  | I27: =IF(AND('GA55 Check & Edit'!K28=""),"",'GA55 Check & Edit'!K28) ->  | J27: =IF(AND('GA55 Check & Edit'!L28=""),"",'GA55 Check & Edit'!L28) ->  | K27: =IF(AND('GA55 Check & Edit'!M28=""),"",'GA55 Check & Edit'!M28) ->  | L27: =IF(AND('GA55 Check & Edit'!N28=""),"",'GA55 Check & Edit'!N28) ->  | M27: =IF(B27="","",IF('Master Data'!$H$18='GA55 Check & Edit'!$AO$5,SUM(C27:L27),SUM(C27:K27))) ->  | N27: =IF(AND('GA55 Check & Edit'!P28=""),"",'GA55 Check & Edit'!P28) ->  | O27: =IF(AND('GA55 Check & Edit'!Q28=""),"",'GA55 Check & Edit'!Q28) ->  | P27: =IF(AND('GA55 Check & Edit'!R28=""),"",'GA55 Check & Edit'!R28) ->  | Q27: =IF(AND('GA55 Check & Edit'!S28=""),"",'GA55 Check & Edit'!S28) ->  | R27: =IF(AND('GA55 Check & Edit'!T28=""),"",'GA55 Check & Edit'!T28) ->  | S27: =IF(AND('GA55 Check & Edit'!U28=""),"",'GA55 Check & Edit'!U28) ->  | T27: =IF(AND('GA55 Check & Edit'!V28=""),"",'GA55 Check & Edit'!V28) ->  | U27: =IF(AND('GA55 Check & Edit'!W28=""),"",'GA55 Check & Edit'!W28) ->  | V27: =IF(AND('GA55 Check & Edit'!X28=""),"",'GA55 Check & Edit'!X28) ->  | W27: =IF(AND('GA55 Check & Edit'!Y28=""),"",'GA55 Check & Edit'!Y28) ->  | X27: =IF(AND('GA55 Check & Edit'!Z28=""),"",'GA55 Check & Edit'!Z28) ->  | Y27: =IF(AND('GA55 Check & Edit'!AA28=""),"",'GA55 Check & Edit'!AA28) ->  | Z27: =IFERROR(IF(B27="","",IF(L27="",SUM(N27:Y27),IF('Master Data'!$H$18='GA55 Check & Edit'!$AO$5,SUM(N27:Y27)+L27,SUM(N27:Y27)))),0) -> 
B28: TOTAL F | C28: =IF(AND($D$3="",$M$3="",$U$3="",$C$4=""),"",SUM(C7:C27)) -> 621600 | D28: =IF(AND($D$3="",$M$3="",$U$3="",$C$4=""),"",SUM(D7:D27)) -> 164248 | E28: 53912 | F28: 0 | G28: 0 | H28: 0 | I28: 0 | J28: 0 | K28: 6774 | L28: 78584 | M28: 846534 | N28: 84000 | O28: 78584 | P28: 22560 | Q28: 0 | R28: 0 | S28: 0 | T28: 7623 | U28: 0 | V28: 250 | W28: 0 | X28: 15000 | Y28: 220 | Z28: 208237 | AA28: 638297
C30: =IF(AND('Master Data'!D6=""),"",'Master Data'!D6) -> Heeralal jat | S30: =IF(AND('Master Data'!H8=""),"",'Master Data'!H8) -> Usha Paliya
C31: Signature of Employee | S31: Signature of DDO

Sheet COMPUTATION (hidden)
A1: =IF(AND('Master Data'!D4=""),"",CONCATENATE("Office Name :- ",PROPER('Master Data'!D4))) -> Office Name :- Mahatma Gandhi Govt. School (English Medium) Bar, Pali | T1: 2
C2: vk;dj x.kuk izi= o"kZ & | F2: 2021-2022 | H2: ¼dj fu/kkZj.k o"kZ & | J2: 2022-2023) | L2: =IF(T14=T2,"Old Tax Regime","New Tax Regime") -> Old Tax Regime | T2: 1
A3: 1 | B3: uke deZpkjh % | D3: =UPPER('Master Data'!D6) -> HEERALAL JAT | I3: in % | J3: =UPPER('Master Data'!H6) -> SR TEACHER | M3: PAN : | N3: =UPPER('Master Data'!D12) -> ABCDE1234H
A4: 2 | B4: vk; % o"kZ&2021&22 esa izkIr dqy osru ¼ dj ;ksX; lqfo/kkvksa ds eqY; lfgr ½ | J4: =IF('Master Data'!H18="Yes","सरकार द्वारा देय NPS की राशि सहित कुल वेतन -","") ->  | N4: #- | O4: ='GA 55 '!M28 -> 846534 | R4: आप विद्यमान आयकर दर या नवीन आयकर दर दोनों में से किसी एक विकल्प को चुनकर आयकर गणना प्रपत्र तैयार कर सकते है।
B5: =IF('Master Data'!H18="Yes","","सरकार द्वारा देय NPS की राशि -") -> सरकार द्वारा देय NPS की राशि - | N5: #- | O5: =IF('Master Data'!H18="Yes",0,IF('Master Data'!I30='GA55 Check & Edit'!AN6,'GA 55 '!O28,0)) -> 78584
A6: 3 | B6: x`g fdjk;k] /kkjk 10¼13-A½ ds vUrxrZ ,oa /kkjk 10¼14½ds vUrxrZ vU; Hkrs tks dj eqDÙk gSA | N6: #- | O6: =IF(T14=T2,SUM('Extra Ded '!I7+'Extra Ded '!E6+'GA 55 '!G28),"0") -> 0 | Q6: E
A7: 4 | B7: 'ks"k ¼2&3½ | N7: #- | O7: =(O4+O5)-O6 -> 925118
A8: 5 | B8: ¼i½euksjatu Hkrk /kkjk 16 ¼ii½ ds vUrxrZ | K8: =IF(T14=T2,'Extra Ded '!E8,"0") -> 0
B9: ¼ii½ O;o;k; dj /kkjk 16 ¼iii½ ds vUrxrZ | K9: =IF(T14=T2,'Extra Ded '!E9,"0") -> 0
B10: ¼iii½ LVs.MMZ fMMsD'ku (Standard Deduction) 50]000 ¼vf/kdre½ | K10: =IF(T14=T2,'Extra Ded '!E7,"0") -> 50000 | N10: #- | O10: =SUM(K8:M10) -> 50000
A11: 6 | B11: 'ks"k ¼4&5½ | N11: #- | O11: =O7-O10 -> 875118
A12: 7 | B12: ¼v½x`g lEifr ls vk;%¼1½ Loa; ds mi;ksx esa &'kwU; | I12: ¼2½ izkIr fdjk;k #- | K12: ='Extra Ded '!E10 -> 0
B13: ¼c½ ?kVk;sa | D13: fdjk;s dk 30% | F13: x`g _.k ij C;kt | I13: x`gdj | K13: ;ksx 7¼c½
D14: =IF(T14=T2,ROUND(K12*0.3,0),"0") -> 0 | F14: =IF(T14=T2,'Extra Ded '!E13,"0") -> 0 | I14: =IF(T14=T2,'Extra Ded '!E11,"0") -> 0 | K14: =D14+F14+I14 -> 0 | T14: 1
B15: 'ks"k &@$¼7¼v½ ,oa ;ksx 7¼c½ dk½ | N15: #- | O15: =K12-K14 -> 0
A16: 8 | B16: cpr [kkrs ij C;kt % | E16: ='Extra Ded '!I21 -> 1500 | G16: vU; vk; % | I16: ='Extra Ded '!E24 -> 0 | J16: dqy 'ks"k &@$¼6,oa 7½ | N16: #- | O16: =O11+O15 -> 875118 | AH16: =IF(AM24=AM12,SUM('Extra Ded '!AB17+'Extra Ded '!X16+'GA 55 '!Z38),"0") -> 0
A17: 9 | B17: ,QMh vkfn vU; tek jkf'k ij izkIr dqy C;kt | E17: ='Extra Ded '!I23 -> 0 | G17: Bonds ls C;kt | I17: ='Extra Ded '!E23 -> 0 | J17: ;ksx ¼8$9½ | N17: #- | O17: =E16+E17+I16+I17 -> 1500
A18: 10 | B18: ldy vk; | N18: #- | O18: =O16+O17 -> 876618
A19: 11 | B19: ?kVkb;s dVkSSfr;k¡ %& /kkjk US 80C, 80CCC,80CCD (1) | R19: Move Curser Here
B20: (A) vf/kdre lhek 1]50]000@& ¼/kkjk 80CCE ½ ] ¼/kkjk 80CCD (2), ds vykok
B21: (i) | C21: jkT; chek ¼SI) | F21: #- | G21: =IF(T14=T2,SUM('GA 55 '!N28),"0") -> 84000 | H21: (xi) | I21: isa'ku ;kstuk esa va'knku ECPF /kkjk 80ccd(1½ | L21: #- | M21: =IF('Master Data'!I30='GA55 Check & Edit'!AN5,0,IF(T14=T1,0,IF(T34=T36,AA27,AB23))) -> 78584
B22: (ii) | C22: thou chek izhfe;e ¼LIC) | F22: #- | G22: =IF(T14=T2,'GA 55 '!P28,"0") -> 22560 | H22: (xii) | I22: isa'ku Iyku gsrq va'knku ¼/kkjk 80ccc½ | L22: #- | M22: =IF(T14=T2,'Extra Ded '!I12,"0") -> 0 | Q22: https://www.youtube.com/watch?v=TJ5dWmZplAk
B23: (iii) | C23: jk"Vªh; cpr i= ¼NSC) | F23: #- | G23: =IF(T14=T2,'Extra Ded '!E18,"0") -> 0 | H23: (xiii) | I23: jk"Vªh; cpr i= ij vnr C;kt | L23: #- | M23: =IF(T14=T2,'Extra Ded '!E19,"0") -> 0 | Z23: =IF(AA23>AB23,AB23,AA23) -> 78584 | AA23: =IF('Master Data'!I30='GA55 Check & Edit'!AN5,0,ROUND(10%*'GA 55 '!M28,0)) -> 84653 | AB23: =IF('Master Data'!I30='GA55 Check & Edit'!AN6,'GA 55 '!O28,0) -> 78584 | AH23: E अधिक जानकारी के लिए देखें Youtube वीडियो
B24: (iv) | C24: yksd Hkfo"; fuf/k ¼PPF) | F24: #- | G24: =IF(T14=T2,'Extra Ded '!E20,"0") -> 0 | H24: (xiv) | I24: V;w'ku Qhl | L24: #- | M24: =IF(T14=T2,'Extra Ded '!E16,"0") -> 0 | Z24: =SUM(G21:G31)+SUM(M22:M30)+O33 ->  | AA24: =IF('Extra Ded '!I14>50000,50000,'Extra Ded '!I14) -> 0 | AB24: =IF(Z24>150000,Z24-150000,0) -> 
B25: (v) | C25: jk"Vªh; cpr Ldhe ¼NSS) | F25: #- | G25: =IF(T14=T2,'Extra Ded '!E21,"0") -> 0 | H25: (xv) | I25: bfDoVh fyad lsfoax Ldhe | L25: #- | M25: =IF(T14=T2,'Extra Ded '!I6,"0") -> 0
B26: (vi) | C26: lkekU; izko/kk;h fuf/k ¼GPF) | F26: #- | G26: =IF(AND(T14=T2,'Master Data'!I30='GA55 Check & Edit'!AN5),'GA 55 '!O28,"0") -> 0 | H26: (xvi) | I26: LFkfxr okf"kZdh ¼Defferred Annuty) | L26: #- | M26: =IF(T14=T2,'Extra Ded '!I8,"0") -> 0 | Q26: यदि आप NPS कार्मिक है और Section US 80CCD (1B) के अंतर्गत अधिकतम 50,000 की छूट लेना चाहते है तो यहाँ नीचे बॉक्स में क्लिक करे।
B27: (vii) | C27: lkewfgd chek izhfe;e ¼G.Ins.) | F27: #- | G27: =IF(T14=T2,'GA 55 '!Y28,"0") -> 220 | H27: (xvii) | I27: ih-,y-vkbZ- ¼PLI) | L27: #- | M27: =IF(T14=T2,'Extra Ded '!E15,"0") -> 0 | AA27: =IFERROR(SUM(Z23)-MIN(AA24,AB24),0) -> 0 | AC27: =MIN(AA24,AB24) -> 
B28: (viii) | C28: ;w- ,y- vkbZ- ih-@okf"kZd Iyku | F28: #- | G28: =IF(T14=T2,'Extra Ded '!E17,"0") -> 0 | H28: (xviii) | I28: vU; tekjkf'k ¼/kkjk 80 lh ds vUrxZr½ E;qpy QaM | L28: #- | M28: =IF(T14=T2,'Extra Ded '!I13,"0") -> 0
B29: (ix) | C29: x`g _.k fdLr ¼HBA Premium) | F29: #- | G29: =IF(T14=T2,'Extra Ded '!E12,"0") -> 0 | H29: (xix) | I29: lqdU;k le`f) ;kstuk esa tek jkf'k | L29: #- | M29: =IF(T14=T2,'Extra Ded '!E22,"0") -> 0 | AA29: =IF(Z24>=200000,50000,AC27) -> 
B30: (x) | C30: osru ls vfrfjDr thou chek (Extra LIC) | F30: #- | G30: =IF(T14=T2,'Extra Ded '!E14,"0") -> 0 | H30: (xx) | I30: vU; o fQDl fMiksftV ¼5 o"kZ gsrq½ | L30: #- | M30: =IF(T14=T2,'Extra Ded '!I10,"0") -> 0
B31: (xxi) | C31: =IF('Master Data'!N43="Yes","thih,Q&2004 esa dVksrh","") ->  | F31: #- | G31: =IF(AND('Master Data'!N43="Yes",T14=T2),'GA 55 '!T28,0) -> 0 | H31: ;ksx ( i ls xviii ) | L31: #- | M31: =SUM(G21:G31)+SUM(M21:M30) -> 185364 | AA31: =('Extra Ded '!I23+'Extra Ded '!I21) -> 1500
B32: vf/kdre dVkSrh dh jkf'k 1-50 yk[k #i, rd | N32: #- | O32: =IF(M31<150001,ROUND(M31,0),150000) -> 150000 | R32: H | S32: Move curser | AA32: =IF(AA31>10000,10000,AA31) -> 1500 | AB32: =IF(AA31>50000,50000,AA31) -> 1500
B33: (B) ?kVkb;s& /kkjk 80CCD(2) fu;ksDrk }kjk isa'ku va'knku dh jkf'k ¼vf/kdre osru dk 10%) i`Fkd ls NwV | O33: =IF('Master Data'!I30='GA55 Check & Edit'!AN6,'GA 55 '!O27,0) ->  | AA33: =IF('Master Data'!E24="Under 60",AA32,IF('Master Data'!E24="Above 60",AB32,IF('Master Data'!E24="Above 80",AB32,0))) -> 1500
B34: (C) ?kVkb;s & /kkjk 80CCD (1B) uohu isa'ku ;kstuk esa vfrfjDr va'knku ¼vf/kdre :- 50]000) | N34: #- | O34: =IF(T14=T1,0,IF(T34=T36,AB35,0)) -> 0 | T34: FALSE
B35: ;ksx 11(A+B+C) | N35: #- | O35: =SUM(O32:O34) -> 150000 | AB35: =IF('Master Data'!I30='GA55 Check & Edit'!AN6,AA29,0) -> 
A36: 12 | B36: vU; dVkSfr;k¡ | T36: TRUE
B37: 1-/kkjk 80 D fpfdRlk chek izhfe;e ¼Lo;a]ifr@iRuh o cPpksa ds fy, : 25000] ekrk&firk ds fy, : 25000]lhfu;j flVhtu : 50000½ | N37: #- | O37: =IF(T14=T2,'Extra Ded '!I15,"0") -> 0
B38: 2- /kkjk 80DD fodykax vkfJrksa ds fpfdRlk mipkj ¼vf/kdre 75]000 rFkk 80% ;k vf/kd fodykaxrk 125]000½ | N38: #- | O38: =IF(T14=T2,'Extra Ded '!I16,"0") -> 0 | AB38: ='GA 55 '!N28+'GA 55 '!P28+'Extra Ded '!E18+'Extra Ded '!E20+'Extra Ded '!E21+'GA 55 '!O28+'GA 55 '!Y28+'Extra Ded '!E17+'Extra Ded '!E12+'Extra Ded '!E14+'Extra Ded '!I12+'Extra Ded '!E19+'Extra Ded '!E16+'Extra Ded '!I6+'Extra Ded '!I8+'Extra Ded '!E15+'Extra Ded '!I10+'Extra Ded '!E22+'Extra Ded '!E24 -> 185364
B39: 3- /kkjk 80DDB fof'k"V jksaxksa ds mipkj gsrq dVkSrh ¼vf/kdre : 40]000] lhfu;j flVhtu gsrq : 100]000½ | N39: #- | O39: =IF(T14=T2,'Extra Ded '!I17,"0") -> 0
B40: 4- /kkjk 80E mPp f'k{kk gsrq fy, _.k dk C;kt | N40: #- | O40: =IF(T14=T2,'Extra Ded '!I18,"0") -> 0 | AB40: ='Extra Ded '!I15+'Extra Ded '!I16+'Extra Ded '!I17+'Extra Ded '!I18+('Extra Ded '!I19+'GA 55 '!U28)+'Extra Ded '!I20+AA33+'Extra Ded '!I22 -> 1500
B41: 5- /kkjk 80G /kekZFkZ laLFkkvksa vkfn dks fn;s nku ¼ d Js.kh esa 100 izfr'kr ,oa [k Js.kh esa 50 izfr'kr½ ¼dsUnz o jkT; ljdkj ds QaM esa ½ | N41: #- | O41: =IF(T14=T2,('Extra Ded '!I19),"0") -> 0 | R41: यदि आपको धारा 80 TTA के बारे में डिटेल से जानकारी चाहिए तो नीचे सेल पर माउस को ले जाइये।
B42: 6- /kkjk 80U LFkkbZ :i ls 'kkjhfjd vleFkZrrk dh n'kk esa ¼vf/kdre 75]000 rFkk vf/kfu;e 1995ds vuqlkj 125]000½ | N42: #- | O42: =IF(T14=T2,'Extra Ded '!I20,"0") -> 0
B43: 7- /kkjk 80 TTA cpr [kkrs ij vf/kdre C;kt :- 10]000 194(IA) , ( ofj"B ukxfjdks C;kt ij NwV 50000rd ½ | N43: #- | O43: =IF(T14=T2,AA33,"0") -> 1500
B44: 8- /kkjk 80 GGA vuqeksfnr oSKkfud] lkekftd] xzkeh.k fodkl vkfn gsrq fn;k x;k nku | N44: #- | O44: =IF(T14=T2,'Extra Ded '!I22,"0") -> 0 | R44: Move Curser Here
B45: dqy ;ksx 12 ¼ 1 ls 8 rd ½ | N45: #- | O45: =SUM(O37:O44) -> 1500
A46: 13 | B46: dqy dVkSrh ( 11 + 12) | N46: #- | O46: =O35+O45 -> 151500
A47: 14 | B47: dj ;ksX; vk; ( 10 - 13 ) | N47: #- | O47: =(O18-O46) -> 725118
A48: 15 | B48: dqy vk; dh jkf'k dks lEiw.kZ djuk ¼ nl ds xq.kd esa ½ /kkjk 288A | N48: #- | O48: =ROUND(O47,-1) -> 725120
A49: 16 | B49: vk;dj dh x.kuk mijksDr dkWye 15 ds vk/kkj ij | R49: Unlock only This Sheet , Password is | X49: old | AB49: New
B50: ,d O;fDr dj nkrk | F50: ofj"B ukxfjd ¼60 ls 80 o"kZ rd½ | J50: 80 o"kZ ;k vf/kd vk;q | R50: Incometax2021 | X50: 0 | Y50: 0 | Z50: 0 | AA50: 0 | AB50: 0 | AC50: 0 | AD50: 0 | AE50: 0
B51: Up to Rs. 2,50,000 | E51: 0 | F51: =IF(T14=T2,"Up to Rs. 3,00,000","Up to Rs. 2,50,000") -> Up to Rs. 3,00,000 | I51: 0 | J51: =IF(T14=T2,"","Up to Rs. 2,50,000") ->  | M51: 0 | N51: #- | O51: 0 | X51: =ROUND(IF(O48<=250000,0,IF(O48>=500000,12500,IF(O48<=500000,0+(O48-250000)*0.05))),0) -> 12500 | Y51: =ROUND(IF(O48<=300000,0,IF(O48>=500000,10000,IF(O48<=500000,(O48-300000)*0.05))),0) -> 10000 | Z51: 0 | AA51: =IF('Master Data'!$E$24="Under 60",X51,IF('Master Data'!$E$24="Above 60",Y51,Z51)) -> 12500 | AB51: =ROUND(IF(O48<250001,0,IF(O48>500000,12500,((O48-250000)*0.05))),0) -> 12500 | AC51: =ROUND(IF(O48<250001,0,IF(O48>500000,12500,((O48-250000)*0.05))),0) -> 12500 | AD51: =ROUND(IF(O48<250001,0,IF(O48>500000,12500,((O48-250000)*0.05))),0) -> 12500 | AE51: =IF('Master Data'!$E$24="Under 60",AB51,IF('Master Data'!$E$24="Above 60",AC51,AD51)) -> 12500
B52: 2,50,001 to 5,00,000 | E52: 0.05 | F52: =IF(T14=T2,"3,00,001 to 5,00,000"," 2,50,001 to 5,00,000") -> 3,00,001 to 5,00,000 | I52: 0.05 | J52: =IF(T14=T2,"Up to Rs. 5,00,000","2,50,001 to 5,00,000") -> Up to Rs. 5,00,000 | M52: =IF(T14=T2,"0%","5%") -> 0% | N52: #- | O52: =IF($T$14=$T$2,AA51,AE51) -> 12500 | X52: =ROUND(IF(O48<=500000,0,IF(O48>=1000000,100000,IF(O48<=1000000,(O48-500000)*0.2,"0"))),0) -> 45024 | Y52: =ROUND(IF(O48<=500000,0,IF(O48>=1000000,100000,IF(O48<=1000000,(O48-500000)*0.2,"0"))),0) -> 45024 | Z52: =ROUND(IF(O48<=500000,0,IF(O48>=1000000,100000,IF(O48<=1000000,(O48-500000)*0.2,"0"))),0) -> 45024 | AA52: =IF('Master Data'!$E$24="Under 60",X52,IF('Master Data'!$E$24="Above 60",Y52,Z52)) -> 45024 | AB52: =ROUND(IF(O48<500001,0,IF(O48>750000,25000,((O48-500000)*0.1))),0) -> 22512 | AC52: =ROUND(IF(O48<500001,0,IF(O48>750000,25000,((O48-500000)*0.1))),0) -> 22512 | AD52: =ROUND(IF(O48<500001,0,IF(O48>750000,25000,((O48-500000)*0.1))),0) -> 22512 | AE52: =IF('Master Data'!$E$24="Under 60",AB52,IF('Master Data'!$E$24="Above 60",AC52,AD52)) -> 22512
B53: =IF(T14=T2,"5,00,001 to 10,00,000","5,00,001 to 7,50,000") -> 5,00,001 to 10,00,000 | E53: =IF(T14=T2,"20%","10%") -> 20% | F53: =IF(T14=T2,"5,00,001 to 10,00,000","5,00,001 to 7,50,000") -> 5,00,001 to 10,00,000 | I53: =IF(T14=T2,"20%","10%") -> 20% | J53: =IF(T14=T2,"5,00,001 to 10,00,000","5,00,001 to 7,50,000") -> 5,00,001 to 10,00,000 | M53: =IF(T14=T2,"20%","10%") -> 20% | N53: #- | O53: =IF($T$14=$T$2,AA52,AE52) -> 45024 | X53: =ROUND(IF(O48>1000000,(O48-1000000)*0.3,"0"),0) -> 0 | Y53: =ROUND(IF(O48>1000000,(O48-1000000)*0.3,"0"),0) -> 0 | Z53: =ROUND(IF(O48>1000000,(O48-1000000)*0.3,"0"),0) -> 0 | AA53: =IF('Master Data'!$E$24="Under 60",X53,IF('Master Data'!$E$24="Above 60",Y53,Z53)) -> 0 | AB53: =ROUND(IF(O48<750001,0,IF(O48>1000000,37500,((O48-750000)*0.15))),0) -> 0 | AC53: =ROUND(IF(O48<750001,0,IF(O48>1000000,37500,((O48-750000)*0.15))),0) -> 0 | AD53: =ROUND(IF(O48<750001,0,IF(O48>1000000,37500,((O48-750000)*0.15))),0) -> 0 | AE53: =IF('Master Data'!$E$24="Under 60",AB53,IF('Master Data'!$E$24="Above 60",AC53,AD53)) -> 0
B54: =IF(T14=T2,"Above 10,00,000"," 7,50,001 to 10,00,000") -> Above 10,00,000 | E54: =IF(T14=T2,"30%","15%") -> 30% | F54: =IF(T14=T2,"Above 10,00,000"," 7,50,001 to 10,00,000") -> Above 10,00,000 | I54: =IF(T14=T2,"30%","15%") -> 30% | J54: =IF(T14=T2,"Above 10,00,000"," 7,50,001 to 10,00,000") -> Above 10,00,000 | M54: =IF(T14=T2,"30%","15%") -> 30% | N54: #- | O54: 0 | AA54: =IF('Master Data'!$E$24="Under 60",X54,IF('Master Data'!$E$24="Above 60",Y54,Z54)) -> 0 | AB54: =ROUND(IF(O48<1000001,0,IF(O48>1250000,50000,((O48-1000000)*0.2))),0) -> 0 | AC54: =ROUND(IF(O48<1000001,0,IF(O48>1250000,50000,((O48-1000000)*0.2))),0) -> 0 | AD54: =ROUND(IF(O48<1000001,0,IF(O48>1250000,50000,((O48-1000000)*0.2))),0) -> 0 | AE54: =IF('Master Data'!$E$24="Under 60",AB54,IF('Master Data'!$E$24="Above 60",AC54,AD54)) -> 0
B55: =IF(T14=T2," ","10,00,001 to 12,50,000") ->  | E55: =IF(T14=T2," ","20%") ->  | F55: =IF(T14=T2," ","10,00,001 to 12,50,000") ->  | I55: =IF(T14=T2," ","20%") ->  | J55: =IF(T14=T2," ","10,00,001 to 12,50,000") ->  | M55: =IF(T14=T2," ","20%") ->  | N55: =IF(T14=T2," ","#-") ->  | O55: =IF($T$14=$T$2,AA54,AE54) -> 0 | R55: यदि आपको धारा 87A के बारे में जानकारी चाहिए तो नीचे सेल पर माउस को ले जाइये। | AA55: =IF('Master Data'!$E$24="Under 60",X55,IF('Master Data'!$E$24="Above 60",Y55,Z55)) -> 0 | AB55: =ROUND(IF(O48<1250001,0,IF(O48>1500000,62500,((O48-1250000)*0.25))),0) -> 0 | AC55: =ROUND(IF(O48<1250001,0,IF(O48>1500000,62500,((O48-1250000)*0.25))),0) -> 0 | AD55: =ROUND(IF(O48<1250001,0,IF(O48>1500000,62500,((O48-1250000)*0.25))),0) -> 0 | AE55: =IF('Master Data'!$E$24="Under 60",AB55,IF('Master Data'!$E$24="Above 60",AC55,AD55)) -> 0
B56: =IF(T14=T2," ","12,50,001 to 15,00,000") ->  | E56: =IF(T14=T2," ","25%") ->  | F56: =IF(T14=T2," ","12,50,001 to 15,00,000") ->  | I56: =IF(T14=T2," ","25%") ->  | J56: =IF(T14=T2," ","12,50,001 to 15,00,000") ->  | M56: =IF(T14=T2," ","25%") ->  | N56: =IF(T14=T2," ","#-") ->  | O56: 0 | AA56: =IF('Master Data'!$E$24="Under 60",X56,IF('Master Data'!$E$24="Above 60",Y56,Z56)) -> 0 | AB56: =ROUND(IF(O48<1500001,0,(O48-1500000)*0.3),0) -> 0 | AC56: =ROUND(IF(O48<1500001,0,(O48-1500000)*0.3),0) -> 0 | AD56: =ROUND(IF(O48<1500001,0,(O48-1500000)*0.3),0) -> 0 | AE56: =IF('Master Data'!$E$24="Under 60",AB56,IF('Master Data'!$E$24="Above 60",AC56,AD56)) -> 0
B57: =IF(T14=T2," ","Above Rs. 15,00,000") ->  | E57: =IF(T14=T2," ","30%") ->  | F57: =IF(T14=T2," ","Above Rs. 15,00,000") ->  | I57: =IF(T14=T2," ","30%") ->  | J57: =IF(T14=T2," ","Above Rs. 15,00,000") ->  | M57: =IF(T14=T2," ","30%") ->  | N57: =IF(T14=T2," ","#-") ->  | O57: =IF($T$14=$T$2,AA56,AE56) -> 0 | X57: =SUM(X50:X53) -> 57524 | Y57: =SUM(Y50:Y53) -> 55024 | Z57: 45024 | AA57: =IF('Master Data'!$E$24="Under 60",X57,IF('Master Data'!$E$24="Above 60",Y57,Z57)) -> 57524 | AB57: =SUM(AB50:AB56) -> 35012 | AC57: =SUM(AC50:AC56) -> 35012 | AD57: 35012 | AE57: =IF('Master Data'!$E$24="Under 60",AB57,IF('Master Data'!$E$24="Above 60",AC57,AD57)) -> 35012
B58: ¼1½ ;ksx vk;dj | N58: #- | O58: =SUM(O51:O57) -> 57524
B59: ¼2½ NwV ?kkjk 87¼A½ ¼ 5yk[k rd dh dj ;ksX; vk; ij vk;dj dh NwV vf/kdre :- 12500@& rd½ | N59: #- | O59: =IF(O48>500000,0,IF(O58<12500,O58,12500)) -> 0 | X59: =ROUND(IF(O48<=250000,0,IF(O48<=500000,(O48-250000)*0.05,IF(O48<=1000000,12500+(O48-500000)*0.2,IF(O48>1000000,112500+(O48-1000000)*0.3,"0")))),0) -> 57524 | Y59: =ROUND(IF(O48<=300000,0,IF(O48<=500000,(O48-300000)*0.05,IF(O48<=1000000,10000+(O48-500000)*0.2,IF(O48>1000000,110000+(O48-1000000)*0.3,"0")))),0) -> 55024 | Z59: =ROUND(IF(O48<=250000,0,IF(O48<=500000,(O48-250000)*0.05,IF(O48<=1000000,0+(O48-500000)*0.2,IF(O48>1000000,100000+(O48-1000000)*0.3,"0")))),0) -> 45024
B60: ¼3½ 'ks"k vk;dj ¼1&2½ | N60: #- | O60: =O58-O59 -> 57524 | Y60: =IF(T63>350000,0,IF(T63<2501,T63,2500)) -> 0
B61: ¼4½ | C61: f'k{kk ,oa fpfdRlk midj 4% ¼vk;dj ij ½ | N61: #- | O61: =ROUND((O60*0.04),0) -> 2301
B62: dqy vk;dj ¼3$4½ | N62: #- | O62: =SUM(O60:O61) -> 59825
A63: 17 | B63: ?kVkb;s %& jkgr /kkjk 89 ds rgr | N63: #- | O63: ='Extra Ded '!I24 -> 0
A64: 18 | B64: dqy 'ks"k vk;dj | N64: #- | O64: =O62-O63 -> 59825
A65: 19 | B65: vk;dj dVkSrh dk fooj.k | E65: flrEcj 2021 rd dqy dVkSrh | H65: vDVwcj ls fnlEcj 2021 rd dVkSrh | J65: tuojh 2022 ekg esa dVkSrh | K65: Qjojh 2022 ekg esa dVkSrh | M65: Vh-Mh-,l- ls dVkSrh o vU; | O65: dqy;ksx dkWye 19
E66: =SUM('GA55 Check & Edit'!BX12:BX18) -> 9000 | H66: =SUM('GA55 Check & Edit'!BX19:BX21) -> 4500 | J66: ='GA55 Check & Edit'!BX22 -> 1500 | K66: ='GA55 Check & Edit'!BX23 -> 0 | M66: =SUM('GA 55 '!X28-(E66+H66+J66+K66))+'Extra Ded '!I9 -> 0 | O66: =SUM(E66,H66,J66,K66,M66) -> 15000
A67: =IF(O64>O66,"Income Tax Payable",IF(O64<O66,"Income Tax Refundable","Income Tax Payble/Refundable")) -> Income Tax Payable | N67: #- | O67: =IF(O64>O66,O64-O66,O66-O64) -> 44825
L69: gLrk{kj dkfeZd

Sheet Form No. 16 (hidden)
B1: FORM NO. 16
B2: [(See Rule 31(1)(a)]
B3: PART-A
B4: Certificate under section 203 of the income-tax act, 1961 for Tax deducted at source on Salary.
B5: Name and address of the Employer | G5: Name and adress of the Employee
B6: =IF('Master Data'!H8="","",UPPER('Master Data'!H8)) -> USHA PALIYA | G6: =IF('Master Data'!D6="","",UPPER('Master Data'!D6)) -> HEERALAL JAT
G7: =IF('Master Data'!D8="","",UPPER('Master Data'!D8)) -> M.G.G.S. BAR
B8: PAN of the Deductor | E8: TAN of the Deductor | G8: PAN of the Employee | J8: Employee Ref No.
E9: ='Master Data'!H12 -> 0 | G9: =UPPER('Master Data'!D12) -> ABCDE1234H | J9: =UPPER('Master Data'!D10) -> RJPAXXXXXXXX4272
B10: CIT (TDS) | G10: Assess. Year | I10: Peroid with the Employer
B11: Adress | C11: The Commissioner of Income Tax, Pali | G11: 2022-23 | I11: From | K11: To
B12: City | C12: PALI | E12: PIN Code | F12: 306401 | I12: 01-4-2021 | K12: 31-03-2022
B13: Summary of amount paid/credited and tax deducted at source thereon in respect of the employee
B14: Quarters | C14: Receipt Numbers of original quarterly statements of TDS under sub-secion (3) of section 200 | F14: Amount paid/ credited | G14: Amount of tax deducted (Rs.) | J14: Amount of tax deposited/ remitted (Rs.)
B15: 1st | G15: =SUM('GA55 Check & Edit'!BX12:BX14) -> 3000 | J15: =G15 -> 3000
B16: 2nd | G16: =SUM('GA55 Check & Edit'!BX15:BX17) -> 4500 | J16: =G16 -> 4500
B17: 3rd | G17: =SUM('GA55 Check & Edit'!BX18:BX20) -> 4500 | J17: =G17 -> 4500
B18: 4th | G18: =SUM('GA55 Check & Edit'!BX21:BX23)+SUM('GA 55 '!X19:'GA 55 '!X27) -> 3000 | J18: =G18 -> 3000
B19: TOTAL (Rs.) | F19: =SUM(F15:F18) -> 0 | G19: =SUM(G15:G18) -> 15000 | J19: =SUM(J15:J18) -> 15000
B20: I. Details of tax deducted and deposited in the Central Government account through book adjustment
B21: (The Deductor to provide payment-wise details of tax deducted and deposited with respect to the deductee)
B22: S.N. | C22: Tax Deposited in respect of the deductee (Rs) | E22: Book identification number (BIN)
E23: Receipt numbers of form No. 24G | F23: DDO serial number in Form No. 24G | G23: Date of transfer voucher (dd/mm/yyyy) | J23: Status of matching with Form No. 24G
B24: 1 | C24: ='GA 55 '!X7 -> 0 | J24: =IF(E24>"0","Yes","-") -> -
B25: 2 | C25: ='GA 55 '!X8 -> 1500 | J25: =IF(E25>"0","Yes","-") -> -
B26: 3 | C26: ='GA 55 '!X9 -> 1500 | J26: -
B27: 4 | C27: ='GA 55 '!X10 -> 1500 | J27: -
B28: 5 | C28: ='GA 55 '!X11 -> 1500 | J28: -
B29: 6 | C29: ='GA 55 '!X12 -> 1500 | J29: -
B30: 7 | C30: ='GA 55 '!X13 -> 1500 | J30: -
B31: 8 | C31: ='GA 55 '!X14 -> 1500 | J31: -
B32: 9 | C32: ='GA 55 '!X15 -> 1500 | J32: -
B33: 10 | C33: ='GA 55 '!X16 -> 1500 | J33: -
B34: 11 | C34: ='GA 55 '!X17 -> 1500 | J34: -
B35: 12 | C35: ='GA 55 '!X18 -> 0 | J35: -
B36: 13 | C36: ='GA 55 '!X28-SUM(C24:D35) -> 0 | J36: -
B37: 14 | C37: ='[3]G.A. 55'!T24+'[3]G.A. 55'!T26 -> 0 | J37: -
B38: Total | C38: =SUM(C24:D37) -> 15000
B39: II. Details of Tax deducted and deposited in Central Government Account through Challan.
B40: (The deducter to provide payment-wise details of tax deducted and deposited with respect to the deductee)
B41: S.N. | C41: Tax Deposited in respect on of the deductee (Rs) | E41: Challan identification number (CIN)
E42: BSR code of the Bank Branch | G42: Date on which tax deposited (dd/mm/yyyy) | I42: Challan Serial Number | K42: Status of matching with OLTAS
B43: 1 | K43: =IF(C43>"0","Yes","-") -> -
B44: 2 | K44: =IF(C44>"0","Yes","-") -> -
B45: 3 | K45: -
B46: 4 | K46: -
B47: 5 | K47: -
B48: 6 | K48: -
B49: 7 | K49: -
B50: 8 | K50: -
B51: 9 | K51: -
B52: 10 | K52: -
B53: 11 | K53: -
B54: 12 | K54: -
B55: 13
B56: 14
B57: Total | C57: =SUM(C43:C56) -> 0
B58: :: 2 ::
B59: Verification
B60: I | C60: =B6&"," -> USHA PALIYA, | F60: Son/Daughter of | K60: working in the
B61: capacity of | D61: PRINCIPAL | G61: (designation) do hereby certify that a sum of
B62: Rs. | C62: =J19 -> 15000 | D62: =IF(OR(LEN(FLOOR(C62,1))=13,FLOOR(C62,1)<=0),"Out of range",PROPER(SUBSTITUTE(CONCATENATE(CHOOSE(MID(TEXT(INT(C62),REPT(0,12)),1,1)+1,"","one hundred ","two hundred ","three hundred ","four hundred ","five hundred ","six hundred ","seven hundred ","eight hundred ","nine hundred "),CHOOSE(MID(TEXT(INT(C62),REPT(0,12)),2,1)+1,"",CHOOSE(MID(TEXT(INT(C62),REPT(0,12)),3,1)+1,"ten","eleven","twelve","thirteen","fourteen","fifteen","sixteen","seventeen","eighteen","nineteen"),"twenty","thirty","forty","fifty","sixty","seventy","eighty","ninety"),IF(VALUE(MID(TEXT(INT(C62),REPT(0,12)),2,1))>1,CHOOSE(MID(TEXT(INT(C62),REPT(0,12)),3,1)+1,"","-one","-two","-three","-four","-five","-six","-seven","-eight","-nine"),IF(VALUE(MID(TEXT(INT(C62),REPT(0,12)),2,1))=0,CHOOSE(MID(TEXT(INT(C62),REPT(0,12)),3,1)+1,"","one","two","three","four","five","six","seven","eight","nine"),"")),IF(C62>=10^9," billion ",""),CHOOSE(MID(TEXT(INT(C62),REPT(0,12)),4,1)+1,"","one hundred ","two hundred ","three hundred ","four hundred ","five hundred ","six hundred ","seven hundred ","eight hundred ","nine hundred "),CHOOSE(MID(TEXT(INT(C62),REPT(0,12)),5,1)+1,"",CHOOSE(MID(TEXT(INT(C62),REPT(0,12)),6,1)+1,"ten","eleven","twelve","thirteen","fourteen","fifteen","sixteen","seventeen","eighteen","nineteen"),"twenty","thirty","forty","fifty","sixty","seventy","eighty","ninety"),IF(VALUE(MID(TEXT(INT(C62),REPT(0,12)),5,1))>1,CHOOSE(MID(TEXT(INT(C62),REPT(0,12)),6,1)+1,"","-one","-two","-three","-four","-five","-six","-seven","-eight","-nine"),IF(VALUE(MID(TEXT(INT(C62),REPT(0,12)),5,1))=0,CHOOSE(MID(TEXT(INT(C62),REPT(0,12)),6,1)+1,"","one","two","three","four","five","six","seven","eight","nine"),"")),IF(VALUE(MID(TEXT(INT(C62),REPT(0,12)),4,3))>0," million ",""),CHOOSE(MID(TEXT(INT(C62),REPT(0,12)),7,1)+1,"","one hundred ","two hundred ","three hundred ","four hundred ","five hundred ","six hundred ","seven hundred ","eight hundred ","nine hundred "),CHOOSE(MID(TEXT(INT(C62),REPT(0,12)),8,1)+1,"",CHOOSE(MID(TEXT(INT(C62),REPT(0,12)),9,1)+1,"ten","eleven","twelve","thirteen","fourteen","fifteen","sixteen","seventeen","eighteen","nineteen"),"twenty","thirty","forty","fifty","sixty","seventy","eighty","ninety"),IF(VALUE(MID(TEXT(INT(C62),REPT(0,12)),8,1))>1,CHOOSE(MID(TEXT(INT(C62),REPT(0,12)),9,1)+1,"","-one","-two","-three","-four","-five","-six","-seven","-eight","-nine"),IF(VALUE(MID(TEXT(INT(C62),REPT(0,12)),8,1))=0,CHOOSE(MID(TEXT(INT(C62),REPT(0,12)),9,1)+1,"","one","two","three","four","five","six","seven","eight","nine"),"")),IF(VALUE(MID(TEXT(INT(C62),REPT(0,12)),7,3))," thousand ",""),CHOOSE(MID(TEXT(INT(C62),REPT(0,12)),10,1)+1,"","one hundred ","two hundred ","three hundred ","four hundred ","five hundred ","six hundred ","seven hundred ","eight hundred ","nine hundred "),CHOOSE(MID(TEXT(INT(C62),REPT(0,12)),11,1)+1,"",CHOOSE(MID(TEXT(INT(C62),REPT(0,12)),12,1)+1,"ten","eleven","twelve","thirteen","fourteen","fifteen","sixteen","seventeen","eighteen","nineteen"),"twenty","thirty","forty","fifty","sixty","seventy","eighty","ninety"),IF(VALUE(MID(TEXT(INT(C62),REPT(0,12)),11,1))>1,CHOOSE(MID(TEXT(INT(C62),REPT(0,12)),12,1)+1,"","-one","-two","-three","-four","-five","-six","-seven","-eight","-nine"),IF(VALUE(MID(TEXT(INT(C62),REPT(0,12)),11,1))=0,CHOOSE(MID(TEXT(INT(C62),REPT(0,12)),12,1)+1,"","one","two","three","four","five","six","seven","eight","nine"),"")))," "," ")&IF(FLOOR(C62,1)>1," Rupees"," Rupees"))&IF(ISERROR(FIND(".",C62,1)),""," and "&PROPER(IF(LEN(LEFT(TRIM(MID(SUBSTITUTE('[3]16 NO.'!$B$62,".",REPT(" ",255)),255,200)),2))=1,CHOOSE(1*LEFT(TRIM(MID(SUBSTITUTE('[3]16 NO.'!$B$62,".",REPT(" ",255)),255,200)),2),"ten","twenty","thirty","forty","fifty","sixty","seventy","eighty","ninety")&" Paise","")&CONCATENATE(CHOOSE(MID(TEXT(INT(LEFT(TRIM(MID(SUBSTITUTE('[3]16 NO.'!$B$62,".",REPT(" ",255)),255,200)),2)),REPT(0,12)),11,1)+1,"",CHOOSE(MID(TEXT(INT(LEFT(TRIM(MID(SUBSTITUTE('[3]16 NO.'!$B$62,".",REPT(" ",255)),255,200)),2)),REPT(0,12)),12,1)+1,"ten","eleven","twelve","thirteen","fourteen","fifteen","sixteen","seventeen","eighteen","nineteen"),"twenty","thirty","forty","fifty","sixty","seventy","eighty","ninety"),IF(VALUE(MID(TEXT(INT(LEFT(TRIM(MID(SUBSTITUTE('[3]16 NO.'!$B$62,".",REPT(" ",255)),255,200)),2)),REPT(0,12)),11,1))>1,CHOOSE(MID(TEXT(INT(LEFT(TRIM(MID(SUBSTITUTE('[3]16 NO.'!$B$62,".",REPT(" ",255)),255,200)),2)),REPT(0,12)),12,1)+1,"","-one","-two","-three","-four","-five","-six","-seven","-eight","-nine")&" Paise",IF(LEFT(TRIM(MID(SUBSTITUTE('[3]16 NO.'!$B$62,".",REPT(" ",255)),255,200)),2)="01","one Paise",IF(LEFT(TRIM(MID(SUBSTITUTE('[3]16 NO.'!$B$62,".",REPT(" ",255)),255,200)),1)="0",CHOOSE(MID(TEXT(INT(LEFT(TRIM(MID(SUBSTITUTE('[3]16 NO.'!$B$62,".",REPT(" ",255)),255,200)),2)),REPT(0,12)),12,1)+1,"","one","two","three","four","five","six","seven","eight","nine")&" Paise",""))))))) -> Fifteen Thousand Rupees | I62: (in words) has been deducted
B63: and deposited to the credit of the Central Govt.. I further certify that the information given above is true, complete and correct
B64: and is based on the books of account, documents, TDS statement, TDS deposited and other available records.
B65: Place | D65: =G7 -> M.G.G.S. BAR
B66: Date | D66: =TODAY() -> 2021-12-25 | F66: Signature of person responsible for deduction of tax
B67: Designation | D67: =D61 -> PRINCIPAL | F67: Full name : | G67: =B6 -> USHA PALIYA
B68: PART- B (Annexure)
B69: DETAILS OF SALARY PAID AND ANY OTHER INCOME AND TAX DEDUCTED
B70: 1. Gross salary
B71: (a) Salary as per provisions contained in section 17(1) | G71: =COMPUTATION!O4+COMPUTATION!O5 -> 925118
B72: (b) Value of perquisites u/s 17(2) (as per Form No. 12BA, wherever applicable)
B73: (c) Profits in lieu of salary under section 17(3) (as per Form No. 12BA, wherever applicable) | G73: 0
B74: (d) Total (a+b+c) | I74: =G71+G72+G73 -> 925118
B75: 2. Less: Allowance to the extent exempt u/s 10 House Rent Allowance
B76: Allowance
B77: House Rent Allow. US10 (13 A) | E77: =COMPUTATION!O6 -> 0 | F77: =E77 -> 0
B78: US10 (14) | F78: 0 | G78: =F77+F78 -> 0
B79: 3. Balance (1 - 2) | I79: =I74-G78 -> 925118
B80: 4. Deductions: U/s 16
B81: (a) | D81: Standard Deduction (u/s 16 (ia) | G81: =COMPUTATION!K10 -> 50000
B82: (b) | D82: Entertainment allowance | G82: =COMPUTATION!K8 -> 0
B83: (c) | D83: Tax on employment | G83: =COMPUTATION!K9 -> 0
B84: 5. Aggregate of 4 (a) and (b) | I84: =G82+G83+G81 -> 50000
B85: Income chargeable under the head "salaries" (3-5) | K85: =I79-I84 -> 875118
B86: 6. Income From House Property (a + b)
B87: 30% of Rent | D87: Interest on Home Loan | F87: house Tax
B88: =COMPUTATION!D14 -> 0 | D88: =COMPUTATION!F14 -> 0 | F88: =COMPUTATION!I14 -> 0
B89: (a) Received House Rent | D89: =COMPUTATION!K12 -> 0 | F89: Total (a-b) +- | G89: =SUM(D89-(B88+D88+F88)) -> 0 | K89: =K85+G89 -> 875118
B90: 7. Add: Any other income reported by employee
B91: FD व अन्य स्रोत से प्राप्त ब्याज तथा Bond से प्राप्त ब्याज | F91: =COMPUTATION!E17+COMPUTATION!I17 -> 0
B92: अन्य आय | F92: =COMPUTATION!I16 -> 0
B93: Saving Bank A/C interest | F93: =COMPUTATION!E16 -> 1500 | G93: =F93 -> 1500 | I93: =F91+F92+F93 -> 1500
B94: 8. Gross total income (6+7) | K94: =K89+I93 -> 876618
B95: 9. Deductions under Chapter VI A
B96: (A) Section 80C, 80CCC and 80CCD
B97: (a) Section 80C | I97: Gross Amount | K97: Deductible Amount
B98: A | C98: 1 | D98: (A) | E98: GPF | G98: =COMPUTATION!G26 -> 0
C99: 2 | E99: State Insurance | G99: =COMPUTATION!G21 -> 84000
C100: 3 | E100: Gr. Acc. Insurance | G100: =COMPUTATION!G27 -> 220
C101: 4 | E101: LIC + ULIP + PLI | G101: =COMPUTATION!G22+COMPUTATION!G30+COMPUTATION!M27+COMPUTATION!G28 -> 22560
C102: 5 | E102: PPF | G102: =COMPUTATION!G24 -> 0
C103: 6 | E103: Home Loan Installment (Capital) | G103: =COMPUTATION!G29 -> 0
C104: 7 | E104: GPF-2004 | G104: =COMPUTATION!G31 -> 0
C105: 8 | E105: Pension Plan (US80ccc+US 80CCD)(1) | G105: =COMPUTATION!M21+COMPUTATION!M22 -> 78584
C106: 9 | E106: Tution Fee | G106: =COMPUTATION!M24 -> 0
C107: 10 | E107: NSC + Interest on NSC | G107: =COMPUTATION!G25+COMPUTATION!M23 -> 0
C108: 11 | E108: Sukanya Samridhi A/C | G108: =COMPUTATION!M29 -> 0
C109: 12 | E109: Fixed Deposit above 5 years | G109: =COMPUTATION!M30 -> 0
C110: 13 | E110: Mutual Fund | G110: =COMPUTATION!M28 -> 0 | I110: =SUM(G98:H110) -> 185364 | K110: =IF(I110<=150000,I110,150000) -> 150000
C111: (B) Section 80CCD(2) | G111: =COMPUTATION!O33 ->  | I111: =G111 ->  | K111: =I111 -> 
C112: (C) Section 80CCD(1B) (RS.-50000/-) | G112: =COMPUTATION!O34 -> 0 | I112: =SUM(K110,G111,G112) -> 150000 | K112: =I112 -> 150000
I113: ………………… 3
B114: :: 3 ::
B115: (B) Other Sections (e.g. 80E, 80G etc.) under Chapter VIA | G115: Gross Amount | I115: Qualifying amount | K115: Deductible Amount
B116: 1 | C116: U/S 80D | G116: =COMPUTATION!O37 -> 0 | I116: =G116 -> 0
B117: 2 | C117: U/S 80DD | G117: =COMPUTATION!O38 -> 0 | I117: 0
B118: 3 | C118: U/S 80DDB | G118: =COMPUTATION!O39 -> 0 | I118: 0
B119: 4 | C119: U/S 80E | G119: =COMPUTATION!O40 -> 0 | I119: 0
B120: 5 | C120: U/S 80G | G120: =COMPUTATION!O41 -> 0 | I120: 0
B121: 6 | C121: U/S 80GG | I121: 0
B122: 7 | C122: U/S 80GGA | G122: =COMPUTATION!O44 -> 0 | I122: 0
B123: 8 | C123: U/S 80U | G123: =COMPUTATION!O42 -> 0 | I123: 0
B124: 9 | C124: US 80TTA [Exempt Saving Bank Int. Max. RS. 10,000/-] | G124: =COMPUTATION!O43 -> 1500 | I124: 1500 | K124: =ROUND(SUM(I116:J124),0) -> 1500
B125: 10. Aggregate of deductible amount under chapter VIA | K125: =ROUND((K112+K124),0) -> 151500
B126: 11. Total income (8-10) | E126: (Roundup Figures of Rs 10) | K126: =ROUND((K94-K125),-1) -> 725120
B127: 12. Tax on total income | K127: =ROUND(IF(K126<=250000,0,IF(K126<=500000,(K126-250000)*0.05,IF(K126<=1000000,12500+(K126-500000)*0.2,IF(K126>1000000,112500+(K126-1000000)*0.3,"0")))),0) -> 57524
B128: 13. Rebate U/s 87 A (Taxable Income below Rs. 5,00,000/-) | I128: =COMPUTATION!O59 -> 0
B129: 14. Tax payable (12-13) | K129: =K127-I128 -> 57524
B130: 15. Education & Health cess @ 4% (on tax computed at S.No. 12) | K130: =ROUND((K129*0.04),0) -> 2301
B131: 16. Tax payable (14+15) [Round off U/s 288 B] | K131: =K129+K130 -> 59825
B132: 17. Less:- Relief under section 89 (Attach Form 10E) | K132: =COMPUTATION!O63 -> 0
B133: 18. Tax payable (14-15) | K133: =K131-K132 -> 59825
B134: 19. Tax deducted at source u/s 192 (1) | K134: =COMPUTATION!O66 -> 15000
B135: =IF(K133>K134,"Income Tax Payable",IF(K133<K134,"Income Tax Refundable","Income Tax Payble/Refundable")) -> Income Tax Payable | K135: =IF(K133>K134,K133-K134,K134-K133) -> 44825
B136: Verification
B137: I | C137: =B6&"," -> USHA PALIYA, | F137: Son/Daughter of | G137: =IF(G60="","",G60) ->  | K137: working in the
B138: capacity of | D138: =D61 -> PRINCIPAL | G138: (designation) do hereby certify that a sum of
B139: Rs. | C139: =K134 -> 15000 | D139: =IF(OR(LEN(FLOOR(C62,1))=13,FLOOR(C62,1)<=0),"Out of range",PROPER(SUBSTITUTE(CONCATENATE(CHOOSE(MID(TEXT(INT(C62),REPT(0,12)),1,1)+1,"","one hundred ","two hundred ","three hundred ","four hundred ","five hundred ","six hundred ","seven hundred ","eight hundred ","nine hundred "),CHOOSE(MID(TEXT(INT(C62),REPT(0,12)),2,1)+1,"",CHOOSE(MID(TEXT(INT(C62),REPT(0,12)),3,1)+1,"ten","eleven","twelve","thirteen","fourteen","fifteen","sixteen","seventeen","eighteen","nineteen"),"twenty","thirty","forty","fifty","sixty","seventy","eighty","ninety"),IF(VALUE(MID(TEXT(INT(C62),REPT(0,12)),2,1))>1,CHOOSE(MID(TEXT(INT(C62),REPT(0,12)),3,1)+1,"","-one","-two","-three","-four","-five","-six","-seven","-eight","-nine"),IF(VALUE(MID(TEXT(INT(C62),REPT(0,12)),2,1))=0,CHOOSE(MID(TEXT(INT(C62),REPT(0,12)),3,1)+1,"","one","two","three","four","five","six","seven","eight","nine"),"")),IF(C62>=10^9," billion ",""),CHOOSE(MID(TEXT(INT(C62),REPT(0,12)),4,1)+1,"","one hundred ","two hundred ","three hundred ","four hundred ","five hundred ","six hundred ","seven hundred ","eight hundred ","nine hundred "),CHOOSE(MID(TEXT(INT(C62),REPT(0,12)),5,1)+1,"",CHOOSE(MID(TEXT(INT(C62),REPT(0,12)),6,1)+1,"ten","eleven","twelve","thirteen","fourteen","fifteen","sixteen","seventeen","eighteen","nineteen"),"twenty","thirty","forty","fifty","sixty","seventy","eighty","ninety"),IF(VALUE(MID(TEXT(INT(C62),REPT(0,12)),5,1))>1,CHOOSE(MID(TEXT(INT(C62),REPT(0,12)),6,1)+1,"","-one","-two","-three","-four","-five","-six","-seven","-eight","-nine"),IF(VALUE(MID(TEXT(INT(C62),REPT(0,12)),5,1))=0,CHOOSE(MID(TEXT(INT(C62),REPT(0,12)),6,1)+1,"","one","two","three","four","five","six","seven","eight","nine"),"")),IF(VALUE(MID(TEXT(INT(C62),REPT(0,12)),4,3))>0," million ",""),CHOOSE(MID(TEXT(INT(C62),REPT(0,12)),7,1)+1,"","one hundred ","two hundred ","three hundred ","four hundred ","five hundred ","six hundred ","seven hundred ","eight hundred ","nine hundred "),CHOOSE(MID(TEXT(INT(C62),REPT(0,12)),8,1)+1,"",CHOOSE(MID(TEXT(INT(C62),REPT(0,12)),9,1)+1,"ten","eleven","twelve","thirteen","fourteen","fifteen","sixteen","seventeen","eighteen","nineteen"),"twenty","thirty","forty","fifty","sixty","seventy","eighty","ninety"),IF(VALUE(MID(TEXT(INT(C62),REPT(0,12)),8,1))>1,CHOOSE(MID(TEXT(INT(C62),REPT(0,12)),9,1)+1,"","-one","-two","-three","-four","-five","-six","-seven","-eight","-nine"),IF(VALUE(MID(TEXT(INT(C62),REPT(0,12)),8,1))=0,CHOOSE(MID(TEXT(INT(C62),REPT(0,12)),9,1)+1,"","one","two","three","four","five","six","seven","eight","nine"),"")),IF(VALUE(MID(TEXT(INT(C62),REPT(0,12)),7,3))," thousand ",""),CHOOSE(MID(TEXT(INT(C62),REPT(0,12)),10,1)+1,"","one hundred ","two hundred ","three hundred ","four hundred ","five hundred ","six hundred ","seven hundred ","eight hundred ","nine hundred "),CHOOSE(MID(TEXT(INT(C62),REPT(0,12)),11,1)+1,"",CHOOSE(MID(TEXT(INT(C62),REPT(0,12)),12,1)+1,"ten","eleven","twelve","thirteen","fourteen","fifteen","sixteen","seventeen","eighteen","nineteen"),"twenty","thirty","forty","fifty","sixty","seventy","eighty","ninety"),IF(VALUE(MID(TEXT(INT(C62),REPT(0,12)),11,1))>1,CHOOSE(MID(TEXT(INT(C62),REPT(0,12)),12,1)+1,"","-one","-two","-three","-four","-five","-six","-seven","-eight","-nine"),IF(VALUE(MID(TEXT(INT(C62),REPT(0,12)),11,1))=0,CHOOSE(MID(TEXT(INT(C62),REPT(0,12)),12,1)+1,"","one","two","three","four","five","six","seven","eight","nine"),"")))," "," ")&IF(FLOOR(C62,1)>1," Rupees"," Rupees"))&IF(ISERROR(FIND(".",C62,1)),""," and "&PROPER(IF(LEN(LEFT(TRIM(MID(SUBSTITUTE('[3]16 NO.'!$B$62,".",REPT(" ",255)),255,200)),2))=1,CHOOSE(1*LEFT(TRIM(MID(SUBSTITUTE('[3]16 NO.'!$B$62,".",REPT(" ",255)),255,200)),2),"ten","twenty","thirty","forty","fifty","sixty","seventy","eighty","ninety")&" Paise","")&CONCATENATE(CHOOSE(MID(TEXT(INT(LEFT(TRIM(MID(SUBSTITUTE('[3]16 NO.'!$B$62,".",REPT(" ",255)),255,200)),2)),REPT(0,12)),11,1)+1,"",CHOOSE(MID(TEXT(INT(LEFT(TRIM(MID(SUBSTITUTE('[3]16 NO.'!$B$62,".",REPT(" ",255)),255,200)),2)),REPT(0,12)),12,1)+1,"ten","eleven","twelve","thirteen","fourteen","fifteen","sixteen","seventeen","eighteen","nineteen"),"twenty","thirty","forty","fifty","sixty","seventy","eighty","ninety"),IF(VALUE(MID(TEXT(INT(LEFT(TRIM(MID(SUBSTITUTE('[3]16 NO.'!$B$62,".",REPT(" ",255)),255,200)),2)),REPT(0,12)),11,1))>1,CHOOSE(MID(TEXT(INT(LEFT(TRIM(MID(SUBSTITUTE('[3]16 NO.'!$B$62,".",REPT(" ",255)),255,200)),2)),REPT(0,12)),12,1)+1,"","-one","-two","-three","-four","-five","-six","-seven","-eight","-nine")&" Paise",IF(LEFT(TRIM(MID(SUBSTITUTE('[3]16 NO.'!$B$62,".",REPT(" ",255)),255,200)),2)="01","one Paise",IF(LEFT(TRIM(MID(SUBSTITUTE('[3]16 NO.'!$B$62,".",REPT(" ",255)),255,200)),1)="0",CHOOSE(MID(TEXT(INT(LEFT(TRIM(MID(SUBSTITUTE('[3]16 NO.'!$B$62,".",REPT(" ",255)),255,200)),2)),REPT(0,12)),12,1)+1,"","one","two","three","four","five","six","seven","eight","nine")&" Paise",""))))))) -> Fifteen Thousand Rupees | I139: (in words) has beeen deducted and
B140: deposited to the credit of the Central Government. I further certify that the information given above is true, complete and correct and is based on the books of account, documents, TDS statement, TDS deposited and other available records.
B141: Place | D141: =D65 -> M.G.G.S. BAR
B142: Date | D142: =TODAY() -> 2021-12-25 | F142: Signature of person responsible for deduction of tax
B143: Designation | D143: =D138 -> PRINCIPAL | F143: Full name : | G143: =B6 -> USHA PALIYA
